Workbook

Sheet INDICE
F1: ÁFRICA DO SUL
F2: Trocas comerciais com Portugal (PT) 2018-2022 Setores agrícola e agroalimentar, do mar e das florestas
C3: Fonte
D4: Estatísticas do Comércio Internacional | F4: África do Sul - Síntese
D5: dados: 2022 definitivos | F5: 1. Evolução da balança comercial
F6: 2. Ranking dos parceiros comerciais de Portugal por país
C7: Data | D7: 2023-08-22T16:46:54.380 | F7: 2A Parceiros comerciais de Portugal - UE vs. Países Terceiros
F8: 3. Principais produtos transacionados (NC a 2 e 4 dígitos)
F9: 3A Principais produtos transacionados (sem mar nem florestas)
F10: 4A Evolução da balança comercial por produto
F11: 5.2. Trocas comerciais por produto (NC 2 dígitos)

Sheet Sintese
A1: África do Sul - Síntese (2018-2022)
A3: • As trocas comerciais de bens transacionáveis (excluindo serviços) entre Portugal e África do Sul representam um total de 202,7 milhões de € (M€) em exportações e 208,8 M€ em importações, na média do período 2018-2022, correspondendo a um saldo negativo da balança comercial de cerca de -6 M€.
A4: • No que respeita aos produtos dos setores agrícola e agroalimentar, mar e florestas, Portugal exportou para África do Sul 37,2 M€ em média anual, no mesmo período (este país ocupa assim a 32ª posição em relação ao total dos países), enquanto as importações totalizaram 145,3 M€ (13ª posição), com um saldo negativo de -108,2 M€. Estes setores representam perto de 18,3% do total de exportações de bens transacionáveis e 69,6% das correspondentes importações.
A5: • Se nos referirmos apenas ao setor agrícola e agroalimentar, as exportações representam, em média, 21,8 M€ (30ª posição) e as importações 112,5 milhões (12ª posição), ou seja, Portugal tem um saldo negativo de -90,7 M€. Estes valores representam, respetivamente, cerca de 58,8% das exportações do setor agroflorestal e mar e 77,4% das importações.
A6: • As principais exportações agrícolas e agroalimentares (NC 4 dígitos) neste período são Óleos de girassol, cártamo ou algodão (21%), Tomates preparados (10%) e Glicerol em bruto; águas e lixívias (9%). As importações agrícolas e agroalimentares mais relevantes referem-se a Citrinos, frescos ou secos (80%), Açúcares (cana/beterraba); sacarose pura (6%) e Maçãs, peras e marmelos, frescos (5%). Se considerarmos também os produtos do mar e da floresta, merecem particular destaque, em termos de exportações, Óleos de girassol, cártamo ou algodão (12%), Papel e cartão p/ escrita, etc. (12%) e Obras de cortiça natural (12%). Nas importações destes setores, destacam-se Citrinos, frescos ou secos (62%), Peixes congelados (11%) e Filetes de peixes (7%).
A9: Saldo da Balança Comercial | B9: 2018 | C9: 2019 | D9: 2020 | E9: 2021 | F9: 2022 | G9: média 2018-2022 | J9: Posição entre os parceiros comerciais de Portugal (milhares de euros)
A10: Total de Bens Transacionáveis* | B10: -59650.622 | C10: -8660.514 | D10: -67146.302 | E10: 51633.644 | F10: 2046-10-14T17:29:45.600 | G10: -6041.813 | J10: AA + M + F | K10: Posição | L10: média 2018-2022 | M10: % do total | N10: TVMA* 2018-2022 | O10: TVT* 2018-2022
A11: Agrícola e Agroalimentar (AA) | B11: -99712.706 | C11: -55979.6 | D11: -108523.876 | E11: -72303.101 | F11: -116912.516 | G11: -90686.3598 | J11: Exportações | K11: 32ª | L11: 37155.2308 | M11: 0.00286696425 | N11: 0.1072394653 | O11: 0.5030250811
A12: Mar (M) | B12: -34629.61 | C12: -35450.913 | D12: -30920.71 | E12: -26726.462 | F12: -24365.706 | G12: -30418.6802 | J12: Importações | K12: 13ª | L12: 145344.1816 | M12: 0.009719770643 | N12: 0.02687863718 | O12: 0.1119275126
A13: Florestas (F) | B13: 12153.334 | C13: 1933-09-17T15:23:02.400 | D13: 9123.629 | E13: 12928.995 | F13: 1949-06-10T20:19:40.800 | G13: 12916.0892 | J13: AA
A14: AA + M + F | B14: -122188.982 | C14: -79115.872 | D14: -130320.957 | E14: -86100.568 | F14: -123218.375 | G14: -108188.9508 | J14: Exportações | K14: 30ª | L14: 21835.1798 | M14: 0.003088880062 | N14: 0.1674753881 | O14: 0.857765679
J15: Importações | K15: 12ª | L15: 112521.5396 | M15: 0.01103034579 | N15: 0.04808582089 | O15: 0.2646904182
A16: milhares de euros *exclui serviços | K16: *TVMA - Taxa de variação média anual; TVT - Taxa de variação total
A18: Evolução das trocas comerciais Portugal-África do Sul em milhares de euros (2018-2022)
E27: Exportações | G27: Importações | I27: Saldo
A28: Principais produtos agrícolas e agroalimentares, do mar e da floresta transacionados (NC 4 dígitos)
A47: Principais produtos agrícolas e agroalimentares transacionados (NC 4 dígitos)
A81: Fonte: GPP a partir de dados INE/Comércio Internacional (2022 definitivos) | N81: 2023-08-22T16:46:54.380

Sheet 1
A1: Evolução da balança comercial Portugal-África do Sul 2018-2022 em milhões de euros
A3: Total de Bens Transacionáveis (BT)(1) | B3: 2018 | C3: 2019 | D3: 2020 | E3: 2021 | F3: 2022 | G3: média quinquénio | H3: var. 18/19 | I3: var. 19/20 | J3: var. 20/21 | K3: var. 21/22 | L3: TVMA* 2018-2022 | M3: TVT* 2018-2022
A4: Exportações | B4: 172.51674 | C4: 188.667902 | D4: 147.395272 | E4: 219.545103 | F4: 285.479057 | G4: 202.7208148 | H4: 0.09362083935 | I4: -0.2187580906 | J4: 0.4894989508 | K4: 0.3003207683 | L4: 0.1341898402 | M4: 0.6547904684
A5: Importações | B5: 232.167362 | C5: 197.328416 | D5: 214.541574 | E5: 167.911459 | F5: 231.864328 | G5: 208.7626278 | H5: -0.1500596195 | I5: 0.08723101492 | J5: -0.2173476876 | K5: 0.3808725705 | L5: -0.0003264697015 | M5: -0.00130523945
A6: Saldo (exp-imp) | B6: -59.650622 | C6: -8.660514 | D6: -67.146302 | E6: 51.633644 | F6: 53.614729 | G6: -6.041813
A7: Cobertura (exp/imp) | B7: 0.7430705958 | C7: 0.9561111665 | D7: 0.6870242874 | E7: 1.307505183 | F7: 1.231233193 | G7: 0.9710589339
A8: Exp BT África do Sul / Exp BT Mundo | B8: 0.002982139412 | C8: 0.00314956681 | D8: 0.002741860514 | E8: 0.003450961839 | F8: 0.003644189653 | G8: 0.00323352861 | L8: Exportações
A9: Imp BT África do Sul / Imp BT Mundo | B9: 0.003077540848 | C9: 0.002467310593 | D9: 0.003148283599 | E9: 0.00201948422 | F9: 0.002117757051 | G9: 0.002507999866 | L9: Importações
A10: Exp BT África do Sul / Exp TE Mundo | B10: 0.001935265253 | C10: 0.00202279244 | D10: 0.001984165662 | E10: 0.002455632405 | F10: 0.002383923387 | G10: 0.00217578378
A11: Imp BT África do Sul / Imp TE Mundo | B11: 0.002632450812 | C11: 0.002137861668 | D11: 0.002730065454 | E11: 0.001757670381 | F11: 0.001844615354 | G11: 0.002173209276
A12: (1) Todos os produtos transacionados entre PT e África do Sul (exclui serviços) | D12: TE - Total da Economia (bens e serviços) Fonte: INE/Contas Nacionais | H12: *TVMA - Taxa de variação média anual; TVT - Taxa de variação total
A24: Agro(1) + Mar + Florestas (AMF) | B24: 2018 | C24: 2019 | D24: 2020 | E24: 2021 | F24: 2022 | G24: média quinquénio | H24: var. 18/19 | I24: var. 19/20 | J24: var. 20/21 | K24: var. 21/22 | L24: TVMA* 2018-2022 | M24: TVT* 2018-2022
A25: Exportações | B25: 32.336984 | C25: 38.334248 | D25: 28.913932 | E25: 37.587692 | F25: 48.603298 | G25: 37.1552308 | H25: 0.1854614518 | I25: -0.2457415103 | J25: 0.299985488 | K25: 0.2930641764 | L25: 0.1072394653 | M25: 0.5030250811
A26: Importações | B26: 154.525966 | C26: 117.45012 | D26: 159.234889 | E26: 123.68826 | F26: 171.821673 | G26: 145.3441816 | H26: -0.239932789 | I26: 0.3557660818 | J26: -0.2232339233 | K26: 0.3891510237 | L26: 0.02687863718 | M26: 0.1119275126
A27: Saldo (exp-imp) | B27: -122.188982 | C27: -79.115872 | D27: -130.320957 | E27: -86.100568 | F27: -123.218375 | G27: -108.1889508
A28: Cobertura (exp/imp) | B28: 0.2092656971 | C28: 0.3263874741 | D28: 0.1815803822 | E28: 0.303890539 | F28: 0.2828705899 | G28: 0.2556361761
A29: Exp AMF / Exp BT | B29: 0.1874425867 | C29: 0.2031837297 | D29: 0.1961659394 | E29: 0.1712071528 | F29: 0.1702517113 | G29: 0.1832827617 | L29: Exportações
A30: Imp AMF / Imp BT | B30: 0.6655800569 | C30: 0.5952012507 | D30: 0.7422099411 | E30: 0.7366278677 | F30: 0.7410440169 | G30: 0.6962174367 | L30: Importações
A31: Exp AMF África do Sul / Exp AMF Mundo | B31: 0.002775537725 | C31: 0.00324102248 | D31: 0.002506530691 | E31: 0.002805769929 | F31: 0.00296571979 | G31: 0.00286696425
A32: Imp AMF África do Sul / Imp AMF Mundo | B32: 0.01133669848 | C32: 0.008490350343 | D32: 0.01220622117 | E32: 0.008276445547 | F32: 0.008896533456 | G32: 0.009719770643
A33: (1) Produtos agrícolas e agroalimentares | B33: BT - Total de Bens Transacionáveis (exclui serviços) | H33: *TVMA - Taxa de variação média anual; TVT - Taxa de variação total
A45: Agroalimentar (AA)(1) | B45: 2018 | C45: 2019 | D45: 2020 | E45: 2021 | F45: 2022 | G45: média quinquénio | H45: var. 18/19 | I45: var. 19/20 | J45: var. 20/21 | K45: var. 21/22 | L45: TVMA* 2018-2022 | M45: TVT* 2018-2022
A46: Exportações | B46: 15.500879 | C46: 23.819173 | D46: 18.515295 | E46: 22.543551 | F46: 28.797001 | G46: 21.8351798 | H46: 0.5366336967 | I46: -0.2226726344 | J46: 0.2175636953 | K46: 0.2773941869 | L46: 0.1674753881 | M46: 0.857765679
A47: Importações | B47: 115.213585 | C47: 79.798773 | D47: 127.039171 | E47: 94.846652 | F47: 145.709517 | G47: 112.5215396 | H47: -0.3073839947 | I47: 0.5919940398 | J47: -0.2534062427 | K47: 0.536264211 | L47: 0.06046431039 | M47: 0.2646904182
A48: Saldo (exp-imp) | B48: -99.712706 | C48: -55.9796 | D48: -108.523876 | E48: -72.303101 | F48: -116.912516 | G48: -90.6863598
A49: Cobertura (exp/imp) | B49: 0.1345403756 | C49: 0.2984904668 | D49: 0.1457447719 | E49: 0.2376842042 | F49: 0.1976329453 | G49: 0.1940533331
A50: Exp AA / Exp AMF | B50: 0.4793545063 | C50: 0.6213549044 | D50: 0.6403589453 | E50: 0.5997588519 | F50: 0.5924906783 | G50: 0.5876744493 | L50: Exportações
A51: Imp AA / Imp AMF | B51: 0.7455936888 | C51: 0.6794269176 | D51: 0.7978099008 | E51: 0.7668201655 | F51: 0.8480275768 | G51: 0.7741729897 | L51: Importações
A52: Exp AA / Exp BT | B52: 0.08985144862 | C52: 0.1262492069 | D52: 0.1256166141 | E52: 0.1026830054 | F52: 0.1008725519 | G52: 0.1077105961
A53: Imp AA / Imp BT | B53: 0.4962522898 | C53: 0.4043957511 | D53: 0.5921424395 | E53: 0.5648611034 | F53: 0.628425762 | G53: 0.5389927344
A54: Exp AA África do Sul / Exp AA Mundo | B54: 0.0025382662 | C54: 0.003785833172 | D54: 0.002798105876 | E54: 0.003025247928 | F54: 0.003243856822 | G54: 0.003088880062
A55: Imp AA África do Sul / Imp AA Mundo | B55: 0.01266657304 | C55: 0.008564789794 | D55: 0.0139842428 | E55: 0.009234553327 | F55: 0.01100757773 | G55: 0.01103034579
A56: (1) Produtos agrícolas e agroalimentares | B56: AMF - Agroalimentar, Mar e Florestas; BT - Total de Bens Transacionáveis (exclui serviços) | H56: *TVMA - Taxa de variação média anual; TVT - Taxa de variação total
A67: Mar (M) | B67: 2018 | C67: 2019 | D67: 2020 | E67: 2021 | F67: 2022 | G67: média quinquénio | H67: var. 18/19 | I67: var. 19/20 | J67: var. 20/21 | K67: var. 21/22 | L67: TVMA* 2018-2022 | M67: TVT* 2018-2022
A68: Exportações | B68: 0.650175 | C68: 0.954503 | D68: 0.520854 | E68: 1.144701 | F68: 1.097079 | G68: 0.8734624 | H68: 0.468070904 | I68: -0.4543191588 | J68: 1.197738714 | K68: -0.04160213016 | L68: 0.1397298136 | M68: 0.687359557
A69: Importações | B69: 35.279785 | C69: 36.405416 | D69: 31.441564 | E69: 27.871163 | F69: 25.462785 | G69: 31.2921426 | H69: 0.03190583503 | I69: -0.1363492729 | J69: -0.1135567238 | K69: -0.08641110527 | L69: -0.07828852722
A70: Saldo (exp-imp) | B70: -34.62961 | C70: -35.450913 | D70: -30.92071 | E70: -26.726462 | F70: -24.365706 | G70: -30.4186802
A71: Cobertura (exp/imp) | B71: 0.01842910891 | C71: 0.02621870878 | D71: 0.01656577898 | E71: 0.04107116018 | F71: 0.04308558549 | G71: 0.02791315415
A72: Exp M / Exp AMF | B72: 0.02010623502 | C72: 0.02489948414 | D72: 0.01801394566 | E72: 0.0304541444 | F72: 0.02257211023 | G72: 0.02350846385 | L72: Exportações
A73: Imp M / Imp AMF | B73: 0.2283097522 | C73: 0.3099649111 | D73: 0.1974539889 | E73: 0.2253339403 | F73: 0.148193092 | G73: 0.2152968372 | L73: Importações
A74: Exp M / Exp BT | B74: 0.003768764701 | C74: 0.005059170054 | D74: 0.003533722574 | E74: 0.005213967355 | F74: 0.003842940395 | G74: 0.004308696178
A75: Imp M / Imp BT | B75: 0.1519584178 | C75: 0.1844915027 | D75: 0.1465523134 | E75: 0.16598726 | F75: 0.1098176042 | G75: 0.1498934121
A76: Exp M África do Sul / Exp M Mundo | B76: 0.0005960494828 | C76: 0.0008934057202 | D76: 0.0005789391431 | E76: 0.001044982436 | F76: 0.0008576814622 | G76: 0.0008037881885
A77: Imp M África do Sul / Imp M Mundo | B77: 0.01600545642 | C77: 0.01670477234 | D77: 0.01633440937 | E77: 0.01332238798 | F77: 0.009791751498 | G77: 0.01422249781
A78: AMF - Agroalimentar, Mar e Florestas; BT - Total de Bens Transacionáveis (exclui serviços) | H78: *TVMA - Taxa de variação média anual; TVT - Taxa de variação total
A90: Florestas (F) | B90: 2018 | C90: 2019 | D90: 2020 | E90: 2021 | F90: 2022 | G90: média quinquénio | H90: var. 18/19 | I90: var. 19/20 | J90: var. 20/21 | K90: var. 21/22 | L90: TVMA* 2018-2022 | M90: TVT* 2018-2022
A91: Exportações | B91: 16.18593 | C91: 13.560572 | D91: 9.877783 | E91: 13.89944 | F91: 18.709218 | G91: 14.4465886 | H91: -0.1622000095 | I91: -0.2715806531 | J91: 0.4071416633 | K91: 0.3460411355 | L91: 0.03688237983 | M91: 0.1558939153
A92: Importações | B92: 4.032596 | C92: 1.245931 | D92: 0.754154 | E92: 0.970445 | F92: 0.649371 | G92: 1.5304994 | H92: -0.6910350057 | I92: -0.3947064484 | J92: 0.2867995131 | K92: -0.3308523409 | L92: -0.3665285539 | M92: -0.8389694876
A93: Saldo (exp-imp) | B93: 12.153334 | C93: 12.314641 | D93: 9.123629 | E93: 12.928995 | F93: 18.059847 | G93: 12.9160892
A94: Cobertura (exp/imp) | B94: 4.013774254 | C94: 10.88388683 | D94: 13.0978328 | E94: 14.32274884 | F94: 28.81129277 | G94: 9.439133789
A95: Exp F / Exp AMF | B95: 0.5005392587 | C95: 0.3537456115 | D95: 0.341627109 | E95: 0.3697870037 | F95: 0.3849372115 | G95: 0.3888170868 | L95: Exportações
A96: Imp F / Imp AMF | B96: 0.02609655907 | C96: 0.01060817137 | D96: 0.004736110313 | E96: 0.007845894186 | F96: 0.003779331144 | G96: 0.01053017316 | L96: Importações
A97: Exp F / Exp BT | B97: 0.09382237341 | C97: 0.0718753527 | D97: 0.06701560278 | E97: 0.06331018005 | F97: 0.065536219 | G97: 0.07126346949
A98: Imp F / Imp BT | B98: 0.01736934927 | C98: 0.006313996865 | D98: 0.003515188156 | E98: 0.005779504304 | F98: 0.002800650732 | G98: 0.007331290165
A99: Exp F África do Sul / Exp F Mundo | B99: 0.003634816216 | C99: 0.003035193085 | D99: 0.002457962321 | E99: 0.002866253562 | F99: 0.003002194548 | G99: 0.003007114774
A100: Imp F África do Sul / Imp F Mundo | B100: 0.001730367447 | C100: 0.0005331440172 | D100: 0.0003703969404 | E100: 0.000375891897 | F100: 0.0001868319568 | G100: 0.0005996825237
A101: AMF - Agroalimentar, Mar e Florestas; BT - Total de Bens Transacionáveis (exclui serviços) | H101: *TVMA - Taxa de variação média anual; TVT - Taxa de variação total
A111: Fonte: GPP a partir de dados INE/Comércio Internacional (2022 definitivos) | H111: 2023-08-22T16:46:54.380

Sheet 2
A1: Ranking dos parceiros comerciais de Portugal por país (média 2018-2022 em milhares de euros) produtos agrícolas e agroalimentares, do mar e da floresta
A2: Exportações | F2: Importações | K2: Trocas comerciais (total e saldo)
A3: P | B3: País | C3: média quinquénio | D3: % do Total | F3: P | G3: País | H3: média quinquénio | I3: % do Total | K3: P | L3: País | M3: Total (exp+imp) | N3: % do Total | O3: Saldo (exp-imp)
A4: 1 | B4: Espanha | C4: 4148750.739 | D4: 0.3201250482 | F4: 1 | G4: Espanha | H4: 6893783.417 | I4: 0.4610160031 | K4: 1 | L4: Espanha | M4: 11042534.16 | N4: 0.395602026 | O4: -2745032.678
A5: 2 | B5: França | C5: 1358886.663 | D5: 0.1048541322 | F5: 2 | G5: França | H5: 986144.9388 | I5: 0.06594761841 | K5: 2 | L5: França | M5: 2345031.602 | N5: 0.08401144518 | O5: 372741.7244
A6: 3 | B6: Itália | C6: 876413.3826 | D6: 0.06762562854 | F6: 3 | G6: Alemanha | H6: 882996.1958 | I6: 0.05904963245 | K6: 3 | L6: Alemanha | M6: 1518197.709 | N6: 0.05438987836 | O6: -247794.6828
A7: 4 | B7: Alemanha | C7: 635201.513 | D7: 0.04901328804 | F7: 4 | G7: Países Baixos | H7: 837622.6294 | I7: 0.05601531312 | K7: 4 | L7: Países Baixos | M7: 1425039.699 | N7: 0.05105246534 | O7: -250205.5596
A8: 5 | B8: Países Baixos | C8: 587417.0698 | D8: 0.0453261547 | F8: 5 | G8: Brasil | H8: 705232.1134 | I8: 0.04716180804 | K8: 5 | L8: Itália | M8: 1326247.626 | N8: 0.04751321033 | O8: 426579.139
A9: 6 | B9: Estados Unidos | C9: 554009.1122 | D9: 0.04274833677 | F9: 6 | G9: Itália | H9: 449834.2436 | I9: 0.030082289 | K9: 6 | L9: Brasil | M9: 1157937.372 | N9: 0.04148344611 | O9: -252526.8544 | P9: Nota: Nesta listagem, o Reino Unido passa a ser constituído por três componentes: Reino Unido [até 2020] ; Reino Unido (sem Irlanda do Norte) pós-2020 e Reino Unido (Irlanda do Norte) pós-2020. Estas componentes são calculadas igualmente como média do quinquénio, embora a primeira corresponda apenas a 2018-2020 e as duas últimas a 2021-2022.
A10: 7 | B10: Brasil | C10: 452705.259 | D10: 0.03493154976 | F10: 7 | G10: Suécia | H10: 342054.8722 | I10: 0.02287463364 | K10: 7 | L10: Estados Unidos | M10: 835402.1152 | N10: 0.02992852589 | O10: 272616.1092
A11: 8 | B11: Reino Unido | C11: 382822.421 | D11: 0.02953926464 | F11: 8 | G11: Bélgica | H11: 286674.3358 | I11: 0.01917110656 | K11: 8 | L11: Reino Unido | M11: 527725.3878 | N11: 0.01890591685 | O11: 237919.4542
A12: 9 | B12: Angola | C12: 331091.7324 | D12: 0.02554763192 | F12: 9 | G12: Estados Unidos | H12: 281393.003 | I12: 0.01881792184 | K12: 9 | L12: Bélgica | M12: 526747.6872 | N12: 0.01887089044 | O12: -46600.9844
A13: 10 | B13: Reino Unido (sem Irlanda do Norte) pós 2020 | C13: 297693.4518 | D13: 0.02297056069 | F13: 10 | G13: Polónia | H13: 206886.255 | I13: 0.01383534536 | K13: 10 | L13: Polónia | M13: 458140.6776 | N13: 0.0164130242 | O13: 44368.1676
A14: 11 | B14: Polónia | C14: 251254.4226 | D14: 0.0193872419 | F14: 11 | G14: Ucrânia | H14: 195333.6414 | I14: 0.01306277398 | K14: 11 | L14: Suécia | M14: 435988.145 | N14: 0.01561940322 | O14: -248121.5994
A15: 12 | B15: Bélgica | C15: 240073.3514 | D15: 0.01852449039 | F15: 12 | G15: China, República Popular da | H15: 173665.6746 | I15: 0.01161374681 | K15: 12 | L15: China, República Popular da | M15: 367334.7522 | N15: 0.01315987528 | O15: 20003.403
A16: 13 | B16: Israel | C16: 214331.8496 | D16: 0.01653822994 | F16: 13 | G16: África do Sul | H16: 145344.1816 | I16: 0.009719770643 | K16: 13 | L16: Reino Unido (sem Irlanda do Norte) pós 2020 | M16: 358748.5572 | N16: 0.01285227232 | O16: 236638.3464
A17: 14 | B17: China, República Popular da | C17: 193669.0776 | D17: 0.01494385339 | F17: 14 | G17: Reino Unido | H17: 144902.9668 | I17: 0.009690264772 | K17: 14 | L17: Angola | M17: 346515.8172 | N17: 0.01241403082 | O17: 315667.6476
A18: 15 | B18: Turquia | C18: 167223.9134 | D18: 0.01290329709 | F18: 15 | G18: Dinamarca | H18: 144508.7452 | I18: 0.009663901532 | K18: 15 | L18: Dinamarca | M18: 229058.3694 | N18: 0.00820608329 | O18: -59959.121
A19: 16 | B19: Suíça | C19: 143369.888 | D19: 0.01106267771 | F19: 16 | G19: Roménia | H19: 138998.2312 | I19: 0.009295390515 | K19: 16 | L19: Turquia | M19: 223211.8948 | N19: 0.007996631622 | O19: 111235.932
A20: 17 | B20: Marrocos | C20: 109026.8306 | D20: 0.0084127058 | F20: 17 | G20: Irlanda | H20: 115719.6518 | I20: 0.007738654977 | K20: 17 | L20: Israel | M20: 222680.6996 | N20: 0.007977601399 | O20: 205982.9996
A21: 18 | B21: Cabo Verde | C21: 100863.1066 | D21: 0.007782778214 | F21: 18 | G21: Canadá | H21: 108524.1664 | I21: 0.007257462906 | K21: 18 | L21: Ucrânia | M21: 209671.7124 | N21: 0.007511550615 | O21: -180995.5704
A22: 19 | B22: Canadá | C22: 96453.797 | D22: 0.007442547977 | F22: 19 | G22: Rússia, Federação da | H22: 105950.8246 | I22: 0.007085372825 | K22: 19 | L22: Canadá | M22: 204977.9634 | N22: 0.00734339568 | O22: -12070.3694
A23: 20 | B23: Suécia | C23: 93933.2728 | D23: 0.007248059809 | F23: 20 | G23: Uruguai | H23: 102112.0792 | I23: 0.006828659935 | K23: 20 | L23: Rússia, Federação da | M23: 185978.7022 | N23: 0.006662741573 | O23: -25922.947
A24: 21 | B24: Dinamarca | C24: 84549.6242 | D24: 0.006524000652 | F24: 21 | G24: Argentina | H24: 97727.8454 | I24: 0.006535467965 | K24: 21 | L24: África do Sul | M24: 182499.4124 | N24: 0.006538094995 | O24: -108188.9508
A25: 22 | B25: Egito | C25: 83372.4854 | D25: 0.006433170511 | F25: 22 | G25: Índia | H25: 75558.034 | I25: 0.00505288036 | K25: 22 | L25: Irlanda | M25: 179693.3864 | N25: 0.006437568291 | O25: -51745.9172
A26: 23 | B26: Rússia, Federação da | C26: 80027.8776 | D26: 0.006175094574 | F26: 23 | G26: Finlândia | H26: 73941.3526 | I26: 0.004944766143 | K26: 23 | L26: Roménia | M26: 164861.988 | N26: 0.005906229091 | O26: -113134.4744
A27: 24 | B27: Argélia | C27: 78380.8918 | D27: 0.006048010196 | F27: 24 | G27: Vietname | H27: 70011.1556 | I27: 0.004681937504 | K27: 24 | L27: Marrocos | M27: 151643.736 | N27: 0.005432681335 | O27: 66409.9252
A28: 25 | B28: México | C28: 73493.3644 | D28: 0.005670879815 | F28: 25 | G28: Costa Rica | H28: 69969.0578 | I28: 0.004679122249 | K28: 25 | L28: Suíça | M28: 147880.9734 | N28: 0.005297879261 | O28: 138858.8026
A29: 26 | B29: Japão | C29: 66606.0156 | D29: 0.005139439629 | F29: 26 | G29: Áustria | H29: 63908.1406 | I29: 0.004273803478 | K29: 26 | L29: Grécia | M29: 116697.7842 | N29: 0.004180732359 | O29: -11083.3998
A30: 27 | B30: Irlanda | C30: 63973.7346 | D30: 0.004936328105 | F30: 27 | G30: Grécia | H30: 63890.592 | I30: 0.00427262993 | K30: 27 | L30: Argentina | M30: 113763.425 | N30: 0.004075608079 | O30: -81692.2658
A31: 28 | B31: Luxemburgo | C31: 54794.7774 | D31: 0.004228063304 | F31: 28 | G31: Reino Unido (sem Irlanda do Norte) pós 2020 | H31: 61055.1054 | I31: 0.004083009134 | K31: 28 | L31: Uruguai | M31: 105101.1588 | N31: 0.003765279851 | O31: -99122.9996
A32: 29 | B32: Grécia | C32: 52807.1922 | D32: 0.004074697665 | F32: 29 | G32: Turquia | H32: 55987.9814 | I32: 0.003744149453 | K32: 29 | L32: Finlândia | M32: 103158.5318 | N32: 0.003695684669 | O32: -44724.1734
A33: 30 | B33: Áustria | C33: 39217.279 | D33: 0.003026075588 | F33: 30 | G33: Equador | H33: 48767.8678 | I33: 0.003261310391 | K33: 30 | L33: Áustria | M33: 103125.4196 | N33: 0.003694498415 | O33: -24690.8616
A34: 31 | B34: Moçambique | C34: 37446.547 | D34: 0.002889442731 | F34: 31 | G34: Chile | H34: 47784.2222 | I34: 0.003195529914 | K34: 31 | L34: Cabo Verde | M34: 101700.8832 | N34: 0.00364346398 | O34: 100025.33
A35: 32 | B35: África do Sul | C35: 37155.2308 | D35: 0.00286696425 | F35: 32 | G35: Bulgária | H35: 46240.758 | I35: 0.003092312036 | K35: 32 | L35: Índia | M35: 100022.4076 | N35: 0.003583332099 | O35: -51093.6604
A36: 33 | B36: Chile | C36: 36026.5554 | D36: 0.002779873632 | F36: 33 | G36: Cuba | H36: 43073.1354 | I36: 0.002880479923 | K36: 33 | L36: Egito | M36: 93738.5794 | N36: 0.00335821211 | O36: 73006.3914
A37: 34 | B37: Austrália | C37: 34889.2592 | D37: 0.002692117817 | F37: 34 | G37: Marrocos | H37: 42616.9054 | I37: 0.002849969923 | K37: 34 | L37: México | M37: 93580.153 | N37: 0.003352536438 | O37: 53406.5758
A38: 35 | B38: Arábia Saudita | C38: 32818.8452 | D38: 0.00253236096 | F38: 35 | G38: Moçambique | H38: 40008.831 | I38: 0.002675557127 | K38: 35 | L38: Chile | M38: 83810.7776 | N38: 0.003002545698 | O38: -11757.6668
A39: 36 | B39: Guiné-Bissau | C39: 32182.3082 | D39: 0.002483244623 | F39: 36 | G39: Checa, República | H39: 35780.8524 | I39: 0.002392814593 | K39: 36 | L39: Argélia | M39: 83294.638 | N39: 0.002984054845 | O39: 73467.1456
A40: 37 | B40: Finlândia | C40: 29217.1792 | D40: 0.002254449951 | F40: 37 | G40: Colômbia | H40: 29157.4358 | I40: 0.001949879145 | K40: 37 | L40: Japão | M40: 82993.326 | N40: 0.002973260255 | O40: 50218.7052
A41: 38 | B41: Checa, República | C41: 29096.25 | D41: 0.002245118837 | F41: 38 | G41: Indonésia | H41: 28526.3034 | I41: 0.001907672693 | K41: 38 | L41: Moçambique | M41: 77455.378 | N41: 0.002774861643 | O41: -2562.284
A42: 39 | B42: Emirados Árabes Unidos | C42: 29052.9664 | D42: 0.002241778997 | F42: 39 | G42: Guiana | H42: 28025.2924 | I42: 0.001874168001 | K42: 39 | L42: Vietname | M42: 75958.0768 | N42: 0.002721220388 | O42: -64064.2344
A43: 40 | B43: São Tomé e Príncipe | C43: 26792.4812 | D43: 0.002067355905 | F43: 40 | G43: Hungria | H43: 24242.0034 | I43: 0.001621163712 | K43: 40 | L43: Costa Rica | M43: 73986.347 | N43: 0.002650582589 | O43: -65951.7686
A44: 41 | B44: Jordânia | C44: 26642.1032 | D44: 0.002055752468 | F44: 41 | G44: Namíbia | H44: 22831.866 | I44: 0.001526861952 | K44: 41 | L44: Checa, República | M44: 64877.1024 | N44: 0.002324241229 | O44: -6684.6024
A45: 42 | B45: Roménia | C45: 25863.7568 | D45: 0.001995693864 | F45: 42 | G45: Costa do Marfim | H45: 22796.209 | I45: 0.00152447742 | K45: 42 | L45: Luxemburgo | M45: 63347.0378 | N45: 0.002269426215 | O45: 46242.517
A46: 43 | B46: Tunísia | C46: 24967.3514 | D46: 0.001926525616 | F46: 43 | G46: Uganda | H46: 22685.1228 | I46: 0.001517048623 | K46: 43 | L46: Bulgária | M46: 59231.1196 | N46: 0.002121972238 | O46: -33250.3964
A47: 44 | B47: Índia | C47: 24464.3736 | D47: 0.001887714946 | F47: 44 | G47: México | H47: 20086.7886 | I47: 0.001343287196 | K47: 44 | L47: Equador | M47: 51817.4262 | N47: 0.001856374497 | O47: -45718.3094
A48: 45 | B48: Noruega | C48: 22053.074 | D48: 0.001701654744 | F48: 45 | G48: Peru | H48: 19493.8856 | I48: 0.001303637303 | K48: 45 | L48: Austrália | M48: 48712.5526 | N48: 0.001745141489 | O48: 21065.9658
A49: 46 | B49: Coreia, República da | C49: 18924.4824 | D49: 0.001460247005 | F49: 46 | G49: Paraguai | H49: 18840.7592 | I49: 0.001259960021 | K49: 46 | L49: Cuba | M49: 48369.362 | N49: 0.001732846585 | O49: -37776.9088
A50: 47 | B50: Hungria | C50: 18306.327 | D50: 0.001412549026 | F50: 47 | G50: Senegal | H50: 17576.5504 | I50: 0.001175417115 | K50: 47 | L50: Hungria | M50: 42548.3304 | N50: 0.00152430642 | O50: -5935.6764
A51: 48 | B51: Nigéria | C51: 16216.7282 | D51: 0.001251311834 | F51: 48 | G51: Nova Zelânda | H51: 17377.015 | I51: 0.001162073352 | K51: 48 | L51: Colômbia | M51: 37490.321 | N51: 0.00134310175 | O51: -20824.5506
A52: 49 | B52: Argentina | C52: 16035.5796 | D52: 0.001237334083 | F52: 49 | G52: Japão | H52: 16387.3104 | I52: 0.001095887684 | K52: 49 | L52: Tunísia | M52: 35510.5226 | N52: 0.001272174891 | O52: 14424.1802
A53: 50 | B53: Lituânia | C53: 14426.2296 | D53: 0.001113153751 | F53: 50 | G53: Lituânia | H53: 15822.4366 | I53: 0.001058112221 | K53: 50 | L53: Noruega | M53: 34932.4536 | N53: 0.0012514654 | O53: 9173.6944
A54: 51 | B54: Ucrânia | C54: 14338.071 | D54: 0.001106351275 | F54: 51 | G54: Angola | H54: 15424.0848 | I54: 0.001031472777 | K54: 51 | L54: Costa do Marfim | M54: 32973.8046 | N54: 0.001181296224 | O54: -12618.6134
A55: 52 | B55: Macau | C55: 14162.3328 | D55: 0.001092791001 | F55: 52 | G55: Mauritânia | H55: 14124.4552 | I55: 0.0009445611341 | K55: 52 | L55: Arábia Saudita | M55: 32855.5924 | N55: 0.001177061238 | O55: 32782.098
A56: 53 | B56: Síria, República Árabe da | C56: 13309.7072 | D56: 0.00102700088 | F56: 53 | G56: Austrália | H56: 13823.2934 | I56: 0.0009244211904 | K56: 53 | L56: Guiné-Bissau | M56: 32561.5128 | N56: 0.00116652575 | O56: 31803.1036
A57: 54 | B57: Iraque | C57: 13216.9518 | D57: 0.001019843707 | F57: 54 | G57: Tanzânia, República Unida da | H57: 13711.0264 | I57: 0.0009169134287 | K57: 54 | L57: Indonésia | M57: 32128.1024 | N57: 0.001150998695 | O57: -24924.5044
A58: 55 | B58: Bulgária | C58: 12990.3616 | D58: 0.001002359601 | F58: 55 | G58: Eslovénia | H58: 13709.4752 | I58: 0.0009168096935 | K58: 55 | L58: Coreia, República da | M58: 31301.2172 | N58: 0.00112137529 | O58: 6547.7476
A59: 56 | B59: HongKong | C59: 12801.5844 | D59: 0.0009877932133 | F59: 56 | G59: Suazilândia | H59: 13238.7086 | I59: 0.0008853275706 | K59: 56 | L59: Lituânia | M59: 30248.6662 | N59: 0.001083667342 | O59: -1396.207
A60: 57 | B60: Eslováquia | C60: 12740.7416 | D60: 0.0009830984737 | F60: 57 | G60: Noruega | H60: 12879.3796 | I60: 0.0008612977441 | K60: 57 | L60: Emirados Árabes Unidos | M60: 29704.259 | N60: 0.001064163794 | O60: 28401.6738
A61: 58 | B61: Letónia | C61: 11849.96 | D61: 0.0009143641678 | F61: 58 | G61: Tailândia | H61: 12766.4348 | I61: 0.0008537446551 | K61: 58 | L61: Senegal | M61: 28854.894 | N61: 0.001033735044 | O61: -6298.2068
A62: 59 | B62: Croácia | C62: 11388.7032 | D62: 0.0008787727658 | F62: 59 | G62: Camarões | H62: 12420.4028 | I62: 0.0008306040543 | K62: 59 | L62: Guiana | M62: 28164.8726 | N62: 0.001009014825 | O62: -27885.7122
A63: 60 | B63: Senegal | C63: 11278.3436 | D63: 0.0008702572211 | F63: 60 | G63: Coreia, República da | H63: 12376.7348 | I63: 0.0008276837933 | K63: 60 | L63: São Tomé e Príncipe | M63: 27846.3486 | N63: 0.0009976036088 | O63: 25738.6138
A64: 61 | B64: Dominicana, República | C64: 11211.5302 | D64: 0.0008651017793 | F64: 61 | G64: Estónia | H64: 12113.6096 | I64: 0.0008100875155 | K64: 61 | L64: Jordânia | M64: 26699.1202 | N64: 0.0009565038148 | O64: 26585.0862
A65: 62 | B65: Líbia, Jamahira Árabe da | C65: 11110.2892 | D65: 0.0008572898422 | F65: 62 | G65: Moldava, República de | H65: 11911.9324 | I65: 0.0007966005214 | K65: 62 | L65: Peru | M65: 25631.4274 | N65: 0.000918253407 | O65: -13356.3438
A66: 63 | B66: Costa do Marfim | C66: 10177.5956 | D66: 0.0007853215311 | F66: 63 | G66: Sérvia | H66: 11557.857 | I66: 0.000772922025 | K66: 63 | L66: Uganda | M66: 23651.4418 | N66: 0.0008473198419 | O66: -21718.8038
A67: 64 | B67: Malta | C67: 10082.9972 | D67: 0.0007780221489 | F67: 64 | G67: Tunísia | H67: 10543.1712 | I67: 0.0007050657604 | K67: 64 | L67: Namíbia | M67: 23571.3778 | N67: 0.0008444515256 | O67: -22092.3542
A68: 65 | B68: Território Palestiniano Ocupado | C68: 9895.7186 | D68: 0.0007635713962 | F68: 65 | G68: Paquistão | H68: 10440.9988 | I68: 0.0006982330665 | K68: 65 | L68: Tailândia | M68: 22048.0496 | N68: 0.0007898778459 | O68: -3484.82
A69: 66 | B69: Líbano | C69: 9880.5148 | D69: 0.0007623982437 | F69: 66 | G69: Egito | H69: 10366.094 | I69: 0.0006932238706 | K69: 66 | L69: Eslovénia | M69: 22027.284 | N69: 0.0007891339122 | O69: -5391.6664
A70: 67 | B70: Chipre | C70: 9763.9754 | D70: 0.0007534058546 | F70: 67 | G70: Islândia | H70: 10004.441 | I70: 0.0006690386286 | K70: 67 | L70: Nigéria | M70: 21603.5138 | N70: 0.0007739522204 | O70: 10829.9426
A71: 68 | B71: Tailândia | C71: 9281.6148 | D71: 0.0007161860455 | F71: 68 | G71: Maurícias | H71: 9636.4388 | I71: 0.0006444287891 | K71: 68 | L71: Nova Zelânda | M71: 21601.671 | N71: 0.0007738862016 | O71: -13152.359
A72: 69 | B72: Kuwait | C72: 9121.1468 | D72: 0.0007038040468 | F72: 69 | G72: Letónia | H72: 9340.8474 | I72: 0.0006246613613 | K72: 69 | L72: Camarões | M72: 21512.3584 | N72: 0.0007706865515 | O72: -3328.4472
A73: 70 | B73: Camarões | C73: 9091.9556 | D73: 0.0007015516015 | F73: 70 | G73: Luxemburgo | H73: 8552.2604 | I73: 0.0005719252649 | K73: 70 | L73: Letónia | M73: 21190.8074 | N73: 0.0007591668926 | O73: 2509.1126
A74: 71 | B74: Colômbia | C74: 8332.8852 | D74: 0.000642980368 | F74: 71 | G74: Israel | H74: 8348.85 | I74: 0.0005583223645 | K74: 71 | L74: Estónia | M74: 20382.3 | N74: 0.0007302018777 | O74: -3844.9192
A75: 72 | B75: Eslovénia | C75: 8317.8088 | D75: 0.0006418170459 | F75: 72 | G75: Filipinas | H75: 8338.4466 | I75: 0.0005576266458 | K75: 72 | L75: Paraguai | M75: 20050.052 | N75: 0.0007182989957 | O75: -17631.4664
A76: 73 | B76: Estónia | C76: 8268.6904 | D76: 0.000638026982 | F76: 73 | G76: Belize | H76: 8129.6594 | I76: 0.0005436641763 | K76: 73 | L76: Croácia | M76: 18469.8002 | N76: 0.0006616860113 | O76: 4307.6062
A77: 74 | B77: Geórgia | C77: 8048.6886 | D77: 0.0006210512486 | F77: 74 | G77: Malásia | H77: 8113.8152 | I77: 0.0005426046087 | K77: 74 | L77: Eslováquia | M77: 18139.0792 | N77: 0.0006498378344 | O77: 7342.404
A78: 75 | B78: Gibraltar | C78: 7970.9208 | D78: 0.0006150505456 | F78: 75 | G78: Bangladesh | H78: 7929.0306 | I78: 0.000530247293 | K78: 75 | L78: Sérvia | M78: 17502.4848 | N78: 0.0006270316533 | O78: -5613.2292
A79: 76 | B79: Gana | C79: 7307.4466 | D79: 0.0005638556863 | F79: 76 | G79: Croácia | H79: 7081.097 | I79: 0.0004735424424 | K79: 76 | L79: Mauritânia | M79: 16931.2984 | N79: 0.0006065687329 | O79: -11317.612
A80: 77 | B80: Taiwan | C80: 6603.7526 | D80: 0.0005095573952 | F80: 77 | G80: Quénia | H80: 6721.3334 | I80: 0.0004494835524 | K80: 77 | L80: HongKong | M80: 15600.7076 | N80: 0.0005588999271 | O80: 10002.4612
A81: 78 | B81: Belarus | C81: 6189.2796 | D81: 0.0004775759151 | F81: 78 | G81: Gana | H81: 6621.1502 | I81: 0.0004427838846 | K81: 78 | L81: Maurícias | M81: 15492.987 | N81: 0.000555040805 | O81: -3779.8906
A82: 79 | B82: Guatemala | C82: 6179.6032 | D82: 0.0004768292667 | F82: 79 | G82: Panamá | H82: 6513.4974 | I82: 0.0004355846936 | K82: 79 | L82: Suazilândia | M82: 15229.8654 | N82: 0.0005456143965 | O82: -11247.5518
A83: 80 | B83: Peru | C83: 6137.5418 | D83: 0.0004735837336 | F83: 80 | G83: Honduras | H83: 6221.5346 | I83: 0.0004160599254 | K83: 80 | L83: Moldava, República de | M83: 14881.0396 | N83: 0.0005331176098 | O83: -8942.8252
A84: 81 | B84: Vietname | C84: 5946.9212 | D84: 0.0004588751062 | F84: 81 | G84: Suriname | H84: 5829.6302 | I84: 0.0003898516463 | K84: 81 | L84: Síria, República Árabe da | M84: 14259.5412 | N84: 0.0005108522473 | O84: 12359.8732
A85: 82 | B85: Sérvia | C85: 5944.6278 | D85: 0.0004586981434 | F85: 82 | G85: Eslováquia | H85: 5398.3376 | I85: 0.0003610093142 | K85: 82 | L85: Tanzânia, República Unida da | M85: 14227.4986 | N85: 0.0005097043117 | O85: -13194.5542
A86: 83 | B86: Maurícias | C86: 5856.5482 | D86: 0.0004519017635 | F86: 83 | G86: Nigéria | H86: 5386.7856 | I86: 0.0003602367839 | K86: 83 | L86: Macau | M86: 14182.009 | N86: 0.0005080746335 | O86: 14142.6566
A87: 84 | B87: Andorra | C87: 5401.2632 | D87: 0.0004167711563 | F87: 84 | G87: Etiópia | H87: 5332.9722 | I87: 0.0003566380577 | K87: 84 | L87: Gana | M87: 13928.5968 | N87: 0.0004989960671 | O87: 686.2964
A88: 85 | B88: Cuba | C88: 5296.2266 | D88: 0.0004086663438 | F88: 85 | G88: Congo | H88: 5207.279 | I88: 0.0003482324301 | K88: 85 | L88: Paquistão | M88: 13696.3036 | N88: 0.000490674095 | O88: -7185.694
A89: 86 | B89: Singapura | C89: 4670.5802 | D89: 0.0003603903454 | F89: 86 | G89: Guatemala | H89: 5139.0112 | I89: 0.000343667078 | K89: 86 | L89: Dominicana, República | M89: 13463.2218 | N89: 0.0004823238711 | O89: 8959.8386
A90: 87 | B90: Omã | C90: 4393.4536 | D90: 0.0003390067599 | F90: 87 | G90: Camboja | H90: 4965.3018 | I90: 0.0003320504071 | K90: 87 | L90: Iraque | M90: 13230.1254 | N90: 0.0004739731242 | O90: 13203.7782
A91: 88 | B91: Nova Zelânda | C91: 4224.656 | D91: 0.0003259820343 | F91: 88 | G91: Argélia | H91: 4913.7462 | I91: 0.0003286026694 | K91: 88 | L91: Chipre | M91: 13179.1368 | N91: 0.0004721464427 | O91: 6348.814
A92: 89 | B92: Panamá | C92: 4203.97 | D92: 0.0003243858655 | F92: 89 | G92: Reino Unido (Irlanda do Norte) pós-2020 | H92: 4864.879 | I92: 0.0003253347163 | K92: 89 | L92: Filipinas | M92: 11817.2578 | N92: 0.0004233567279 | O92: -4859.6354
A93: 90 | B93: Costa Rica | C93: 4017.2892 | D93: 0.0003099812401 | F93: 90 | G93: Macedónia, Antiga República jugoslava da | H93: 4838.7308 | I93: 0.0003235860773 | K93: 90 | L93: Islândia | M93: 11807.9024 | N93: 0.000423021568 | O93: -8200.9796
A94: 91 | B94: Catar | C94: 3814.9902 | D94: 0.0002943714864 | F94: 91 | G94: Zimbabwe | H94: 4709.246 | I94: 0.0003149268895 | K94: 91 | L94: Malta | M94: 11740.4076 | N94: 0.000420603547 | O94: 8425.5868
A95: 92 | B95: Burquina Faso | C95: 3646.8948 | D95: 0.0002814009439 | F95: 92 | G95: Suíça | H95: 4511.0854 | I95: 0.0003016750651 | K95: 92 | L95: Malásia | M95: 11542.323 | N95: 0.000413507108 | O95: -4685.3074
A96: 93 | B96: Indonésia | C96: 3601.799 | D96: 0.0002779212711 | F96: 93 | G96: Sri Lanca | H96: 4405.8098 | I96: 0.0002946348473 | K96: 93 | L96: Guatemala | M96: 11318.6144 | N96: 0.0004054926818 | O96: 1040.592
A97: 94 | B97: Sudão | C97: 3570.9408 | D97: 0.000275540197 | F97: 94 | G97: Madagáscar | H97: 3797.7566 | I97: 0.0002539717979 | K97: 94 | L97: Líbia, Jamahira Árabe da | M97: 11116.3092 | N97: 0.0003982450387 | O97: 11104.2692
A98: 95 | B98: Filipinas | C98: 3478.8112 | D98: 0.0002684313118 | F98: 95 | G98: Mali | H98: 3762.6334 | I98: 0.0002516229632 | K98: 95 | L98: Panamá | M98: 10717.4674 | N98: 0.0003839564142 | O98: -2309.5274
A99: 96 | B99: Mali | C99: 3441.82 | D99: 0.0002655770045 | F99: 96 | G99: Myanmar | H99: 3487.5672 | I99: 0.000233228141 | K99: 96 | L99: Líbano | M99: 10422.5976 | N99: 0.0003733926171 | O99: 9338.432
A100: 97 | B100: Malásia | C100: 3428.5078 | D100: 0.0002645498112 | F100: 97 | G100: Nicarágua | H100: 3458.6704 | I100: 0.0002312956917 | K100: 97 | L100: Kuwait | M100: 10304.9986 | N100: 0.0003691795984 | O100: 7937.295
A101: 98 | B101: Venezuela | C101: 3292.1542 | D101: 0.0002540285229 | F101: 98 | G101: Taiwan | H101: 3425.7168 | I101: 0.0002290919472 | K101: 98 | L101: Taiwan | M101: 10029.4694 | N101: 0.0003593086839 | O101: 3178.0358
A102: 99 | B102: Paquistão | C102: 3255.3048 | D102: 0.0002511851571 | F102: 99 | G102: Chipre | H102: 3415.1614 | I102: 0.0002283860637 | K102: 99 | L102: Território Palestiniano Ocupado | M102: 9896.2038 | N102: 0.0003545344047 | O102: 9895.2334
A103: 100 | B103: Irão, República Islâmica do | C103: 3151.3458 | D103: 0.0002431634942 | F103: 100 | G103: Congo, República Democrática do | H103: 3287.5926 | I103: 0.0002198550068 | K103: 100 | L103: Bangladesh | M103: 9893.849 | N103: 0.0003544500433 | O103: -5964.2122
A104: 101 | B104: Equador | C104: 3049.5584 | D104: 0.0002353093959 | F104: 101 | G104: Malavi | H104: 3258.3272 | I104: 0.0002178979077 | K104: 101 | L104: Quénia | M104: 9768.3614 | N104: 0.0003499544132 | O104: -3674.3054
A105: 102 | B105: Quénia | C105: 3047.028 | D105: 0.0002351141457 | F105: 102 | G105: Papuásia-Nova Guiné | H105: 3105.1676 | I105: 0.0002076554875 | K105: 102 | L105: Geórgia | M105: 8359.5618 | N105: 0.0002994837542 | O105: 7737.8154
A106: 103 | B106: Uruguai | C106: 2989.0796 | D106: 0.0002306427432 | F106: 103 | G106: HongKong | H106: 2799.1232 | I106: 0.0001871890241 | K106: 103 | L106: Belize | M106: 8131.84 | N106: 0.0002913255539 | O106: -8127.4788
A107: 104 | B107: Moldava, República de | C107: 2969.1072 | D107: 0.000229101637 | F107: 104 | G107: Gabão | H107: 2643.292 | I107: 0.0001767679428 | K107: 104 | L107: Gibraltar | M107: 8002.9498 | N107: 0.0002867080247 | O107: 7938.8918
A108: 105 | B108: Mauritânia | C108: 2806.8432 | D108: 0.0002165810557 | F108: 105 | G108: Centro-Africana, República | H108: 2579.2684 | I108: 0.0001724864181 | K108: 105 | L108: Congo | M108: 7636.6094 | N108: 0.0002735837724 | O108: -2777.9486
A109: 106 | B109: Timor-Leste | C109: 2726.394 | D109: 0.0002103734511 | F109: 106 | G109: Gâmbia | H109: 2389.373 | I109: 0.000159787322 | K109: 106 | L109: Honduras | M109: 7591.1752 | N109: 0.0002719560788 | O109: -4851.894
A110: 107 | B110: Guiné | C110: 2700.6706 | D110: 0.0002083885874 | F110: 107 | G110: Dominicana, República | H110: 2251.6916 | I110: 0.0001505799934 | K110: 107 | L110: Etiópia | M110: 7365.0862 | N110: 0.0002638563741 | O110: -3300.8582
A111: 108 | B111: Arménia | C111: 2588.4812 | D111: 0.0001997318521 | F111: 108 | G111: Serra Leoa | H111: 1997.9044 | I111: 0.0001336081866 | K111: 108 | L111: Reino Unido (Irlanda do Norte) pós-2020 | M111: 7284.542 | N111: 0.0002609708545 | O111: -2445.216
A112: 109 | B112: Gabão | C112: 2550.5466 | D112: 0.0001968047503 | F112: 109 | G112: Benim | H112: 1832.1494 | I112: 0.0001225234595 | K112: 109 | L112: Mali | M112: 7204.4534 | N112: 0.0002581016569 | O112: -320.8134
A113: 110 | B113: Congo | C113: 2429.3304 | D113: 0.0001874514909 | F113: 110 | G113: El Salvador | H113: 1779.7304 | I113: 0.0001190179827 | K113: 110 | L113: Belarus | M113: 7048.5194 | N113: 0.0002525152756 | O113: 5330.0398
A114: 111 | B114: Reino Unido (Irlanda do Norte) pós-2020 | C114: 2419.663 | D114: 0.000186705537 | F114: 111 | G114: Burquina Faso | H114: 1725.7576 | I114: 0.0001154085968 | K114: 111 | L114: Suriname | M114: 6411.9606 | N114: 0.0002297103698 | O114: -5247.2998
A115: 112 | B115: Albânia | C115: 2229.7502 | D115: 0.0001720515247 | F115: 112 | G115: Malta | H115: 1657.4104 | I115: 0.000110837935 | K115: 112 | L115: Singapura | M115: 5982.0136 | N115: 0.0002143073924 | O115: 3359.1468
A116: 113 | B116: Seychelles | C116: 2209.8298 | D116: 0.0001705144309 | F116: 113 | G116: Laos, República Democrática Popular do | H116: 1570.485 | I116: 0.0001050248715 | K116: 113 | L116: Camboja | M116: 5868.6792 | N116: 0.0002102471542 | O116: -4061.9244
A117: 114 | B117: Guiné Equatorial | C117: 2176.263 | D117: 0.0001679243564 | F117: 114 | G117: Singapura | H117: 1311.4334 | I117: 8.770101232e-05 | K117: 114 | L117: Sri Lanca | M117: 5846.5976 | N117: 0.0002094560744 | O117: -2965.022
A118: 115 | B118: Etiópia | C118: 2032.114 | D118: 0.0001568015611 | F118: 115 | G118: Seychelles | H118: 1264.2444 | I118: 8.45452874e-05 | K118: 115 | L118: Macedónia, Antiga República jugoslava da | M118: 5789.6166 | N118: 0.0002074147134 | O118: -3887.845
A119: 116 | B119: Suazilândia | C119: 1991.1568 | D119: 0.00015364123 | F119: 116 | G119: Kuwait | H119: 1183.8518 | I119: 7.916909948e-05 | K119: 116 | L119: Andorra | M119: 5443.4826 | N119: 0.0001950143613 | O119: 5359.0438
A120: 117 | B120: Bangladesh | C120: 1964.8184 | D120: 0.0001516089119 | F120: 117 | G120: Bolívia | H120: 1171.3558 | I120: 7.833343992e-05 | K120: 117 | L120: Burquina Faso | M120: 5372.6524 | N120: 0.0001924768486 | O120: 1921.1372
A121: 118 | B121: Islândia | C121: 1803.4614 | D121: 0.0001391583163 | F121: 118 | G121: Togo | H121: 1123.3282 | I121: 7.512163432e-05 | K121: 118 | L121: Gabão | M121: 5193.8386 | N121: 0.0001860707917 | O121: -92.7454
A122: 119 | B122: Benim | C122: 1771.8166 | D122: 0.0001367165468 | F122: 119 | G122: São Tomé e Príncipe | H122: 1053.8674 | I122: 7.047650139e-05 | K122: 119 | L122: Nicarágua | M122: 5085.114 | N122: 0.000182175701 | O122: -1832.2268
A123: 120 | B123: Congo, República Democrática do | C123: 1727.181 | D123: 0.0001332723838 | F123: 120 | G123: Venezuela | H123: 1042.655 | I123: 6.972668151e-05 | K123: 120 | L123: Congo, República Democrática do | M123: 5014.7736 | N123: 0.0001796557356 | O123: -1560.4116
A124: 121 | B124: Jamaica | C124: 1687.498 | D124: 0.0001302103724 | F124: 121 | G124: Iémen | H124: 1024.4982 | I124: 6.851246069e-05 | K124: 121 | L124: Omã | M124: 4885.6232 | N124: 0.0001750288846 | O124: 3901.284
A125: 122 | B125: Nicarágua | C125: 1626.4436 | D125: 0.0001254993054 | F125: 122 | G125: Síria, República Árabe da | H125: 949.834 | I125: 6.351935473e-05 | K125: 122 | L125: Zimbabwe | M125: 4774.2052 | N125: 0.0001710373021 | O125: -4644.2868
A126: 123 | B126: Togo | C126: 1570.864 | D126: 0.0001212106838 | F126: 123 | G126: Belarus | H126: 859.2398 | I126: 5.746094334e-05 | K126: 123 | L126: Venezuela | M126: 4334.8092 | N126: 0.0001552958114 | O126: 2249.4992
A127: 124 | B127: El Salvador | C127: 1565.6294 | D127: 0.0001208067726 | F127: 124 | G127: Cabo Verde | H127: 837.7766 | I127: 5.602560978e-05 | K127: 124 | L127: Madagáscar | M127: 4107.7518 | N127: 0.0001471614135 | O127: -3487.7614
A128: 125 | B128: Cazaquistão | C128: 1534.519 | D128: 0.0001184062384 | F128: 125 | G128: Bósnia-Herzegovina | H128: 758.2198 | I128: 5.070531529e-05 | K128: 125 | L128: Myanmar | M128: 3979.95 | N128: 0.0001425828765 | O128: -2995.1844
A129: 126 | B129: Sri Lanca | C129: 1440.7878 | D129: 0.0001111737709 | F129: 126 | G129: Turquemenistão | H129: 720.6558 | I129: 4.819325419e-05 | K129: 126 | L129: Catar | M129: 3836.467 | N129: 0.0001374425559 | O129: 3793.5134
A130: 127 | B130: Azerbaijão | C130: 1435.1898 | D130: 0.0001107418191 | F130: 127 | G130: Chade | H130: 675.9004 | I130: 4.520027423e-05 | K130: 127 | L130: Benim | M130: 3603.966 | N130: 0.0001291131394 | O130: -60.3328
A131: 128 | B131: Bolívia | C131: 1412.2374 | D131: 0.0001089707708 | F131: 128 | G131: Emirados Árabes Unidos | H131: 651.2926 | I131: 4.355464817e-05 | K131: 128 | L131: Sudão | M131: 3591.4234 | N131: 0.000128663797 | O131: 3550.4582
A132: 129 | B132: Honduras | C132: 1369.6406 | D132: 0.0001056839253 | F132: 129 | G132: Timor-Leste | H132: 614.587 | I132: 4.109999186e-05 | K132: 129 | L132: Seychelles | M132: 3474.0742 | N132: 0.0001244597275 | O132: 945.5854
A133: 130 | B133: São Bartolomeu | C133: 1280.9726 | D133: 9.884214338e-05 | F133: 130 | G133: Faroé, Ilhas | H133: 597.6172 | I133: 3.996515067e-05 | K133: 130 | L133: Irão, República Islâmica do | M133: 3375.8844 | N133: 0.0001209420491 | O133: 2926.8072
A134: 131 | B134: Ruanda | C134: 1241.1874 | D134: 9.577224599e-05 | F134: 131 | G134: Líbano | H134: 542.0828 | I134: 3.625133409e-05 | K134: 131 | L134: El Salvador | M134: 3345.3598 | N134: 0.0001198484964 | O134: -214.101
A135: 132 | B135: Paraguai | C135: 1209.2928 | D135: 9.331120144e-05 | F135: 132 | G135: Omã | H135: 492.1696 | I135: 3.291343057e-05 | K135: 132 | L135: Timor-Leste | M135: 3340.981 | N135: 0.0001196916246 | O135: 2111.807
A136: 133 | B136: Iémen | C136: 1145.3826 | D136: 8.837977578e-05 | F136: 133 | G136: Gronelândia | H136: 481.3548 | I136: 3.219019986e-05 | K136: 133 | L136: Malavi | M136: 3267.4564 | N136: 0.0001170575842 | O136: -3249.198
A137: 134 | B137: Montenegro | C137: 1046.3476 | D137: 8.073805755e-05 | F137: 134 | G137: Guiné-Bissau | H137: 379.2046 | I137: 2.535899063e-05 | K137: 134 | L137: Papuásia-Nova Guiné | M137: 3108.0532 | N137: 0.0001113469178 | O137: -3102.282
A138: 135 | B138: Uganda | C138: 966.319 | D138: 7.456290724e-05 | F138: 135 | G138: Geórgia | H138: 310.8732 | I138: 2.078938537e-05 | K138: 135 | L138: Guiné | M138: 3003.4878 | N138: 0.0001076008317 | O138: 2397.8534
A139: 136 | B139: Macedónia, Antiga República jugoslava da | C139: 950.8858 | D139: 7.337205384e-05 | F139: 136 | G139: Usbequistão | H139: 308.419 | I139: 2.06252628e-05 | K139: 136 | L139: Gâmbia | M139: 2880.9438 | N139: 0.0001032106569 | O139: -1897.8022
A140: 137 | B140: Bermudas | C140: 907.5284 | D140: 7.002651909e-05 | F140: 137 | G140: Guiné | H140: 302.8172 | I140: 2.025064711e-05 | K140: 137 | L140: Togo | M140: 2694.1922 | N140: 9.652022605e-05 | O140: 447.5358
A141: 138 | B141: Camboja | C141: 903.3774 | D141: 6.970622049e-05 | F141: 138 | G141: Irão, República Islâmica do | H141: 224.5386 | I141: 1.501583117e-05 | K141: 138 | L141: Centro-Africana, República | M141: 2675.6308 | N141: 9.585525845e-05 | O141: -2482.906
A142: 139 | B142: Barbados | C142: 889.1274 | D142: 6.860666493e-05 | F142: 139 | G142: Zâmbia | H142: 199.3992 | I142: 1.333465481e-05 | K142: 139 | L142: Arménia | M142: 2615.5848 | N142: 9.370409288e-05 | O142: 2561.3776
A143: 140 | B143: Trindade e Tobago | C143: 876.5142 | D143: 6.763340779e-05 | F143: 140 | G143: Azerbaijão | H143: 125.9264 | I143: 8.421222731e-06 | K143: 140 | L143: Bolívia | M143: 2583.5932 | N143: 9.255798443e-05 | O143: 240.8816
A144: 141 | B144: Namíbia | C144: 739.5118 | D144: 5.706205688e-05 | F144: 141 | G144: Fiji, Ilhas | H144: 123.8396 | I144: 8.281669725e-06 | K144: 141 | L144: Serra Leoa | M144: 2504.721 | N144: 8.973236472e-05 | O144: -1491.0878
A145: 142 | B145: Turquemenistão | C145: 730.8192 | D145: 5.639132027e-05 | F145: 142 | G145: Maldivas | H145: 106.2128 | I145: 7.102892211e-06 | K145: 142 | L145: Albânia | M145: 2335.6576 | N145: 8.367561881e-05 | O145: 2123.8428
A146: 143 | B146: Barém | C146: 714.5288 | D146: 5.513432379e-05 | F146: 143 | G146: Albânia | H146: 105.9074 | I146: 7.082468841e-06 | K146: 143 | L146: Guiné Equatorial | M146: 2182.2494 | N146: 7.817972504e-05 | O146: 2170.2766
A147: 144 | B147: Burundi | C147: 677.1012 | D147: 5.224634305e-05 | F147: 144 | G147: Tajiquistão | H147: 59.4122 | I147: 3.973141209e-06 | K147: 144 | L147: Iémen | M147: 2169.8808 | N147: 7.773661631e-05 | O147: 120.8844
A148: 145 | B148: Aruba | C148: 656.9934 | D148: 5.069478913e-05 | F148: 145 | G148: Jordânia | H148: 57.017 | I148: 3.812964211e-06 | K148: 145 | L148: Jamaica | M148: 1698.661 | N148: 6.085502872e-05 | O148: 1676.335
A149: 146 | B149: Niger | C149: 652.165 | D149: 5.032222113e-05 | F149: 146 | G149: Andorra | H149: 42.2194 | I149: 2.823387081e-06 | K149: 146 | L149: Laos, República Democrática Popular do | M149: 1586.3348 | N149: 5.683090965e-05 | O149: -1554.6352
A150: 147 | B150: São Martinho (parte holandesa) | C150: 597.7744 | D150: 4.612534488e-05 | F150: 147 | G150: Libéria | H150: 38.8276 | I150: 2.596563292e-06 | K150: 147 | L150: Azerbaijão | M150: 1561.1162 | N150: 5.59274459e-05 | O150: 1309.2634
A151: 148 | B151: Suriname | C151: 582.3304 | D151: 4.493365814e-05 | F151: 148 | G151: Falkland Ilhas (Malvinas) | H151: 38.0622 | I151: 2.545377807e-06 | K151: 148 | L151: Cazaquistão | M151: 1551.583 | N151: 5.558591622e-05 | O151: 1517.455
A152: 149 | B152: Bósnia-Herzegovina | C152: 535.6404 | D152: 4.133097399e-05 | F152: 149 | G152: Aruba | H152: 38.0518 | I152: 2.544682315e-06 | K152: 149 | L152: Turquemenistão | M152: 1451.475 | N152: 5.199951774e-05 | O152: 10.1634
A153: 150 | B153: Tanzânia, República Unida da | C153: 516.4722 | D153: 3.98519213e-05 | F153: 150 | G153: Arábia Saudita | H153: 36.7472 | I153: 2.457438281e-06 | K153: 150 | L153: Bósnia-Herzegovina | M153: 1293.8602 | N153: 4.635292129e-05 | O153: -222.5794
A154: 151 | B154: Ceuta e Melilha | C154: 507.8786 | D154: 3.918882371e-05 | F154: 151 | G154: São Marino | H154: 32.7702 | I154: 2.191479731e-06 | K154: 151 | L154: São Bartolomeu | M154: 1281.3282 | N154: 4.590395871e-05 | O154: 1280.617
A155: 152 | B155: Serra Leoa | C155: 506.8166 | D155: 3.910687789e-05 | F155: 152 | G155: Gibraltar | H155: 32.029 | I155: 2.1419126e-06 | K155: 152 | L155: Ruanda | M155: 1241.8574 | N155: 4.448990572e-05 | O155: 1240.5174
A156: 153 | B156: Myanmar | C156: 492.3828 | D156: 3.799313999e-05 | F156: 153 | G156: Botswana | H156: 30.0284 | I156: 2.008124148e-06 | K156: 153 | L156: Montenegro | M156: 1046.7 | N156: 3.749833461e-05 | O156: 1045.9952
A157: 154 | B157: Gâmbia | C157: 491.5708 | D157: 3.793048461e-05 | F157: 154 | G157: São Pedro e Miquelon | H157: 28.9156 | I157: 1.933706578e-06 | K157: 154 | L157: Bermudas | M157: 908.3498 | N157: 3.25418981e-05 | O157: 906.707
A158: 155 | B158: Curaçau | C158: 479.6396 | D158: 3.700985182e-05 | F158: 155 | G158: Arménia | H158: 27.1036 | I158: 1.812530593e-06 | K158: 155 | L158: Barbados | M158: 899.4474 | N158: 3.222296701e-05 | O158: 878.8074
A159: 156 | B159: Kosovo | C159: 471.1818 | D159: 3.63572328e-05 | F159: 156 | G159: Catar | H159: 21.4768 | I159: 1.436243046e-06 | K159: 156 | L159: Trindade e Tobago | M159: 876.838 | N159: 3.141297862e-05 | O159: 876.1904
A160: 157 | B160: Polinésia Francesa | C160: 366.6458 | D160: 2.829104755e-05 | F160: 157 | G160: Sudão | H160: 20.4826 | I160: 1.369756752e-06 | K160: 157 | L160: Barém | M160: 719.1302 | N160: 2.576305041e-05 | O160: 709.9274
A161: 158 | B161: Antígua e Barbuda | C161: 363.7054 | D161: 2.806416101e-05 | F161: 158 | G161: Macau | H161: 19.6762 | I161: 1.315829427e-06 | K161: 158 | L161: Aruba | M161: 695.0452 | N161: 2.490019822e-05 | O161: 618.9416
A162: 159 | B162: Haiti | C162: 328.5232 | D162: 2.534943935e-05 | F162: 159 | G162: Quirguizistão | H162: 17.4758 | I162: 1.168679516e-06 | K162: 159 | L162: Burundi | M162: 677.2152 | N162: 2.426143324e-05 | O162: 676.9872
A163: 160 | B163: Comores | C163: 311.607 | D163: 2.404415502e-05 | F163: 160 | G163: Cazaquistão | H163: 17.064 | I163: 1.141140735e-06 | K163: 160 | L163: Chade | M163: 676.014 | N163: 2.42183999e-05 | O163: -675.7868
A164: 161 | B164: Madagáscar | C164: 309.9952 | D164: 2.391978564e-05 | F164: 161 | G164: Salomão, Ilhas | H164: 16.0532 | I164: 1.07354433e-06 | K164: 161 | L164: Niger | M164: 655.4318 | N164: 2.348103654e-05 | O164: 648.8982
A165: 162 | B165: Nova Caledónia | C165: 302.6442 | D165: 2.33525693e-05 | F165: 162 | G165: Santa Helena | H165: 15.7338 | I165: 1.052184722e-06 | K165: 162 | L165: Faroé, Ilhas | M165: 598.4668 | N165: 2.14402487e-05 | O165: -596.7676
A166: 163 | B166: Libéria | C166: 295.8354 | D166: 2.282719008e-05 | F166: 163 | G166: Marshall, Ilhas | H166: 13.4098 | I166: 8.96769165e-07 | K166: 163 | L166: São Martinho (parte holandesa) | M166: 597.7772 | N166: 2.141554358e-05 | O166: 597.7716
A167: 164 | B167: Somália | C167: 292.9902 | D167: 2.260764934e-05 | F167: 164 | G167: Iraque | H167: 13.1736 | I167: 8.809734874e-07 | K167: 164 | L167: Usbequistão | M167: 531.501 | N167: 1.904117927e-05 | O167: -85.337
A168: 165 | B168: Bahamas | C168: 280.4744 | D168: 2.164190776e-05 | F168: 165 | G168: Curaçau | H168: 12.9632 | I168: 8.669031633e-07 | K168: 165 | L168: Ceuta e Melilha | M168: 507.8786 | N168: 1.819489986e-05 | O168: 507.8786
A169: 166 | B169: Usbequistão | C169: 223.082 | D169: 1.721340724e-05 | F169: 166 | G169: Jamaica | H169: 11.163 | I169: 7.465162932e-07 | K169: 166 | L169: Curaçau | M169: 492.6028 | N169: 1.764763984e-05 | O169: 466.6764
A170: 167 | B170: São Marino | C170: 219.9688 | D170: 1.697318715e-05 | F170: 167 | G170: Nepal | H170: 11.0964 | I170: 7.420624739e-07 | K170: 167 | L170: Gronelândia | M170: 481.9304 | N170: 1.726529798e-05 | O170: -480.7792
A171: 168 | B171: Bonaire, Santo Eustáquio e Saba | C171: 206.5448 | D171: 1.593736723e-05 | F171: 168 | G171: Barbados | H171: 10.32 | I171: 6.901413729e-07 | K171: 168 | L171: Kosovo | M171: 479.738 | N171: 1.718675461e-05 | O171: 462.6256
A172: 169 | B172: Guiana | C172: 139.5802 | D172: 1.077025858e-05 | F172: 169 | G172: Antígua e Barbuda | H172: 9.2324 | I172: 6.174090321e-07 | K172: 169 | L172: Antígua e Barbuda | M172: 372.9378 | N172: 1.336060611e-05 | O172: 354.473
A173: 170 | B173: Zâmbia | C173: 138.1944 | D173: 1.066332777e-05 | F173: 170 | G173: Kosovo | H173: 8.5562 | I173: 5.721887224e-07 | K173: 170 | L173: Polinésia Francesa | M173: 367.1436 | N173: 1.315302719e-05 | O173: 366.148
A174: 171 | B174: Maldivas | C174: 129.0678 | D174: 9.959102945e-06 | F174: 171 | G174: Jibuti | H174: 7.3022 | I174: 4.883285207e-07 | K174: 171 | L174: Zâmbia | M174: 337.5936 | N174: 1.209438977e-05 | O174: -61.2048
A175: 172 | B175: Santa Lúcia | C175: 120.252 | D175: 9.278860005e-06 | F175: 172 | G175: Líbia, Jamahira Árabe da | H175: 6.02 | I175: 4.025824675e-07 | K175: 172 | L175: Libéria | M175: 334.663 | N175: 1.198940017e-05 | O175: 257.0078
A176: 173 | B176: Liechtenstein | C176: 119.4194 | D176: 9.214615095e-06 | F176: 173 | G176: Guiné Equatorial | H176: 5.9864 | I176: 4.003354956e-07 | K176: 173 | L176: Haiti | M176: 328.8052 | N176: 1.177954276e-05 | O176: 328.2412
A177: 174 | B177: Afeganistão | C177: 109.4574 | D177: 8.445929308e-06 | F177: 174 | G177: Barém | H177: 4.6014 | I177: 3.077147784e-07 | K177: 174 | L177: Comores | M177: 311.607 | N177: 1.11634122e-05 | O177: 311.607
A178: 175 | B178: Quirguizistão | C178: 109.2342 | D178: 8.428706795e-06 | F178: 175 | G178: São Cristovão e Nevis | H178: 4.4456 | I178: 2.972957837e-07 | K178: 175 | L178: Nova Caledónia | M178: 303.3516 | N178: 1.086766007e-05 | O178: 301.9368
A179: 176 | B179: Virgens Britânicas, Ilhas | C179: 102.589 | D179: 7.915951244e-06 | F179: 176 | G179: Afeganistão | H179: 4.3746 | I179: 2.92547718e-07 | K179: 176 | L179: Somália | M179: 292.9902 | N179: 1.049645988e-05 | O179: 292.9902
A180: 177 | B180: Botswana | C180: 98.1832 | D180: 7.575991814e-06 | F180: 177 | G180: Niger | H180: 3.2668 | I180: 2.184645191e-07 | K180: 177 | L180: Bahamas | M180: 280.4744 | N180: 1.004807767e-05 | O180: 280.4744
A181: 178 | B181: Jibuti | C181: 96.957 | D181: 7.481376023e-06 | F181: 178 | G181: Liechtenstein | H181: 1.8556 | I181: 1.240916988e-07 | K181: 178 | L181: São Marino | M181: 252.739 | N181: 9.05444883e-06 | O181: 187.1986
A182: 179 | B182: Centro-Africana, República | C182: 96.3624 | D182: 7.43549562e-06 | F182: 179 | G182: Lesoto | H182: 1.7136 | I182: 1.145955675e-07 | K182: 179 | L182: Maldivas | M182: 235.2806 | N182: 8.428996527e-06 | O182: 22.855
A183: 180 | B183: Nepal | C183: 77.231 | D183: 5.959282482e-06 | F183: 180 | G183: Butão | H183: 1.2178 | I183: 8.143935697e-08 | K183: 180 | L183: Bonaire, Santo Eustáquio e Saba | M183: 206.5448 | N183: 7.399528061e-06 | O183: 206.5448
A184: 181 | B184: Zimbabwe | C184: 64.9592 | D184: 5.012368383e-06 | F184: 181 | G184: Bermudas | H184: 0.8214 | I184: 5.493043835e-08 | K184: 181 | L184: Fiji, Ilhas | M184: 135.9458 | N184: 4.870298172e-06 | O184: -111.7334
A185: 182 | B185: Caimão, Ilhas | C185: 51.6906 | D185: 3.988539409e-06 | F185: 182 | G185: Nova Caledónia | H185: 0.7074 | I185: 4.730678364e-08 | K185: 182 | L185: Botswana | M185: 128.2116 | N185: 4.593218188e-06 | O185: 68.1548
A186: 183 | B186: Mongólia | C186: 37.8358 | D186: 2.919478191e-06 | F186: 183 | G186: Ruanda | H186: 0.67 | I186: 4.480568991e-08 | K186: 183 | L186: Quirguizistão | M186: 126.71 | N186: 4.539422927e-06 | O186: 91.7584
A187: 184 | B187: Turcas e Caicos, Ilhas | C187: 19.071 | D187: 1.471552566e-06 | F187: 184 | G187: Polinésia Francesa | H187: 0.4978 | I187: 3.328995886e-08 | K187: 184 | L187: Liechtenstein | M187: 121.275 | N187: 4.344712458e-06 | O187: 117.5638
A188: 185 | B188: Laos, República Democrática Popular do | C188: 15.8498 | D188: 1.222998996e-06 | F188: 185 | G188: Território Palestiniano Ocupado | H188: 0.4852 | I188: 3.244734439e-08 | K188: 185 | L188: Santa Lúcia | M188: 120.2746 | N188: 4.308872834e-06 | O188: 120.2294
A189: 186 | B189: Fiji, Ilhas | C189: 12.1062 | D189: 9.341361058e-07 | F189: 186 | G189: São Bartolomeu | H189: 0.3556 | I189: 2.378045273e-08 | K189: 186 | L189: Afeganistão | M189: 113.832 | N189: 4.078064799e-06 | O189: 105.0828
A190: 187 | B190: Anguila | C190: 10.0614 | D190: 7.763556702e-07 | F190: 187 | G190: Montenegro | H190: 0.3524 | I190: 2.356645541e-08 | K190: 187 | L190: Jibuti | M190: 104.2592 | N190: 3.73511643e-06 | O190: 89.6548
A191: 188 | B191: Malavi | C191: 9.1292 | D191: 7.044254462e-07 | F191: 188 | G191: Micronésia, Estados Federados da | H191: 0.3438 | I191: 2.29913376e-08 | K191: 188 | L191: Virgens Britânicas, Ilhas | M191: 102.596 | N191: 3.675531802e-06 | O191: 102.582
A192: 189 | B192: Brunei Darussalam | C192: 7.7238 | D192: 5.959822615e-07 | F192: 189 | G192: Trindade e Tobago | H192: 0.3238 | I192: 2.165385432e-08 | K192: 189 | L192: Nepal | M192: 88.3274 | N192: 3.164355021e-06 | O192: 66.1346
A193: 190 | B193: São Vicente e Granadinas | C193: 7.6034 | D193: 5.866919815e-07 | F193: 190 | G193: Haiti | H193: 0.282 | I193: 1.885851426e-08 | K193: 190 | L193: Tajiquistão | M193: 59.4122 | N193: 2.128459497e-06 | O193: -59.4122
A194: 191 | B194: Guam | C194: 6.6636 | D194: 5.141753279e-07 | F194: 191 | G194: Oceano Indico, Território Britânico do | H194: 0.128 | I194: 8.559892998e-09 | K194: 191 | L194: Caimão, Ilhas | M194: 51.6906 | N194: 1.851830911e-06 | O194: 51.6906
A195: 192 | B195: Territórios Franceses do Sul | C195: 6.3102 | D195: 4.8690635e-07 | F195: 192 | G195: Burundi | H195: 0.114 | I195: 7.623654701e-09 | K195: 192 | L195: Falkland Ilhas (Malvinas) | M195: 38.0622 | N195: 1.363589483e-06 | O195: -38.0622
A196: 193 | B196: Menores distantes dos Estados Unidos, lhas | C196: 4.5544 | D196: 3.514256728e-07 | F196: 193 | G196: Nauru | H196: 0.0694 | I196: 4.641066985e-09 | K196: 193 | L196: Mongólia | M196: 37.85 | N196: 1.355987355e-06 | O196: 37.8216
A197: 194 | B197: Sudão do Sul | C197: 3.771 | D197: 2.909771237e-07 | F197: 194 | G197: Vanuatu | H197: 0.065 | I197: 4.346820663e-09 | K197: 194 | L197: São Pedro e Miquelon | M197: 29.2314 | N197: 1.047223482e-06 | O197: -28.5998
A198: 195 | B198: Melilha | C198: 3.6164 | D198: 2.790479104e-07 | F198: 195 | G198: Santa Lúcia | H198: 0.0226 | I198: 1.511356107e-09 | K198: 195 | L198: Turcas e Caicos, Ilhas | M198: 19.071 | N198: 6.832241705e-07 | O198: 19.071
A199: 196 | B199: Marianas do Norte, Ilhas | C199: 2.9244 | D199: 2.256519492e-07 | F199: 196 | G199: São Vicente e Granadinas | H199: 0.0144 | I199: 9.629879622e-10 | K199: 196 | L199: Salomão, Ilhas | M199: 16.0532 | N199: 5.751106001e-07 | O199: -16.0532
A200: 197 | B200: Papuásia-Nova Guiné | C200: 2.8856 | D200: 2.226580716e-07 | F200: 197 | G200: Mongólia | H200: 0.0142 | I200: 9.496131294e-10 | K200: 197 | L200: Santa Helena | M200: 15.7338 | N200: 5.636680014e-07 | O200: -15.7338
... 58 more rows

Sheet 2AA
A1: Ranking dos parceiros comerciais de Portugal por país (média 2018-2022 em milhares de euros) produtos agrícolas e agroalimentares
A2: Exportações | F2: Importações | K2: Trocas comerciais (total e saldo)
A3: P | B3: País | C3: média quinquénio | D3: % do Total | F3: P | G3: País | H3: média quinquénio | I3: % do Total | K3: P | L3: País | M3: Total (exp+imp) | N3: % do Total | O3: Saldo (exp-imp)
A4: 1 | B4: Espanha | C4: 2415706.759 | D4: 0.3417342339 | F4: 1 | G4: Espanha | H4: 4700233.367 | I4: 0.4607579981 | K4: 1 | L4: Espanha | M4: 7115940.126 | N4: 0.4120392909 | O4: -2284526.609
A5: 2 | B5: França | C5: 675806.7388 | D5: 0.09560195886 | F5: 2 | G5: França | H5: 803086.6822 | I5: 0.07872558298 | K5: 2 | L5: França | M5: 1478893.421 | N5: 0.08563340693 | O5: -127279.9434
A6: 3 | B6: Itália | C6: 450048.5236 | D6: 0.06366542085 | F6: 3 | G6: Alemanha | H6: 693242.9014 | I6: 0.06795773454 | K6: 3 | L6: Alemanha | M6: 953060.8432 | N6: 0.05518575298 | O6: -433424.9596
A7: 4 | B7: Brasil | C7: 371201.5514 | D7: 0.05251145543 | F7: 4 | G7: Países Baixos | H7: 600479.2596 | I7: 0.05886423076 | K7: 4 | L7: Países Baixos | M7: 932127.81 | N7: 0.05397365282 | O7: -268830.7092
A8: 5 | B8: Países Baixos | C8: 331648.5504 | D8: 0.0469161511 | F8: 5 | G8: Brasil | H8: 551829.2644 | I8: 0.05409513258 | K8: 5 | L8: Brasil | M8: 923030.8158 | N8: 0.05344690316 | O8: -180627.713
A9: 6 | B9: Angola | C9: 270788.7526 | D9: 0.03830671359 | F9: 6 | G9: Itália | H9: 327446.3636 | I9: 0.03209915746 | K9: 6 | L9: Itália | M9: 777494.8872 | N9: 0.04501983383 | O9: 122602.16 | P9: Nota: Nesta listagem, o Reino Unido passa a ser constituído por três componentes: Reino Unido [até 2020] ; Reino Unido (sem Irlanda do Norte) pós-2020 e Reino Unido (Irlanda do Norte) pós-2020. Estas componentes são calculadas igualmente como média do quinquénio, embora a primeira corresponda apenas a 2018-2020 e as duas últimas a 2021-2022.
A10: 7 | B10: Alemanha | C10: 259817.9418 | D10: 0.03675474475 | F10: 7 | G10: Bélgica | H10: 257333.6916 | I10: 0.02522609992 | K10: 7 | L10: Bélgica | M10: 424096.2578 | N10: 0.02455674419 | O10: -90571.1254
A11: 8 | B11: Reino Unido | C11: 202835.6198 | D11: 0.02869382838 | F11: 8 | G11: Estados Unidos | H11: 216724.4778 | I11: 0.02124522949 | K11: 8 | L11: Estados Unidos | M11: 400307.8654 | N11: 0.02317930816 | O11: -33141.0902
A12: 9 | B12: Estados Unidos | C12: 183583.3876 | D12: 0.02597034102 | F12: 9 | G12: Ucrânia | H12: 191922.8274 | I12: 0.01881395472 | K12: 9 | L12: Polónia | M12: 317334.5188 | N12: 0.01837484405 | O12: -48783.4444
A13: 10 | B13: Israel | C13: 169488.4306 | D13: 0.02397641965 | F13: 10 | G13: Polónia | H13: 183058.9816 | I13: 0.017945043 | K13: 10 | L13: Reino Unido | M13: 313115.4092 | N13: 0.01813054198 | O13: 92555.8304
A14: 11 | B14: Bélgica | C14: 166762.5662 | D14: 0.02359080944 | F14: 11 | G14: Roménia | H14: 135395.1758 | I14: 0.01327261974 | K14: 11 | L14: Angola | M14: 277910.725 | N14: 0.01609206036 | O14: 263666.7802
A15: 12 | B15: Reino Unido (sem Irlanda do Norte) pós 2020 | C15: 153037.8236 | D15: 0.02164925988 | F15: 12 | G15: África do Sul | H15: 112521.5396 | I15: 0.01103034579 | K15: 12 | L15: Reino Unido (sem Irlanda do Norte) pós 2020 | M15: 202616.3834 | N15: 0.01173223909 | O15: 103459.2638
A16: 13 | B16: Polónia | C16: 134275.5372 | D16: 0.01899508195 | F16: 13 | G16: Reino Unido | H16: 110279.7894 | I16: 0.01081058982 | K16: 13 | L16: Ucrânia | M16: 198678.0056 | N16: 0.01150419243 | O16: -185167.6492
A17: 14 | B17: Suíça | C17: 91992.068 | D17: 0.01301351614 | F17: 14 | G17: Irlanda | H17: 108062.8466 | I17: 0.01059326569 | K17: 14 | L17: Canadá | M17: 175329.8698 | N17: 0.01015224889 | O17: -30892.3678
A18: 15 | B18: Cabo Verde | C18: 85414.0192 | D18: 0.0120829626 | F18: 15 | G18: Canadá | H18: 103111.1188 | I18: 0.01010785401 | K18: 15 | L18: Israel | M18: 174655.5912 | N18: 0.01011320566 | O18: 164321.27
A19: 16 | B19: Canadá | C19: 72218.751 | D19: 0.01021631432 | F19: 16 | G19: Argentina | H19: 72787.4116 | I19: 0.007135258919 | K19: 16 | L19: Roménia | M19: 151197.393 | N19: 0.008754889093 | O19: -119592.9586
A20: 17 | B20: China, República Popular da | C20: 72213.4462 | D20: 0.01021556388 | F20: 17 | G20: Dinamarca | H20: 70233.1534 | I20: 0.006884868183 | K20: 17 | L20: Irlanda | M20: 134807.959 | N20: 0.007805880158 | O20: -81317.7342
A21: 18 | B21: Japão | C21: 54923.0146 | D21: 0.007769599622 | F21: 18 | G21: Costa Rica | H21: 69966.4334 | I21: 0.006858721955 | K21: 18 | L21: África do Sul | M21: 134356.7194 | N21: 0.007779751714 | O21: -90686.3598
A22: 19 | B22: Suécia | C22: 50793.0088 | D22: 0.007185354716 | F22: 19 | G22: Reino Unido (sem Irlanda do Norte) pós 2020 | H22: 49578.5598 | I22: 0.004860124206 | K22: 19 | L22: Dinamarca | M22: 117665.3674 | N22: 0.006813260608 | O22: -22800.9394
A23: 20 | B23: Rússia, Federação da | C23: 48391.7838 | D23: 0.006845669122 | F23: 20 | G23: China, República Popular da | H23: 45047.8158 | I23: 0.004415981039 | K23: 20 | L23: China, República Popular da | M23: 117261.262 | N23: 0.006789861408 | O23: 27165.6304
A24: 21 | B24: Dinamarca | C24: 47432.214 | D24: 0.006709925059 | F24: 21 | G24: Bulgária | H24: 43907.4694 | I24: 0.004304194307 | K24: 21 | L24: Suíça | M24: 94990.5356 | N24: 0.005500303858 | O24: 88993.6004
A25: 22 | B25: Luxemburgo | C25: 45125.6972 | D25: 0.006383637214 | F25: 22 | G25: Cuba | H25: 35799.7426 | I25: 0.00350940399 | K25: 22 | L25: Cabo Verde | M25: 85541.4296 | N25: 0.004953165621 | O25: 85286.6088
A26: 23 | B26: Marrocos | C26: 40786.9258 | D26: 0.005769859604 | F26: 23 | G26: Grécia | H26: 30645.8102 | I26: 0.003004170443 | K26: 23 | L26: Argentina | M26: 73024.74 | N26: 0.004228402931 | O26: -72550.0832
A27: 24 | B27: Guiné-Bissau | C27: 30105.237 | D27: 0.004258790959 | F27: 24 | G27: Vietname | H27: 28845.3448 | I27: 0.002827673072 | K27: 24 | L27: Costa Rica | M27: 71166.1566 | N27: 0.004120784068 | O27: -68766.7102
A28: 25 | B28: Irlanda | C28: 26745.1124 | D28: 0.00378345611 | F28: 25 | G28: Colômbia | H28: 28227.4602 | I28: 0.002767102617 | K28: 25 | L28: Japão | M28: 68496.2538 | N28: 0.003966186807 | O28: 41349.7754
A29: 26 | B29: São Tomé e Príncipe | C29: 25259.196 | D29: 0.003573253237 | F29: 26 | G29: Guiana | H29: 28025.2924 | I29: 0.002747284361 | K29: 26 | L29: Suécia | M29: 64449.5152 | N29: 0.003731865653 | O29: 37136.5024
A30: 27 | B30: Arábia Saudita | C30: 25195.0996 | D30: 0.003564185938 | F30: 27 | G30: Chile | H30: 24583.4362 | I30: 0.002409883503 | K30: 27 | L30: Rússia, Federação da | M30: 60550.976 | N30: 0.003506125793 | O30: 36232.5916
A31: 28 | B31: Moçambique | C31: 25036.1622 | D31: 0.003541702104 | F31: 28 | G31: Áustria | H31: 23718.0114 | I31: 0.002325046992 | K31: 28 | L31: Luxemburgo | M31: 53191.4828 | N31: 0.003079983877 | O31: 37059.9116
A32: 29 | B32: Grécia | C32: 22444.1484 | D32: 0.003175026866 | F32: 29 | G32: Uruguai | H32: 22544.1794 | I32: 0.002209977709 | K32: 29 | L32: Grécia | M32: 53089.9586 | N32: 0.003074105249 | O32: -8201.6618
A33: 30 | B33: África do Sul | C33: 21835.1798 | D33: 0.003088880062 | F33: 30 | G33: Checa, República | H33: 21986.3926 | I33: 0.002155298567 | K33: 30 | L33: Bulgária | M33: 52078.8802 | N33: 0.003015560065 | O33: -35736.0586
A34: 31 | B34: Finlândia | C34: 19871.7108 | D34: 0.002811120945 | F34: 31 | G34: Costa do Marfim | H34: 21706.691 | I34: 0.002127879769 | K34: 31 | L34: Marrocos | M34: 50674.6404 | N34: 0.002934249379 | O34: 30899.2112
A35: 32 | B35: Checa, República | C35: 18184.9724 | D35: 0.002572509097 | F35: 32 | G35: Índia | H35: 20830.7032 | I35: 0.00204200778 | K35: 32 | L35: Checa, República | M35: 40171.365 | N35: 0.002326070829 | O35: -3801.4202
A36: 33 | B36: Jordânia | C36: 17519.4376 | D36: 0.002478360242 | F36: 33 | G36: Paraguai | H36: 18542.9402 | I36: 0.001817741235 | K36: 33 | L36: Cuba | M36: 38669.2808 | N36: 0.00223909459 | O36: -32930.2044
A37: 34 | B37: Noruega | C37: 16995.9884 | D37: 0.002404311308 | F37: 34 | G37: Turquia | H37: 17991.0046 | I37: 0.001763635678 | K37: 34 | L37: Áustria | M37: 38078.486 | N37: 0.002204885383 | O37: -9357.5368
A38: 35 | B38: Roménia | C38: 15802.2172 | D38: 0.002235436304 | F38: 35 | G38: Hungria | H38: 16792.9934 | I38: 0.001646196139 | K38: 35 | L38: Moçambique | M38: 35149.7218 | N38: 0.002035299088 | O38: 14922.6026
A39: 36 | B39: Austrália | C39: 14444.222 | D39: 0.002043329606 | F39: 36 | G39: Uganda | H39: 16711.9036 | I39: 0.001638247007 | K39: 36 | L39: Colômbia | M39: 34588.8908 | N39: 0.002002824895 | O39: -21866.0296
A40: 37 | B40: Áustria | C40: 14360.4746 | D40: 0.002031482409 | F40: 37 | G40: Suécia | H40: 13656.5064 | I40: 0.001338730241 | K40: 37 | L40: Vietname | M40: 30879.9888 | N40: 0.001788065732 | O40: -26810.7008
A41: 38 | B41: Coreia, República da | C41: 13720.4568 | D41: 0.001940943277 | F41: 38 | G41: Japão | H41: 13573.2392 | I41: 0.001330567662 | K41: 38 | L41: Guiné-Bissau | M41: 30466.6832 | N41: 0.001764133807 | O41: 29743.7908
A42: 39 | B42: Iraque | C42: 12397.914 | D42: 0.001753851798 | F42: 39 | G42: Suazilândia | H42: 13238.5804 | I42: 0.001297761478 | K42: 39 | L42: Chile | M42: 30213.2108 | N42: 0.001749456816 | O42: -18953.6616
A43: 40 | B43: Emirados Árabes Unidos | C43: 11828.644 | D43: 0.001673320895 | F43: 40 | G43: Indonésia | H43: 13212.7406 | I43: 0.001295228435 | K43: 40 | L43: Guiana | M43: 28043.5358 | N43: 0.001623824597 | O43: -28007.049
A44: 41 | B44: Argélia | C44: 11256.5744 | D44: 0.001592393951 | F44: 41 | G44: México | H44: 13063.7214 | I44: 0.001280620269 | K44: 41 | L44: Hungria | M44: 28003.0576 | N44: 0.001621480759 | O44: -5582.9292
A45: 42 | B45: Macau | C45: 11226.3746 | D45: 0.001588121783 | F45: 42 | G45: Austrália | H45: 12930.0706 | I45: 0.001267518648 | K45: 42 | L45: Turquia | M45: 27957.3216 | N45: 0.001618832475 | O45: -8024.6876
A46: 43 | B46: Hungria | C46: 11210.0642 | D46: 0.001585814457 | F46: 43 | G46: Rússia, Federação da | H46: 12159.1922 | I46: 0.001191950403 | K46: 43 | L46: Finlândia | M46: 27396.6714 | N46: 0.001586368752 | O46: 12346.7502
A47: 44 | B47: Nigéria | C47: 10936.4444 | D47: 0.001547107254 | F47: 44 | G47: Moldava, República de | H47: 11903.439 | I47: 0.001166879237 | K47: 44 | L47: Austrália | M47: 27374.2926 | N47: 0.001585072937 | O47: 1514.1514
A48: 45 | B48: Turquia | C48: 9966.317 | D48: 0.001409869676 | F48: 45 | G48: Lituânia | H48: 11893.779 | I48: 0.001165932279 | K48: 45 | L48: Costa do Marfim | M48: 27312.2412 | N48: 0.001581479931 | O48: -16101.1408
A49: 46 | B49: Território Palestiniano Ocupado | C49: 9369.3582 | D49: 0.001325421819 | F49: 46 | G49: Peru | H49: 11310.0138 | I49: 0.001108706507 | K49: 46 | L49: São Tomé e Príncipe | M49: 26312.808 | N49: 0.001523609046 | O49: 24205.584
A50: 47 | B50: Eslováquia | C50: 9079.0046 | D50: 0.001284347395 | F50: 47 | G50: Paquistão | H50: 10304.445 | I50: 0.001010131855 | K50: 47 | L50: Arábia Saudita | M50: 25220.0634 | N50: 0.001460335087 | O50: 25170.1358
A51: 48 | B51: Senegal | C51: 8493.732 | D51: 0.001201552708 | F51: 48 | G51: Tailândia | H51: 10200.8142 | I51: 0.0009999730572 | K51: 48 | L51: Uruguai | M51: 24295.8202 | N51: 0.001406817982 | O51: -20792.5386
A52: 49 | B52: Bulgária | C52: 8171.4108 | D52: 0.001155956036 | F52: 49 | G52: Moçambique | H52: 10113.5596 | I52: 0.0009914195979 | K52: 49 | L52: Índia | M52: 23845.568 | N52: 0.001380746712 | O52: -17815.8384
A53: 50 | B53: Líbia, Jamahira Árabe da | C53: 7994.4952 | D53: 0.001130928944 | F53: 50 | G53: Marrocos | H53: 9887.7146 | I53: 0.000969280295 | K53: 50 | L53: Paraguai | M53: 19187.5668 | N53: 0.001111031189 | O53: -17898.3136
A54: 51 | B54: Gibraltar | C54: 7555.2434 | D54: 0.001068790865 | F54: 51 | G54: Egito | H54: 9790.5476 | I54: 0.0009597551355 | K54: 51 | L54: México | M54: 18719.3066 | N54: 0.001083917189 | O54: -7408.1362
A55: 52 | B55: Kuwait | C55: 7350.4748 | D55: 0.00103982359 | F55: 52 | G55: Sérvia | H55: 8809.786 | I55: 0.0008636123026 | K55: 52 | L55: Noruega | M55: 18007.7536 | N55: 0.001042715635 | O55: 15984.2232
A56: 53 | B56: Ucrânia | C56: 6755.1782 | D56: 0.0009556108741 | F56: 53 | G56: Equador | H56: 8208.356 | I56: 0.0008046548719 | K56: 53 | L56: Jordânia | M56: 17549.35 | N56: 0.001016172368 | O56: 17489.5252
A57: 54 | B57: Colômbia | C57: 6361.4306 | D57: 0.0008999099766 | F57: 54 | G57: Luxemburgo | H57: 8065.7856 | I57: 0.000790678874 | K57: 54 | L57: Uganda | M57: 17196.9522 | N57: 0.0009957672303 | O57: -16226.855
A58: 55 | B58: Letónia | C58: 5847.3278 | D58: 0.0008271832163 | F58: 55 | G58: Nova Zelânda | H58: 7880.7508 | I58: 0.0007725401439 | K58: 55 | L58: Lituânia | M58: 16927.7228 | N58: 0.0009801778508 | O58: -6859.8352
A59: 56 | B59: HongKong | C59: 5831.0346 | D59: 0.0008248783238 | F59: 56 | G59: Finlândia | H59: 7524.9606 | I59: 0.0007376624757 | K59: 56 | L59: Suazilândia | M59: 15229.1586 | N59: 0.0008818246921 | O59: -11248.0022
A60: 57 | B60: Maurícias | C60: 5663.2906 | D60: 0.0008011486774 | F60: 57 | G60: Letónia | H60: 7523.6884 | I60: 0.0007375377635 | K60: 57 | L60: Coreia, República da | M60: 14661.023 | N60: 0.0008489275365 | O60: 12779.8906
A61: 58 | B61: México | C61: 5655.5852 | D61: 0.0008000586448 | F61: 58 | G61: Malásia | H61: 7403.8212 | I61: 0.0007257873318 | K61: 58 | L61: Indonésia | M61: 14350.1382 | N61: 0.000830926155 | O61: -12075.343
A62: 59 | B62: Chile | C62: 5629.7746 | D62: 0.0007964073881 | F62: 59 | G62: Angola | H62: 7121.9724 | I62: 0.0006981580464 | K62: 59 | L62: Letónia | M62: 13371.0162 | N62: 0.0007742313645 | O62: -1676.3606
A63: 60 | B63: Costa do Marfim | C63: 5605.5502 | D63: 0.0007929805207 | F63: 60 | G63: Camarões | H63: 6330.963 | I63: 0.0006206163843 | K63: 60 | L63: Tailândia | M63: 13287.6996 | N63: 0.0007694070248 | O63: -7113.9288
A64: 61 | B64: Andorra | C64: 5268.3636 | D64: 0.0007452809379 | F64: 61 | G64: Honduras | H64: 6193.8364 | I64: 0.0006071740352 | K64: 61 | L64: Peru | M64: 13096.7276 | N64: 0.0007583490386 | O64: -9523.3
A65: 62 | B65: Lituânia | C65: 5033.9438 | D65: 0.0007121191022 | F65: 62 | G65: Etiópia | H65: 5332.904 | I65: 0.0005227779089 | K65: 62 | L65: Eslováquia | M65: 12639.492 | N65: 0.0007318734038 | O65: 5518.5172
A66: 63 | B66: Malta | C66: 4911.2352 | D66: 0.0006947603192 | F66: 63 | G66: Israel | H66: 5167.1606 | I66: 0.0005065302907 | K66: 63 | L66: Iraque | M66: 12410.178 | N66: 0.0007185952738 | O66: 12385.65
A67: 64 | B67: Estónia | C67: 4891.9612 | D67: 0.0006920337525 | F67: 64 | G67: Belize | H67: 5153.7922 | I67: 0.0005052198032 | K67: 64 | L67: Emirados Árabes Unidos | M67: 12284.869 | N67: 0.0007113394185 | O67: 11372.419
A68: 65 | B68: Síria, República Árabe da | C68: 4399.3294 | D68: 0.000622344354 | F68: 65 | G68: Camboja | H68: 4964.3942 | I68: 0.0004866533541 | K68: 65 | L68: Moldava, República de | M68: 12104.827 | N68: 0.0007009143198 | O68: -11702.051
A69: 66 | B69: Chipre | C69: 4051.8682 | D69: 0.0005731912908 | F69: 66 | G69: Zimbabwe | H69: 4709.0808 | I69: 0.0004616253009 | K69: 66 | L69: Argélia | M69: 11803.9212 | N69: 0.0006834907595 | O69: 10709.2276
A70: 67 | B70: Omã | C70: 3805.6814 | D70: 0.0005383648545 | F70: 67 | G70: Guatemala | H70: 4635.2426 | I70: 0.0004543870345 | K70: 67 | L70: Sérvia | M70: 11344.2962 | N70: 0.0006568767695 | O70: -6275.2758
A71: 68 | B71: Eslovénia | C71: 3315.0192 | D71: 0.0004689540826 | F71: 68 | G71: Suriname | H71: 4613.819 | I71: 0.0004522869058 | K71: 68 | L71: Egito | M71: 11329.12 | N71: 0.0006559980113 | O71: -8251.9752
A72: 69 | B72: Mali | C72: 3288.1148 | D72: 0.0004651480931 | F72: 69 | G72: Macedónia, Antiga República jugoslava da | H72: 4601.7574 | I72: 0.0004511045222 | K72: 69 | L72: Macau | M72: 11244.0184 | N72: 0.0006510703135 | O72: 11208.7308
A73: 70 | B73: Tailândia | C73: 3086.8854 | D73: 0.0004366814861 | F73: 70 | G73: Tanzânia, República Unida da | H73: 4539.7292 | I73: 0.0004450239753 | K73: 70 | L73: Nigéria | M73: 11134.6158 | N73: 0.0006447354977 | O73: 10738.273
A74: 71 | B74: Índia | C74: 3014.8648 | D74: 0.0004264932029 | F74: 71 | G74: Eslovénia | H74: 4539.0796 | I74: 0.0004449602959 | K74: 71 | L74: Paquistão | M74: 10571.2956 | N74: 0.0006121171716 | O74: -10037.5944
A75: 72 | B75: Singapura | C75: 2938.7244 | D75: 0.0004157221186 | F75: 72 | G75: Filipinas | H75: 4493.8362 | I75: 0.0004405251419 | K75: 72 | L75: Nova Zelânda | M75: 10270.7832 | N75: 0.0005947163905 | O75: -5490.7184
A76: 73 | B76: Cuba | C76: 2869.5382 | D76: 0.0004059347994 | F76: 73 | G76: Tunísia | H76: 4123.8374 | I76: 0.0004042546224 | K76: 73 | L76: Território Palestiniano Ocupado | M76: 9369.8434 | N76: 0.000542548639 | O76: 9368.873
A77: 74 | B77: Gana | C77: 2746.7854 | D77: 0.0003885697637 | F77: 74 | G77: Estónia | H77: 4040.7446 | I77: 0.0003961091391 | K77: 74 | L77: Senegal | M77: 9057.1362 | N77: 0.0005244417338 | O77: 7930.3278
A78: 75 | B78: Taiwan | C78: 2744.6238 | D78: 0.0003882639763 | F78: 75 | G78: Mali | H78: 3761.0172 | I78: 0.000368687812 | K78: 75 | L78: Equador | M78: 9035.7916 | N78: 0.0005232058024 | O78: -7380.9204
A79: 76 | B79: Sérvia | C79: 2534.5102 | D79: 0.0003585405797 | F79: 76 | G79: Eslováquia | H79: 3560.4874 | I79: 0.0003490301265 | K79: 76 | L79: Estónia | M79: 8932.7058 | N79: 0.0005172367528 | O79: 851.2166
A80: 77 | B80: Líbano | C80: 2490.8708 | D80: 0.0003523671992 | F80: 77 | G80: Myanmar | H80: 3336.3804 | I80: 0.0003270611976 | K80: 77 | L80: Malásia | M80: 8922.5932 | N80: 0.0005166511958 | O80: -5885.0492
A81: 78 | B81: Timor-Leste | C81: 2471.9198 | D81: 0.0003496863252 | F81: 78 | G81: Quénia | H81: 3256.788 | I81: 0.0003192588542 | K81: 78 | L81: Camarões | M81: 8612.0928 | N81: 0.0004986720725 | O81: -4049.8332
A82: 79 | B82: Belarus | C82: 2455.9286 | D82: 0.0003474241547 | F82: 79 | G82: Malavi | H82: 3254.1854 | I82: 0.0003190037245 | K82: 79 | L82: Kuwait | M82: 8534.0068 | N82: 0.0004941506039 | O82: 6166.9428
A83: 80 | B83: Nova Zelânda | C83: 2390.0324 | D83: 0.0003381022503 | F83: 80 | G83: Nicarágua | H83: 3164.5168 | I83: 0.0003102136238 | K83: 80 | L83: Líbia, Jamahira Árabe da | M83: 8000.447 | N83: 0.0004632555151 | O83: 7988.5434
A84: 81 | B84: Filipinas | C84: 2342.9576 | D84: 0.0003314428863 | F84: 81 | G84: Chipre | H84: 3103.6452 | I84: 0.000304246457 | K84: 81 | L84: Eslovénia | M84: 7854.0988 | N84: 0.0004547814123 | O84: -1224.0604
A85: 82 | B85: Guiné | C85: 2294.4076 | D85: 0.0003245748354 | F85: 82 | G85: Sri Lanca | H85: 3086.3876 | I85: 0.0003025547161 | K85: 82 | L85: Gibraltar | M85: 7555.2434 | N85: 0.0004374765776 | O85: 7555.2434
A86: 83 | B86: Camarões | C86: 2281.1298 | D86: 0.0003226965118 | F86: 83 | G86: Suíça | H86: 2998.4676 | I86: 0.0002939360284 | K86: 83 | L86: Maurícias | M86: 7215.0914 | N86: 0.0004177805169 | O86: 4111.4898
A87: 84 | B87: Irão, República Islâmica do | C87: 2234.7082 | D87: 0.0003161295517 | F87: 84 | G87: Taiwan | H87: 2719.0514 | I87: 0.0002665452078 | K87: 84 | L87: Chipre | M87: 7155.5134 | N87: 0.00041433073 | O87: 948.223
A88: 85 | B88: Congo | C88: 2180.7492 | D88: 0.000308496325 | F88: 85 | G88: Reino Unido (Irlanda do Norte) pós-2020 | H88: 2486.6052 | I88: 0.0002437587976 | K88: 85 | L88: Mali | M88: 7049.132 | N88: 0.0004081708529 | O88: -472.9024
A89: 86 | B89: Seychelles | C89: 2103.9052 | D89: 0.0002976257069 | F89: 86 | G89: Dominicana, República | H89: 2224.7388 | I89: 0.0002180883619 | K89: 86 | L89: HongKong | M89: 7034.0506 | N89: 0.000407297584 | O89: 4628.0186
A90: 87 | B90: Gabão | C90: 2079.6516 | D90: 0.0002941947088 | F90: 87 | G90: Serra Leoa | H90: 1997.841 | I90: 0.0001958458544 | K90: 87 | L90: Honduras | M90: 7007.5386 | N90: 0.000405762441 | O90: -5380.1342
A91: 88 | B91: Venezuela | C91: 2058.4802 | D91: 0.0002911997293 | F91: 88 | G91: Benim | H91: 1817.5436 | I91: 0.0001781715258 | K91: 88 | L91: Filipinas | M91: 6836.7938 | N91: 0.0003958756847 | O91: -2150.8786
A92: 89 | B92: Vietname | C92: 2034.644 | D92: 0.000287827778 | F92: 89 | G92: Croácia | H92: 1794.8456 | I92: 0.0001759464692 | K92: 89 | L92: Etiópia | M92: 6077.3128 | N92: 0.0003518989216 | O92: -4588.4952
A93: 90 | B93: Suazilândia | C93: 1990.5782 | D93: 0.0002815940775 | F93: 90 | G93: Burquina Faso | H93: 1725.7566 | I93: 0.000169173761 | K93: 90 | L93: Taiwan | M93: 5463.6752 | N93: 0.0003163670317 | O93: 25.5724
A94: 91 | B94: Sudão | C94: 1865.0268 | D94: 0.0002638331422 | F94: 91 | G94: Gana | H94: 1658.8832 | I94: 0.0001626182452 | K94: 91 | L94: Malta | M94: 5451.155 | N94: 0.0003156420657 | O94: 4371.3154
A95: 92 | B95: Burquina Faso | C95: 1848.8938 | D95: 0.0002615509122 | F95: 92 | G95: Laos, República Democrática Popular do | H95: 1570.3752 | I95: 0.0001539419167 | K95: 92 | L95: Camboja | M95: 5365.826 | N95: 0.0003107012005 | O95: -4562.9624
A96: 93 | B96: Guiné Equatorial | C96: 1818.0792 | D96: 0.0002571917723 | F96: 93 | G96: Maurícias | H96: 1551.8008 | I96: 0.0001521210915 | K96: 93 | L96: Síria, República Árabe da | M96: 5349.1634 | N96: 0.0003097363743 | O96: 3449.4954
A97: 94 | B97: Peru | C97: 1786.7138 | D97: 0.0002527547143 | F97: 94 | G97: Madagáscar | H97: 1535.4408 | I97: 0.0001505173411 | K97: 94 | L97: Andorra | M97: 5273.09 | N97: 0.0003053314426 | O97: 5263.6372
A98: 95 | B98: Croácia | C98: 1762.667 | D98: 0.0002493529708 | F98: 95 | G98: Panamá | H98: 1513.6732 | I98: 0.0001483834905 | K98: 95 | L98: Belize | M98: 5155.9728 | N98: 0.000298549923 | O98: -5151.6116
A99: 96 | B99: Uruguai | C99: 1751.6408 | D99: 0.0002477931664 | F99: 96 | G99: Congo, República Democrática do | H99: 1226.6954 | I99: 0.0001202514158 | K99: 96 | L99: Guatemala | M99: 5127.1054 | N99: 0.0002968783936 | O99: -4143.3798
A100: 97 | B100: Dominicana, República | C100: 1708.9932 | D100: 0.0002417600894 | F100: 97 | G100: HongKong | H100: 1203.016 | I100: 0.0001179301538 | K100: 97 | L100: Tanzânia, República Unida da | M100: 4910.617 | N100: 0.0002843429133 | O100: -4168.8414
A101: 98 | B101: Benim | C101: 1572.4166 | D101: 0.0002224394912 | F101: 98 | G101: Kuwait | H101: 1183.532 | I101: 0.0001160201616 | K101: 98 | L101: Macedónia, Antiga República jugoslava da | M101: 4874.4688 | N101: 0.0002822497987 | O101: -4329.046
A102: 99 | B102: Bangladesh | C102: 1558.9346 | D102: 0.0002205322808 | F102: 99 | G102: Togo | H102: 1123.3282 | I102: 0.0001101184584 | K102: 99 | L102: Tunísia | M102: 4849.4484 | N102: 0.0002808010248 | O102: -3398.2264
A103: 100 | B103: Egito | C103: 1538.5724 | D103: 0.0002176517736 | F103: 100 | G103: Singapura | H103: 1066.466 | I103: 0.0001045443281 | K103: 100 | L103: Zimbabwe | M103: 4772.3634 | N103: 0.0002763375178 | O103: -4645.7982
A104: 101 | B104: Malásia | C104: 1518.772 | D104: 0.0002148507405 | F104: 101 | G104: São Tomé e Príncipe | H104: 1053.612 | I104: 0.0001032842665 | K104: 101 | L104: Suriname | M104: 4769.9158 | N104: 0.0002761957927 | O104: -4457.7222
A105: 102 | B105: Catar | C105: 1515.1716 | D105: 0.0002143414155 | F105: 102 | G105: Noruega | H105: 1011.7652 | I105: 9.918207707e-05 | K105: 102 | L105: Gana | M105: 4405.6686 | N105: 0.0002551045306 | O105: 1087.9022
A106: 103 | B106: Geórgia | C106: 1344.215 | D106: 0.0001901573035 | F106: 103 | G106: Síria, República Árabe da | H106: 949.834 | I106: 9.3111039e-05 | K106: 103 | L106: Omã | M106: 4283.851 | N106: 0.0002480508404 | O106: 3327.5118
A107: 104 | B107: Albânia | C107: 1266.1722 | D107: 0.0001791170991 | F107: 104 | G107: Coreia, República da | H107: 940.5662 | I107: 9.220252816e-05 | K107: 104 | L107: Singapura | M107: 4005.1904 | N107: 0.0002319153595 | O107: 1872.2584
A108: 105 | B108: Reino Unido (Irlanda do Norte) pós-2020 | C108: 1227.8066 | D108: 0.0001736897686 | F108: 105 | G108: El Salvador | H108: 728.093 | I108: 7.137404612e-05 | K108: 105 | L108: Dominicana, República | M108: 3933.732 | N108: 0.0002277776534 | O108: -515.7456
A109: 106 | B109: Costa Rica | C109: 1199.7232 | D109: 0.0001697169937 | F109: 106 | G109: Turquemenistão | H109: 720.6558 | I109: 7.06449867e-05 | K109: 106 | L109: Myanmar | M109: 3786.5898 | N109: 0.000219257575 | O109: -2886.171
A110: 107 | B110: Indonésia | C110: 1137.3976 | D110: 0.0001609001987 | F110: 107 | G110: Chade | H110: 675.9004 | I110: 6.625767082e-05 | K110: 107 | L110: Reino Unido (Irlanda do Norte) pós-2020 | M110: 3714.4118 | N110: 0.0002150782015 | O110: -1258.7986
A111: 108 | B111: Islândia | C111: 1133.5366 | D111: 0.0001603540083 | F111: 108 | G111: Timor-Leste | H111: 614.309 | I111: 6.021994291e-05 | K111: 108 | L111: Quénia | M111: 3707.2604 | N111: 0.0002146641089 | O111: -2806.3156
A112: 109 | B112: Congo, República Democrática do | C112: 1102.9278 | D112: 0.0001560239816 | F112: 109 | G112: Senegal | H112: 563.4042 | I112: 5.522980904e-05 | K112: 109 | L112: Nicarágua | M112: 3581.5684 | N112: 0.0002073860766 | O112: -2747.4652
A113: 110 | B113: Togo | C113: 886.836 | D113: 0.0001254548881 | F113: 110 | G113: Argélia | H113: 547.3468 | I113: 5.36557222e-05 | K113: 110 | L113: Burquina Faso | M113: 3574.6504 | N113: 0.0002069854987 | O113: 123.1372
A114: 111 | B114: Panamá | C114: 853.2114 | D114: 0.0001206982359 | F114: 111 | G114: Malta | H114: 539.9198 | I114: 5.292766268e-05 | K114: 111 | L114: Croácia | M114: 3557.5126 | N114: 0.0002059931566 | O114: -32.1786
A115: 112 | B115: Equador | C115: 827.4356 | D115: 0.000117051902 | F115: 112 | G115: Líbano | H115: 532.182 | I115: 5.216913582e-05 | K115: 112 | L115: Sri Lanca | M115: 3479.4264 | N115: 0.0002014716764 | O115: -2693.3488
A116: 113 | B116: Ruanda | C116: 825.8566 | D116: 0.0001168285312 | F116: 113 | G116: Omã | H116: 478.1696 | I116: 4.687436781e-05 | K116: 113 | L116: Benim | M116: 3389.9602 | N116: 0.0001962912521 | O116: -245.127
A117: 114 | B117: Honduras | C117: 813.7022 | D117: 0.0001151091278 | F117: 114 | G117: Emirados Árabes Unidos | H117: 456.225 | I117: 4.472316612e-05 | K117: 114 | L117: Malavi | M117: 3260.7888 | N117: 0.0001888117496 | O117: -3247.582
A118: 115 | B118: Bermudas | C118: 793.1712 | D118: 0.0001122047415 | F118: 115 | G118: Belarus | H118: 370.985 | I118: 3.636719553e-05 | K118: 115 | L118: Timor-Leste | M118: 3086.2288 | N118: 0.000178704079 | O118: 1857.6108
A119: 116 | B119: Etiópia | C119: 744.4088 | D119: 0.0001053066437 | F119: 116 | G119: Guiné-Bissau | H119: 361.4462 | I119: 3.54321189e-05 | K119: 116 | L119: Líbano | M119: 3023.0528 | N119: 0.0001750459546 | O119: 1958.6888
A120: 117 | B120: Tunísia | C120: 725.611 | D120: 0.0001026474419 | F120: 117 | G120: Usbequistão | H120: 308.3676 | I120: 3.022889013e-05 | K120: 117 | L120: Belarus | M120: 2826.9136 | N120: 0.0001636887684 | O120: 2084.9436
A121: 118 | B121: Burundi | C121: 677.0954 | D121: 9.578425733e-05 | F121: 118 | G121: Guiné | H121: 302.1342 | I121: 2.961783773e-05 | K121: 118 | L121: Guiné | M121: 2596.5418 | N121: 0.0001503493879 | O121: 1992.2734
A122: 119 | B122: Iémen | C122: 670.7886 | D122: 9.489207559e-05 | F122: 119 | G122: Geórgia | H122: 294.6596 | I122: 2.888511204e-05 | K122: 119 | L122: Serra Leoa | M122: 2499.2974 | N122: 0.0001447185769 | O122: -1496.3846
A123: 120 | B123: Paraguai | C123: 644.6266 | D123: 9.119110857e-05 | F123: 120 | G123: Bolívia | H123: 281.7088 | I123: 2.761556131e-05 | K123: 120 | L123: Irão, República Islâmica do | M123: 2440.2744 | N123: 0.0001413009266 | O123: 2029.142
A124: 121 | B124: Namíbia | C124: 633.7298 | D124: 8.964960955e-05 | F124: 121 | G124: Bangladesh | H124: 280.8088 | I124: 2.752733544e-05 | K124: 121 | L124: Congo | M124: 2380.0768 | N124: 0.0001378152626 | O124: 1981.4216
A125: 122 | B125: Azerbaijão | C125: 594.9756 | D125: 8.416730637e-05 | F125: 122 | G125: Irão, República Islâmica do | H125: 205.5662 | I125: 2.015139747e-05 | K125: 122 | L125: Panamá | M125: 2366.8846 | N125: 0.0001370513853 | O125: -660.4618
A126: 123 | B126: Arménia | C126: 559.6906 | D126: 7.917576822e-05 | F126: 123 | G126: Congo | H126: 199.3276 | I126: 1.953983532e-05 | K126: 123 | L126: Congo, República Democrática do | M126: 2329.6232 | N126: 0.0001348938123 | O126: -123.7676
A127: 124 | B127: Cazaquistão | C127: 531.8816 | D127: 7.524181089e-05 | F127: 124 | G127: Zâmbia | H127: 199.294 | I127: 1.953654155e-05 | K127: 124 | L127: Venezuela | M127: 2213.4414 | N127: 0.0001281664557 | O127: 1903.519
A128: 125 | B128: Aruba | C128: 522.985 | D128: 7.398326708e-05 | F128: 125 | G128: Nigéria | H128: 198.1714 | I128: 1.942649448e-05 | K128: 125 | L128: Seychelles | M128: 2103.9052 | N128: 0.000121823904 | O128: 2103.9052
A129: 126 | B129: Serra Leoa | C129: 501.4564 | D129: 7.093775686e-05 | F129: 126 | G129: Islândia | H129: 193.9226 | I129: 1.900998993e-05 | K129: 126 | L129: Gabão | M129: 2079.9016 | N129: 0.0001204340066 | O129: 2079.4016
A130: 127 | B130: Guatemala | C130: 491.8628 | D130: 6.958061302e-05 | F130: 127 | G130: Venezuela | H130: 154.9612 | I130: 1.519065262e-05 | K130: 127 | L130: Togo | M130: 2010.1642 | N130: 0.0001163959529 | O130: -236.4922
A131: 128 | B131: Uganda | C131: 485.0486 | D131: 6.861665272e-05 | F131: 128 | G131: Cabo Verde | H131: 127.4104 | I131: 1.248988215e-05 | K131: 128 | L131: Sudão | M131: 1881.5594 | N131: 0.0001089492586 | O131: 1848.4942
A132: 129 | B132: São Bartolomeu | C132: 472.0258 | D132: 6.677440239e-05 | F132: 129 | G132: Azerbaijão | H132: 124.836 | I132: 1.223751694e-05 | K132: 129 | L132: Bangladesh | M132: 1839.7434 | N132: 0.0001065279573 | O132: 1278.1258
A133: 130 | B133: Mauritânia | C133: 470.2498 | D133: 6.652316328e-05 | F133: 130 | G133: Albânia | H133: 104.1554 | I133: 1.021022359e-05 | K133: 130 | L133: Guiné Equatorial | M133: 1818.0792 | N133: 0.0001052735199 | O133: 1818.0792
A134: 131 | B134: Barém | C134: 469.46 | D134: 6.641143544e-05 | F134: 131 | G134: Namíbia | H134: 70.1862 | I134: 6.880265399e-06 | K134: 131 | L134: Madagáscar | M134: 1665.0982 | N134: 9.641535334e-05 | O134: -1405.7834
A135: 132 | B135: Gâmbia | C135: 455.249 | D135: 6.440109823e-05 | F135: 132 | G135: Tajiquistão | H135: 59.4122 | I135: 5.824103655e-06 | K135: 132 | L135: Geórgia | M135: 1638.8746 | N135: 9.489690977e-05 | O135: 1049.5554
A136: 133 | B136: Quénia | C136: 450.4724 | D136: 6.372538387e-05 | F136: 133 | G136: Iémen | H136: 45.76 | I136: 4.485795565e-06 | K136: 133 | L136: Laos, República Democrática Popular do | M136: 1584.7624 | N136: 9.176361296e-05 | O136: -1555.988
A137: 134 | B137: Myanmar | C137: 450.2094 | D137: 6.368817898e-05 | F137: 134 | G137: Libéria | H137: 38.8276 | I137: 3.806221064e-06 | K137: 134 | L137: Catar | M137: 1531.2412 | N137: 8.866453723e-05 | O137: 1499.102
A138: 135 | B138: Kosovo | C138: 418.4652 | D138: 5.919753465e-05 | F138: 135 | G138: Aruba | H138: 38.0318 | I138: 3.728209785e-06 | K138: 135 | L138: Albânia | M138: 1370.3276 | N138: 7.934704376e-05 | O138: 1162.0168
A139: 136 | B139: Nicarágua | C139: 417.0516 | D139: 5.89975619e-05 | F139: 136 | G139: São Marino | H139: 32.7702 | I139: 3.212421718e-06 | K139: 136 | L139: Islândia | M139: 1327.4592 | N139: 7.686480462e-05 | O139: 939.614
A140: 137 | B140: Camboja | C140: 401.4318 | D140: 5.678793097e-05 | F140: 137 | G140: Botswana | H140: 30.0284 | I140: 2.943646493e-06 | K140: 137 | L140: El Salvador | M140: 1020.6408 | N140: 5.90988828e-05 | O140: -435.5452
A141: 138 | B141: Sri Lanca | C141: 393.0388 | D141: 5.560062815e-05 | F141: 138 | G141: Jordânia | H141: 29.9124 | I141: 2.932275159e-06 | K141: 138 | L141: Ruanda | M141: 826.094 | N141: 4.783390247e-05 | O141: 825.6192
A142: 139 | B142: Bolívia | C142: 391.1324 | D142: 5.533094222e-05 | F142: 139 | G142: Bósnia-Herzegovina | H142: 27.8982 | I142: 2.734825652e-06 | K142: 139 | L142: Bermudas | M142: 793.8626 | N142: 4.596758502e-05 | O142: 792.4798
A143: 140 | B143: Tanzânia, República Unida da | C143: 370.8878 | D143: 5.246707107e-05 | F143: 140 | G143: Papuásia-Nova Guiné | H143: 25.837 | I143: 2.532768794e-06 | K143: 140 | L143: Turquemenistão | M143: 732.4956 | N143: 4.241420842e-05 | O143: -708.816
A144: 141 | B144: São Martinho (parte holandesa) | C144: 349.244 | D144: 4.940526426e-05 | F144: 141 | G144: Arábia Saudita | H144: 24.9638 | I144: 2.44717009e-06 | K144: 141 | L144: Azerbaijão | M144: 719.8116 | N144: 4.167975784e-05 | O144: 470.1396
A145: 142 | B145: Comores | C145: 311.607 | D145: 4.408100406e-05 | F145: 142 | G145: Macau | H145: 17.6438 | I145: 1.729599646e-06 | K145: 142 | L145: Iémen | M145: 716.5486 | N145: 4.149081805e-05 | O145: 625.0286
A146: 143 | B146: Libéria | C146: 294.774 | D146: 4.169974965e-05 | F146: 143 | G146: Quirguizistão | H146: 17.4758 | I146: 1.713130816e-06 | K146: 143 | L146: Namíbia | M146: 703.916 | N146: 4.075934372e-05 | O146: 563.5436
A147: 144 | B147: Somália | C147: 292.8146 | D147: 4.142256615e-05 | F147: 144 | G147: Sudão | H147: 16.5326 | I147: 1.6206701e-06 | K147: 144 | L147: Burundi | M147: 677.2094 | N147: 3.921293266e-05 | O147: 676.9814
A148: 145 | B148: El Salvador | C148: 292.5478 | D148: 4.13848237e-05 | F148: 145 | G148: Catar | H148: 16.0696 | I148: 1.575282789e-06 | K148: 145 | L148: Chade | M148: 675.9044 | N148: 3.913736832e-05 | O148: -675.8964
A149: 146 | B149: Jamaica | C149: 276.7996 | D149: 3.915702886e-05 | F149: 146 | G149: Arménia | H149: 15.3428 | I149: 1.504035494e-06 | K149: 146 | L149: Bolívia | M149: 672.8412 | N149: 3.89599977e-05 | O149: 109.4236
A150: 147 | B150: Macedónia, Antiga República jugoslava da | C150: 272.7114 | D150: 3.857869794e-05 | F150: 147 | G150: Curaçau | H150: 12.9632 | I150: 1.270766282e-06 | K150: 147 | L150: Arménia | M150: 575.0334 | N150: 3.32965638e-05 | O150: 544.3478
A151: 148 | B151: Paquistão | C151: 266.8506 | D151: 3.77496089e-05 | F151: 148 | G151: Iraque | H151: 12.264 | I151: 1.202224581e-06 | K151: 148 | L151: Aruba | M151: 561.0168 | N151: 3.248495074e-05 | O151: 484.9532
A152: 149 | B152: Antígua e Barbuda | C152: 264.4064 | D152: 3.740384392e-05 | F152: 149 | G152: Jamaica | H152: 11.1274 | I152: 1.090805104e-06 | K152: 149 | L152: Cazaquistão | M152: 538.873 | N152: 3.12027427e-05 | O152: 524.8902
A153: 150 | B153: Argentina | C153: 237.3284 | D153: 3.357329637e-05 | F153: 150 | G153: Kosovo | H153: 8.3722 | I153: 8.207162943e-07 | K153: 150 | L153: Barém | M153: 473.8092 | N153: 2.743530768e-05 | O153: 465.1108
A154: 151 | B154: Curaçau | C154: 224.0074 | D154: 3.168886164e-05 | F154: 151 | G154: Cazaquistão | H154: 6.9914 | I154: 6.853581974e-07 | K154: 151 | L154: São Bartolomeu | M154: 472.3088 | N154: 2.734842896e-05 | O154: 471.7428
A155: 152 | B155: Moldava, República de | C155: 201.388 | D155: 2.848904307e-05 | F155: 152 | G155: Líbia, Jamahira Árabe da | H155: 5.9518 | I155: 5.834475097e-07 | K155: 152 | L155: Mauritânia | M155: 471.8238 | N155: 2.732034567e-05 | O155: 468.6758
A156: 153 | B156: Haiti | C156: 195.7344 | D156: 2.768926526e-05 | F156: 153 | G156: Andorra | H156: 4.7264 | I156: 4.633230804e-07 | K156: 153 | L156: Gâmbia | M156: 455.249 | N156: 2.636060335e-05 | O156: 455.249
A157: 154 | B157: Ceuta e Melilha | C157: 191.5534 | D157: 2.709780654e-05 | F157: 154 | G157: São Cristovão e Nevis | H157: 4.4456 | I157: 4.357966076e-07 | K157: 154 | L157: Kosovo | M157: 426.8374 | N157: 2.471546648e-05 | O157: 410.093
A158: 155 | B158: Suriname | C158: 156.0968 | D158: 2.208199326e-05 | F158: 155 | G158: Afeganistão | H158: 4.3746 | I158: 4.288365664e-07 | K158: 155 | L158: São Martinho (parte holandesa) | M158: 349.244 | N158: 2.022252121e-05 | O158: 349.244
A159: 156 | B159: Nova Caledónia | C159: 140.1192 | D159: 1.98217467e-05 | F159: 156 | G159: Barém | H159: 4.3492 | I159: 4.263466362e-07 | K159: 156 | L159: Usbequistão | M159: 348.7024 | N159: 2.019116056e-05 | O159: -268.0328
A160: 157 | B160: Trindade e Tobago | C160: 140.025 | D160: 1.980842084e-05 | F160: 157 | G160: Nepal | H160: 2.446 | I160: 2.397783206e-07 | K160: 157 | L160: Zâmbia | M160: 336.52 | N160: 1.948575448e-05 | O160: -62.068
A161: 158 | B161: Zâmbia | C161: 137.226 | D161: 1.941246462e-05 | F161: 158 | G161: Liechtenstein | H161: 1.7982 | I161: 1.762752969e-07 | K161: 158 | L161: Libéria | M161: 333.6016 | N161: 1.931676831e-05 | O161: 255.9464
A162: 159 | B162: Polinésia Francesa | C162: 133.1554 | D162: 1.883662346e-05 | F162: 159 | G162: Lesoto | H162: 1.7136 | I162: 1.679820647e-07 | K162: 159 | L162: Comores | M162: 311.607 | N162: 1.80431995e-05 | O162: 311.607
A163: 160 | B163: Madagáscar | C163: 129.6574 | D163: 1.834178428e-05 | F163: 160 | G163: Mauritânia | H163: 1.574 | I163: 1.542972513e-07 | K163: 160 | L163: Somália | M163: 292.8146 | N163: 1.695504993e-05 | O163: 292.8146
A164: 161 | B164: Maldivas | C164: 127.1794 | D164: 1.799123783e-05 | F164: 161 | G164: Fiji, Ilhas | H164: 1.3818 | I164: 1.354561257e-07 | K164: 161 | L164: Jamaica | M164: 287.927 | N164: 1.667203979e-05 | O164: 265.6722
A165: 162 | B165: Niger | C165: 113.05 | D165: 1.599244404e-05 | F165: 162 | G165: Bermudas | H165: 0.6914 | I165: 6.777707722e-08 | K165: 162 | L165: Antígua e Barbuda | M165: 264.426 | N165: 1.531124484e-05 | O165: 264.3868
A166: 163 | B166: Liechtenstein | C166: 106.2456 | D166: 1.502987008e-05 | F166: 163 | G166: Território Palestiniano Ocupado | H166: 0.4852 | I166: 4.756354913e-08 | K166: 163 | L166: Curaçau | M166: 236.9706 | N166: 1.372147548e-05 | O166: 211.0442
A167: 164 | B167: Centro-Africana, República | C167: 83.0308 | D167: 1.174582417e-05 | F167: 164 | G167: Montenegro | H167: 0.3086 | I167: 3.025167201e-08 | K167: 164 | L167: Haiti | M167: 195.7358 | N167: 1.133382783e-05 | O167: 195.733
A168: 165 | B168: Jibuti | C168: 77.3086 | D168: 1.093634196e-05 | F168: 165 | G168: São Bartolomeu | H168: 0.283 | I168: 2.774213603e-08 | K168: 165 | L168: Ceuta e Melilha | M168: 191.5534 | N168: 1.109165138e-05 | O168: 191.5534
A169: 166 | B169: Nepal | C169: 76.6542 | D169: 1.084376828e-05 | F169: 166 | G169: Gabão | H169: 0.25 | I169: 2.450718731e-08 | K169: 166 | L169: Nova Caledónia | M169: 140.1192 | N169: 8.113420685e-06 | O169: 140.1192
A170: 167 | B170: Zimbabwe | C170: 63.2826 | D170: 8.952175488e-06 | F170: 167 | G170: Ruanda | H170: 0.2374 | I170: 2.327202507e-08 | K170: 167 | L170: Trindade e Tobago | M170: 140.0354 | N170: 8.108568354e-06 | O170: 140.0146
A171: 168 | B171: Caimão, Ilhas | C171: 51.4562 | D171: 7.279172037e-06 | F171: 168 | G171: Barbados | H171: 0.1378 | I171: 1.350836164e-08 | K171: 168 | L171: Polinésia Francesa | M171: 133.1554 | N171: 7.710190871e-06 | O171: 133.1554
A172: 169 | B172: Bósnia-Herzegovina | C172: 50.6168 | D172: 7.16042761e-06 | F172: 169 | G172: Oceano Indico, Território Britânico do | H172: 0.128 | I172: 1.25476799e-08 | K172: 169 | L172: Maldivas | M172: 127.183 | N172: 7.364366789e-06 | O172: 127.1758
A173: 170 | B173: Montenegro | C173: 46.101 | D173: 6.521606922e-06 | F173: 170 | G173: Niger | H173: 0.1252 | I173: 1.22731994e-08 | K173: 170 | L173: Niger | M173: 113.1752 | N173: 6.553263283e-06 | O173: 112.9248
A174: 171 | B174: Bahamas | C174: 42.9652 | D174: 6.078005807e-06 | F174: 171 | G174: Burundi | H174: 0.114 | I174: 1.117527741e-08 | K174: 171 | L174: Liechtenstein | M174: 108.0438 | N174: 6.256136217e-06 | O174: 104.4474
A175: 172 | B175: Usbequistão | C175: 40.3348 | D175: 5.705900325e-06 | F175: 172 | G175: Antígua e Barbuda | H175: 0.0196 | I175: 1.921363485e-09 | K175: 172 | L175: Centro-Africana, República | M175: 83.0308 | N175: 4.807790868e-06 | O175: 83.0308
A176: 173 | B176: Mongólia | C176: 30.8452 | D176: 4.363468684e-06 | F176: 173 | G176: São Vicente e Granadinas | H176: 0.0144 | I176: 1.411613989e-09 | K176: 173 | L176: Nepal | M176: 79.1002 | N176: 4.580194569e-06 | O176: 74.2082
A177: 174 | B177: Afeganistão | C177: 18.9718 | D177: 2.683816451e-06 | F177: 174 | G177: Mongólia | H177: 0.0112 | I177: 1.097921991e-09 | K177: 174 | L177: Bósnia-Herzegovina | M177: 78.515 | N177: 4.546309321e-06 | O177: 22.7186
A178: 175 | B178: Guiana | C178: 18.2434 | D178: 2.580774467e-06 | F178: 175 | G178: Trindade e Tobago | H178: 0.0104 | I178: 1.019498992e-09 | K178: 175 | L178: Jibuti | M178: 77.3086 | N178: 4.476454293e-06 | O178: 77.3086
A179: 176 | B179: Turcas e Caicos, Ilhas | C179: 18.0666 | D179: 2.555763728e-06 | F179: 176 | G179: Virgens Britânicas, Ilhas | H179: 0.007 | I179: 6.862012446e-10 | K179: 176 | L179: Tajiquistão | M179: 59.4122 | N179: 3.440186444e-06 | O179: -59.4122
A180: 177 | B180: Laos, República Democrática Popular do | C180: 14.3872 | D180: 2.035263077e-06 | F180: 177 | G180: Santa Lúcia | H180: 0.004 | I180: 3.921149969e-10 | K180: 177 | L180: Caimão, Ilhas | M180: 51.4562 | N180: 2.979504575e-06 | O180: 51.4562
A181: 178 | B181: Barbados | C181: 14.032 | D181: 1.985015256e-06 | F181: 178 | G181: Maldivas | H181: 0.0036 | I181: 3.529034972e-10 | K181: 178 | L181: Montenegro | M181: 46.4096 | N181: 2.687287742e-06 | O181: 45.7924
A182: 179 | B182: Turquemenistão | C182: 11.8398 | D182: 1.674899061e-06 | F182: 179 | G182: Haiti | H182: 0.0014 | I182: 1.372402489e-10 | K182: 179 | L182: Bahamas | M182: 42.9652 | N182: 2.487844224e-06 | O182: 42.9652
A183: 180 | B183: Virgens Britânicas, Ilhas | C183: 9.9272 | D183: 1.40433605e-06 | F183: 180 | G183: Anguila | H183: 0 | I183: 0 | K183: 180 | L183: São Marino | M183: 32.7902 | N183: 1.898674036e-06 | O183: -32.7502
A184: 181 | B184: Fiji, Ilhas | C184: 8.1268 | D184: 1.149645238e-06 | F184: 181 | G184: Antárctica | H184: 0 | I184: 0 | K184: 181 | L184: Mongólia | M184: 30.8564 | N184: 1.786699853e-06 | O184: 30.834
A185: 182 | B185: Santa Lúcia | C185: 7.138 | D185: 1.00976617e-06 | F185: 182 | G185: Antilhas Holandesas | H185: 0 | I185: 0 | K185: 182 | L185: Botswana | M185: 30.1228 | N185: 1.744221696e-06 | O185: -29.934
A186: 183 | B186: Brunei Darussalam | C186: 6.98 | D186: 9.874149436e-07 | F186: 183 | G186: Bahamas | H186: 0 | I186: 0 | K186: 183 | L186: Papuásia-Nova Guiné | M186: 28.7226 | N186: 1.663144929e-06 | O186: -22.9514
A187: 184 | B187: Malavi | C187: 6.6034 | D187: 9.341398049e-07 | F187: 184 | G187: Bonaire, Santo Eustáquio e Saba | H187: 0 | I187: 0 | K187: 184 | L187: Afeganistão | M187: 23.3464 | N187: 1.351843036e-06 | O187: 14.5972
A188: 185 | B188: Guam | C188: 6.5774 | D188: 9.30461755e-07 | F188: 185 | G188: Bouvet, Ilha | H188: 0 | I188: 0 | K188: 185 | L188: Quirguizistão | M188: 22.1324 | N188: 1.281547939e-06 | O188: -12.8192
A189: 186 | B189: São Vicente e Granadinas | C189: 5.6654 | D189: 8.014470804e-07 | F189: 186 | G189: Brunei Darussalam | H189: 0 | I189: 0 | K189: 186 | L189: Turcas e Caicos, Ilhas | M189: 18.0666 | N189: 1.046123059e-06 | O189: 18.0666
A190: 187 | B190: Quirguizistão | C190: 4.6566 | D190: 6.58738743e-07 | F190: 187 | G190: Butão | H190: 0 | I190: 0 | K190: 187 | L190: Barbados | M190: 14.1698 | N190: 8.204839053e-07 | O190: 13.8942
A191: 188 | B191: Menores distantes dos Estados Unidos, lhas | C191: 4.5542 | D191: 6.442528848e-07 | F191: 188 | G191: Caimão, Ilhas | H191: 0 | I191: 0 | K191: 188 | L191: Virgens Britânicas, Ilhas | M191: 9.9342 | N191: 5.752269765e-07 | O191: 9.9202
A192: 189 | B192: Sudão do Sul | C192: 3.771 | D192: 5.334587037e-07 | F192: 189 | G192: Centro-Africana, República | H192: 0 | I192: 0 | K192: 189 | L192: Fiji, Ilhas | M192: 9.5086 | N192: 5.505831601e-07 | O192: 6.745
A193: 190 | B193: Bonaire, Santo Eustáquio e Saba | C193: 3.1276 | D193: 4.424411142e-07 | F193: 190 | G193: Ceuta | H193: 0 | I193: 0 | K193: 190 | L193: Santa Lúcia | M193: 7.142 | N193: 4.135482541e-07 | O193: 7.134
A194: 191 | B194: Marianas do Norte, Ilhas | C194: 2.9244 | D194: 4.136957394e-07 | F194: 191 | G194: Ceuta e Melilha | H194: 0 | I194: 0 | K194: 191 | L194: Brunei Darussalam | M194: 6.98 | N194: 4.041678541e-07 | O194: 6.98
A195: 192 | B195: Papuásia-Nova Guiné | C195: 2.8856 | D195: 4.082069572e-07 | F195: 192 | G195: Christmas, Ilha | H195: 0 | I195: 0 | K195: 192 | L195: Guam | M195: 6.5774 | N195: 3.808558228e-07 | O195: 6.5774
A196: 193 | B196: Belize | C196: 2.1806 | D196: 3.084752186e-07 | F196: 193 | G196: Cocos (Keeling), Ilhas | H196: 0 | I196: 0 | K196: 193 | L196: São Vicente e Granadinas | M196: 5.6798 | N196: 3.288814581e-07 | O196: 5.651
A197: 194 | B197: Melilha | C197: 1.3464 | D197: 1.904664011e-07 | F197: 194 | G197: Comores | H197: 0 | I197: 0 | K197: 194 | L197: Menores distantes dos Estados Unidos, lhas | M197: 4.5542 | N197: 2.637050489e-07 | O197: 4.5542
A198: 195 | B198: Granada | C198: 0.6866 | D198: 9.712881092e-08 | F198: 195 | G198: Cook, Ilhas | H198: 0 | I198: 0 | K198: 195 | L198: São Cristovão e Nevis | M198: 4.4456 | N198: 2.574167066e-07 | O198: -4.4456
A199: 196 | B199: Virgens dos Estados Unidos, Ilhas | C199: 0.295 | D199: 4.173172039e-08 | F199: 196 | G199: Coreia, República Popular Democrática da | H199: 0 | I199: 0 | K199: 196 | L199: Sudão do Sul | M199: 3.771 | N199: 2.183548679e-07 | O199: 3.771
A200: 197 | B200: Botswana | C200: 0.0944 | D200: 1.335415053e-08 | F200: 197 | G200: Domínica | H200: 0 | I200: 0 | K200: 197 | L200: Bonaire, Santo Eustáquio e Saba | M200: 3.1276 | N200: 1.810996247e-07 | O200: 3.1276
... 58 more rows

Sheet 2A
A1: Parceiros comerciais de Portugal - União Europeia vs. Países Terceiros (média 2018-2022 em milhões de euros) produtos agrícolas e agroalimentares, do mar e da floresta
A2: Exportações | F2: Importações | K2: Trocas comerciais (total e saldo)
A3: P | B3: Grupo de Países | C3: média quinquénio | D3: % do Total | F3: P | G3: Grupo de Países | H3: média quinquénio | I3: % do Total | K3: P | L3: Grupo de Países | M3: média quinquénio | N3: % do Total | O3: Saldo (exp-imp)
A4: 1 | B4: União Europeia | C4: 8689.586002 | D4: 0.6705040416 | F4: 1 | G4: União Europeia | H4: 11670.31785 | I4: 0.7804427503 | K4: 1 | L4: União Europeia | M4: 20359.90385 | N4: 0.7293995292 | O4: -2980.731848
A5: 2 | B5: Países Terceiros | C5: 4270.778311 | D5: 0.3295409146 | F5: 2 | G5: Países Terceiros | H5: 3283.140101 | I5: 0.2195572497 | K5: 2 | L5: Países Terceiros | M5: 7553.918411 | N5: 0.2706213434 | O5: 987.6382102
B6: Outros | C6: 0 | D6: -4.495620481e-05 | G6: Outros | H6: 0 | I6: 0 | L6: Outros | M6: 0 | N6: -2.087262559e-05 | O6: 0
B7: Total | C7: 12959.78169 | D7: 1 | G7: Total | H7: 14953.45795 | I7: 1 | L7: Total | M7: 27913.23964 | N7: 1 | O7: -1993.67626
F27: valores em milhões de euros
A28: Nota: Outros = Países não determinados, abastecimentos de bordo, etc.
A29: Fonte: GPP a partir de dados INE/Comércio Internacional (2022 provisórios) | M29: 2023-08-10

Sheet 3
A1: Principais produtos agrícolas e agroalimentares, do mar e da floresta transacionados entre Portugal e África do Sul em 2018-2022 (NC a 2 e 4 dígitos) em milhões de euros
AC4: P | AE4: Cód.NC | AF4: Descritivo | AG4: Média export quinquénio | AH4: % do total | AI4: % acumulada | AN4: P | AO4: NC | AP4: Exportações | AQ4: 2018 | AR4: 2019 | AS4: 2020 | AT4: 2021 | AU4: 2022 | AV4: média quinquénio
AC5: 1 | AD5: º | AE5: 15 | AF5: Gorduras e óleos animais ou vegetais | AG5: 9.2602948 | AH5: 0.2492326006 | AN5: 1º | AO5: 15 | AP5: Gorduras e óleos animais ou vegetais | AQ5: 7.173158 | AR5: 13.470886 | AS5: 9.777437 | AT5: 3.547101 | AU5: 12.332892 | AV5: 9.2602948
AC6: 2 | AD6: º | AE6: 45 | AF6: Cortiça e suas obras | AG6: 8.2435088 | AH6: 0.2218667095 | AN6: 2º | AO6: 45 | AP6: Cortiça e suas obras | AQ6: 7.708667 | AR6: 9.040743 | AS6: 6.720696 | AT6: 8.349448 | AU6: 9.39799 | AV6: 8.2435088
AC7: 3 | AD7: º | AE7: 48 | AF7: Papel e cartão | AG7: 5.2797014 | AH7: 0.1420984687 | AI7: 0.6131977789 | AN7: 3º | AO7: 48 | AP7: Papel e cartão | AQ7: 7.263163 | AR7: 3.699063 | AS7: 2.597519 | AT7: 4.827419 | AU7: 8.011343 | AV7: 5.2797014
AC8: 4 | AD8: º | AE8: 19a | AF8: Preparações à base de cereais (exc. NC 19022010) (a) | AG8: 2.87833 | AH8: 0.07746769265 | AO8: - | AP8: Outros | AQ8: 10.191996 | AR8: 12.123556 | AS8: 9.81828 | AT8: 20.863724 | AU8: 18.861073 | AV8: 14.3717258
AC9: 5 | AD9: º | AE9: 20 | AF9: Preparações de produtos vegetais | AG9: 2.4262534 | AH9: 0.06530045293 | AP9: Total | AQ9: 32.336984 | AR9: 38.334248 | AS9: 28.913932 | AT9: 37.587692 | AU9: 48.603298 | AV9: 37.1552308
AC10: 6 | AD10: º | AE10: 22 | AF10: Bebidas, líquidos alcoólicos e vinagres | AG10: 1.4819204 | AH10: 0.0398845699
AC11: 7 | AD11: º | AE11: 23a | AF11: Resíduos indústrias alimentares; alimentos p/ animais (exc. NC 230120) (a) | AG11: 1.2060694 | AH11: 0.03246028551
AC12: 8 | AD12: º | AE12: 18 | AF12: Cacau e suas preparações | AG12: 1.0734022 | AH12: 0.02888966579
AC13: 9 | AD13: º | AE13: 44 | AF13: Madeira e suas obras | AG13: 0.7776764 | AH13: 0.02093046883
AC14: 10 | AD14: º | AE14: 11 | AF14: Produtos da indústria de moagem e outros | AG14: 0.7683632 | AH14: 0.02067981233 | AI14: 0.8988107268
AE15: - | AF15: Outros | AG15: 3.7597108 | AH15: 0.1011892732
AE16: Total | AG16: 37.1552308 | AH16: 1
AC38: P | AE38: Cód.NC | AF38: Descritivo | AG38: Média import quinquénio | AH38: % do total | AI38: % acumulada | AN38: P | AO38: NC | AP38: Importações | AQ38: 2018 | AR38: 2019 | AS38: 2020 | AT38: 2021 | AU38: 2022 | AV38: média quinquénio
AC39: 1 | AD39: º | AE39: 08 | AF39: Frutas | AG39: 100.2313906 | AH39: 0.6896140561 | AN39: 1º | AO39: 08 | AP39: Frutas | AQ39: 94.498836 | AR39: 76.949688 | AS39: 124.943954 | AT39: 93.176527 | AU39: 111.587948 | AV39: 100.2313906
AC40: 2 | AD40: º | AE40: 03 | AF40: Peixes e crustáceos | AG40: 30.7659912 | AH40: 0.2116767996 | AN40: 2º | AO40: 03 | AP40: Peixes e crustáceos | AQ40: 34.81547 | AR40: 36.036059 | AS40: 31.003053 | AT40: 27.319638 | AU40: 24.655736 | AV40: 30.7659912
AC41: 3 | AD41: º | AE41: 17 | AF41: Açúcares e produtos de confeitaria | AG41: 6.777806 | AH41: 0.04663279896 | AI41: 0.9479236546 | AN41: 3º | AO41: 17 | AP41: Açúcares e produtos de confeitaria | AQ41: 18.169392 | AR41: 1.606796 | AS41: 0 | AT41: 0 | AU41: 14.112842 | AV41: 6.777806
AC42: 4 | AD42: º | AE42: 10 | AF42: Cereais | AG42: 3.5094898 | AH42: 0.02414606324 | AO42: - | AP42: Outros | AQ42: 7.042268 | AR42: 2.857577 | AS42: 3.287882 | AT42: 3.192095 | AU42: 21.465147 | AV42: 7.5689938
AC43: 5 | AD43: º | AE43: 44 | AF43: Madeira e suas obras | AG43: 0.5745754 | AH43: 0.003953205376 | AP43: Total | AQ43: 154.525966 | AR43: 117.45012 | AS43: 159.234889 | AT43: 123.68826 | AU43: 171.821673 | AV43: 145.3441816
AC44: 6 | AD44: º | AE44: 16p | AF44: Preparações e conservas de peixes ou crustáceos (NC 1604-05) (p) | AG44: 0.5156394 | AH44: 0.003547712707
AC45: 7 | AD45: º | AE45: 07 | AF45: Produtos hortícolas | AG45: 0.4529076 | AH45: 0.003116104099
AC46: 8 | AD46: º | AE46: 52 | AF46: Algodão (NC 5201-5203) | AG46: 0.4342692 | AH46: 0.002987867799
AC47: 9 | AD47: º | AE47: 20 | AF47: Preparações de produtos vegetais | AG47: 0.332257 | AH47: 0.002286001382
AC48: 10 | AD48: º | AE48: 12 | AF48: Sementes e frutos oleaginosos | AG48: 0.2861754 | AH48: 0.001968949819 | AI48: 0.989929559
AE49: - | AF49: Outros | AG49: 1.46368 | AH49: 0.01007044096
AE50: Total | AG50: 145.3441816 | AH50: 1
AC62: DESAGREGAÇÃO A 4 DÍGITOS | AN62: DESAGREGAÇÃO A 4 DÍGITOS
AC64: P | AE64: Cód.NC | AF64: Descritivo | AG64: Média export quinquénio | AH64: % do total | AI64: % acumulada | AN64: P | AO64: NC | AP64: Exportações | AQ64: 2018 | AR64: 2019 | AS64: 2020 | AT64: 2021 | AU64: 2022 | AV64: média quinquénio
AC65: 1 | AD65: º | AE65: 1512 | AF65: Óleos de girassol, cártamo ou algodão | AG65: 4.6240092 | AH65: 0.1244510961 | AN65: 1º | AO65: 1512 | AP65: Óleos de girassol, cártamo ou algodão | AQ65: 4.38171 | AR65: 10.800381 | AS65: 7.900997 | AT65: 0.036958 | AU65: 0 | AV65: 4.6240092
AC66: 2 | AD66: º | AE66: 4802 | AF66: Papel e cartão p/ escrita, etc. | AG66: 4.5774282 | AH66: 0.1231974099 | AN66: 2º | AO66: 4802 | AP66: Papel e cartão p/ escrita, etc. | AQ66: 5.730887 | AR66: 2.996842 | AS66: 2.103411 | AT66: 4.486659 | AU66: 7.569342 | AV66: 4.5774282
AC67: 3 | AD67: º | AE67: 4503 | AF67: Obras de cortiça natural | AG67: 4.5041466 | AH67: 0.1212251008 | AI67: 0.3688736069 | AN67: 3º | AO67: 4503 | AP67: Obras de cortiça natural | AQ67: 4.392491 | AR67: 5.952384 | AS67: 3.329981 | AT67: 4.612407 | AU67: 4.23347 | AV67: 4.5041466
AC68: 4 | AD68: º | AE68: 4504 | AF68: Cortiça aglomerada e suas obras | AG68: 3.7366184 | AH68: 0.1005677618 | AN68: - | AO68: - | AP68: Outros | AQ68: 17.831896 | AR68: 18.584641 | AS68: 15.579543 | AT68: 28.451668 | AU68: 36.800486 | AV68: 23.4496468
AC69: 5 | AD69: º | AE69: 2002 | AF69: Tomates preparados | AG69: 2.1730354 | AH69: 0.05848531561 | AP69: Total | AQ69: 32.336984 | AR69: 38.334248 | AS69: 28.913932 | AT69: 37.587692 | AU69: 48.603298 | AV69: 37.1552308
AC70: 6 | AD70: º | AE70: 1520 | AF70: Glicerol em bruto; águas e lixívias | AG70: 2.0606488 | AH70: 0.0554605302
AC71: 7 | AD71: º | AE71: 1507 | AF71: Óleo de soja e suas frações | AG71: 1.4427118 | AH71: 0.03882930529
AC72: 8 | AD72: º | AE72: 1902 | AF72: Massas alimentícias (exc. NC 1902 20 10) (a) | AG72: 1.1335254 | AH72: 0.03050782825
AC73: 9 | AD73: º | AE73: 1806 | AF73: Chocolate e outras preparações com cacau | AG73: 1.0718738 | AH73: 0.02884853026
AC74: 10 | AD74: º | AE74: 1905 | AF74: Produtos de padaria, pastelaria, etc. | AG74: 1.0440122 | AH74: 0.02809866007 | AI74: 0.7096715384
AE75: - | AF75: Outros | AG75: 10.787221 | AH75: 0.2903284616
AE76: Total | AG76: 37.1552308 | AH76: 1
AC89: DESAGREGAÇÃO A 4 DÍGITOS | AN89: DESAGREGAÇÃO A 4 DÍGITOS
G91: média 2018-2022 em milhões de euros | I91: Cód. NC | J91: Descritivo | K91: Export | L91: Import | M91: Saldo | AC91: P | AE91: Cód.NC | AF91: Descritivo | AG91: Média import quinquénio | AH91: % do total | AI91: % acumulada | AN91: P | AO91: NC | AP91: Importações | AQ91: 2018 | AR91: 2019 | AS91: 2020 | AT91: 2021 | AU91: 2022 | AV91: média quinquénio
I92: 1512 | J92: Óleos de girassol, cártamo ou algodão | K92: 4.6240092 | L92: 0 | M92: 4.6240092 | AC92: 1 | AD92: º | AE92: 0805 | AF92: Citrinos, frescos ou secos | AG92: 90.525045 | AH92: 0.6228322593 | AN92: 1º | AO92: 0805 | AP92: Citrinos, frescos ou secos | AQ92: 85.491943 | AR92: 69.189162 | AS92: 115.181955 | AT92: 82.951385 | AU92: 99.81078 | AV92: 90.525045
I93: 4802 | J93: Papel e cartão p/ escrita, etc. | K93: 4.5774282 | L93: 0.0001138 | M93: 4.5773144 | AC93: 2 | AD93: º | AE93: 0303 | AF93: Peixes congelados | AG93: 15.7367204 | AH93: 0.1082721044 | AN93: 2º | AO93: 0303 | AP93: Peixes congelados | AQ93: 15.776105 | AR93: 20.878 | AS93: 17.225007 | AT93: 14.266178 | AU93: 10.538312 | AV93: 15.7367204
I94: 4503 | J94: Obras de cortiça natural | K94: 4.5041466 | L94: 0.2239396 | M94: 4.280207 | AC94: 3 | AD94: º | AE94: 0304 | AF94: Filetes de peixes | AG94: 9.4519754 | AH94: 0.06503167376 | AI94: 0.7961360374 | AN94: 3º | AO94: 0304 | AP94: Filetes de peixes | AQ94: 11.253786 | AR94: 10.420952 | AS94: 7.308493 | AT94: 9.220139 | AU94: 9.056507 | AV94: 9.4519754
I95: 4504 | J95: Cortiça aglomerada e suas obras | K95: 3.7366184 | L95: 0.0116874 | M95: 3.724931 | AC95: 4 | AD95: º | AE95: 1701 | AF95: Açúcares (cana/beterraba); sacarose pura | AG95: 6.7776262 | AH95: 0.04663156189 | AN95: - | AO95: - | AP95: Outros | AQ95: 42.004132 | AR95: 16.962006 | AS95: 19.519434 | AT95: 17.250558 | AU95: 52.416074 | AV95: 29.6304408
I96: 2002 | J96: Tomates preparados | K96: 2.1730354 | L96: 0 | M96: 2.1730354 | AC96: 5 | AD96: º | AE96: 0307 | AF96: Moluscos | AG96: 5.3906104 | AH96: 0.03708858752 | AP96: Total | AQ96: 154.525966 | AR96: 117.45012 | AS96: 159.234889 | AT96: 123.68826 | AU96: 171.821673 | AV96: 145.3441816
I97: 1520 | J97: Glicerol em bruto; águas e lixívias | K97: 2.0606488 | L97: 0 | M97: 2.0606488 | AC97: 6 | AD97: º | AE97: 0808 | AF97: Maçãs, peras e marmelos, frescos | AG97: 5.1505186 | AH97: 0.03543670303
I98: 1507 | J98: Óleo de soja e suas frações | K98: 1.4427118 | L98: 0 | M98: 1.4427118 | AC98: 7 | AD98: º | AE98: 1005 | AF98: Milho | AG98: 3.5093356 | AH98: 0.02414500231
I99: 1806 | J99: Chocolate e outras preparações com cacau | K99: 1.0718738 | L99: 0.000253 | M99: 1.0716208 | AC99: 8 | AD99: º | AE99: 0804 | AF99: Tâmaras, figos, ananases, abacates, goiabas, mangas | AG99: 2.1447864 | AH99: 0.01475660309
I100: 1902 | J100: Massas alimentícias (exc. NC 1902 20 10) (a) | K100: 1.1335254 | L100: 0.0654438 | M100: 1.0680816 | AC100: 9 | AD100: º | AE100: 0806 | AF100: Uvas, frescas ou secas | AG100: 1.8339694 | AH100: 0.01261811364
I101: 1905 | J101: Produtos de padaria, pastelaria, etc. | K101: 1.0440122 | L101: 0.0005624 | M101: 1.0434498 | AC101: 10 | AD101: º | AE101: 4410 | AF101: Painéis de partículas de madeira, etc. | AG101: 0.5539858 | AH101: 0.00381154439 | AI101: 0.9706241533
I102: - | J102: Outros | K102: 10.574041 | L102: 3.9676084 | M102: 6.6064326 | AE102: - | AF102: Outros | AG102: 4.2696084 | AH102: 0.02937584672
I103: 4410 | J103: Painéis de partículas de madeira, etc. | K103: 0.005793 | L103: 0.5539858 | M103: -0.5481928 | AE103: Total | AG103: 145.3441816 | AH103: 1
I104: 0806 | J104: Uvas, frescas ou secas | K104: 0.0294418 | L104: 1.8339694 | M104: -1.8045276
I105: 0804 | J105: Tâmaras, figos, ananases, abacates, goiabas, mangas | K105: 0.0013364 | L105: 2.1447864 | M105: -2.14345
I106: 1005 | J106: Milho | K106: 0 | L106: 3.5093356 | M106: -3.5093356
I107: 0808 | J107: Maçãs, peras e marmelos, frescos | K107: 0 | L107: 5.1505186 | M107: -5.1505186
I108: 0307 | J108: Moluscos | K108: 0.0294674 | L108: 5.3906104 | M108: -5.361143
I109: 1701 | J109: Açúcares (cana/beterraba); sacarose pura | K109: 0 | L109: 6.7776262 | M109: -6.7776262
I110: 0304 | J110: Filetes de peixes | K110: 0.0040038 | L110: 9.4519754 | M110: -9.4479716
I111: 0303 | J111: Peixes congelados | K111: 0.1405642 | L111: 15.7367204 | M111: -15.5961562
I112: 0805 | J112: Citrinos, frescos ou secos | K112: 0.0025734 | L112: 90.525045 | M112: -90.5224716
I113: Total | K113: 37.1552308 | L113: 145.3441816 | M113: -108.1889508
A116: Fonte: GPP a partir de dados INE/Comércio Internacional (2022 definitivos) | Y116: 2023-08-22T16:46:54.380

Sheet 3A
A1: Principais produtos agrícolas e agroalimentares transacionados entre Portugal e África do Sul em 2018-2022 (NC a 2 e 4 dígitos) em milhões de euros
AC4: P | AE4: Cód.NC | AF4: Descritivo | AG4: Média export quinquénio | AH4: % do total | AI4: % acumulada | AN4: P | AO4: NC | AP4: Exportações | AQ4: 2018 | AR4: 2019 | AS4: 2020 | AT4: 2021 | AU4: 2022 | AV4: média quinquénio
AC5: 1 | AD5: º | AE5: 15 | AF5: Gorduras e óleos animais ou vegetais | AG5: 9.2602948 | AH5: 0.4240997732 | AN5: 1º | AO5: 15 | AP5: Gorduras e óleos animais ou vegetais | AQ5: 7.173158 | AR5: 13.470886 | AS5: 9.777437 | AT5: 3.547101 | AU5: 12.332892 | AV5: 9.2602948
AC6: 2 | AD6: º | AE6: 19a | AF6: Preparações à base de cereais (exc. NC 19022010) (a) | AG6: 2.87833 | AH6: 0.1318207602 | AN6: 2º | AO6: 19a | AP6: Preparações à base de cereais (exc. NC 19022010) (a) | AQ6: 1.497085 | AR6: 2.39955 | AS6: 2.687934 | AT6: 4.694096 | AU6: 3.112985 | AV6: 2.87833
AC7: 3 | AD7: º | AE7: 20 | AF7: Preparações de produtos vegetais | AG7: 2.4262534 | AH7: 0.1111167127 | AI7: 0.667037246 | AN7: 3º | AO7: 20 | AP7: Preparações de produtos vegetais | AQ7: 2.132186 | AR7: 1.867986 | AS7: 1.714816 | AT7: 3.066925 | AU7: 3.349354 | AV7: 2.4262534
AC8: 4 | AD8: º | AE8: 22 | AF8: Bebidas, líquidos alcoólicos e vinagres | AG8: 1.4819204 | AH8: 0.06786847709 | AO8: - | AP8: Outros | AQ8: 4.69845 | AR8: 6.080751 | AS8: 4.335108 | AT8: 11.235429 | AU8: 10.00177 | AV8: 7.2703016
AC9: 5 | AD9: º | AE9: 23a | AF9: Resíduos indústrias alimentares; alimentos p/ animais (exc. NC 230120) (a) | AG9: 1.2060694 | AH9: 0.05523514856 | AP9: Total | AQ9: 15.500879 | AR9: 23.819173 | AS9: 18.515295 | AT9: 22.543551 | AU9: 28.797001 | AV9: 21.8351798
AC10: 6 | AD10: º | AE10: 18 | AF10: Cacau e suas preparações | AG10: 1.0734022 | AH10: 0.04915930209
AC11: 7 | AD11: º | AE11: 11 | AF11: Produtos da indústria de moagem e outros | AG11: 0.7683632 | AH11: 0.03518923165
AC12: 8 | AD12: º | AE12: 21 | AF12: Preparações alimentícias diversas | AG12: 0.6998006 | AH12: 0.03204922544
AC13: 9 | AD13: º | AE13: 04 | AF13: Leite e laticínios; ovos; mel, etc. | AG13: 0.6682248 | AH13: 0.03060312789
AC14: 10 | AD14: º | AE14: 05a | AF14: Outros produtos de origem animal (exc. NC 0508, 051191) (a) | AG14: 0.4042994 | AH14: 0.01851596386 | AI14: 0.9556577226
AE15: - | AF15: Outros | AG15: 0.9682216 | AH15: 0.04434227741
AE16: Total | AG16: 21.8351798 | AH16: 1
AC38: P | AE38: Cód.NC | AF38: Descritivo | AG38: Média import quinquénio | AH38: % do total | AI38: % acumulada | AN38: P | AO38: NC | AP38: Importações | AQ38: 2018 | AR38: 2019 | AS38: 2020 | AT38: 2021 | AU38: 2022 | AV38: média quinquénio
AC39: 1 | AD39: º | AE39: 08 | AF39: Frutas | AG39: 100.2313906 | AH39: 0.8907751436 | AN39: 1º | AO39: 08 | AP39: Frutas | AQ39: 94.498836 | AR39: 76.949688 | AS39: 124.943954 | AT39: 93.176527 | AU39: 111.587948 | AV39: 100.2313906
AC40: 2 | AD40: º | AE40: 17 | AF40: Açúcares e produtos de confeitaria | AG40: 6.777806 | AH40: 0.06023563154 | AN40: 2º | AO40: 17 | AP40: Açúcares e produtos de confeitaria | AQ40: 18.169392 | AR40: 1.606796 | AS40: 0 | AT40: 0 | AU40: 14.112842 | AV40: 6.777806
AC41: 3 | AD41: º | AE41: 10 | AF41: Cereais | AG41: 3.5094898 | AH41: 0.03118949325 | AI41: 0.9822002684 | AN41: 3º | AO41: 10 | AP41: Cereais | AQ41: 0.011907 | AR41: 0.000486 | AS41: 0 | AT41: 0 | AU41: 17.535056 | AV41: 3.5094898
AC42: 4 | AD42: º | AE42: 07 | AF42: Produtos hortícolas | AG42: 0.4529076 | AH42: 0.00402507468 | AO42: - | AP42: Outros | AQ42: 2.53345 | AR42: 1.241803 | AS42: 2.095217 | AT42: 1.670125 | AU42: 2.473671 | AV42: 2.0028532
AC43: 5 | AD43: º | AE43: 52 | AF43: Algodão (NC 5201-5203) | AG43: 0.4342692 | AH43: 0.003859431728 | AP43: Total | AQ43: 115.213585 | AR43: 79.798773 | AS43: 127.039171 | AT43: 94.846652 | AU43: 145.709517 | AV43: 112.5215396
AC44: 6 | AD44: º | AE44: 20 | AF44: Preparações de produtos vegetais | AG44: 0.332257 | AH44: 0.002952830197
AC45: 7 | AD45: º | AE45: 12 | AF45: Sementes e frutos oleaginosos | AG45: 0.2861754 | AH45: 0.002543294386
AC46: 8 | AD46: º | AE46: 22 | AF46: Bebidas, líquidos alcoólicos e vinagres | AG46: 0.1271566 | AH46: 0.001130064523
AC47: 9 | AD47: º | AE47: 41 | AF47: Couro e peles em bruto (NC 4101 a 4103) | AG47: 0.0874812 | AH47: 0.0007774618114
AC48: 10 | AD48: º | AE48: 15 | AF48: Gorduras e óleos animais ou vegetais | AG48: 0.0704752 | AH48: 0.0006263263038 | AI48: 0.9981147521
AE49: - | AF49: Outros | AG49: 0.212131 | AH49: 0.001885247933
AE50: Total | AG50: 112.5215396 | AH50: 1
AC62: DESAGREGAÇÃO A 4 DÍGITOS | AN62: DESAGREGAÇÃO A 4 DÍGITOS
AC64: P | AE64: Cód.NC | AF64: Descritivo | AG64: Média export quinquénio | AH64: % do total | AI64: % acumulada | AN64: P | AO64: NC | AP64: Exportações | AQ64: 2018 | AR64: 2019 | AS64: 2020 | AT64: 2021 | AU64: 2022 | AV64: média quinquénio
AC65: 1 | AD65: º | AE65: 1512 | AF65: Óleos de girassol, cártamo ou algodão | AG65: 4.6240092 | AH65: 0.2117687714 | AN65: 1º | AO65: 1512 | AP65: Óleos de girassol, cártamo ou algodão | AQ65: 4.38171 | AR65: 10.800381 | AS65: 7.900997 | AT65: 0.036958 | AU65: 0 | AV65: 4.6240092
AC66: 2 | AD66: º | AE66: 2002 | AF66: Tomates preparados | AG66: 2.1730354 | AH66: 0.09951992243 | AN66: 2º | AO66: 2002 | AP66: Tomates preparados | AQ66: 1.814039 | AR66: 1.482395 | AS66: 1.464566 | AT66: 2.936217 | AU66: 3.16796 | AV66: 2.1730354
AC67: 3 | AD67: º | AE67: 1520 | AF67: Glicerol em bruto; águas e lixívias | AG67: 2.0606488 | AH67: 0.09437287986 | AI67: 0.4056615737 | AN67: 3º | AO67: 1520 | AP67: Glicerol em bruto; águas e lixívias | AQ67: 1.168308 | AR67: 0.788984 | AS67: 1.164795 | AT67: 2.738088 | AU67: 4.443069 | AV67: 2.0606488
AC68: 4 | AD68: º | AE68: 1507 | AF68: Óleo de soja e suas frações | AG68: 1.4427118 | AH68: 0.06607281521 | AN68: - | AO68: - | AP68: Outros | AQ68: 8.136822 | AR68: 10.747413 | AS68: 7.984937 | AT68: 16.832288 | AU68: 21.185972 | AV68: 12.9774864
AC69: 5 | AD69: º | AE69: 1902 | AF69: Massas alimentícias (exc. NC 1902 20 10) (a) | AG69: 1.1335254 | AH69: 0.05191280358 | AP69: Total | AQ69: 15.500879 | AR69: 23.819173 | AS69: 18.515295 | AT69: 22.543551 | AU69: 28.797001 | AV69: 21.8351798
AC70: 6 | AD70: º | AE70: 1806 | AF70: Chocolate e outras preparações com cacau | AG70: 1.0718738 | AH70: 0.04908930496
AC71: 7 | AD71: º | AE71: 1905 | AF71: Produtos de padaria, pastelaria, etc. | AG71: 1.0440122 | AH71: 0.04781330905
AC72: 8 | AD72: º | AE72: 2306 | AF72: Bagaços e outros resíduos sólidos de gorduras ou óleos vegetais | AG72: 0.9103554 | AH72: 0.04169214123
AC73: 9 | AD73: º | AE73: 2204 | AF73: Vinhos de uvas frescas | AG73: 0.7647472 | AH73: 0.03502362733
AC74: 10 | AD74: º | AE74: 1107 | AF74: Malte, mesmo torrado | AG74: 0.762544 | AH74: 0.03492272594 | AI74: 0.732188301
AE75: - | AF75: Outros | AG75: 5.8477166 | AH75: 0.267811699
AE76: Total | AG76: 21.8351798 | AH76: 1
AC89: DESAGREGAÇÃO A 4 DÍGITOS | AN89: DESAGREGAÇÃO A 4 DÍGITOS
G91: média 2018-2022 em milhões de euros | I91: Cód. NC | J91: Descritivo | K91: Export | L91: Import | M91: Saldo | AC91: P | AE91: Cód.NC | AF91: Descritivo | AG91: Média import quinquénio | AH91: % do total | AI91: % acumulada | AN91: P | AO91: NC | AP91: Importações | AQ91: 2018 | AR91: 2019 | AS91: 2020 | AT91: 2021 | AU91: 2022 | AV91: média quinquénio
I92: 1512 | J92: Óleos de girassol, cártamo ou algodão | K92: 4.6240092 | L92: 0 | M92: 4.6240092 | AC92: 1 | AD92: º | AE92: 0805 | AF92: Citrinos, frescos ou secos | AG92: 90.525045 | AH92: 0.8045130321 | AN92: 1º | AO92: 0805 | AP92: Citrinos, frescos ou secos | AQ92: 85.491943 | AR92: 69.189162 | AS92: 115.181955 | AT92: 82.951385 | AU92: 99.81078 | AV92: 90.525045
I93: 2002 | J93: Tomates preparados | K93: 2.1730354 | L93: 0 | M93: 2.1730354 | AC93: 2 | AD93: º | AE93: 1701 | AF93: Açúcares (cana/beterraba); sacarose pura | AG93: 6.7776262 | AH93: 0.06023403363 | AN93: 2º | AO93: 1701 | AP93: Açúcares (cana/beterraba); sacarose pura | AQ93: 18.168585 | AR93: 1.606796 | AS93: 0 | AT93: 0 | AU93: 14.11275 | AV93: 6.7776262
I94: 1520 | J94: Glicerol em bruto; águas e lixívias | K94: 2.0606488 | L94: 0 | M94: 2.0606488 | AC94: 3 | AD94: º | AE94: 0808 | AF94: Maçãs, peras e marmelos, frescos | AG94: 5.1505186 | AH94: 0.0457736236 | AI94: 0.9105206893 | AN94: 3º | AO94: 0808 | AP94: Maçãs, peras e marmelos, frescos | AQ94: 5.076 | AR94: 5.129564 | AS94: 4.862808 | AT94: 5.444643 | AU94: 5.239578 | AV94: 5.1505186
I95: 1507 | J95: Óleo de soja e suas frações | K95: 1.4427118 | L95: 0 | M95: 1.4427118 | AC95: 4 | AD95: º | AE95: 1005 | AF95: Milho | AG95: 3.5093356 | AH95: 0.03118812285 | AN95: - | AO95: - | AP95: Outros | AQ95: 6.477057 | AR95: 3.873251 | AS95: 6.994408 | AT95: 6.450624 | AU95: 26.546409 | AV95: 10.0683498
I96: 1806 | J96: Chocolate e outras preparações com cacau | K96: 1.0718738 | L96: 0.000253 | M96: 1.0716208 | AC96: 5 | AD96: º | AE96: 0804 | AF96: Tâmaras, figos, ananases, abacates, goiabas, mangas | AG96: 2.1447864 | AH96: 0.0190611185 | AP96: Total | AQ96: 115.213585 | AR96: 79.798773 | AS96: 127.039171 | AT96: 94.846652 | AU96: 145.709517 | AV96: 112.5215396
I97: 1902 | J97: Massas alimentícias (exc. NC 1902 20 10) (a) | K97: 1.1335254 | L97: 0.0654438 | M97: 1.0680816 | AC97: 6 | AD97: º | AE97: 0806 | AF97: Uvas, frescas ou secas | AG97: 1.8339694 | AH97: 0.0162988296
I98: 1905 | J98: Produtos de padaria, pastelaria, etc. | K98: 1.0440122 | L98: 0.0005624 | M98: 1.0434498 | AC98: 7 | AD98: º | AE98: 5201 | AF98: Algodão não cardado nem penteado | AG98: 0.4342692 | AH98: 0.003859431728
I99: 2306 | J99: Bagaços e outros resíduos sólidos de gorduras ou óleos vegetais | K99: 0.9103554 | L99: 0 | M99: 0.9103554 | AC99: 8 | AD99: º | AE99: 0809 | AF99: Damascos, cerejas, pêssegos, etc., frescos | AG99: 0.3200598 | AH99: 0.002844431396
I100: 1107 | J100: Malte, mesmo torrado | K100: 0.762544 | L100: 0 | M100: 0.762544 | AC100: 9 | AD100: º | AE100: 2009 | AF100: Sumos de frutas | AG100: 0.2691568 | AH100: 0.0023920469
I101: 1509 | J101: Azeite (processos mecânicos ou físicos) | K101: 0.7355324 | L101: 2.36e-05 | M101: 0.7355088 | AC101: 10 | AD101: º | AE101: 0713 | AF101: Legumes de vagem, secos, em grão | AG101: 0.2361552 | AH101: 0.002098755499 | AI101: 0.9882634258
I102: - | J102: Outros | K102: 5.8296394 | L102: 1.2543346 | M102: 4.5753048 | AE102: - | AF102: Outros | AG102: 1.3206174 | AH102: 0.01173657421
I103: 0713 | J103: Legumes de vagem, secos, em grão | K103: 0.0044674 | L103: 0.2361552 | M103: -0.2316878 | AE103: Total | AG103: 112.5215396 | AH103: 1
I104: 2009 | J104: Sumos de frutas | K104: 0.006145 | L104: 0.2691568 | M104: -0.2630118
I105: 0809 | J105: Damascos, cerejas, pêssegos, etc., frescos | K105: 0.003328 | L105: 0.3200598 | M105: -0.3167318
I106: 5201 | J106: Algodão não cardado nem penteado | K106: 0 | L106: 0.4342692 | M106: -0.4342692
I107: 0806 | J107: Uvas, frescas ou secas | K107: 0.0294418 | L107: 1.8339694 | M107: -1.8045276
I108: 0804 | J108: Tâmaras, figos, ananases, abacates, goiabas, mangas | K108: 0.0013364 | L108: 2.1447864 | M108: -2.14345
I109: 1005 | J109: Milho | K109: 0 | L109: 3.5093356 | M109: -3.5093356
I110: 0808 | J110: Maçãs, peras e marmelos, frescos | K110: 0 | L110: 5.1505186 | M110: -5.1505186
I111: 1701 | J111: Açúcares (cana/beterraba); sacarose pura | K111: 0 | L111: 6.7776262 | M111: -6.7776262
I112: 0805 | J112: Citrinos, frescos ou secos | K112: 0.0025734 | L112: 90.525045 | M112: -90.5224716
I113: Total | K113: 21.8351798 | L113: 112.5215396 | M113: -90.6863598
A116: Fonte: GPP a partir de dados INE/Comércio Internacional (2022 definitivos) | Y116: 2023-08-22T16:46:54.380

Sheet 4A
A1: Evolução da balança comercial Portugal-África do Sul 2018-2022 por produto em euros (NC 2 dígitos)
A3: =+aux!A31 -> Evolução da balança comercial Portugal-África do Sul para Gorduras e óleos animais ou vegetais
A5: Selecione o produto:
Q7: Para obter uma maior desagregação deste produto, clique no botão respetivo:
A20: =+aux!A43 -> Evolução da balança comercial Portugal-África do Sul para Frutas
A22: Selecione o produto:
A38: Fonte: GPP a partir de dados INE/Comércio Internacional (2022 definitivos) | N38: 2023-08-22T16:46:54.380

Sheet 5.2
A1: Trocas comerciais Portugal-África do Sul 2018-2022 em milhares de euros (NC 2 dígitos) | C1: Produtos agrícolas e agroalimentares, do mar e da floresta
A2: Cód. NC | B2: Descritivo | C2: Importações | K2: Exportações | S2: Saldo quinquénio (exp-imp) | T2: Evolução das importações | U2: =+"Variação das Importações " & INDEX(K3:N3,1,aux!AL1) & "-"& '5.2'!O3 &"" -> Variação das Importações 2018-2022 | Z2: Evolução das exportações | AA2: ="Variação das Exportações " & INDEX(K3:N3,1,aux!AL1) & "-"& '5.2'!O3 &"" -> Variação das Exportações 2018-2022
C3: 2018 | D3: 2019 | E3: 2020 | F3: 2021 | G3: 2022 | H3: média quinquénio | I3: % Subtot | J3: % Total | K3: 2018 | L3: 2019 | M3: 2020 | N3: 2021 | O3: 2022 | P3: média quinquénio | Q3: % Subtot | R3: % Total | U3: variação total em valor | V3: % no subtotal de variação | W3: % no total de variação | X3: taxa de variação média anual | Y3: taxa de variação total | AA3: variação total em valor | AB3: % no subtotal de variação | AC3: % no total de variação | AD3: taxa de variação média anual | AE3: taxa de variação total
A4: 01 | B4: Animais vivos | C4: 2.534 | D4: 1.78 | E4: 13.218 | F4: 27.295 | G4: 43.506 | H4: 17.6666 | I4: 0.0001570063835 | J4: 0.0001215501013 | K4: 2.29 | L4: 1.41 | M4: 1.32 | N4: 2.325 | O4: 2.13 | P4: 1.895 | Q4: 8.67865535e-05 | R4: 5.100224004e-05 | S4: -15.7716 | U4: =G4-INDEX($C4:$G4,1,aux!$AL$1) -> 40.972 | V4: =IF($U$37<>0,U4/$U$37, "n.d.") -> 0.001343523457 | W4: =IF($U$53<>0,U4/$U$53, "n.d.") -> 0.002368911546 | X4: =+IF(INDEX($C4:$G4,1,aux!$AL$1)>0,(G4/INDEX($C4:$G4,1,aux!$AL$1))^(1/($G$3-INDEX($C$3:$G$3,1,aux!$AL$1)))-1,"n.d.") -> 1.0355681 | Y4: =IF(INDEX($C4:$G4,1,aux!$AL$1)>0,(G4-INDEX($C4:$G4,1,aux!$AL$1))/INDEX($C4:$G4,1,aux!$AL$1),"n.d.") -> 16.16890292 | AA4: =O4-INDEX($K4:$O4,1,aux!$AL$1) -> -0.16 | AB4: =IF($AA$37<>0,AA4/$AA$37, "n.d.") -> -1.203358393e-05 | AC4: =IF($AA$53<>0,AA4/$AA$53, "n.d.") -> -9.836278828e-06 | AD4: =+IF(INDEX($K4:$O4,1,aux!$AL$1)>0,(O4/INDEX($K4:$O4,1,aux!$AL$1))^(1/($O$3-INDEX($K$3:$O$3,1,aux!$AL$1)))-1,"n.d.") -> -0.01794450447 | AE4: =IF(INDEX($K4:$O4,1,aux!$AL$1)>0,(O4-INDEX($K4:$O4,1,aux!$AL$1))/INDEX($K4:$O4,1,aux!$AL$1),"n.d.") -> -0.06986899563
A5: 02 | B5: Carnes e miudezas | C5: 0 | D5: 0 | E5: 0 | F5: 0 | G5: 0 | H5: 0 | I5: 0 | J5: 0 | K5: 0.363 | L5: 2.934 | M5: 1.479 | N5: 0 | O5: 0 | P5: 0.9552 | Q5: 4.374591868e-05 | R5: 2.570835867e-05 | S5: 0.9552 | U5: =G5-INDEX($C5:$G5,1,aux!$AL$1) -> 0 | V5: 0 | W5: 0 | X5: =+IF(INDEX($C5:$G5,1,aux!$AL$1)>0,(G5/INDEX($C5:$G5,1,aux!$AL$1))^(1/($G$3-INDEX($C$3:$G$3,1,aux!$AL$1)))-1,"n.d.") -> n.d. | Y5: =IF(INDEX($C5:$G5,1,aux!$AL$1)>0,(G5-INDEX($C5:$G5,1,aux!$AL$1))/INDEX($C5:$G5,1,aux!$AL$1),"n.d.") -> n.d. | AA5: =O5-INDEX($K5:$O5,1,aux!$AL$1) -> -0.363 | AB5: -2.730119354e-05 | AC5: -2.231605759e-05 | AD5: =+IF(INDEX($K5:$O5,1,aux!$AL$1)>0,(O5/INDEX($K5:$O5,1,aux!$AL$1))^(1/($O$3-INDEX($K$3:$O$3,1,aux!$AL$1)))-1,"n.d.") -> -1 | AE5: =IF(INDEX($K5:$O5,1,aux!$AL$1)>0,(O5-INDEX($K5:$O5,1,aux!$AL$1))/INDEX($K5:$O5,1,aux!$AL$1),"n.d.") -> -1
A6: 04 | B6: Leite e laticínios; ovos; mel, etc. | C6: 0 | D6: 0 | E6: 0 | F6: 0 | G6: 0.015 | H6: 0.003 | I6: 2.666156196e-08 | J6: 2.064066113e-08 | K6: 85.285 | L6: 1159.525 | M6: 274.314 | N6: 643.058 | O6: 1178.942 | P6: 668.2248 | Q6: 0.03060312789 | R6: 0.01798467633 | S6: 668.2218 | U6: =G6-INDEX($C6:$G6,1,aux!$AL$1) -> 0.015 | V6: 4.918688827e-07 | W6: 8.672672357e-07 | X6: =+IF(INDEX($C6:$G6,1,aux!$AL$1)>0,(G6/INDEX($C6:$G6,1,aux!$AL$1))^(1/($G$3-INDEX($C$3:$G$3,1,aux!$AL$1)))-1,"n.d.") -> n.d. | Y6: =IF(INDEX($C6:$G6,1,aux!$AL$1)>0,(G6-INDEX($C6:$G6,1,aux!$AL$1))/INDEX($C6:$G6,1,aux!$AL$1),"n.d.") -> n.d. | AA6: =O6-INDEX($K6:$O6,1,aux!$AL$1) -> 1093.657 | AB6: 0.08225383311 | AC6: 0.06723446996 | AD6: =+IF(INDEX($K6:$O6,1,aux!$AL$1)>0,(O6/INDEX($K6:$O6,1,aux!$AL$1))^(1/($O$3-INDEX($K$3:$O$3,1,aux!$AL$1)))-1,"n.d.") -> 0.9282127334 | AE6: =IF(INDEX($K6:$O6,1,aux!$AL$1)>0,(O6-INDEX($K6:$O6,1,aux!$AL$1))/INDEX($K6:$O6,1,aux!$AL$1),"n.d.") -> 12.82355631
A7: 05a | B7: Outros produtos de origem animal (exc. NC 0508, 051191) (a) | C7: 2.98 | D7: 0.332 | E7: 0 | F7: 0.034 | G7: 0.023 | H7: 0.6738 | I7: 5.988186816e-06 | J7: 4.63589249e-06 | K7: 0 | L7: 701.681 | M7: 636.625 | N7: 389.484 | O7: 293.707 | P7: 404.2994 | Q7: 0.01851596386 | R7: 0.01088135886 | S7: 403.6256 | U7: =G7-INDEX($C7:$G7,1,aux!$AL$1) -> -2.957 | V7: -9.696375241e-05 | W7: -0.0001709672811 | X7: =+IF(INDEX($C7:$G7,1,aux!$AL$1)>0,(G7/INDEX($C7:$G7,1,aux!$AL$1))^(1/($G$3-INDEX($C$3:$G$3,1,aux!$AL$1)))-1,"n.d.") -> -0.7036002091 | Y7: =IF(INDEX($C7:$G7,1,aux!$AL$1)>0,(G7-INDEX($C7:$G7,1,aux!$AL$1))/INDEX($C7:$G7,1,aux!$AL$1),"n.d.") -> -0.9922818792 | AA7: =O7-INDEX($K7:$O7,1,aux!$AL$1) -> 293.707 | AB7: 0.02208967397 | AC7: 0.01805614966 | AD7: =+IF(INDEX($K7:$O7,1,aux!$AL$1)>0,(O7/INDEX($K7:$O7,1,aux!$AL$1))^(1/($O$3-INDEX($K$3:$O$3,1,aux!$AL$1)))-1,"n.d.") -> n.d. | AE7: =IF(INDEX($K7:$O7,1,aux!$AL$1)>0,(O7-INDEX($K7:$O7,1,aux!$AL$1))/INDEX($K7:$O7,1,aux!$AL$1),"n.d.") -> n.d.
A8: 06 | B8: Plantas vivas e produtos de floricultura | C8: 5.918 | D8: 2.902 | E8: 6.962 | F8: 70.224 | G8: 162.872 | H8: 49.7756 | I8: 0.0004423650812 | J8: 0.0003424670974 | K8: 0.077 | L8: 0 | M8: 1.177 | N8: 2.528 | O8: 6.789 | P8: 2.1142 | Q8: 9.682539917e-05 | R8: 5.690181314e-05 | S8: -47.6614 | U8: =G8-INDEX($C8:$G8,1,aux!$AL$1) -> 156.954 | V8: 0.005146719241 | W8: 0.009074737448 | X8: =+IF(INDEX($C8:$G8,1,aux!$AL$1)>0,(G8/INDEX($C8:$G8,1,aux!$AL$1))^(1/($G$3-INDEX($C$3:$G$3,1,aux!$AL$1)))-1,"n.d.") -> 1.29043445 | Y8: =IF(INDEX($C8:$G8,1,aux!$AL$1)>0,(G8-INDEX($C8:$G8,1,aux!$AL$1))/INDEX($C8:$G8,1,aux!$AL$1),"n.d.") -> 26.52145995 | AA8: =O8-INDEX($K8:$O8,1,aux!$AL$1) -> 6.712 | AB8: 0.0005048088458 | AC8: 0.0004126318968 | AD8: =+IF(INDEX($K8:$O8,1,aux!$AL$1)>0,(O8/INDEX($K8:$O8,1,aux!$AL$1))^(1/($O$3-INDEX($K$3:$O$3,1,aux!$AL$1)))-1,"n.d.") -> 2.064282288 | AE8: =IF(INDEX($K8:$O8,1,aux!$AL$1)>0,(O8-INDEX($K8:$O8,1,aux!$AL$1))/INDEX($K8:$O8,1,aux!$AL$1),"n.d.") -> 87.16883117
A9: 07 | B9: Produtos hortícolas | C9: 540.917 | D9: 382.366 | E9: 823.393 | F9: 233.445 | G9: 284.417 | H9: 452.9076 | I9: 0.00402507468 | J9: 0.003116104099 | K9: 12.024 | L9: 43.819 | M9: 18.052 | N9: 13.838 | O9: 13.722 | P9: 20.291 | Q9: 0.0009292801885 | R9: 0.000546114223 | S9: -432.6166 | U9: =G9-INDEX($C9:$G9,1,aux!$AL$1) -> -256.5 | V9: -0.008410957894 | W9: -0.01483026973 | X9: =+IF(INDEX($C9:$G9,1,aux!$AL$1)>0,(G9/INDEX($C9:$G9,1,aux!$AL$1))^(1/($G$3-INDEX($C$3:$G$3,1,aux!$AL$1)))-1,"n.d.") -> -0.1484576924 | Y9: =IF(INDEX($C9:$G9,1,aux!$AL$1)>0,(G9-INDEX($C9:$G9,1,aux!$AL$1))/INDEX($C9:$G9,1,aux!$AL$1),"n.d.") -> -0.4741947471 | AA9: =O9-INDEX($K9:$O9,1,aux!$AL$1) -> 1.698 | AB9: 0.0001277064094 | AC9: 0.0001043875091 | AD9: =+IF(INDEX($K9:$O9,1,aux!$AL$1)>0,(O9/INDEX($K9:$O9,1,aux!$AL$1))^(1/($O$3-INDEX($K$3:$O$3,1,aux!$AL$1)))-1,"n.d.") -> 0.03357527546 | AE9: =IF(INDEX($K9:$O9,1,aux!$AL$1)>0,(O9-INDEX($K9:$O9,1,aux!$AL$1))/INDEX($K9:$O9,1,aux!$AL$1),"n.d.") -> 0.1412175649
A10: 08 | B10: Frutas | C10: 94498.836 | D10: 76949.688 | E10: 124943.954 | F10: 93176.527 | G10: 111587.948 | H10: 100231.3906 | I10: 0.8907751436 | J10: 0.6896140561 | K10: 85.868 | L10: 11.478 | M10: 215.357 | N10: 61.478 | O10: 22.096 | P10: 79.2554 | Q10: 0.003629711352 | R10: 0.00213308862 | S10: -100152.1352 | U10: =G10-INDEX($C10:$G10,1,aux!$AL$1) -> 17089.112 | V10: 0.5603734951 | W10: 0.9880551284 | X10: =+IF(INDEX($C10:$G10,1,aux!$AL$1)>0,(G10/INDEX($C10:$G10,1,aux!$AL$1))^(1/($G$3-INDEX($C$3:$G$3,1,aux!$AL$1)))-1,"n.d.") -> 0.04243193624 | Y10: =IF(INDEX($C10:$G10,1,aux!$AL$1)>0,(G10-INDEX($C10:$G10,1,aux!$AL$1))/INDEX($C10:$G10,1,aux!$AL$1),"n.d.") -> 0.1808393915 | AA10: =O10-INDEX($K10:$O10,1,aux!$AL$1) -> -63.772 | AB10: -0.004796285714 | AC10: -0.003920494834 | AD10: =+IF(INDEX($K10:$O10,1,aux!$AL$1)>0,(O10/INDEX($K10:$O10,1,aux!$AL$1))^(1/($O$3-INDEX($K$3:$O$3,1,aux!$AL$1)))-1,"n.d.") -> -0.2877694823 | AE10: =IF(INDEX($K10:$O10,1,aux!$AL$1)>0,(O10-INDEX($K10:$O10,1,aux!$AL$1))/INDEX($K10:$O10,1,aux!$AL$1),"n.d.") -> -0.7426748032
A11: 09 | B11: Café, chá, mate e especiarias | C11: 45.134 | D11: 12.932 | E11: 13.6 | F11: 12.564 | G11: 4.072 | H11: 17.6604 | I11: 0.000156951283 | J11: 0.000121507444 | K11: 212.393 | L11: 313.584 | M11: 193.126 | N11: 173.406 | O11: 258.146 | P11: 230.131 | Q11: 0.01053945981 | R11: 0.006193771241 | S11: 212.4706 | U11: =G11-INDEX($C11:$G11,1,aux!$AL$1) -> -41.062 | V11: -0.001346474671 | W11: -0.002374115149 | X11: =+IF(INDEX($C11:$G11,1,aux!$AL$1)>0,(G11/INDEX($C11:$G11,1,aux!$AL$1))^(1/($G$3-INDEX($C$3:$G$3,1,aux!$AL$1)))-1,"n.d.") -> -0.4519426756 | Y11: =IF(INDEX($C11:$G11,1,aux!$AL$1)>0,(G11-INDEX($C11:$G11,1,aux!$AL$1))/INDEX($C11:$G11,1,aux!$AL$1),"n.d.") -> -0.9097797669 | AA11: =O11-INDEX($K11:$O11,1,aux!$AL$1) -> 45.753 | AB11: 0.003441078534 | AC11: 0.002812745407 | AD11: =+IF(INDEX($K11:$O11,1,aux!$AL$1)>0,(O11/INDEX($K11:$O11,1,aux!$AL$1))^(1/($O$3-INDEX($K$3:$O$3,1,aux!$AL$1)))-1,"n.d.") -> 0.04998066115 | AE11: =IF(INDEX($K11:$O11,1,aux!$AL$1)>0,(O11-INDEX($K11:$O11,1,aux!$AL$1))/INDEX($K11:$O11,1,aux!$AL$1),"n.d.") -> 0.2154167039
A12: 10 | B12: Cereais | C12: 11.907 | D12: 0.486 | E12: 0 | F12: 0 | G12: 17535.056 | H12: 3509.4898 | I12: 0.03118949325 | J12: 0.02414606324 | K12: 87.819 | L12: 140.728 | M12: 80.81 | N12: 139.989 | O12: 162.008 | P12: 122.2708 | Q12: 0.005599715739 | R12: 0.003290809864 | S12: -3387.219 | U12: =G12-INDEX($C12:$G12,1,aux!$AL$1) -> 17523.149 | V12: 0.5746061147 | W12: 1.0131502 | X12: =+IF(INDEX($C12:$G12,1,aux!$AL$1)>0,(G12/INDEX($C12:$G12,1,aux!$AL$1))^(1/($G$3-INDEX($C$3:$G$3,1,aux!$AL$1)))-1,"n.d.") -> 5.194784469 | Y12: =IF(INDEX($C12:$G12,1,aux!$AL$1)>0,(G12-INDEX($C12:$G12,1,aux!$AL$1))/INDEX($C12:$G12,1,aux!$AL$1),"n.d.") -> 1471.667842 | AA12: =O12-INDEX($K12:$O12,1,aux!$AL$1) -> 74.189 | AB12: 0.005579747238 | AC12: 0.004560898062 | AD12: =+IF(INDEX($K12:$O12,1,aux!$AL$1)>0,(O12/INDEX($K12:$O12,1,aux!$AL$1))^(1/($O$3-INDEX($K$3:$O$3,1,aux!$AL$1)))-1,"n.d.") -> 0.1654321467 | AE12: =IF(INDEX($K12:$O12,1,aux!$AL$1)>0,(O12-INDEX($K12:$O12,1,aux!$AL$1))/INDEX($K12:$O12,1,aux!$AL$1),"n.d.") -> 0.8447944067
A13: 11 | B13: Produtos da indústria de moagem e outros | C13: 1.405 | D13: 2.239 | E13: 0 | F13: 0.001 | G13: 0.031 | H13: 0.7352 | I13: 6.533860118e-06 | J13: 5.058338022e-06 | K13: 1.476 | L13: 6.086 | M13: 8.184 | N13: 763.704 | O13: 3062.366 | P13: 768.3632 | Q13: 0.03518923165 | R13: 0.02067981233 | S13: 767.628 | U13: =G13-INDEX($C13:$G13,1,aux!$AL$1) -> -1.374 | V13: -4.505518966e-05 | W13: -7.944167879e-05 | X13: =+IF(INDEX($C13:$G13,1,aux!$AL$1)>0,(G13/INDEX($C13:$G13,1,aux!$AL$1))^(1/($G$3-INDEX($C$3:$G$3,1,aux!$AL$1)))-1,"n.d.") -> -0.6145914522 | Y13: =IF(INDEX($C13:$G13,1,aux!$AL$1)>0,(G13-INDEX($C13:$G13,1,aux!$AL$1))/INDEX($C13:$G13,1,aux!$AL$1),"n.d.") -> -0.9779359431 | AA13: =O13-INDEX($K13:$O13,1,aux!$AL$1) -> 3060.89 | AB13: 0.2302092294 | AC13: 0.1881735469 | AD13: =+IF(INDEX($K13:$O13,1,aux!$AL$1)>0,(O13/INDEX($K13:$O13,1,aux!$AL$1))^(1/($O$3-INDEX($K$3:$O$3,1,aux!$AL$1)))-1,"n.d.") -> 5.7490506 | AE13: =IF(INDEX($K13:$O13,1,aux!$AL$1)>0,(O13-INDEX($K13:$O13,1,aux!$AL$1))/INDEX($K13:$O13,1,aux!$AL$1),"n.d.") -> 2073.773713
A14: 12 | B14: Sementes e frutos oleaginosos | C14: 64.816 | D14: 111.716 | E14: 70.128 | F14: 55.32 | G14: 1128.897 | H14: 286.1754 | I14: 0.002543294386 | J14: 0.001968949819 | K14: 0 | L14: 3.224 | M14: 0.096 | N14: 35.55 | O14: 0.151 | P14: 7.8042 | Q14: 0.0003574140479 | R14: 0.0002100431038 | S14: -278.3712 | U14: =G14-INDEX($C14:$G14,1,aux!$AL$1) -> 1064.081 | V14: 0.03489255551 | W14: 0.06152283916 | X14: =+IF(INDEX($C14:$G14,1,aux!$AL$1)>0,(G14/INDEX($C14:$G14,1,aux!$AL$1))^(1/($G$3-INDEX($C$3:$G$3,1,aux!$AL$1)))-1,"n.d.") -> 1.042880784 | Y14: =IF(INDEX($C14:$G14,1,aux!$AL$1)>0,(G14-INDEX($C14:$G14,1,aux!$AL$1))/INDEX($C14:$G14,1,aux!$AL$1),"n.d.") -> 16.41694952 | AA14: =O14-INDEX($K14:$O14,1,aux!$AL$1) -> 0.151 | AB14: 1.135669483e-05 | AC14: 9.282988143e-06 | AD14: =+IF(INDEX($K14:$O14,1,aux!$AL$1)>0,(O14/INDEX($K14:$O14,1,aux!$AL$1))^(1/($O$3-INDEX($K$3:$O$3,1,aux!$AL$1)))-1,"n.d.") -> n.d. | AE14: =IF(INDEX($K14:$O14,1,aux!$AL$1)>0,(O14-INDEX($K14:$O14,1,aux!$AL$1))/INDEX($K14:$O14,1,aux!$AL$1),"n.d.") -> n.d.
A15: 13a | B15: Sucos e extratos vegetais (exc. NC 1301) (a) | C15: 0 | D15: 0 | E15: 0 | F15: 0 | G15: 0 | H15: 0 | I15: 0 | J15: 0 | K15: 4.905 | L15: 0.951 | M15: 0 | N15: 0 | O15: 0.901 | P15: 1.3514 | Q15: 6.189094903e-05 | R15: 3.637172939e-05 | S15: 1.3514 | U15: =G15-INDEX($C15:$G15,1,aux!$AL$1) -> 0 | V15: 0 | W15: 0 | X15: =+IF(INDEX($C15:$G15,1,aux!$AL$1)>0,(G15/INDEX($C15:$G15,1,aux!$AL$1))^(1/($G$3-INDEX($C$3:$G$3,1,aux!$AL$1)))-1,"n.d.") -> n.d. | Y15: =IF(INDEX($C15:$G15,1,aux!$AL$1)>0,(G15-INDEX($C15:$G15,1,aux!$AL$1))/INDEX($C15:$G15,1,aux!$AL$1),"n.d.") -> n.d. | AA15: =O15-INDEX($K15:$O15,1,aux!$AL$1) -> -4.004 | AB15: -0.0003011404378 | AC15: -0.0002461528777 | AD15: =+IF(INDEX($K15:$O15,1,aux!$AL$1)>0,(O15/INDEX($K15:$O15,1,aux!$AL$1))^(1/($O$3-INDEX($K$3:$O$3,1,aux!$AL$1)))-1,"n.d.") -> -0.3453315002 | AE15: =IF(INDEX($K15:$O15,1,aux!$AL$1)>0,(O15-INDEX($K15:$O15,1,aux!$AL$1))/INDEX($K15:$O15,1,aux!$AL$1),"n.d.") -> -0.8163098879
A16: 14 | B16: Matérias para entrançar e outros | C16: 26.453 | D16: 0 | E16: 0 | F16: 0 | G16: 0.194 | H16: 5.3294 | I16: 4.736337611e-05 | J16: 3.666744648e-05 | K16: 0 | L16: 0 | M16: 0 | N16: 0 | O16: 0 | P16: 0 | Q16: 0 | R16: 0 | S16: -5.3294 | U16: =G16-INDEX($C16:$G16,1,aux!$AL$1) -> -26.259 | V16: -0.0008610656661 | W16: -0.001518238023 | X16: =+IF(INDEX($C16:$G16,1,aux!$AL$1)>0,(G16/INDEX($C16:$G16,1,aux!$AL$1))^(1/($G$3-INDEX($C$3:$G$3,1,aux!$AL$1)))-1,"n.d.") -> -0.70736134 | Y16: =IF(INDEX($C16:$G16,1,aux!$AL$1)>0,(G16-INDEX($C16:$G16,1,aux!$AL$1))/INDEX($C16:$G16,1,aux!$AL$1),"n.d.") -> -0.9926662382 | AA16: =O16-INDEX($K16:$O16,1,aux!$AL$1) -> 0 | AB16: 0 | AC16: 0 | AD16: =+IF(INDEX($K16:$O16,1,aux!$AL$1)>0,(O16/INDEX($K16:$O16,1,aux!$AL$1))^(1/($O$3-INDEX($K$3:$O$3,1,aux!$AL$1)))-1,"n.d.") -> n.d. | AE16: =IF(INDEX($K16:$O16,1,aux!$AL$1)>0,(O16-INDEX($K16:$O16,1,aux!$AL$1))/INDEX($K16:$O16,1,aux!$AL$1),"n.d.") -> n.d.
A17: 15 | B17: Gorduras e óleos animais ou vegetais | C17: 0 | D17: 0 | E17: 138.411 | F17: 71.865 | G17: 142.1 | H17: 70.4752 | I17: 0.0006263263038 | J17: 0.0004848849072 | K17: 7173.158 | L17: 13470.886 | M17: 9777.437 | N17: 3547.101 | O17: 12332.892 | P17: 9260.2948 | Q17: 0.4240997732 | R17: 0.2492326006 | S17: 9189.8196 | U17: =G17-INDEX($C17:$G17,1,aux!$AL$1) -> 142.1 | V17: 0.004659637882 | W17: 0.008215911613 | X17: =+IF(INDEX($C17:$G17,1,aux!$AL$1)>0,(G17/INDEX($C17:$G17,1,aux!$AL$1))^(1/($G$3-INDEX($C$3:$G$3,1,aux!$AL$1)))-1,"n.d.") -> n.d. | Y17: =IF(INDEX($C17:$G17,1,aux!$AL$1)>0,(G17-INDEX($C17:$G17,1,aux!$AL$1))/INDEX($C17:$G17,1,aux!$AL$1),"n.d.") -> n.d. | AA17: =O17-INDEX($K17:$O17,1,aux!$AL$1) -> 5159.734 | AB17: 0.3880630758 | AC17: 0.3172036394 | AD17: =+IF(INDEX($K17:$O17,1,aux!$AL$1)>0,(O17/INDEX($K17:$O17,1,aux!$AL$1))^(1/($O$3-INDEX($K$3:$O$3,1,aux!$AL$1)))-1,"n.d.") -> 0.1450873919 | AE17: =IF(INDEX($K17:$O17,1,aux!$AL$1)>0,(O17-INDEX($K17:$O17,1,aux!$AL$1))/INDEX($K17:$O17,1,aux!$AL$1),"n.d.") -> 0.7193113549
A18: 16a | B18: Preparações de carnes (exc. NC 1604-05) (a) | C18: 0 | D18: 0 | E18: 0 | F18: 0 | G18: 0 | H18: 0 | I18: 0 | J18: 0 | K18: 54.231 | L18: 50.587 | M18: 3.557 | N18: 1.722 | O18: 0.785 | P18: 22.1764 | Q18: 0.001015627085 | R18: 0.0005968580876 | S18: 22.1764 | U18: =G18-INDEX($C18:$G18,1,aux!$AL$1) -> 0 | V18: 0 | W18: 0 | X18: =+IF(INDEX($C18:$G18,1,aux!$AL$1)>0,(G18/INDEX($C18:$G18,1,aux!$AL$1))^(1/($G$3-INDEX($C$3:$G$3,1,aux!$AL$1)))-1,"n.d.") -> n.d. | Y18: =IF(INDEX($C18:$G18,1,aux!$AL$1)>0,(G18-INDEX($C18:$G18,1,aux!$AL$1))/INDEX($C18:$G18,1,aux!$AL$1),"n.d.") -> n.d. | AA18: =O18-INDEX($K18:$O18,1,aux!$AL$1) -> -53.446 | AB18: -0.004019668291 | AC18: -0.003285685989 | AD18: =+IF(INDEX($K18:$O18,1,aux!$AL$1)>0,(O18/INDEX($K18:$O18,1,aux!$AL$1))^(1/($O$3-INDEX($K$3:$O$3,1,aux!$AL$1)))-1,"n.d.") -> -0.6531389687 | AE18: =IF(INDEX($K18:$O18,1,aux!$AL$1)>0,(O18-INDEX($K18:$O18,1,aux!$AL$1))/INDEX($K18:$O18,1,aux!$AL$1),"n.d.") -> -0.9855248843
A19: 17 | B19: Açúcares e produtos de confeitaria | C19: 18169.392 | D19: 1606.796 | E19: 0 | F19: 0 | G19: 14112.842 | H19: 6777.806 | I19: 0.06023563154 | J19: 0.04663279896 | K19: 29.97 | L19: 11.443 | M19: 1.9 | N19: 16.339 | O19: 63.642 | P19: 24.6588 | Q19: 0.00112931518 | R19: 0.0006636696764 | S19: -6753.1472 | U19: =G19-INDEX($C19:$G19,1,aux!$AL$1) -> -4056.55 | V19: -0.1330193811 | W19: -0.2345408603 | X19: =+IF(INDEX($C19:$G19,1,aux!$AL$1)>0,(G19/INDEX($C19:$G19,1,aux!$AL$1))^(1/($G$3-INDEX($C$3:$G$3,1,aux!$AL$1)))-1,"n.d.") -> -0.06120985666 | Y19: =IF(INDEX($C19:$G19,1,aux!$AL$1)>0,(G19-INDEX($C19:$G19,1,aux!$AL$1))/INDEX($C19:$G19,1,aux!$AL$1),"n.d.") -> -0.2232628368 | AA19: =O19-INDEX($K19:$O19,1,aux!$AL$1) -> 33.672 | AB19: 0.002532467738 | AC19: 0.002070044879 | AD19: =+IF(INDEX($K19:$O19,1,aux!$AL$1)>0,(O19/INDEX($K19:$O19,1,aux!$AL$1))^(1/($O$3-INDEX($K$3:$O$3,1,aux!$AL$1)))-1,"n.d.") -> 0.2071584231 | AE19: =IF(INDEX($K19:$O19,1,aux!$AL$1)>0,(O19-INDEX($K19:$O19,1,aux!$AL$1))/INDEX($K19:$O19,1,aux!$AL$1),"n.d.") -> 1.123523524
A20: 18 | B20: Cacau e suas preparações | C20: 0.728 | D20: 0.039 | E20: 0 | F20: 0 | G20: 0.498 | H20: 0.253 | I20: 2.248458392e-06 | J20: 1.740695756e-06 | K20: 1168.893 | L20: 769.47 | M20: 893.513 | N20: 1162.372 | O20: 1372.763 | P20: 1073.4022 | Q20: 0.04915930209 | R20: 0.02888966579 | S20: 1073.1492 | U20: =G20-INDEX($C20:$G20,1,aux!$AL$1) -> -0.23 | V20: -7.541989535e-06 | W20: -1.329809761e-05 | X20: =+IF(INDEX($C20:$G20,1,aux!$AL$1)>0,(G20/INDEX($C20:$G20,1,aux!$AL$1))^(1/($G$3-INDEX($C$3:$G$3,1,aux!$AL$1)))-1,"n.d.") -> -0.09055908081 | Y20: =IF(INDEX($C20:$G20,1,aux!$AL$1)>0,(G20-INDEX($C20:$G20,1,aux!$AL$1))/INDEX($C20:$G20,1,aux!$AL$1),"n.d.") -> -0.3159340659 | AA20: =O20-INDEX($K20:$O20,1,aux!$AL$1) -> 203.87 | AB20: 0.01533304222 | AC20: 0.01253326353 | AD20: =+IF(INDEX($K20:$O20,1,aux!$AL$1)>0,(O20/INDEX($K20:$O20,1,aux!$AL$1))^(1/($O$3-INDEX($K$3:$O$3,1,aux!$AL$1)))-1,"n.d.") -> 0.04101072016 | AE20: =IF(INDEX($K20:$O20,1,aux!$AL$1)>0,(O20-INDEX($K20:$O20,1,aux!$AL$1))/INDEX($K20:$O20,1,aux!$AL$1),"n.d.") -> 0.1744128847
A21: 19a | B21: Preparações à base de cereais (exc. NC 19022010) (a) | C21: 3.227 | D21: 0 | E21: 0.071 | F21: 327.226 | G21: 0.952 | H21: 66.2952 | I21: 0.0005891778608 | J21: 0.000456125586 | K21: 1497.085 | L21: 2399.55 | M21: 2687.934 | N21: 4694.096 | O21: 3112.985 | P21: 2878.33 | Q21: 0.1318207602 | R21: 0.07746769265 | S21: 2812.0348 | U21: =G21-INDEX($C21:$G21,1,aux!$AL$1) -> -2.275 | V21: -7.460011388e-05 | W21: -0.0001315355308 | X21: =+IF(INDEX($C21:$G21,1,aux!$AL$1)>0,(G21/INDEX($C21:$G21,1,aux!$AL$1))^(1/($G$3-INDEX($C$3:$G$3,1,aux!$AL$1)))-1,"n.d.") -> -0.2630135625 | Y21: =IF(INDEX($C21:$G21,1,aux!$AL$1)>0,(G21-INDEX($C21:$G21,1,aux!$AL$1))/INDEX($C21:$G21,1,aux!$AL$1),"n.d.") -> -0.704989154 | AA21: =O21-INDEX($K21:$O21,1,aux!$AL$1) -> 1615.9 | AB21: 0.1215316767 | AC21: 0.09934026848 | AD21: =+IF(INDEX($K21:$O21,1,aux!$AL$1)>0,(O21/INDEX($K21:$O21,1,aux!$AL$1))^(1/($O$3-INDEX($K$3:$O$3,1,aux!$AL$1)))-1,"n.d.") -> 0.2008330776 | AE21: =IF(INDEX($K21:$O21,1,aux!$AL$1)>0,(O21-INDEX($K21:$O21,1,aux!$AL$1))/INDEX($K21:$O21,1,aux!$AL$1),"n.d.") -> 1.079364231
A22: 20 | B22: Preparações de produtos vegetais | C22: 382.19 | D22: 318.039 | E22: 269.375 | F22: 393.026 | G22: 298.655 | H22: 332.257 | I22: 0.002952830197 | J22: 0.002286001382 | K22: 2132.186 | L22: 1867.986 | M22: 1714.816 | N22: 3066.925 | O22: 3349.354 | P22: 2426.2534 | Q22: 0.1111167127 | R22: 0.06530045293 | S22: 2093.9964 | U22: =G22-INDEX($C22:$G22,1,aux!$AL$1) -> -83.535 | V22: -0.002739217808 | W22: -0.004829811236 | X22: =+IF(INDEX($C22:$G22,1,aux!$AL$1)>0,(G22/INDEX($C22:$G22,1,aux!$AL$1))^(1/($G$3-INDEX($C$3:$G$3,1,aux!$AL$1)))-1,"n.d.") -> -0.05979486756 | Y22: =IF(INDEX($C22:$G22,1,aux!$AL$1)>0,(G22-INDEX($C22:$G22,1,aux!$AL$1))/INDEX($C22:$G22,1,aux!$AL$1),"n.d.") -> -0.218569298 | AA22: =O22-INDEX($K22:$O22,1,aux!$AL$1) -> 1217.168 | AB22: 0.09154308301 | AC22: 0.07482752392 | AD22: =+IF(INDEX($K22:$O22,1,aux!$AL$1)>0,(O22/INDEX($K22:$O22,1,aux!$AL$1))^(1/($O$3-INDEX($K$3:$O$3,1,aux!$AL$1)))-1,"n.d.") -> 0.1195255021 | AE22: =IF(INDEX($K22:$O22,1,aux!$AL$1)>0,(O22-INDEX($K22:$O22,1,aux!$AL$1))/INDEX($K22:$O22,1,aux!$AL$1),"n.d.") -> 0.5708545127
A23: 21 | B23: Preparações alimentícias diversas | C23: 19.344 | D23: 20.127 | E23: 21.043 | F23: 23.648 | G23: 18.853 | H23: 20.603 | I23: 0.0001831027204 | J23: 0.0001417531804 | K23: 1395.837 | L23: 856.398 | M23: 393.414 | N23: 647.459 | O23: 205.895 | P23: 699.8006 | Q23: 0.03204922544 | R23: 0.01883451091 | S23: 679.1976 | U23: =G23-INDEX($C23:$G23,1,aux!$AL$1) -> -0.491 | V23: -1.610050809e-05 | W23: -2.838854752e-05 | X23: =+IF(INDEX($C23:$G23,1,aux!$AL$1)>0,(G23/INDEX($C23:$G23,1,aux!$AL$1))^(1/($G$3-INDEX($C$3:$G$3,1,aux!$AL$1)))-1,"n.d.") -> -0.006406947782 | Y23: =IF(INDEX($C23:$G23,1,aux!$AL$1)>0,(G23-INDEX($C23:$G23,1,aux!$AL$1))/INDEX($C23:$G23,1,aux!$AL$1),"n.d.") -> -0.02538254756 | AA23: =O23-INDEX($K23:$O23,1,aux!$AL$1) -> -1189.942 | AB23: -0.08949541829 | AC23: -0.07315375813 | AD23: =+IF(INDEX($K23:$O23,1,aux!$AL$1)>0,(O23/INDEX($K23:$O23,1,aux!$AL$1))^(1/($O$3-INDEX($K$3:$O$3,1,aux!$AL$1)))-1,"n.d.") -> -0.3802696383 | AE23: =IF(INDEX($K23:$O23,1,aux!$AL$1)>0,(O23-INDEX($K23:$O23,1,aux!$AL$1))/INDEX($K23:$O23,1,aux!$AL$1),"n.d.") -> -0.8524935218
A24: 22 | B24: Bebidas, líquidos alcoólicos e vinagres | C24: 129.827 | D24: 30.939 | E24: 22.84 | F24: 159.512 | G24: 292.665 | H24: 127.1566 | I24: 0.001130064523 | J24: 0.0008748654305 | K24: 1443.587 | L24: 1547.492 | M24: 923.853 | N24: 1507.258 | O24: 1987.412 | P24: 1481.9204 | Q24: 0.06786847709 | R24: 0.0398845699 | S24: 1354.7638 | U24: =G24-INDEX($C24:$G24,1,aux!$AL$1) -> 162.838 | V24: 0.005339663008 | W24: 0.009414937476 | X24: =+IF(INDEX($C24:$G24,1,aux!$AL$1)>0,(G24/INDEX($C24:$G24,1,aux!$AL$1))^(1/($G$3-INDEX($C$3:$G$3,1,aux!$AL$1)))-1,"n.d.") -> 0.2253254152 | Y24: =IF(INDEX($C24:$G24,1,aux!$AL$1)>0,(G24-INDEX($C24:$G24,1,aux!$AL$1))/INDEX($C24:$G24,1,aux!$AL$1),"n.d.") -> 1.254269143 | AA24: =O24-INDEX($K24:$O24,1,aux!$AL$1) -> 543.825 | AB24: 0.04090102362 | AC24: 0.03343258958 | AD24: =+IF(INDEX($K24:$O24,1,aux!$AL$1)>0,(O24/INDEX($K24:$O24,1,aux!$AL$1))^(1/($O$3-INDEX($K$3:$O$3,1,aux!$AL$1)))-1,"n.d.") -> 0.0832064474 | AE24: =IF(INDEX($K24:$O24,1,aux!$AL$1)>0,(O24-INDEX($K24:$O24,1,aux!$AL$1))/INDEX($K24:$O24,1,aux!$AL$1),"n.d.") -> 0.3767178563
A25: 23a | B25: Resíduos indústrias alimentares; alimentos p/ animais (exc. NC 230120) (a) | C25: 1.578 | D25: 1.427 | E25: 1.633 | F25: 3.321 | G25: 1.593 | H25: 1.9104 | I25: 1.697808266e-05 | J25: 1.314397301e-05 | K25: 34.001 | L25: 313.052 | M25: 442.841 | N25: 4835.507 | O25: 404.946 | P25: 1206.0694 | Q25: 0.05523514856 | R25: 0.03246028551 | S25: 1204.159 | U25: =G25-INDEX($C25:$G25,1,aux!$AL$1) -> 0.015 | V25: 4.918688827e-07 | W25: 8.672672357e-07 | X25: =+IF(INDEX($C25:$G25,1,aux!$AL$1)>0,(G25/INDEX($C25:$G25,1,aux!$AL$1))^(1/($G$3-INDEX($C$3:$G$3,1,aux!$AL$1)))-1,"n.d.") -> 0.002368001423 | Y25: =IF(INDEX($C25:$G25,1,aux!$AL$1)>0,(G25-INDEX($C25:$G25,1,aux!$AL$1))/INDEX($C25:$G25,1,aux!$AL$1),"n.d.") -> 0.009505703422 | AA25: =O25-INDEX($K25:$O25,1,aux!$AL$1) -> 370.945 | AB25: 0.02789873619 | AC25: 0.02280449031 | AD25: =+IF(INDEX($K25:$O25,1,aux!$AL$1)>0,(O25/INDEX($K25:$O25,1,aux!$AL$1))^(1/($O$3-INDEX($K$3:$O$3,1,aux!$AL$1)))-1,"n.d.") -> 0.8577033138 | AE25: =IF(INDEX($K25:$O25,1,aux!$AL$1)>0,(O25-INDEX($K25:$O25,1,aux!$AL$1))/INDEX($K25:$O25,1,aux!$AL$1),"n.d.") -> 10.90982618
A26: 24 | B26: Tabaco | C26: 0 | D26: 0 | E26: 0 | F26: 0 | G26: 0 | H26: 0 | I26: 0 | J26: 0 | K26: 3.29 | L26: 0 | M26: 0 | N26: 0 | O26: 0 | P26: 0.658 | Q26: 3.013485605e-05 | R26: 1.770948493e-05 | S26: 0.658 | U26: =G26-INDEX($C26:$G26,1,aux!$AL$1) -> 0 | V26: 0 | W26: 0 | X26: =+IF(INDEX($C26:$G26,1,aux!$AL$1)>0,(G26/INDEX($C26:$G26,1,aux!$AL$1))^(1/($G$3-INDEX($C$3:$G$3,1,aux!$AL$1)))-1,"n.d.") -> n.d. | Y26: =IF(INDEX($C26:$G26,1,aux!$AL$1)>0,(G26-INDEX($C26:$G26,1,aux!$AL$1))/INDEX($C26:$G26,1,aux!$AL$1),"n.d.") -> n.d. | AA26: =O26-INDEX($K26:$O26,1,aux!$AL$1) -> -3.29 | AB26: -0.0002474405695 | AC26: -0.0002022584834 | AD26: =+IF(INDEX($K26:$O26,1,aux!$AL$1)>0,(O26/INDEX($K26:$O26,1,aux!$AL$1))^(1/($O$3-INDEX($K$3:$O$3,1,aux!$AL$1)))-1,"n.d.") -> -1 | AE26: =IF(INDEX($K26:$O26,1,aux!$AL$1)>0,(O26-INDEX($K26:$O26,1,aux!$AL$1))/INDEX($K26:$O26,1,aux!$AL$1),"n.d.") -> -1
A27: 29 | B27: Manitol e sorbitol (NC 290543; 290544) | C27: 0 | D27: 0 | E27: 0 | F27: 0 | G27: 0 | H27: 0 | I27: 0 | J27: 0 | K27: 35.754 | L27: 33.858 | M27: 48.882 | N27: 35.32 | O27: 0 | P27: 30.7628 | Q27: 0.001408864057 | R27: 0.0008279534089 | S27: 30.7628 | U27: =G27-INDEX($C27:$G27,1,aux!$AL$1) -> 0 | V27: 0 | W27: 0 | X27: =+IF(INDEX($C27:$G27,1,aux!$AL$1)>0,(G27/INDEX($C27:$G27,1,aux!$AL$1))^(1/($G$3-INDEX($C$3:$G$3,1,aux!$AL$1)))-1,"n.d.") -> n.d. | Y27: =IF(INDEX($C27:$G27,1,aux!$AL$1)>0,(G27-INDEX($C27:$G27,1,aux!$AL$1))/INDEX($C27:$G27,1,aux!$AL$1),"n.d.") -> n.d. | AA27: =O27-INDEX($K27:$O27,1,aux!$AL$1) -> -35.754 | AB27: -0.002689054748 | AC27: -0.002198039457 | AD27: =+IF(INDEX($K27:$O27,1,aux!$AL$1)>0,(O27/INDEX($K27:$O27,1,aux!$AL$1))^(1/($O$3-INDEX($K$3:$O$3,1,aux!$AL$1)))-1,"n.d.") -> -1 | AE27: =IF(INDEX($K27:$O27,1,aux!$AL$1)>0,(O27-INDEX($K27:$O27,1,aux!$AL$1))/INDEX($K27:$O27,1,aux!$AL$1),"n.d.") -> -1
A28: 33 | B28: Óleos essenciais e resinóides (NC 3301) | C28: 0 | D28: 0 | E28: 6.266 | F28: 12.944 | G28: 47.302 | H28: 13.3024 | I28: 0.0001182209206 | J28: 9.152344355e-05 | K28: 40.387 | L28: 76.209 | M28: 103.971 | N28: 133.866 | O28: 114.305 | P28: 93.7476 | Q28: 0.004293420107 | R28: 0.002523133297 | S28: 80.4452 | U28: =G28-INDEX($C28:$G28,1,aux!$AL$1) -> 47.302 | V28: 0.001551092126 | W28: 0.002734898319 | X28: =+IF(INDEX($C28:$G28,1,aux!$AL$1)>0,(G28/INDEX($C28:$G28,1,aux!$AL$1))^(1/($G$3-INDEX($C$3:$G$3,1,aux!$AL$1)))-1,"n.d.") -> n.d. | Y28: =IF(INDEX($C28:$G28,1,aux!$AL$1)>0,(G28-INDEX($C28:$G28,1,aux!$AL$1))/INDEX($C28:$G28,1,aux!$AL$1),"n.d.") -> n.d. | AA28: =O28-INDEX($K28:$O28,1,aux!$AL$1) -> 73.918 | AB28: 0.005559365355 | AC28: 0.004544237865 | AD28: =+IF(INDEX($K28:$O28,1,aux!$AL$1)>0,(O28/INDEX($K28:$O28,1,aux!$AL$1))^(1/($O$3-INDEX($K$3:$O$3,1,aux!$AL$1)))-1,"n.d.") -> 0.297047582 | AE28: =IF(INDEX($K28:$O28,1,aux!$AL$1)>0,(O28-INDEX($K28:$O28,1,aux!$AL$1))/INDEX($K28:$O28,1,aux!$AL$1),"n.d.") -> 1.830242405
A29: 35 | B29: Caseínas, albuminas, gelatinas, peptonas, dextrinas (NC 3501 a 3505) | C29: 0 | D29: 0 | E29: 0 | F29: 0 | G29: 0.178 | H29: 0.0356 | I29: 3.163838686e-07 | J29: 2.449358454e-07 | K29: 0 | L29: 36.822 | M29: 0 | N29: 0 | O29: 6.84 | P29: 8.7324 | Q29: 0.00039992343 | R29: 0.0002350247815 | S29: 8.6968 | U29: =G29-INDEX($C29:$G29,1,aux!$AL$1) -> 0.178 | V29: 5.836844075e-06 | W29: 1.02915712e-05 | X29: =+IF(INDEX($C29:$G29,1,aux!$AL$1)>0,(G29/INDEX($C29:$G29,1,aux!$AL$1))^(1/($G$3-INDEX($C$3:$G$3,1,aux!$AL$1)))-1,"n.d.") -> n.d. | Y29: =IF(INDEX($C29:$G29,1,aux!$AL$1)>0,(G29-INDEX($C29:$G29,1,aux!$AL$1))/INDEX($C29:$G29,1,aux!$AL$1),"n.d.") -> n.d. | AA29: =O29-INDEX($K29:$O29,1,aux!$AL$1) -> 6.84 | AB29: 0.0005144357129 | AC29: 0.0004205009199 | AD29: =+IF(INDEX($K29:$O29,1,aux!$AL$1)>0,(O29/INDEX($K29:$O29,1,aux!$AL$1))^(1/($O$3-INDEX($K$3:$O$3,1,aux!$AL$1)))-1,"n.d.") -> n.d. | AE29: =IF(INDEX($K29:$O29,1,aux!$AL$1)>0,(O29-INDEX($K29:$O29,1,aux!$AL$1))/INDEX($K29:$O29,1,aux!$AL$1),"n.d.") -> n.d.
A30: 38a | B30: Agentes de acabamento, ácidos gordos, sorbitol (NC 380910, 382311-12-13-19-70, 382460) (a) | C30: 0 | D30: 0 | E30: 0 | F30: 0 | G30: 0 | H30: 0 | I30: 0 | J30: 0 | K30: 0 | L30: 0 | M30: 92.637 | N30: 670.226 | O30: 844.224 | P30: 321.4174 | Q30: 0.01472016273 | R30: 0.008650663529 | S30: 321.4174 | U30: =G30-INDEX($C30:$G30,1,aux!$AL$1) -> 0 | V30: 0 | W30: 0 | X30: =+IF(INDEX($C30:$G30,1,aux!$AL$1)>0,(G30/INDEX($C30:$G30,1,aux!$AL$1))^(1/($G$3-INDEX($C$3:$G$3,1,aux!$AL$1)))-1,"n.d.") -> n.d. | Y30: =IF(INDEX($C30:$G30,1,aux!$AL$1)>0,(G30-INDEX($C30:$G30,1,aux!$AL$1))/INDEX($C30:$G30,1,aux!$AL$1),"n.d.") -> n.d. | AA30: =O30-INDEX($K30:$O30,1,aux!$AL$1) -> 844.224 | AB30: 0.06349400224 | AC30: 0.05190014161 | AD30: =+IF(INDEX($K30:$O30,1,aux!$AL$1)>0,(O30/INDEX($K30:$O30,1,aux!$AL$1))^(1/($O$3-INDEX($K$3:$O$3,1,aux!$AL$1)))-1,"n.d.") -> n.d. | AE30: =IF(INDEX($K30:$O30,1,aux!$AL$1)>0,(O30-INDEX($K30:$O30,1,aux!$AL$1))/INDEX($K30:$O30,1,aux!$AL$1),"n.d.") -> n.d.
A31: 41 | B31: Couro e peles em bruto (NC 4101 a 4103) | C31: 27.129 | D31: 94.499 | E31: 315.778 | F31: 0 | G31: 0 | H31: 87.4812 | I31: 0.0007774618114 | J31: 0.0006018899349 | K31: 0 | L31: 0 | M31: 0 | N31: 0 | O31: 0 | P31: 0 | Q31: 0 | R31: 0 | S31: -87.4812 | U31: =G31-INDEX($C31:$G31,1,aux!$AL$1) -> -27.129 | V31: -0.0008895940613 | W31: -0.001568539523 | X31: =+IF(INDEX($C31:$G31,1,aux!$AL$1)>0,(G31/INDEX($C31:$G31,1,aux!$AL$1))^(1/($G$3-INDEX($C$3:$G$3,1,aux!$AL$1)))-1,"n.d.") -> -1 | Y31: =IF(INDEX($C31:$G31,1,aux!$AL$1)>0,(G31-INDEX($C31:$G31,1,aux!$AL$1))/INDEX($C31:$G31,1,aux!$AL$1),"n.d.") -> -1 | AA31: =O31-INDEX($K31:$O31,1,aux!$AL$1) -> 0 | AB31: 0 | AC31: 0 | AD31: =+IF(INDEX($K31:$O31,1,aux!$AL$1)>0,(O31/INDEX($K31:$O31,1,aux!$AL$1))^(1/($O$3-INDEX($K$3:$O$3,1,aux!$AL$1)))-1,"n.d.") -> n.d. | AE31: =IF(INDEX($K31:$O31,1,aux!$AL$1)>0,(O31-INDEX($K31:$O31,1,aux!$AL$1))/INDEX($K31:$O31,1,aux!$AL$1),"n.d.") -> n.d.
A32: 43 | B32: Peles com pelo em bruto (NC 4301) | C32: 0 | D32: 0 | E32: 0 | F32: 0 | G32: 0 | H32: 0 | I32: 0 | J32: 0 | K32: 0 | L32: 0 | M32: 0 | N32: 0 | O32: 0 | P32: 0 | Q32: 0 | R32: 0 | S32: 0 | U32: =G32-INDEX($C32:$G32,1,aux!$AL$1) -> 0 | V32: 0 | W32: 0 | X32: =+IF(INDEX($C32:$G32,1,aux!$AL$1)>0,(G32/INDEX($C32:$G32,1,aux!$AL$1))^(1/($G$3-INDEX($C$3:$G$3,1,aux!$AL$1)))-1,"n.d.") -> n.d. | Y32: =IF(INDEX($C32:$G32,1,aux!$AL$1)>0,(G32-INDEX($C32:$G32,1,aux!$AL$1))/INDEX($C32:$G32,1,aux!$AL$1),"n.d.") -> n.d. | AA32: =O32-INDEX($K32:$O32,1,aux!$AL$1) -> 0 | AB32: 0 | AC32: 0 | AD32: =+IF(INDEX($K32:$O32,1,aux!$AL$1)>0,(O32/INDEX($K32:$O32,1,aux!$AL$1))^(1/($O$3-INDEX($K$3:$O$3,1,aux!$AL$1)))-1,"n.d.") -> n.d. | AE32: =IF(INDEX($K32:$O32,1,aux!$AL$1)>0,(O32-INDEX($K32:$O32,1,aux!$AL$1))/INDEX($K32:$O32,1,aux!$AL$1),"n.d.") -> n.d.
A33: 50 | B33: Seda crua (NC 5001-5003) | C33: 0 | D33: 0 | E33: 0 | F33: 0 | G33: 0 | H33: 0 | I33: 0 | J33: 0 | K33: 0 | L33: 0 | M33: 0 | N33: 0 | O33: 0 | P33: 0 | Q33: 0 | R33: 0 | S33: 0 | U33: =G33-INDEX($C33:$G33,1,aux!$AL$1) -> 0 | V33: 0 | W33: 0 | X33: =+IF(INDEX($C33:$G33,1,aux!$AL$1)>0,(G33/INDEX($C33:$G33,1,aux!$AL$1))^(1/($G$3-INDEX($C$3:$G$3,1,aux!$AL$1)))-1,"n.d.") -> n.d. | Y33: =IF(INDEX($C33:$G33,1,aux!$AL$1)>0,(G33-INDEX($C33:$G33,1,aux!$AL$1))/INDEX($C33:$G33,1,aux!$AL$1),"n.d.") -> n.d. | AA33: =O33-INDEX($K33:$O33,1,aux!$AL$1) -> 0 | AB33: 0 | AC33: 0 | AD33: =+IF(INDEX($K33:$O33,1,aux!$AL$1)>0,(O33/INDEX($K33:$O33,1,aux!$AL$1))^(1/($O$3-INDEX($K$3:$O$3,1,aux!$AL$1)))-1,"n.d.") -> n.d. | AE33: =IF(INDEX($K33:$O33,1,aux!$AL$1)>0,(O33-INDEX($K33:$O33,1,aux!$AL$1))/INDEX($K33:$O33,1,aux!$AL$1),"n.d.") -> n.d.
A34: 51 | B34: Lã não cardada (NC 5101-5103) | C34: 0 | D34: 89.437 | E34: 0 | F34: 0 | G34: 0 | H34: 17.8874 | I34: 0.0001589686745 | J34: 0.000123069254 | K34: 0 | L34: 0 | M34: 0 | N34: 0 | O34: 0 | P34: 0 | Q34: 0 | R34: 0 | S34: -17.8874 | U34: =G34-INDEX($C34:$G34,1,aux!$AL$1) -> 0 | V34: 0 | W34: 0 | X34: =+IF(INDEX($C34:$G34,1,aux!$AL$1)>0,(G34/INDEX($C34:$G34,1,aux!$AL$1))^(1/($G$3-INDEX($C$3:$G$3,1,aux!$AL$1)))-1,"n.d.") -> n.d. | Y34: =IF(INDEX($C34:$G34,1,aux!$AL$1)>0,(G34-INDEX($C34:$G34,1,aux!$AL$1))/INDEX($C34:$G34,1,aux!$AL$1),"n.d.") -> n.d. | AA34: =O34-INDEX($K34:$O34,1,aux!$AL$1) -> 0 | AB34: 0 | AC34: 0 | AD34: =+IF(INDEX($K34:$O34,1,aux!$AL$1)>0,(O34/INDEX($K34:$O34,1,aux!$AL$1))^(1/($O$3-INDEX($K$3:$O$3,1,aux!$AL$1)))-1,"n.d.") -> n.d. | AE34: =IF(INDEX($K34:$O34,1,aux!$AL$1)>0,(O34-INDEX($K34:$O34,1,aux!$AL$1))/INDEX($K34:$O34,1,aux!$AL$1),"n.d.") -> n.d.
A35: 52 | B35: Algodão (NC 5201-5203) | C35: 1279.27 | D35: 173.029 | E35: 392.499 | F35: 279.7 | G35: 46.848 | H35: 434.2692 | I35: 0.003859431728 | J35: 0.002987867799 | K35: 0 | L35: 0 | M35: 0 | N35: 0 | O35: 0 | P35: 0 | Q35: 0 | R35: 0 | S35: -434.2692 | U35: =G35-INDEX($C35:$G35,1,aux!$AL$1) -> -1232.422 | V35: -0.04041266881 | W35: -0.07125594808 | X35: =+IF(INDEX($C35:$G35,1,aux!$AL$1)>0,(G35/INDEX($C35:$G35,1,aux!$AL$1))^(1/($G$3-INDEX($C$3:$G$3,1,aux!$AL$1)))-1,"n.d.") -> -0.5625461834 | Y35: =IF(INDEX($C35:$G35,1,aux!$AL$1)>0,(G35-INDEX($C35:$G35,1,aux!$AL$1))/INDEX($C35:$G35,1,aux!$AL$1),"n.d.") -> -0.9633791147 | AA35: =O35-INDEX($K35:$O35,1,aux!$AL$1) -> 0 | AB35: 0 | AC35: 0 | AD35: =+IF(INDEX($K35:$O35,1,aux!$AL$1)>0,(O35/INDEX($K35:$O35,1,aux!$AL$1))^(1/($O$3-INDEX($K$3:$O$3,1,aux!$AL$1)))-1,"n.d.") -> n.d. | AE35: =IF(INDEX($K35:$O35,1,aux!$AL$1)>0,(O35-INDEX($K35:$O35,1,aux!$AL$1))/INDEX($K35:$O35,1,aux!$AL$1),"n.d.") -> n.d.
A36: 53 | B36: Linho e cânhamo em bruto (NC 5301-5302) | C36: 0 | D36: 0 | E36: 0 | F36: 0 | G36: 0 | H36: 0 | I36: 0 | J36: 0 | K36: 0 | L36: 0 | M36: 0 | N36: 0 | O36: 0 | P36: 0 | Q36: 0 | R36: 0 | S36: 0 | U36: =G36-INDEX($C36:$G36,1,aux!$AL$1) -> 0 | V36: 0 | W36: =IF($U$53<>0,U36/$U$53, "n.d.") -> 0 | X36: =+IF(INDEX($C36:$G36,1,aux!$AL$1)>0,(G36/INDEX($C36:$G36,1,aux!$AL$1))^(1/($G$3-INDEX($C$3:$G$3,1,aux!$AL$1)))-1,"n.d.") -> n.d. | Y36: =IF(INDEX($C36:$G36,1,aux!$AL$1)>0,(G36-INDEX($C36:$G36,1,aux!$AL$1))/INDEX($C36:$G36,1,aux!$AL$1),"n.d.") -> n.d. | AA36: =O36-INDEX($K36:$O36,1,aux!$AL$1) -> 0 | AB36: 0 | AC36: =IF($AA$53<>0,AA36/$AA$53, "n.d.") -> 0 | AD36: =+IF(INDEX($K36:$O36,1,aux!$AL$1)>0,(O36/INDEX($K36:$O36,1,aux!$AL$1))^(1/($O$3-INDEX($K$3:$O$3,1,aux!$AL$1)))-1,"n.d.") -> n.d. | AE36: =IF(INDEX($K36:$O36,1,aux!$AL$1)>0,(O36-INDEX($K36:$O36,1,aux!$AL$1))/INDEX($K36:$O36,1,aux!$AL$1),"n.d.") -> n.d.
A37: Subtotal Agrícola e Agroalimentar | C37: 115213.585 | D37: 79798.773 | E37: 127039.171 | F37: 94846.652 | G37: 145709.517 | H37: 112521.5396 | I37: 1 | J37: 0.7741729897 | K37: 15500.879 | L37: 23819.173 | M37: 18515.295 | N37: 22543.551 | O37: 28797.001 | P37: 21835.1798 | Q37: 1 | R37: 0.5876744493 | S37: -90686.3598 | U37: =G37-INDEX($C37:$G37,1,aux!$AL$1) -> 30495.932 | V37: 1 | W37: 1.763208176 | X37: =+IF(INDEX($C37:$G37,1,aux!$AL$1)>0,(G37/INDEX($C37:$G37,1,aux!$AL$1))^(1/($G$3-INDEX($C$3:$G$3,1,aux!$AL$1)))-1,"n.d.") -> 0.06046431039 | Y37: =IF(INDEX($C37:$G37,1,aux!$AL$1)>0,(G37-INDEX($C37:$G37,1,aux!$AL$1))/INDEX($C37:$G37,1,aux!$AL$1),"n.d.") -> 0.2646904182 | AA37: =O37-INDEX($K37:$O37,1,aux!$AL$1) -> 13296.122 | AB37: 1 | AC37: 0.8174022707 | AD37: =+IF(INDEX($K37:$O37,1,aux!$AL$1)>0,(O37/INDEX($K37:$O37,1,aux!$AL$1))^(1/($O$3-INDEX($K$3:$O$3,1,aux!$AL$1)))-1,"n.d.") -> 0.1674753881 | AE37: =IF(INDEX($K37:$O37,1,aux!$AL$1)>0,(O37-INDEX($K37:$O37,1,aux!$AL$1))/INDEX($K37:$O37,1,aux!$AL$1),"n.d.") -> 0.857765679
A38: 03 | B38: Peixes e crustáceos | C38: 34815.47 | D38: 36036.059 | E38: 31003.053 | F38: 27319.638 | G38: 24655.736 | H38: 30765.9912 | I38: 0.9831858302 | J38: 0.2116767996 | K38: 144.222 | L38: 297.661 | M38: 305.038 | N38: 172.178 | O38: 168.521 | P38: 217.524 | Q38: 0.2490364783 | R38: 0.005854465046 | S38: -30548.4672 | U38: =G38-INDEX($C38:$G38,1,aux!$AL$1) -> -10159.734 | V38: =IF($U$44<>0,U38/$U$44, "n.d.") -> 1.034912295 | W38: -0.5874136281 | X38: =+IF(INDEX($C38:$G38,1,aux!$AL$1)>0,(G38/INDEX($C38:$G38,1,aux!$AL$1))^(1/($G$3-INDEX($C$3:$G$3,1,aux!$AL$1)))-1,"n.d.") -> -0.08264712328 | Y38: =IF(INDEX($C38:$G38,1,aux!$AL$1)>0,(G38-INDEX($C38:$G38,1,aux!$AL$1))/INDEX($C38:$G38,1,aux!$AL$1),"n.d.") -> -0.2918166551 | AA38: =O38-INDEX($K38:$O38,1,aux!$AL$1) -> 24.299 | AB38: =IF($AA$44<>0,AA38/$AA$44, "n.d.") -> 0.05437185615 | AC38: 0.00149382337 | AD38: =+IF(INDEX($K38:$O38,1,aux!$AL$1)>0,(O38/INDEX($K38:$O38,1,aux!$AL$1))^(1/($O$3-INDEX($K$3:$O$3,1,aux!$AL$1)))-1,"n.d.") -> 0.03969421721 | AE38: =IF(INDEX($K38:$O38,1,aux!$AL$1)>0,(O38-INDEX($K38:$O38,1,aux!$AL$1))/INDEX($K38:$O38,1,aux!$AL$1),"n.d.") -> 0.1684833105
A39: 05p | B39: Outros produtos de pescado (NC 0508, 051191) (p) | C39: 0 | D39: 0 | E39: 0 | F39: 0.229 | G39: 0 | H39: 0.0458 | I39: 1.463626208e-06 | J39: 3.151140933e-07 | K39: 0 | L39: 0 | M39: 0 | N39: 0.022 | O39: 0 | P39: 0.0044 | Q39: 5.037423477e-06 | R39: 1.184220877e-07 | S39: -0.0414 | U39: =G39-INDEX($C39:$G39,1,aux!$AL$1) -> 0 | V39: 0 | W39: 0 | X39: =+IF(INDEX($C39:$G39,1,aux!$AL$1)>0,(G39/INDEX($C39:$G39,1,aux!$AL$1))^(1/($G$3-INDEX($C$3:$G$3,1,aux!$AL$1)))-1,"n.d.") -> n.d. | Y39: =IF(INDEX($C39:$G39,1,aux!$AL$1)>0,(G39-INDEX($C39:$G39,1,aux!$AL$1))/INDEX($C39:$G39,1,aux!$AL$1),"n.d.") -> n.d. | AA39: =O39-INDEX($K39:$O39,1,aux!$AL$1) -> 0 | AB39: 0 | AC39: 0 | AD39: =+IF(INDEX($K39:$O39,1,aux!$AL$1)>0,(O39/INDEX($K39:$O39,1,aux!$AL$1))^(1/($O$3-INDEX($K$3:$O$3,1,aux!$AL$1)))-1,"n.d.") -> n.d. | AE39: =IF(INDEX($K39:$O39,1,aux!$AL$1)>0,(O39-INDEX($K39:$O39,1,aux!$AL$1))/INDEX($K39:$O39,1,aux!$AL$1),"n.d.") -> n.d.
A40: 16p | B40: Preparações e conservas de peixes ou crustáceos (NC 1604-05) (p) | C40: 459.379 | D40: 358.961 | E40: 428.452 | F40: 527.139 | G40: 804.266 | H40: 515.6394 | I40: 0.01647823885 | J40: 0.003547712707 | K40: 505.647 | L40: 656.479 | M40: 215.262 | N40: 972.501 | O40: 928.474 | P40: 655.6726 | Q40: 0.7506592156 | R40: 0.01764684503 | S40: 140.0332 | U40: =G40-INDEX($C40:$G40,1,aux!$AL$1) -> 344.887 | V40: -0.03513160843 | W40: 0.01994061301 | X40: =+IF(INDEX($C40:$G40,1,aux!$AL$1)>0,(G40/INDEX($C40:$G40,1,aux!$AL$1))^(1/($G$3-INDEX($C$3:$G$3,1,aux!$AL$1)))-1,"n.d.") -> 0.1502894665 | Y40: =IF(INDEX($C40:$G40,1,aux!$AL$1)>0,(G40-INDEX($C40:$G40,1,aux!$AL$1))/INDEX($C40:$G40,1,aux!$AL$1),"n.d.") -> 0.7507678845 | AA40: =O40-INDEX($K40:$O40,1,aux!$AL$1) -> 422.827 | AB40: 0.9461248948 | AC40: 0.02599402667 | AD40: =+IF(INDEX($K40:$O40,1,aux!$AL$1)>0,(O40/INDEX($K40:$O40,1,aux!$AL$1))^(1/($O$3-INDEX($K$3:$O$3,1,aux!$AL$1)))-1,"n.d.") -> 0.1640739698 | AE40: =IF(INDEX($K40:$O40,1,aux!$AL$1)>0,(O40-INDEX($K40:$O40,1,aux!$AL$1))/INDEX($K40:$O40,1,aux!$AL$1),"n.d.") -> 0.836209846
A41: 19p | B41: Massas recheadas com pescado (NC 19022010) (p) | C41: 0 | D41: 0 | E41: 0 | F41: 0 | G41: 0 | H41: 0 | I41: 0 | J41: 0 | K41: 0 | L41: 0 | M41: 0 | N41: 0 | O41: 0 | P41: 0 | Q41: 0 | R41: 0 | S41: 0 | U41: =G41-INDEX($C41:$G41,1,aux!$AL$1) -> 0 | V41: 0 | W41: 0 | X41: =+IF(INDEX($C41:$G41,1,aux!$AL$1)>0,(G41/INDEX($C41:$G41,1,aux!$AL$1))^(1/($G$3-INDEX($C$3:$G$3,1,aux!$AL$1)))-1,"n.d.") -> n.d. | Y41: =IF(INDEX($C41:$G41,1,aux!$AL$1)>0,(G41-INDEX($C41:$G41,1,aux!$AL$1))/INDEX($C41:$G41,1,aux!$AL$1),"n.d.") -> n.d. | AA41: =O41-INDEX($K41:$O41,1,aux!$AL$1) -> 0 | AB41: 0 | AC41: 0 | AD41: =+IF(INDEX($K41:$O41,1,aux!$AL$1)>0,(O41/INDEX($K41:$O41,1,aux!$AL$1))^(1/($O$3-INDEX($K$3:$O$3,1,aux!$AL$1)))-1,"n.d.") -> n.d. | AE41: =IF(INDEX($K41:$O41,1,aux!$AL$1)>0,(O41-INDEX($K41:$O41,1,aux!$AL$1))/INDEX($K41:$O41,1,aux!$AL$1),"n.d.") -> n.d.
A42: 23p | B42: Farinhas de pescado (NC 230120) (p) | C42: 0 | D42: 0 | E42: 0 | F42: 0 | G42: 0 | H42: 0 | I42: 0 | J42: 0 | K42: 0 | L42: 0 | M42: 0 | N42: 0 | O42: 0 | P42: 0 | Q42: 0 | R42: 0 | S42: 0 | U42: =G42-INDEX($C42:$G42,1,aux!$AL$1) -> 0 | V42: 0 | W42: 0 | X42: =+IF(INDEX($C42:$G42,1,aux!$AL$1)>0,(G42/INDEX($C42:$G42,1,aux!$AL$1))^(1/($G$3-INDEX($C$3:$G$3,1,aux!$AL$1)))-1,"n.d.") -> n.d. | Y42: =IF(INDEX($C42:$G42,1,aux!$AL$1)>0,(G42-INDEX($C42:$G42,1,aux!$AL$1))/INDEX($C42:$G42,1,aux!$AL$1),"n.d.") -> n.d. | AA42: =O42-INDEX($K42:$O42,1,aux!$AL$1) -> 0 | AB42: 0 | AC42: 0 | AD42: =+IF(INDEX($K42:$O42,1,aux!$AL$1)>0,(O42/INDEX($K42:$O42,1,aux!$AL$1))^(1/($O$3-INDEX($K$3:$O$3,1,aux!$AL$1)))-1,"n.d.") -> n.d. | AE42: =IF(INDEX($K42:$O42,1,aux!$AL$1)>0,(O42-INDEX($K42:$O42,1,aux!$AL$1))/INDEX($K42:$O42,1,aux!$AL$1),"n.d.") -> n.d.
A43: 25 | B43: Sal e cloreto de sódio puro; água do mar (NC 2501) | C43: 4.936 | D43: 10.396 | E43: 10.059 | F43: 24.157 | G43: 2.783 | H43: 10.4662 | I43: 0.0003344673496 | J43: 7.200976252e-05 | K43: 0.306 | L43: 0.363 | M43: 0.554 | N43: 0 | O43: 0.084 | P43: 0.2614 | Q43: 0.0002992687493 | R43: 7.035348573e-06 | S43: -10.2048 | U43: =G43-INDEX($C43:$G43,1,aux!$AL$1) -> -2.153 | V43: 0.0002193134359 | W43: -0.0001244817572 | X43: =+IF(INDEX($C43:$G43,1,aux!$AL$1)>0,(G43/INDEX($C43:$G43,1,aux!$AL$1))^(1/($G$3-INDEX($C$3:$G$3,1,aux!$AL$1)))-1,"n.d.") -> -0.1334681826 | Y43: =IF(INDEX($C43:$G43,1,aux!$AL$1)>0,(G43-INDEX($C43:$G43,1,aux!$AL$1))/INDEX($C43:$G43,1,aux!$AL$1),"n.d.") -> -0.4361831442 | AA43: =O43-INDEX($K43:$O43,1,aux!$AL$1) -> -0.222 | AB43: -0.0004967509801 | AC43: -1.364783687e-05 | AD43: =+IF(INDEX($K43:$O43,1,aux!$AL$1)>0,(O43/INDEX($K43:$O43,1,aux!$AL$1))^(1/($O$3-INDEX($K$3:$O$3,1,aux!$AL$1)))-1,"n.d.") -> -0.2761651901 | AE43: =IF(INDEX($K43:$O43,1,aux!$AL$1)>0,(O43-INDEX($K43:$O43,1,aux!$AL$1))/INDEX($K43:$O43,1,aux!$AL$1),"n.d.") -> -0.7254901961
A44: Subtotal Mar | C44: 35279.785 | D44: 36405.416 | E44: 31441.564 | F44: 27871.163 | G44: 25462.785 | H44: 31292.1426 | I44: 1 | J44: 0.2152968372 | K44: 650.175 | L44: 954.503 | M44: 520.854 | N44: 1144.701 | O44: 1097.079 | P44: 873.4624 | Q44: 1 | R44: 0.02350846385 | S44: -30418.6802 | U44: =G44-INDEX($C44:$G44,1,aux!$AL$1) -> -9817 | V44: 1 | W44: -0.5675974969 | X44: =+IF(INDEX($C44:$G44,1,aux!$AL$1)>0,(G44/INDEX($C44:$G44,1,aux!$AL$1))^(1/($G$3-INDEX($C$3:$G$3,1,aux!$AL$1)))-1,"n.d.") -> -0.07828852722 | Y44: =IF(INDEX($C44:$G44,1,aux!$AL$1)>0,(G44-INDEX($C44:$G44,1,aux!$AL$1))/INDEX($C44:$G44,1,aux!$AL$1),"n.d.") -> -0.2782613329 | AA44: =O44-INDEX($K44:$O44,1,aux!$AL$1) -> 446.904 | AB44: 1 | AC44: 0.02747420221 | AD44: =+IF(INDEX($K44:$O44,1,aux!$AL$1)>0,(O44/INDEX($K44:$O44,1,aux!$AL$1))^(1/($O$3-INDEX($K$3:$O$3,1,aux!$AL$1)))-1,"n.d.") -> 0.1397298136 | AE44: =IF(INDEX($K44:$O44,1,aux!$AL$1)>0,(O44-INDEX($K44:$O44,1,aux!$AL$1))/INDEX($K44:$O44,1,aux!$AL$1),"n.d.") -> 0.687359557
A45: 13f | B45: Gomas e resinas (NC 1301) (f) | C45: 100.093 | D45: 209.43 | E45: 466.38 | F45: 246.853 | G45: 186.151 | H45: 241.7814 | I45: 0.1579754948 | J45: 0.001663509315 | K45: 0.571 | L45: 0.713 | M45: 0 | N45: 0 | O45: 0 | P45: 0.2568 | Q45: 1.777582287e-05 | R45: 6.911543663e-06 | S45: -241.5246 | U45: =G45-INDEX($C45:$G45,1,aux!$AL$1) -> 86.058 | V45: =IF($U$52<>0,U45/$U$52, "n.d.") -> -0.02543667654 | W45: 0.004975685585 | X45: =+IF(INDEX($C45:$G45,1,aux!$AL$1)>0,(G45/INDEX($C45:$G45,1,aux!$AL$1))^(1/($G$3-INDEX($C$3:$G$3,1,aux!$AL$1)))-1,"n.d.") -> 0.1677917878 | Y45: =IF(INDEX($C45:$G45,1,aux!$AL$1)>0,(G45-INDEX($C45:$G45,1,aux!$AL$1))/INDEX($C45:$G45,1,aux!$AL$1),"n.d.") -> 0.8597804042 | AA45: =O45-INDEX($K45:$O45,1,aux!$AL$1) -> -0.571 | AB45: =IF($AA$52<>0,AA45/$AA$52, "n.d.") -> -0.0002262920443 | AC45: -3.510322007e-05 | AD45: =+IF(INDEX($K45:$O45,1,aux!$AL$1)>0,(O45/INDEX($K45:$O45,1,aux!$AL$1))^(1/($O$3-INDEX($K$3:$O$3,1,aux!$AL$1)))-1,"n.d.") -> -1 | AE45: =IF(INDEX($K45:$O45,1,aux!$AL$1)>0,(O45-INDEX($K45:$O45,1,aux!$AL$1))/INDEX($K45:$O45,1,aux!$AL$1),"n.d.") -> -1
A46: 38f | B46: Tall oil, essências e colofónias (NC 3803,3805,3806) (f) | C46: 463.961 | D46: 329.455 | E46: 27.281 | F46: 0 | G46: 0 | H46: 164.1394 | I46: 0.1072456481 | J46: 0.001129315245 | K46: 128.197 | L46: 127.996 | M46: 120.125 | N46: 148.249 | O46: 182.955 | P46: 141.5044 | Q46: 0.009795004476 | R46: 0.003808465106 | S46: -22.635 | U46: =G46-INDEX($C46:$G46,1,aux!$AL$1) -> -463.961 | V46: 0.1371357211 | W46: -0.0268252116 | X46: =+IF(INDEX($C46:$G46,1,aux!$AL$1)>0,(G46/INDEX($C46:$G46,1,aux!$AL$1))^(1/($G$3-INDEX($C$3:$G$3,1,aux!$AL$1)))-1,"n.d.") -> -1 | Y46: =IF(INDEX($C46:$G46,1,aux!$AL$1)>0,(G46-INDEX($C46:$G46,1,aux!$AL$1))/INDEX($C46:$G46,1,aux!$AL$1),"n.d.") -> -1 | AA46: =O46-INDEX($K46:$O46,1,aux!$AL$1) -> 54.758 | AB46: 0.02170105038 | AC46: 0.003366343475 | AD46: =+IF(INDEX($K46:$O46,1,aux!$AL$1)>0,(O46/INDEX($K46:$O46,1,aux!$AL$1))^(1/($O$3-INDEX($K$3:$O$3,1,aux!$AL$1)))-1,"n.d.") -> 0.09299104862 | AE46: =IF(INDEX($K46:$O46,1,aux!$AL$1)>0,(O46-INDEX($K46:$O46,1,aux!$AL$1))/INDEX($K46:$O46,1,aux!$AL$1),"n.d.") -> 0.4271394806
A47: 44 | B47: Madeira e suas obras | C47: 2786.939 | D47: 18.764 | E47: 10.273 | F47: 9.949 | G47: 46.952 | H47: 574.5754 | I47: 0.3754169391 | J47: 0.003953205376 | K47: 1084.548 | L47: 689.055 | M47: 439.443 | N47: 574.324 | O47: 1101.012 | P47: 777.6764 | Q47: 0.05383114461 | R47: 0.02093046883 | S47: 203.101 | U47: =G47-INDEX($C47:$G47,1,aux!$AL$1) -> -2739.987 | V47: 0.8098743063 | W47: -0.1584200634 | X47: =+IF(INDEX($C47:$G47,1,aux!$AL$1)>0,(G47/INDEX($C47:$G47,1,aux!$AL$1))^(1/($G$3-INDEX($C$3:$G$3,1,aux!$AL$1)))-1,"n.d.") -> -0.6397270478 | Y47: =IF(INDEX($C47:$G47,1,aux!$AL$1)>0,(G47-INDEX($C47:$G47,1,aux!$AL$1))/INDEX($C47:$G47,1,aux!$AL$1),"n.d.") -> -0.9831528426 | AA47: =O47-INDEX($K47:$O47,1,aux!$AL$1) -> 16.464 | AB47: 0.006524819997 | AC47: 0.001012153091 | AD47: =+IF(INDEX($K47:$O47,1,aux!$AL$1)>0,(O47/INDEX($K47:$O47,1,aux!$AL$1))^(1/($O$3-INDEX($K$3:$O$3,1,aux!$AL$1)))-1,"n.d.") -> 0.003773714229 | AE47: =IF(INDEX($K47:$O47,1,aux!$AL$1)>0,(O47-INDEX($K47:$O47,1,aux!$AL$1))/INDEX($K47:$O47,1,aux!$AL$1),"n.d.") -> 0.0151805176
A48: 45 | B48: Cortiça e suas obras | C48: 428.521 | D48: 284.103 | E48: 30.068 | F48: 434.965 | G48: 0.486 | H48: 235.6286 | I48: 0.1539553691 | J48: 0.001621176695 | K48: 7708.667 | L48: 9040.743 | M48: 6720.696 | N48: 8349.448 | O48: 9397.99 | P48: 8243.5088 | Q48: 0.5706197517 | R48: 0.2218667095 | S48: 8007.8802 | U48: =G48-INDEX($C48:$G48,1,aux!$AL$1) -> -428.035 | V48: 0.1265168589 | W48: -0.02474804875 | X48: =+IF(INDEX($C48:$G48,1,aux!$AL$1)>0,(G48/INDEX($C48:$G48,1,aux!$AL$1))^(1/($G$3-INDEX($C$3:$G$3,1,aux!$AL$1)))-1,"n.d.") -> -0.816487336 | Y48: =IF(INDEX($C48:$G48,1,aux!$AL$1)>0,(G48-INDEX($C48:$G48,1,aux!$AL$1))/INDEX($C48:$G48,1,aux!$AL$1),"n.d.") -> -0.9988658666 | AA48: =O48-INDEX($K48:$O48,1,aux!$AL$1) -> 1689.323 | AB48: 0.6694927412 | AC48: 0.1038540754 | AD48: =+IF(INDEX($K48:$O48,1,aux!$AL$1)>0,(O48/INDEX($K48:$O48,1,aux!$AL$1))^(1/($O$3-INDEX($K$3:$O$3,1,aux!$AL$1)))-1,"n.d.") -> 0.05078514206 | AE48: =IF(INDEX($K48:$O48,1,aux!$AL$1)>0,(O48-INDEX($K48:$O48,1,aux!$AL$1))/INDEX($K48:$O48,1,aux!$AL$1),"n.d.") -> 0.2191459302
A49: 46 | B49: Obras de espartaria ou de cestaria | C49: 219.845 | D49: 282.9 | E49: 197.576 | F49: 254.92 | G49: 380.502 | H49: 267.1486 | I49: 0.1745499541 | J49: 0.001838041242 | K49: 0 | L49: 2.966 | M49: 0 | N49: 0 | O49: 15.918 | P49: 3.7768 | Q49: 0.0002614319619 | R49: 0.0001016492138 | S49: -263.3718 | U49: =G49-INDEX($C49:$G49,1,aux!$AL$1) -> 160.657 | V49: -0.04748634809 | W49: 0.009288836819 | X49: =+IF(INDEX($C49:$G49,1,aux!$AL$1)>0,(G49/INDEX($C49:$G49,1,aux!$AL$1))^(1/($G$3-INDEX($C$3:$G$3,1,aux!$AL$1)))-1,"n.d.") -> 0.1469912049 | Y49: =IF(INDEX($C49:$G49,1,aux!$AL$1)>0,(G49-INDEX($C49:$G49,1,aux!$AL$1))/INDEX($C49:$G49,1,aux!$AL$1),"n.d.") -> 0.7307739544 | AA49: =O49-INDEX($K49:$O49,1,aux!$AL$1) -> 15.918 | AB49: 0.00630843566 | AC49: 0.0009785867899 | AD49: =+IF(INDEX($K49:$O49,1,aux!$AL$1)>0,(O49/INDEX($K49:$O49,1,aux!$AL$1))^(1/($O$3-INDEX($K$3:$O$3,1,aux!$AL$1)))-1,"n.d.") -> n.d. | AE49: =IF(INDEX($K49:$O49,1,aux!$AL$1)>0,(O49-INDEX($K49:$O49,1,aux!$AL$1))/INDEX($K49:$O49,1,aux!$AL$1),"n.d.") -> n.d.
A50: 47 | B50: Pastas de madeira | C50: 0 | D50: 0 | E50: 0 | F50: 0 | G50: 0 | H50: 0 | I50: 0 | J50: 0 | K50: 0.784 | L50: 0.036 | M50: 0 | N50: 0 | O50: 0 | P50: 0.164 | Q50: 1.135216102e-05 | R50: 4.413914178e-06 | S50: 0.164 | U50: =G50-INDEX($C50:$G50,1,aux!$AL$1) -> 0 | V50: 0 | W50: 0 | X50: =+IF(INDEX($C50:$G50,1,aux!$AL$1)>0,(G50/INDEX($C50:$G50,1,aux!$AL$1))^(1/($G$3-INDEX($C$3:$G$3,1,aux!$AL$1)))-1,"n.d.") -> n.d. | Y50: =IF(INDEX($C50:$G50,1,aux!$AL$1)>0,(G50-INDEX($C50:$G50,1,aux!$AL$1))/INDEX($C50:$G50,1,aux!$AL$1),"n.d.") -> n.d. | AA50: =O50-INDEX($K50:$O50,1,aux!$AL$1) -> -0.784 | AB50: -0.0003107057141 | AC50: -4.819776625e-05 | AD50: =+IF(INDEX($K50:$O50,1,aux!$AL$1)>0,(O50/INDEX($K50:$O50,1,aux!$AL$1))^(1/($O$3-INDEX($K$3:$O$3,1,aux!$AL$1)))-1,"n.d.") -> -1 | AE50: =IF(INDEX($K50:$O50,1,aux!$AL$1)>0,(O50-INDEX($K50:$O50,1,aux!$AL$1))/INDEX($K50:$O50,1,aux!$AL$1),"n.d.") -> -1
A51: 48 | B51: Papel e cartão | C51: 33.237 | D51: 121.279 | E51: 22.576 | F51: 23.758 | G51: 35.28 | H51: 47.226 | I51: 0.03085659491 | J51: 0.0003249252875 | K51: 7263.163 | L51: 3699.063 | M51: 2597.519 | N51: 4827.419 | O51: 8011.343 | P51: 5279.7014 | Q51: 0.3654635393 | R51: 0.1420984687 | S51: 5232.4754 | U51: =G51-INDEX($C51:$G51,1,aux!$AL$1) -> 2.043 | V51: -0.0006038617 | W51: 0.0001181217975 | X51: =+IF(INDEX($C51:$G51,1,aux!$AL$1)>0,(G51/INDEX($C51:$G51,1,aux!$AL$1))^(1/($G$3-INDEX($C$3:$G$3,1,aux!$AL$1)))-1,"n.d.") -> 0.01502488505 | Y51: =IF(INDEX($C51:$G51,1,aux!$AL$1)>0,(G51-INDEX($C51:$G51,1,aux!$AL$1))/INDEX($C51:$G51,1,aux!$AL$1),"n.d.") -> 0.06146764148 | AA51: =O51-INDEX($K51:$O51,1,aux!$AL$1) -> 748.18 | AB51: 0.2965099505 | AC51: 0.04599566933 | AD51: =+IF(INDEX($K51:$O51,1,aux!$AL$1)>0,(O51/INDEX($K51:$O51,1,aux!$AL$1))^(1/($O$3-INDEX($K$3:$O$3,1,aux!$AL$1)))-1,"n.d.") -> 0.02481360871 | AE51: =IF(INDEX($K51:$O51,1,aux!$AL$1)>0,(O51-INDEX($K51:$O51,1,aux!$AL$1))/INDEX($K51:$O51,1,aux!$AL$1),"n.d.") -> 0.1030102174
A52: Subtotal Florestas | C52: 4032.596 | D52: 1245.931 | E52: 754.154 | F52: 970.445 | G52: 649.371 | H52: 1530.4994 | I52: 1 | J52: 0.01053017316 | K52: 16185.93 | L52: 13560.572 | M52: 9877.783 | N52: 13899.44 | O52: 18709.218 | P52: 14446.5886 | Q52: 1 | R52: 0.3888170868 | S52: 12916.0892 | U52: =G52-INDEX($C52:$G52,1,aux!$AL$1) -> -3383.225 | V52: 1 | W52: -0.1956106796 | X52: =+IF(INDEX($C52:$G52,1,aux!$AL$1)>0,(G52/INDEX($C52:$G52,1,aux!$AL$1))^(1/($G$3-INDEX($C$3:$G$3,1,aux!$AL$1)))-1,"n.d.") -> -0.3665285539 | Y52: =IF(INDEX($C52:$G52,1,aux!$AL$1)>0,(G52-INDEX($C52:$G52,1,aux!$AL$1))/INDEX($C52:$G52,1,aux!$AL$1),"n.d.") -> -0.8389694876 | AA52: =O52-INDEX($K52:$O52,1,aux!$AL$1) -> 2523.288 | AB52: 1 | AC52: 0.1551235271 | AD52: =+IF(INDEX($K52:$O52,1,aux!$AL$1)>0,(O52/INDEX($K52:$O52,1,aux!$AL$1))^(1/($O$3-INDEX($K$3:$O$3,1,aux!$AL$1)))-1,"n.d.") -> 0.03688237983 | AE52: =IF(INDEX($K52:$O52,1,aux!$AL$1)>0,(O52-INDEX($K52:$O52,1,aux!$AL$1))/INDEX($K52:$O52,1,aux!$AL$1),"n.d.") -> 0.1558939153
B53: TOTAL | C53: 154525.966 | D53: 117450.12 | E53: 159234.889 | F53: 123688.26 | G53: 171821.673 | H53: 145344.1816 | J53: 1 | K53: 32336.984 | L53: 38334.248 | M53: 28913.932 | N53: 37587.692 | O53: 48603.298 | P53: 37155.2308 | R53: 1 | S53: -108188.9508 | U53: =G53-INDEX($C53:$G53,1,aux!$AL$1) -> 17295.707 | W53: 1 | X53: =+IF(INDEX($C53:$G53,1,aux!$AL$1)>0,(G53/INDEX($C53:$G53,1,aux!$AL$1))^(1/($G$3-INDEX($C$3:$G$3,1,aux!$AL$1)))-1,"n.d.") -> 0.02687863718 | Y53: =IF(INDEX($C53:$G53,1,aux!$AL$1)>0,(G53-INDEX($C53:$G53,1,aux!$AL$1))/INDEX($C53:$G53,1,aux!$AL$1),"n.d.") -> 0.1119275126 | AA53: =O53-INDEX($K53:$O53,1,aux!$AL$1) -> 16266.314 | AC53: 1 | AD53: =+IF(INDEX($K53:$O53,1,aux!$AL$1)>0,(O53/INDEX($K53:$O53,1,aux!$AL$1))^(1/($O$3-INDEX($K$3:$O$3,1,aux!$AL$1)))-1,"n.d.") -> 0.1072394653 | AE53: =IF(INDEX($K53:$O53,1,aux!$AL$1)>0,(O53-INDEX($K53:$O53,1,aux!$AL$1))/INDEX($K53:$O53,1,aux!$AL$1),"n.d.") -> 0.5030250811
B54: a - agrícola e agroalimentar; p - pescas; f - florestas
A55: Fonte: GPP a partir de dados INE/Comércio Internacional (2022 definitivos) | S55: 2023-08-22T16:46:54.380

Sheet 5.2_var
A1: ="Principais contributos por produto para a variação das trocas comerciais PT-África do Sul_x000D_ no período " & INDEX('5.2'!K3:N3,1,aux!AL1) & "-2022 (NC 2 dígitos - milhares de euros) Produtos agrícolas e agroalimentares, do mar e da floresta" -> Principais contributos por produto para a variação das trocas comerciais PT-África do Sul no período 2018-2022 (NC 2 dígitos - milhares de euros) Produtos agrícolas e agroalimentares, do mar e da floresta
E5: aumento das importações | J5: aumento das exportações
E17: redução das importações | J17: redução das exportações
A28: Fonte: GPP a partir de dados INE/Comércio Internacional (2022 definitivos) | F28: a - agrícola e agroalimentar; p - mar; f - florestas | H28: ='3'!Y116 -> 2023-08-22T16:46:54.380
A29: Cód. NC | B29: Descritivo | C29: ="Variação das Importações " & INDEX('5.2'!K3:N3,1,aux!AL1) & "-"& '5.2'!O3 &"" -> Variação das Importações 2018-2022 | F29: Cód. NC | G29: Descritivo | H29: ="Variação das Exportações " & INDEX('5.2'!K3:N3,1,aux!AL1) & "-"& '5.2'!O3 &"" -> Variação das Exportações 2018-2022
C30: variação total em valor | D30: % do aumento/ redução total | H30: variação total em valor | I30: % do aumento/ redução total
A31: =IF(C31>0,aux!AU6,"") -> 10 | B31: =IF(C31>0,aux!AV6,"") -> Cereais | C31: =IF(aux!AW6>0,aux!AW6,0) -> 17523.149 | D31: =IF(SUM($C$31:$C$41)<>0,C31/SUM($C$31:$C$41),0) -> 0.4759092123 | F31: =IF(H31>0,aux!AZ6,"") -> 15 | G31: =IF(H31>0,aux!BA6,"") -> Gorduras e óleos animais ou vegetais | H31: =IF(aux!BB6>0,aux!BB6,0) -> 5159.734 | I31: =IF(SUM($H$31:$H$41)<>0,H31/SUM($H$31:$H$41),0) -> 0.292856842
A32: =IF(C32>0,aux!AU7,"") -> 08 | B32: =IF(C32>0,aux!AV7,"") -> Frutas | C32: =IF(aux!AW7>0,aux!AW7,0) -> 17089.112 | D32: =IF(SUM($C$31:$C$41)<>0,C32/SUM($C$31:$C$41),0) -> 0.4641212507 | F32: =IF(H32>0,aux!AZ7,"") -> 11 | G32: =IF(H32>0,aux!BA7,"") -> Produtos da indústria de moagem e outros | H32: =IF(aux!BB7>0,aux!BB7,0) -> 3060.89 | I32: =IF(SUM($H$31:$H$41)<>0,H32/SUM($H$31:$H$41),0) -> 0.173730386
A33: =IF(C33>0,aux!AU8,"") -> 12 | B33: =IF(C33>0,aux!AV8,"") -> Sementes e frutos oleaginosos | C33: =IF(aux!AW8>0,aux!AW8,0) -> 1064.081 | D33: 0.02889925495 | F33: =IF(H33>0,aux!AZ8,"") -> 45 | G33: =IF(H33>0,aux!BA8,"") -> Cortiça e suas obras | H33: =IF(aux!BB8>0,aux!BB8,0) -> 1689.323 | I33: 0.09588281081
A34: =IF(C34>0,aux!AU9,"") -> 16p | B34: =IF(C34>0,aux!AV9,"") -> Preparações e conservas de peixes ou crustáceos (NC 1604-05) (p) | C34: =IF(aux!AW9>0,aux!AW9,0) -> 344.887 | D34: 0.009366746839 | F34: =IF(H34>0,aux!AZ9,"") -> 19a | G34: =IF(H34>0,aux!BA9,"") -> Preparações à base de cereais (exc. NC 19022010) (a) | H34: =IF(aux!BB9>0,aux!BB9,0) -> 1615.9 | I34: 0.09171545879
A35: =IF(C35>0,aux!AU10,"") -> 22 | B35: =IF(C35>0,aux!AV10,"") -> Bebidas, líquidos alcoólicos e vinagres | C35: =IF(aux!AW10>0,aux!AW10,0) -> 162.838 | D35: 0.004422498737 | F35: =IF(H35>0,aux!AZ10,"") -> 20 | G35: =IF(H35>0,aux!BA10,"") -> Preparações de produtos vegetais | H35: =IF(aux!BB10>0,aux!BB10,0) -> 1217.168 | I35: 0.06908417696
A36: =IF(C36>0,aux!AU11,"") -> 46 | B36: =IF(C36>0,aux!AV11,"") -> Obras de espartaria ou de cestaria | C36: =IF(aux!AW11>0,aux!AW11,0) -> 160.657 | D36: 0.004363265205 | F36: =IF(H36>0,aux!AZ11,"") -> 04 | G36: =IF(H36>0,aux!BA11,"") -> Leite e laticínios; ovos; mel, etc. | H36: =IF(aux!BB11>0,aux!BB11,0) -> 1093.657 | I36: 0.06207392383
A37: =IF(C37>0,aux!AU12,"") -> 06 | B37: =IF(C37>0,aux!AV12,"") -> Plantas vivas e produtos de floricultura | C37: =IF(aux!AW12>0,aux!AW12,0) -> 156.954 | D37: 0.004262695849 | F37: =IF(H37>0,aux!AZ12,"") -> 38a | G37: =IF(H37>0,aux!BA12,"") -> Agentes de acabamento, ácidos gordos, sorbitol (NC 380910, 382311-12-13-19-70, 382460) (a) | H37: =IF(aux!BB12>0,aux!BB12,0) -> 844.224 | I37: 0.04791657373
A38: =IF(C38>0,aux!AU13,"") -> 15 | B38: =IF(C38>0,aux!AV13,"") -> Gorduras e óleos animais ou vegetais | C38: =IF(aux!AW13>0,aux!AW13,0) -> 142.1 | D38: 0.003859277751 | F38: =IF(H38>0,aux!AZ13,"") -> 48 | G38: =IF(H38>0,aux!BA13,"") -> Papel e cartão | H38: =IF(aux!BB13>0,aux!BB13,0) -> 748.18 | I38: 0.04246529609
A39: =IF(C39>0,aux!AU14,"") -> 13f | B39: =IF(C39>0,aux!AV14,"") -> Gomas e resinas (NC 1301) (f) | C39: =IF(aux!AW14>0,aux!AW14,0) -> 86.058 | D39: 0.002337239442 | F39: =IF(H39>0,aux!AZ14,"") -> 22 | G39: =IF(H39>0,aux!BA14,"") -> Bebidas, líquidos alcoólicos e vinagres | H39: =IF(aux!BB14>0,aux!BB14,0) -> 543.825 | I39: 0.03086648888
A40: =IF(C40>0,aux!AU15,"") -> 33 | B40: =IF(C40>0,aux!AV15,"") -> Óleos essenciais e resinóides (NC 3301) | C40: =IF(aux!AW15>0,aux!AW15,0) -> 47.302 | D40: 0.001284669642 | F40: =IF(H40>0,aux!AZ15,"") -> 16p | G40: =IF(H40>0,aux!BA15,"") -> Preparações e conservas de peixes ou crustáceos (NC 1604-05) (p) | H40: =IF(aux!BB15>0,aux!BB15,0) -> 422.827 | I40: 0.02399886892
B41: Outros contributos para o aumento das importações | C41: =SUMIF(aux!AW16:AW51,">0") -> 43.223 | D41: 0.001173888545 | G41: Outros contributos para o aumento das exportações | H41: =SUMIF(aux!BB16:BB51,">0") -> 1222.894 | I41: 0.069409174
B42: Outros contributos para a redução das importações | C42: =SUMIF(aux!AW6:AW41,"<0") -> -35.739 | D42: =IF(SUM($C$42:$C$52)<>0,C42/SUM($C$42:$C$52),0) -> 0.001830454972 | G42: Outros contributos para a redução das exportações | H42: =SUMIF(aux!BB6:BB41,"<0") -> -0.16 | I42: =IF(SUM($H$42:$H$52)<>0,H42/SUM($H$42:$H$52),0) -> 0.0001183162416
A43: =IF(C43<>0,aux!AU42,"") -> 41 | B43: =IF(C43<0,aux!AV42,"") -> Couro e peles em bruto (NC 4101 a 4103) | C43: =IF(aux!AW42<0,aux!AW42,0) -> -27.129 | D43: =IF(SUM($C$42:$C$52)<>0,C43/SUM($C$42:$C$52),0) -> 0.001389474047 | F43: =IF(H43<>0,aux!AZ42,"") -> 25 | G43: =IF(H43<>0,aux!BA42,"") -> Sal e cloreto de sódio puro; água do mar (NC 2501) | H43: =IF(aux!BB42<0,aux!BB42,0) -> -0.222 | I43: =IF(SUM($H$42:$H$52)<>0,H43/SUM($H$42:$H$52),0) -> 0.0001641637852
A44: =IF(C44<>0,aux!AU43,"") -> 09 | B44: =IF(C44<0,aux!AV43,"") -> Café, chá, mate e especiarias | C44: =IF(aux!AW43<0,aux!AW43,0) -> -41.062 | D44: 0.002103084644 | F44: =IF(H44<>0,aux!AZ43,"") -> 02 | G44: =IF(H44<>0,aux!BA43,"") -> Carnes e miudezas | H44: =IF(aux!BB43<0,aux!BB43,0) -> -0.363 | I44: 0.0002684299731
A45: =IF(C45<>0,aux!AU44,"") -> 20 | B45: =IF(C45<0,aux!AV44,"") -> Preparações de produtos vegetais | C45: =IF(aux!AW44<0,aux!AW44,0) -> -83.535 | D45: 0.004278436893 | F45: =IF(H45<>0,aux!AZ44,"") -> 13f | G45: =IF(H45<>0,aux!BA44,"") -> Gomas e resinas (NC 1301) (f) | H45: =IF(aux!BB44<0,aux!BB44,0) -> -0.571 | I45: 0.0004222410871
A46: =IF(C46<>0,aux!AU45,"") -> 07 | B46: =IF(C46<0,aux!AV45,"") -> Produtos hortícolas | C46: =IF(aux!AW45<0,aux!AW45,0) -> -256.5 | D46: 0.01313723664 | F46: =IF(H46<>0,aux!AZ45,"") -> 47 | G46: =IF(H46<>0,aux!BA45,"") -> Pastas de madeira | H46: =IF(aux!BB45<0,aux!BB45,0) -> -0.784 | I46: 0.0005797495837
A47: =IF(C47<>0,aux!AU46,"") -> 45 | B47: =IF(C47<0,aux!AV46,"") -> Cortiça e suas obras | C47: =IF(aux!AW46<0,aux!AW46,0) -> -428.035 | D47: 0.02192279566 | F47: =IF(H47<>0,aux!AZ46,"") -> 24 | G47: =IF(H47<>0,aux!BA46,"") -> Tabaco | H47: =IF(aux!BB46<0,aux!BB46,0) -> -3.29 | I47: 0.002432877717
A48: =IF(C48<>0,aux!AU47,"") -> 38f | B48: =IF(C48<0,aux!AV47,"") -> Tall oil, essências e colofónias (NC 3803,3805,3806) (f) | C48: =IF(aux!AW47<0,aux!AW47,0) -> -463.961 | D48: 0.02376282827 | F48: =IF(H48<>0,aux!AZ47,"") -> 13a | G48: =IF(H48<>0,aux!BA47,"") -> Sucos e extratos vegetais (exc. NC 1301) (a) | H48: =IF(aux!BB47<0,aux!BB47,0) -> -4.004 | I48: 0.002960863945
A49: =IF(C49<>0,aux!AU48,"") -> 52 | B49: =IF(C49<0,aux!AV48,"") -> Algodão (NC 5201-5203) | C49: =IF(aux!AW48<0,aux!AW48,0) -> -1232.422 | D49: 0.06312132343 | F49: =IF(H49<>0,aux!AZ48,"") -> 29 | G49: =IF(H49<>0,aux!BA48,"") -> Manitol e sorbitol (NC 290543; 290544) | H49: =IF(aux!BB48<0,aux!BB48,0) -> -35.754 | I49: 0.02643924313
A50: =IF(C50<>0,aux!AU49,"") -> 44 | B50: =IF(C50<0,aux!AV49,"") -> Madeira e suas obras | C50: =IF(aux!AW49<0,aux!AW49,0) -> -2739.987 | D50: 0.1403347276 | F50: =IF(H50<>0,aux!AZ49,"") -> 16a | G50: =IF(H50<>0,aux!BA49,"") -> Preparações de carnes (exc. NC 1604-05) (a) | H50: =IF(aux!BB49<0,aux!BB49,0) -> -53.446 | I50: 0.03952206154
A51: =IF(C51<>0,aux!AU50,"") -> 17 | B51: =IF(C51<0,aux!AV50,"") -> Açúcares e produtos de confeitaria | C51: =IF(aux!AW50<0,aux!AW50,0) -> -4056.55 | D51: 0.2077655256 | F51: =IF(H51<>0,aux!AZ50,"") -> 08 | G51: =IF(H51<>0,aux!BA50,"") -> Frutas | H51: =IF(aux!BB50<0,aux!BB50,0) -> -63.772 | I51: 0.04715789598
A52: =IF(C52<>0,aux!AU51,"") -> 03 | B52: =IF(C52<0,aux!AV51,"") -> Peixes e crustáceos | C52: =IF(aux!AW51<0,aux!AW51,0) -> -10159.734 | D52: 0.5203541123 | F52: =IF(H52<>0,aux!AZ51,"") -> 21 | G52: =IF(H52<>0,aux!BA51,"") -> Preparações alimentícias diversas | H52: =IF(aux!BB51<0,aux!BB51,0) -> -1189.942 | I52: 0.879934157
A53: TOTAL | C53: =SUM(C31:C52) -> 17295.707 | F53: TOTAL | H53: =SUM(H31:H52) -> 16266.314

Sheet 5.2A
A1: Trocas comerciais Portugal-África do Sul 2018-2022 em milhares de euros (NC 4 dígitos) | G1: Produtos agrícolas e agroalimentares, do mar e da floresta
A2: Cód. NC | B2: Descritivo | C2: Importações | K2: Exportações | S2: Saldo quinquénio (exp-imp) | T2: Evolução das importações | U2: =+"Variação das Importações " & INDEX(K3:N3,1,aux!AL1) & "-"& '5.2'!O3 &"" -> Variação das Importações 2018-2022 | Z2: Evolução das exportações | AA2: ="Variação das Exportações " & INDEX(K3:N3,1,aux!AL1) & "-"& '5.2'!O3 &"" -> Variação das Exportações 2018-2022
C3: 2018 | D3: 2019 | E3: 2020 | F3: 2021 | G3: 2022 | H3: média quinquénio | I3: % Subtot | J3: % Total | K3: 2018 | L3: 2019 | M3: 2020 | N3: 2021 | O3: 2022 | P3: média quinquénio | Q3: % Subtot | R3: % Total | U3: variação total em valor | V3: % no subtotal de variação | W3: % no total de variação | X3: taxa de variação média anual | Y3: taxa de variação total | AA3: variação total em valor | AB3: % no subtotal de variação | AC3: % no total de variação | AD3: taxa de variação média anual | AE3: taxa de variação total | AX3: filtro
A4: 0101 | B4: Equídeos vivos | C4: 0 | D4: 0 | E4: 0 | F4: 0 | G4: 0 | H4: 0 | I4: 0 | J4: 0 | K4: 0 | L4: 0 | M4: 0 | N4: 0 | O4: 0 | P4: 0 | Q4: 0 | R4: 0 | S4: 0 | U4: =G4-INDEX($C4:$G4,1,aux!$AL$1) -> 0 | V4: =IF($U$237<>0,U4/$U$237, "n.d.") -> 0 | W4: =IF($U$322<>0,U4/$U$322, "n.d.") -> 0 | X4: =+IF(INDEX($C4:$G4,1,aux!$AL$1)>0,(G4/INDEX($C4:$G4,1,aux!$AL$1))^(1/($G$3-INDEX($C$3:$G$3,1,aux!$AL$1)))-1,"n.d.") -> n.d. | Y4: =IF(INDEX($C4:$G4,1,aux!$AL$1)>0,(G4-INDEX($C4:$G4,1,aux!$AL$1))/INDEX($C4:$G4,1,aux!$AL$1),"n.d.") -> n.d. | AA4: =O4-INDEX($K4:$O4,1,aux!$AL$1) -> 0 | AB4: =IF($AA$237<>0,AA4/$AA$237, "n.d.") -> 0 | AC4: =IF($AA$322<>0,AA4/$AA$322, "n.d.") -> 0 | AD4: =+IF(INDEX($K4:$O4,1,aux!$AL$1)>0,(O4/INDEX($K4:$O4,1,aux!$AL$1))^(1/($O$3-INDEX($K$3:$O$3,1,aux!$AL$1)))-1,"n.d.") -> n.d. | AE4: =IF(INDEX($K4:$O4,1,aux!$AL$1)>0,(O4-INDEX($K4:$O4,1,aux!$AL$1))/INDEX($K4:$O4,1,aux!$AL$1),"n.d.") -> n.d. | AX4: =+LEFT(A4,2) -> 01
A5: 0102 | B5: Bovinos vivos | C5: 0 | D5: 0 | E5: 0 | F5: 0 | G5: 0 | H5: 0 | I5: 0 | J5: 0 | K5: 0 | L5: 0 | M5: 0 | N5: 0 | O5: 0 | P5: 0 | Q5: 0 | R5: 0 | S5: 0 | U5: =G5-INDEX($C5:$G5,1,aux!$AL$1) -> 0 | V5: 0 | W5: 0 | X5: =+IF(INDEX($C5:$G5,1,aux!$AL$1)>0,(G5/INDEX($C5:$G5,1,aux!$AL$1))^(1/($G$3-INDEX($C$3:$G$3,1,aux!$AL$1)))-1,"n.d.") -> n.d. | Y5: =IF(INDEX($C5:$G5,1,aux!$AL$1)>0,(G5-INDEX($C5:$G5,1,aux!$AL$1))/INDEX($C5:$G5,1,aux!$AL$1),"n.d.") -> n.d. | AA5: =O5-INDEX($K5:$O5,1,aux!$AL$1) -> 0 | AB5: 0 | AC5: 0 | AD5: =+IF(INDEX($K5:$O5,1,aux!$AL$1)>0,(O5/INDEX($K5:$O5,1,aux!$AL$1))^(1/($O$3-INDEX($K$3:$O$3,1,aux!$AL$1)))-1,"n.d.") -> n.d. | AE5: =IF(INDEX($K5:$O5,1,aux!$AL$1)>0,(O5-INDEX($K5:$O5,1,aux!$AL$1))/INDEX($K5:$O5,1,aux!$AL$1),"n.d.") -> n.d. | AX5: 01
A6: 0103 | B6: Suínos vivos | C6: 0 | D6: 0 | E6: 0 | F6: 0 | G6: 0 | H6: 0 | I6: 0 | J6: 0 | K6: 0 | L6: 0 | M6: 0 | N6: 0 | O6: 0 | P6: 0 | Q6: 0 | R6: 0 | S6: 0 | U6: =G6-INDEX($C6:$G6,1,aux!$AL$1) -> 0 | V6: 0 | W6: 0 | X6: =+IF(INDEX($C6:$G6,1,aux!$AL$1)>0,(G6/INDEX($C6:$G6,1,aux!$AL$1))^(1/($G$3-INDEX($C$3:$G$3,1,aux!$AL$1)))-1,"n.d.") -> n.d. | Y6: =IF(INDEX($C6:$G6,1,aux!$AL$1)>0,(G6-INDEX($C6:$G6,1,aux!$AL$1))/INDEX($C6:$G6,1,aux!$AL$1),"n.d.") -> n.d. | AA6: =O6-INDEX($K6:$O6,1,aux!$AL$1) -> 0 | AB6: 0 | AC6: 0 | AD6: =+IF(INDEX($K6:$O6,1,aux!$AL$1)>0,(O6/INDEX($K6:$O6,1,aux!$AL$1))^(1/($O$3-INDEX($K$3:$O$3,1,aux!$AL$1)))-1,"n.d.") -> n.d. | AE6: =IF(INDEX($K6:$O6,1,aux!$AL$1)>0,(O6-INDEX($K6:$O6,1,aux!$AL$1))/INDEX($K6:$O6,1,aux!$AL$1),"n.d.") -> n.d. | AX6: 01
A7: 0104 | B7: Ovinos ou caprinos vivos | C7: 0 | D7: 0 | E7: 0 | F7: 0 | G7: 0 | H7: 0 | I7: 0 | J7: 0 | K7: 0 | L7: 0 | M7: 0 | N7: 0 | O7: 0 | P7: 0 | Q7: 0 | R7: 0 | S7: 0 | U7: =G7-INDEX($C7:$G7,1,aux!$AL$1) -> 0 | V7: 0 | W7: 0 | X7: =+IF(INDEX($C7:$G7,1,aux!$AL$1)>0,(G7/INDEX($C7:$G7,1,aux!$AL$1))^(1/($G$3-INDEX($C$3:$G$3,1,aux!$AL$1)))-1,"n.d.") -> n.d. | Y7: =IF(INDEX($C7:$G7,1,aux!$AL$1)>0,(G7-INDEX($C7:$G7,1,aux!$AL$1))/INDEX($C7:$G7,1,aux!$AL$1),"n.d.") -> n.d. | AA7: =O7-INDEX($K7:$O7,1,aux!$AL$1) -> 0 | AB7: 0 | AC7: 0 | AD7: =+IF(INDEX($K7:$O7,1,aux!$AL$1)>0,(O7/INDEX($K7:$O7,1,aux!$AL$1))^(1/($O$3-INDEX($K$3:$O$3,1,aux!$AL$1)))-1,"n.d.") -> n.d. | AE7: =IF(INDEX($K7:$O7,1,aux!$AL$1)>0,(O7-INDEX($K7:$O7,1,aux!$AL$1))/INDEX($K7:$O7,1,aux!$AL$1),"n.d.") -> n.d. | AX7: 01
A8: 0105 | B8: Aves de capoeira vivas | C8: 0 | D8: 0 | E8: 0 | F8: 0 | G8: 0 | H8: 0 | I8: 0 | J8: 0 | K8: 0 | L8: 0 | M8: 0 | N8: 0 | O8: 0 | P8: 0 | Q8: 0 | R8: 0 | S8: 0 | U8: =G8-INDEX($C8:$G8,1,aux!$AL$1) -> 0 | V8: 0 | W8: 0 | X8: =+IF(INDEX($C8:$G8,1,aux!$AL$1)>0,(G8/INDEX($C8:$G8,1,aux!$AL$1))^(1/($G$3-INDEX($C$3:$G$3,1,aux!$AL$1)))-1,"n.d.") -> n.d. | Y8: =IF(INDEX($C8:$G8,1,aux!$AL$1)>0,(G8-INDEX($C8:$G8,1,aux!$AL$1))/INDEX($C8:$G8,1,aux!$AL$1),"n.d.") -> n.d. | AA8: =O8-INDEX($K8:$O8,1,aux!$AL$1) -> 0 | AB8: 0 | AC8: 0 | AD8: =+IF(INDEX($K8:$O8,1,aux!$AL$1)>0,(O8/INDEX($K8:$O8,1,aux!$AL$1))^(1/($O$3-INDEX($K$3:$O$3,1,aux!$AL$1)))-1,"n.d.") -> n.d. | AE8: =IF(INDEX($K8:$O8,1,aux!$AL$1)>0,(O8-INDEX($K8:$O8,1,aux!$AL$1))/INDEX($K8:$O8,1,aux!$AL$1),"n.d.") -> n.d. | AX8: 01
A9: 0106 | B9: Outros animais vivos | C9: 2.534 | D9: 1.78 | E9: 13.218 | F9: 27.295 | G9: 43.506 | H9: 17.6666 | I9: 0.0001570063835 | J9: 0.0001215501013 | K9: 2.29 | L9: 1.41 | M9: 1.32 | N9: 2.325 | O9: 2.13 | P9: 1.895 | Q9: 8.67865535e-05 | R9: 5.100224004e-05 | S9: -15.7716 | U9: =G9-INDEX($C9:$G9,1,aux!$AL$1) -> 40.972 | V9: 0.001343523457 | W9: 0.002368911546 | X9: =+IF(INDEX($C9:$G9,1,aux!$AL$1)>0,(G9/INDEX($C9:$G9,1,aux!$AL$1))^(1/($G$3-INDEX($C$3:$G$3,1,aux!$AL$1)))-1,"n.d.") -> 1.0355681 | Y9: =IF(INDEX($C9:$G9,1,aux!$AL$1)>0,(G9-INDEX($C9:$G9,1,aux!$AL$1))/INDEX($C9:$G9,1,aux!$AL$1),"n.d.") -> 16.16890292 | AA9: =O9-INDEX($K9:$O9,1,aux!$AL$1) -> -0.16 | AB9: -1.203358393e-05 | AC9: -9.836278828e-06 | AD9: =+IF(INDEX($K9:$O9,1,aux!$AL$1)>0,(O9/INDEX($K9:$O9,1,aux!$AL$1))^(1/($O$3-INDEX($K$3:$O$3,1,aux!$AL$1)))-1,"n.d.") -> -0.01794450447 | AE9: =IF(INDEX($K9:$O9,1,aux!$AL$1)>0,(O9-INDEX($K9:$O9,1,aux!$AL$1))/INDEX($K9:$O9,1,aux!$AL$1),"n.d.") -> -0.06986899563 | AX9: 01
A10: 01SS | B10: Animais vivos | C10: 0 | D10: 0 | E10: 0 | F10: 0 | G10: 0 | H10: 0 | I10: 0 | J10: 0 | K10: 0 | L10: 0 | M10: 0 | N10: 0 | O10: 0 | P10: 0 | Q10: 0 | R10: 0 | S10: 0 | U10: =G10-INDEX($C10:$G10,1,aux!$AL$1) -> 0 | V10: 0 | W10: 0 | X10: =+IF(INDEX($C10:$G10,1,aux!$AL$1)>0,(G10/INDEX($C10:$G10,1,aux!$AL$1))^(1/($G$3-INDEX($C$3:$G$3,1,aux!$AL$1)))-1,"n.d.") -> n.d. | Y10: =IF(INDEX($C10:$G10,1,aux!$AL$1)>0,(G10-INDEX($C10:$G10,1,aux!$AL$1))/INDEX($C10:$G10,1,aux!$AL$1),"n.d.") -> n.d. | AA10: =O10-INDEX($K10:$O10,1,aux!$AL$1) -> 0 | AB10: 0 | AC10: 0 | AD10: =+IF(INDEX($K10:$O10,1,aux!$AL$1)>0,(O10/INDEX($K10:$O10,1,aux!$AL$1))^(1/($O$3-INDEX($K$3:$O$3,1,aux!$AL$1)))-1,"n.d.") -> n.d. | AE10: =IF(INDEX($K10:$O10,1,aux!$AL$1)>0,(O10-INDEX($K10:$O10,1,aux!$AL$1))/INDEX($K10:$O10,1,aux!$AL$1),"n.d.") -> n.d. | AX10: 01
A11: 0201 | B11: Carnes de bovino, frescas ou refrigeradas | C11: 0 | D11: 0 | E11: 0 | F11: 0 | G11: 0 | H11: 0 | I11: 0 | J11: 0 | K11: 0 | L11: 0 | M11: 0 | N11: 0 | O11: 0 | P11: 0 | Q11: 0 | R11: 0 | S11: 0 | U11: =G11-INDEX($C11:$G11,1,aux!$AL$1) -> 0 | V11: 0 | W11: 0 | X11: =+IF(INDEX($C11:$G11,1,aux!$AL$1)>0,(G11/INDEX($C11:$G11,1,aux!$AL$1))^(1/($G$3-INDEX($C$3:$G$3,1,aux!$AL$1)))-1,"n.d.") -> n.d. | Y11: =IF(INDEX($C11:$G11,1,aux!$AL$1)>0,(G11-INDEX($C11:$G11,1,aux!$AL$1))/INDEX($C11:$G11,1,aux!$AL$1),"n.d.") -> n.d. | AA11: =O11-INDEX($K11:$O11,1,aux!$AL$1) -> 0 | AB11: 0 | AC11: 0 | AD11: =+IF(INDEX($K11:$O11,1,aux!$AL$1)>0,(O11/INDEX($K11:$O11,1,aux!$AL$1))^(1/($O$3-INDEX($K$3:$O$3,1,aux!$AL$1)))-1,"n.d.") -> n.d. | AE11: =IF(INDEX($K11:$O11,1,aux!$AL$1)>0,(O11-INDEX($K11:$O11,1,aux!$AL$1))/INDEX($K11:$O11,1,aux!$AL$1),"n.d.") -> n.d. | AX11: 02
A12: 0202 | B12: Carnes de bovino, congeladas | C12: 0 | D12: 0 | E12: 0 | F12: 0 | G12: 0 | H12: 0 | I12: 0 | J12: 0 | K12: 0 | L12: 0 | M12: 0 | N12: 0 | O12: 0 | P12: 0 | Q12: 0 | R12: 0 | S12: 0 | U12: =G12-INDEX($C12:$G12,1,aux!$AL$1) -> 0 | V12: 0 | W12: 0 | X12: =+IF(INDEX($C12:$G12,1,aux!$AL$1)>0,(G12/INDEX($C12:$G12,1,aux!$AL$1))^(1/($G$3-INDEX($C$3:$G$3,1,aux!$AL$1)))-1,"n.d.") -> n.d. | Y12: =IF(INDEX($C12:$G12,1,aux!$AL$1)>0,(G12-INDEX($C12:$G12,1,aux!$AL$1))/INDEX($C12:$G12,1,aux!$AL$1),"n.d.") -> n.d. | AA12: =O12-INDEX($K12:$O12,1,aux!$AL$1) -> 0 | AB12: 0 | AC12: 0 | AD12: =+IF(INDEX($K12:$O12,1,aux!$AL$1)>0,(O12/INDEX($K12:$O12,1,aux!$AL$1))^(1/($O$3-INDEX($K$3:$O$3,1,aux!$AL$1)))-1,"n.d.") -> n.d. | AE12: =IF(INDEX($K12:$O12,1,aux!$AL$1)>0,(O12-INDEX($K12:$O12,1,aux!$AL$1))/INDEX($K12:$O12,1,aux!$AL$1),"n.d.") -> n.d. | AX12: 02
A13: 0203 | B13: Carnes de suíno | C13: 0 | D13: 0 | E13: 0 | F13: 0 | G13: 0 | H13: 0 | I13: 0 | J13: 0 | K13: 0 | L13: 0 | M13: 0 | N13: 0 | O13: 0 | P13: 0 | Q13: 0 | R13: 0 | S13: 0 | U13: =G13-INDEX($C13:$G13,1,aux!$AL$1) -> 0 | V13: 0 | W13: 0 | X13: =+IF(INDEX($C13:$G13,1,aux!$AL$1)>0,(G13/INDEX($C13:$G13,1,aux!$AL$1))^(1/($G$3-INDEX($C$3:$G$3,1,aux!$AL$1)))-1,"n.d.") -> n.d. | Y13: =IF(INDEX($C13:$G13,1,aux!$AL$1)>0,(G13-INDEX($C13:$G13,1,aux!$AL$1))/INDEX($C13:$G13,1,aux!$AL$1),"n.d.") -> n.d. | AA13: =O13-INDEX($K13:$O13,1,aux!$AL$1) -> 0 | AB13: 0 | AC13: 0 | AD13: =+IF(INDEX($K13:$O13,1,aux!$AL$1)>0,(O13/INDEX($K13:$O13,1,aux!$AL$1))^(1/($O$3-INDEX($K$3:$O$3,1,aux!$AL$1)))-1,"n.d.") -> n.d. | AE13: =IF(INDEX($K13:$O13,1,aux!$AL$1)>0,(O13-INDEX($K13:$O13,1,aux!$AL$1))/INDEX($K13:$O13,1,aux!$AL$1),"n.d.") -> n.d. | AX13: 02
A14: 0204 | B14: Carnes de ovino ou caprino | C14: 0 | D14: 0 | E14: 0 | F14: 0 | G14: 0 | H14: 0 | I14: 0 | J14: 0 | K14: 0 | L14: 0 | M14: 0 | N14: 0 | O14: 0 | P14: 0 | Q14: 0 | R14: 0 | S14: 0 | U14: =G14-INDEX($C14:$G14,1,aux!$AL$1) -> 0 | V14: 0 | W14: 0 | X14: =+IF(INDEX($C14:$G14,1,aux!$AL$1)>0,(G14/INDEX($C14:$G14,1,aux!$AL$1))^(1/($G$3-INDEX($C$3:$G$3,1,aux!$AL$1)))-1,"n.d.") -> n.d. | Y14: =IF(INDEX($C14:$G14,1,aux!$AL$1)>0,(G14-INDEX($C14:$G14,1,aux!$AL$1))/INDEX($C14:$G14,1,aux!$AL$1),"n.d.") -> n.d. | AA14: =O14-INDEX($K14:$O14,1,aux!$AL$1) -> 0 | AB14: 0 | AC14: 0 | AD14: =+IF(INDEX($K14:$O14,1,aux!$AL$1)>0,(O14/INDEX($K14:$O14,1,aux!$AL$1))^(1/($O$3-INDEX($K$3:$O$3,1,aux!$AL$1)))-1,"n.d.") -> n.d. | AE14: =IF(INDEX($K14:$O14,1,aux!$AL$1)>0,(O14-INDEX($K14:$O14,1,aux!$AL$1))/INDEX($K14:$O14,1,aux!$AL$1),"n.d.") -> n.d. | AX14: 02
A15: 0205 | B15: Carnes de equídeo | C15: 0 | D15: 0 | E15: 0 | F15: 0 | G15: 0 | H15: 0 | I15: 0 | J15: 0 | K15: 0 | L15: 0 | M15: 0 | N15: 0 | O15: 0 | P15: 0 | Q15: 0 | R15: 0 | S15: 0 | U15: =G15-INDEX($C15:$G15,1,aux!$AL$1) -> 0 | V15: 0 | W15: 0 | X15: =+IF(INDEX($C15:$G15,1,aux!$AL$1)>0,(G15/INDEX($C15:$G15,1,aux!$AL$1))^(1/($G$3-INDEX($C$3:$G$3,1,aux!$AL$1)))-1,"n.d.") -> n.d. | Y15: =IF(INDEX($C15:$G15,1,aux!$AL$1)>0,(G15-INDEX($C15:$G15,1,aux!$AL$1))/INDEX($C15:$G15,1,aux!$AL$1),"n.d.") -> n.d. | AA15: =O15-INDEX($K15:$O15,1,aux!$AL$1) -> 0 | AB15: 0 | AC15: 0 | AD15: =+IF(INDEX($K15:$O15,1,aux!$AL$1)>0,(O15/INDEX($K15:$O15,1,aux!$AL$1))^(1/($O$3-INDEX($K$3:$O$3,1,aux!$AL$1)))-1,"n.d.") -> n.d. | AE15: =IF(INDEX($K15:$O15,1,aux!$AL$1)>0,(O15-INDEX($K15:$O15,1,aux!$AL$1))/INDEX($K15:$O15,1,aux!$AL$1),"n.d.") -> n.d. | AX15: 02
A16: 0206 | B16: Miudezas de bovino, suíno, ovino, caprino,equídeo | C16: 0 | D16: 0 | E16: 0 | F16: 0 | G16: 0 | H16: 0 | I16: 0 | J16: 0 | K16: 0 | L16: 0 | M16: 0 | N16: 0 | O16: 0 | P16: 0 | Q16: 0 | R16: 0 | S16: 0 | U16: =G16-INDEX($C16:$G16,1,aux!$AL$1) -> 0 | V16: 0 | W16: 0 | X16: =+IF(INDEX($C16:$G16,1,aux!$AL$1)>0,(G16/INDEX($C16:$G16,1,aux!$AL$1))^(1/($G$3-INDEX($C$3:$G$3,1,aux!$AL$1)))-1,"n.d.") -> n.d. | Y16: =IF(INDEX($C16:$G16,1,aux!$AL$1)>0,(G16-INDEX($C16:$G16,1,aux!$AL$1))/INDEX($C16:$G16,1,aux!$AL$1),"n.d.") -> n.d. | AA16: =O16-INDEX($K16:$O16,1,aux!$AL$1) -> 0 | AB16: 0 | AC16: 0 | AD16: =+IF(INDEX($K16:$O16,1,aux!$AL$1)>0,(O16/INDEX($K16:$O16,1,aux!$AL$1))^(1/($O$3-INDEX($K$3:$O$3,1,aux!$AL$1)))-1,"n.d.") -> n.d. | AE16: =IF(INDEX($K16:$O16,1,aux!$AL$1)>0,(O16-INDEX($K16:$O16,1,aux!$AL$1))/INDEX($K16:$O16,1,aux!$AL$1),"n.d.") -> n.d. | AX16: 02
A17: 0207 | B17: Carnes e miudezas de aves de capoeira | C17: 0 | D17: 0 | E17: 0 | F17: 0 | G17: 0 | H17: 0 | I17: 0 | J17: 0 | K17: 0 | L17: 0 | M17: 0 | N17: 0 | O17: 0 | P17: 0 | Q17: 0 | R17: 0 | S17: 0 | U17: =G17-INDEX($C17:$G17,1,aux!$AL$1) -> 0 | V17: 0 | W17: 0 | X17: =+IF(INDEX($C17:$G17,1,aux!$AL$1)>0,(G17/INDEX($C17:$G17,1,aux!$AL$1))^(1/($G$3-INDEX($C$3:$G$3,1,aux!$AL$1)))-1,"n.d.") -> n.d. | Y17: =IF(INDEX($C17:$G17,1,aux!$AL$1)>0,(G17-INDEX($C17:$G17,1,aux!$AL$1))/INDEX($C17:$G17,1,aux!$AL$1),"n.d.") -> n.d. | AA17: =O17-INDEX($K17:$O17,1,aux!$AL$1) -> 0 | AB17: 0 | AC17: 0 | AD17: =+IF(INDEX($K17:$O17,1,aux!$AL$1)>0,(O17/INDEX($K17:$O17,1,aux!$AL$1))^(1/($O$3-INDEX($K$3:$O$3,1,aux!$AL$1)))-1,"n.d.") -> n.d. | AE17: =IF(INDEX($K17:$O17,1,aux!$AL$1)>0,(O17-INDEX($K17:$O17,1,aux!$AL$1))/INDEX($K17:$O17,1,aux!$AL$1),"n.d.") -> n.d. | AX17: 02
A18: 0208 | B18: Outras carnes e miudezas | C18: 0 | D18: 0 | E18: 0 | F18: 0 | G18: 0 | H18: 0 | I18: 0 | J18: 0 | K18: 0 | L18: 0 | M18: 0 | N18: 0 | O18: 0 | P18: 0 | Q18: 0 | R18: 0 | S18: 0 | U18: =G18-INDEX($C18:$G18,1,aux!$AL$1) -> 0 | V18: 0 | W18: 0 | X18: =+IF(INDEX($C18:$G18,1,aux!$AL$1)>0,(G18/INDEX($C18:$G18,1,aux!$AL$1))^(1/($G$3-INDEX($C$3:$G$3,1,aux!$AL$1)))-1,"n.d.") -> n.d. | Y18: =IF(INDEX($C18:$G18,1,aux!$AL$1)>0,(G18-INDEX($C18:$G18,1,aux!$AL$1))/INDEX($C18:$G18,1,aux!$AL$1),"n.d.") -> n.d. | AA18: =O18-INDEX($K18:$O18,1,aux!$AL$1) -> 0 | AB18: 0 | AC18: 0 | AD18: =+IF(INDEX($K18:$O18,1,aux!$AL$1)>0,(O18/INDEX($K18:$O18,1,aux!$AL$1))^(1/($O$3-INDEX($K$3:$O$3,1,aux!$AL$1)))-1,"n.d.") -> n.d. | AE18: =IF(INDEX($K18:$O18,1,aux!$AL$1)>0,(O18-INDEX($K18:$O18,1,aux!$AL$1))/INDEX($K18:$O18,1,aux!$AL$1),"n.d.") -> n.d. | AX18: 02
A19: 0209 | B19: Toucinho, gorduras de porco e de aves | C19: 0 | D19: 0 | E19: 0 | F19: 0 | G19: 0 | H19: 0 | I19: 0 | J19: 0 | K19: 0 | L19: 0 | M19: 0 | N19: 0 | O19: 0 | P19: 0 | Q19: 0 | R19: 0 | S19: 0 | U19: =G19-INDEX($C19:$G19,1,aux!$AL$1) -> 0 | V19: 0 | W19: 0 | X19: =+IF(INDEX($C19:$G19,1,aux!$AL$1)>0,(G19/INDEX($C19:$G19,1,aux!$AL$1))^(1/($G$3-INDEX($C$3:$G$3,1,aux!$AL$1)))-1,"n.d.") -> n.d. | Y19: =IF(INDEX($C19:$G19,1,aux!$AL$1)>0,(G19-INDEX($C19:$G19,1,aux!$AL$1))/INDEX($C19:$G19,1,aux!$AL$1),"n.d.") -> n.d. | AA19: =O19-INDEX($K19:$O19,1,aux!$AL$1) -> 0 | AB19: 0 | AC19: 0 | AD19: =+IF(INDEX($K19:$O19,1,aux!$AL$1)>0,(O19/INDEX($K19:$O19,1,aux!$AL$1))^(1/($O$3-INDEX($K$3:$O$3,1,aux!$AL$1)))-1,"n.d.") -> n.d. | AE19: =IF(INDEX($K19:$O19,1,aux!$AL$1)>0,(O19-INDEX($K19:$O19,1,aux!$AL$1))/INDEX($K19:$O19,1,aux!$AL$1),"n.d.") -> n.d. | AX19: 02
A20: 0210 | B20: Carnes e miudezas processadas; farinhas de carnes | C20: 0 | D20: 0 | E20: 0 | F20: 0 | G20: 0 | H20: 0 | I20: 0 | J20: 0 | K20: 0.363 | L20: 2.934 | M20: 1.479 | N20: 0 | O20: 0 | P20: 0.9552 | Q20: 4.374591868e-05 | R20: 2.570835867e-05 | S20: 0.9552 | U20: =G20-INDEX($C20:$G20,1,aux!$AL$1) -> 0 | V20: 0 | W20: 0 | X20: =+IF(INDEX($C20:$G20,1,aux!$AL$1)>0,(G20/INDEX($C20:$G20,1,aux!$AL$1))^(1/($G$3-INDEX($C$3:$G$3,1,aux!$AL$1)))-1,"n.d.") -> n.d. | Y20: =IF(INDEX($C20:$G20,1,aux!$AL$1)>0,(G20-INDEX($C20:$G20,1,aux!$AL$1))/INDEX($C20:$G20,1,aux!$AL$1),"n.d.") -> n.d. | AA20: =O20-INDEX($K20:$O20,1,aux!$AL$1) -> -0.363 | AB20: -2.730119354e-05 | AC20: -2.231605759e-05 | AD20: =+IF(INDEX($K20:$O20,1,aux!$AL$1)>0,(O20/INDEX($K20:$O20,1,aux!$AL$1))^(1/($O$3-INDEX($K$3:$O$3,1,aux!$AL$1)))-1,"n.d.") -> -1 | AE20: =IF(INDEX($K20:$O20,1,aux!$AL$1)>0,(O20-INDEX($K20:$O20,1,aux!$AL$1))/INDEX($K20:$O20,1,aux!$AL$1),"n.d.") -> -1 | AX20: 02
A21: 02SS | B21: Carnes e miudezas, comestíveis | C21: 0 | D21: 0 | E21: 0 | F21: 0 | G21: 0 | H21: 0 | I21: 0 | J21: 0 | K21: 0 | L21: 0 | M21: 0 | N21: 0 | O21: 0 | P21: 0 | Q21: 0 | R21: 0 | S21: 0 | U21: =G21-INDEX($C21:$G21,1,aux!$AL$1) -> 0 | V21: 0 | W21: 0 | X21: =+IF(INDEX($C21:$G21,1,aux!$AL$1)>0,(G21/INDEX($C21:$G21,1,aux!$AL$1))^(1/($G$3-INDEX($C$3:$G$3,1,aux!$AL$1)))-1,"n.d.") -> n.d. | Y21: =IF(INDEX($C21:$G21,1,aux!$AL$1)>0,(G21-INDEX($C21:$G21,1,aux!$AL$1))/INDEX($C21:$G21,1,aux!$AL$1),"n.d.") -> n.d. | AA21: =O21-INDEX($K21:$O21,1,aux!$AL$1) -> 0 | AB21: 0 | AC21: 0 | AD21: =+IF(INDEX($K21:$O21,1,aux!$AL$1)>0,(O21/INDEX($K21:$O21,1,aux!$AL$1))^(1/($O$3-INDEX($K$3:$O$3,1,aux!$AL$1)))-1,"n.d.") -> n.d. | AE21: =IF(INDEX($K21:$O21,1,aux!$AL$1)>0,(O21-INDEX($K21:$O21,1,aux!$AL$1))/INDEX($K21:$O21,1,aux!$AL$1),"n.d.") -> n.d. | AX21: 02
A22: 0401 | B22: Leite e nata, não concentrados | C22: 0 | D22: 0 | E22: 0 | F22: 0 | G22: 0 | H22: 0 | I22: 0 | J22: 0 | K22: 0 | L22: 0.023 | M22: 0 | N22: 0 | O22: 7.591 | P22: 1.5228 | Q22: 6.974066685e-05 | R22: 4.098480799e-05 | S22: 1.5228 | U22: =G22-INDEX($C22:$G22,1,aux!$AL$1) -> 0 | V22: 0 | W22: 0 | X22: =+IF(INDEX($C22:$G22,1,aux!$AL$1)>0,(G22/INDEX($C22:$G22,1,aux!$AL$1))^(1/($G$3-INDEX($C$3:$G$3,1,aux!$AL$1)))-1,"n.d.") -> n.d. | Y22: =IF(INDEX($C22:$G22,1,aux!$AL$1)>0,(G22-INDEX($C22:$G22,1,aux!$AL$1))/INDEX($C22:$G22,1,aux!$AL$1),"n.d.") -> n.d. | AA22: =O22-INDEX($K22:$O22,1,aux!$AL$1) -> 7.591 | AB22: 0.0005709183475 | AC22: 0.0004666699536 | AD22: =+IF(INDEX($K22:$O22,1,aux!$AL$1)>0,(O22/INDEX($K22:$O22,1,aux!$AL$1))^(1/($O$3-INDEX($K$3:$O$3,1,aux!$AL$1)))-1,"n.d.") -> n.d. | AE22: =IF(INDEX($K22:$O22,1,aux!$AL$1)>0,(O22-INDEX($K22:$O22,1,aux!$AL$1))/INDEX($K22:$O22,1,aux!$AL$1),"n.d.") -> n.d. | AX22: 04
A23: 0402 | B23: Leite e nata, concentrados | C23: 0 | D23: 0 | E23: 0 | F23: 0 | G23: 0 | H23: 0 | I23: 0 | J23: 0 | K23: 0 | L23: 16.709 | M23: 4.15 | N23: 311.437 | O23: 925.338 | P23: 251.5268 | Q23: 0.01151933725 | R23: 0.006769620174 | S23: 251.5268 | U23: =G23-INDEX($C23:$G23,1,aux!$AL$1) -> 0 | V23: 0 | W23: 0 | X23: =+IF(INDEX($C23:$G23,1,aux!$AL$1)>0,(G23/INDEX($C23:$G23,1,aux!$AL$1))^(1/($G$3-INDEX($C$3:$G$3,1,aux!$AL$1)))-1,"n.d.") -> n.d. | Y23: =IF(INDEX($C23:$G23,1,aux!$AL$1)>0,(G23-INDEX($C23:$G23,1,aux!$AL$1))/INDEX($C23:$G23,1,aux!$AL$1),"n.d.") -> n.d. | AA23: =O23-INDEX($K23:$O23,1,aux!$AL$1) -> 925.338 | AB23: 0.06959457803 | AC23: 0.05688676611 | AD23: =+IF(INDEX($K23:$O23,1,aux!$AL$1)>0,(O23/INDEX($K23:$O23,1,aux!$AL$1))^(1/($O$3-INDEX($K$3:$O$3,1,aux!$AL$1)))-1,"n.d.") -> n.d. | AE23: =IF(INDEX($K23:$O23,1,aux!$AL$1)>0,(O23-INDEX($K23:$O23,1,aux!$AL$1))/INDEX($K23:$O23,1,aux!$AL$1),"n.d.") -> n.d. | AX23: 04
A24: 0403 | B24: Leitelho, leite coalhado, iogurte, etc. | C24: 0 | D24: 0 | E24: 0 | F24: 0 | G24: 0 | H24: 0 | I24: 0 | J24: 0 | K24: 26.01 | L24: 204.195 | M24: 9.986 | N24: 7.339 | O24: 195.712 | P24: 88.6484 | Q24: 0.004059888712 | R24: 0.002385892863 | S24: 88.6484 | U24: =G24-INDEX($C24:$G24,1,aux!$AL$1) -> 0 | V24: 0 | W24: 0 | X24: =+IF(INDEX($C24:$G24,1,aux!$AL$1)>0,(G24/INDEX($C24:$G24,1,aux!$AL$1))^(1/($G$3-INDEX($C$3:$G$3,1,aux!$AL$1)))-1,"n.d.") -> n.d. | Y24: =IF(INDEX($C24:$G24,1,aux!$AL$1)>0,(G24-INDEX($C24:$G24,1,aux!$AL$1))/INDEX($C24:$G24,1,aux!$AL$1),"n.d.") -> n.d. | AA24: =O24-INDEX($K24:$O24,1,aux!$AL$1) -> 169.702 | AB24: 0.01276327037 | AC24: 0.01043272618 | AD24: =+IF(INDEX($K24:$O24,1,aux!$AL$1)>0,(O24/INDEX($K24:$O24,1,aux!$AL$1))^(1/($O$3-INDEX($K$3:$O$3,1,aux!$AL$1)))-1,"n.d.") -> 0.6562247707 | AE24: =IF(INDEX($K24:$O24,1,aux!$AL$1)>0,(O24-INDEX($K24:$O24,1,aux!$AL$1))/INDEX($K24:$O24,1,aux!$AL$1),"n.d.") -> 6.524490581 | AX24: 04
A25: 0404 | B25: Soro de leite e outros produtos do leite | C25: 0 | D25: 0 | E25: 0 | F25: 0 | G25: 0 | H25: 0 | I25: 0 | J25: 0 | K25: 0 | L25: 844.4 | M25: 178.35 | N25: 256.5 | O25: 0 | P25: 255.85 | Q25: 0.01171732966 | R25: 0.006885975258 | S25: 255.85 | U25: =G25-INDEX($C25:$G25,1,aux!$AL$1) -> 0 | V25: 0 | W25: 0 | X25: =+IF(INDEX($C25:$G25,1,aux!$AL$1)>0,(G25/INDEX($C25:$G25,1,aux!$AL$1))^(1/($G$3-INDEX($C$3:$G$3,1,aux!$AL$1)))-1,"n.d.") -> n.d. | Y25: =IF(INDEX($C25:$G25,1,aux!$AL$1)>0,(G25-INDEX($C25:$G25,1,aux!$AL$1))/INDEX($C25:$G25,1,aux!$AL$1),"n.d.") -> n.d. | AA25: =O25-INDEX($K25:$O25,1,aux!$AL$1) -> 0 | AB25: 0 | AC25: 0 | AD25: =+IF(INDEX($K25:$O25,1,aux!$AL$1)>0,(O25/INDEX($K25:$O25,1,aux!$AL$1))^(1/($O$3-INDEX($K$3:$O$3,1,aux!$AL$1)))-1,"n.d.") -> n.d. | AE25: =IF(INDEX($K25:$O25,1,aux!$AL$1)>0,(O25-INDEX($K25:$O25,1,aux!$AL$1))/INDEX($K25:$O25,1,aux!$AL$1),"n.d.") -> n.d. | AX25: 04
A26: 0405 | B26: Manteiga | C26: 0 | D26: 0 | E26: 0 | F26: 0 | G26: 0 | H26: 0 | I26: 0 | J26: 0 | K26: 2.886 | L26: 5.833 | M26: 4.637 | N26: 1.55 | O26: 2.699 | P26: 3.521 | Q26: 0.0001612535382 | R26: 9.476458426e-05 | S26: 3.521 | U26: =G26-INDEX($C26:$G26,1,aux!$AL$1) -> 0 | V26: 0 | W26: 0 | X26: =+IF(INDEX($C26:$G26,1,aux!$AL$1)>0,(G26/INDEX($C26:$G26,1,aux!$AL$1))^(1/($G$3-INDEX($C$3:$G$3,1,aux!$AL$1)))-1,"n.d.") -> n.d. | Y26: =IF(INDEX($C26:$G26,1,aux!$AL$1)>0,(G26-INDEX($C26:$G26,1,aux!$AL$1))/INDEX($C26:$G26,1,aux!$AL$1),"n.d.") -> n.d. | AA26: =O26-INDEX($K26:$O26,1,aux!$AL$1) -> -0.187 | AB26: -1.406425122e-05 | AC26: -1.149615088e-05 | AD26: =+IF(INDEX($K26:$O26,1,aux!$AL$1)>0,(O26/INDEX($K26:$O26,1,aux!$AL$1))^(1/($O$3-INDEX($K$3:$O$3,1,aux!$AL$1)))-1,"n.d.") -> -0.0166080713 | AE26: =IF(INDEX($K26:$O26,1,aux!$AL$1)>0,(O26-INDEX($K26:$O26,1,aux!$AL$1))/INDEX($K26:$O26,1,aux!$AL$1),"n.d.") -> -0.0647955648 | AX26: 04
A27: 0406 | B27: Queijos e requeijão | C27: 0 | D27: 0 | E27: 0 | F27: 0 | G27: 0.015 | H27: 0.003 | I27: 2.666156196e-08 | J27: 2.064066113e-08 | K27: 56.36 | L27: 87.578 | M27: 77.191 | N27: 66.229 | O27: 47.602 | P27: 66.992 | Q27: 0.003068076408 | R27: 0.001803030113 | S27: 66.989 | U27: =G27-INDEX($C27:$G27,1,aux!$AL$1) -> 0.015 | V27: 4.918688827e-07 | W27: 8.672672357e-07 | X27: =+IF(INDEX($C27:$G27,1,aux!$AL$1)>0,(G27/INDEX($C27:$G27,1,aux!$AL$1))^(1/($G$3-INDEX($C$3:$G$3,1,aux!$AL$1)))-1,"n.d.") -> n.d. | Y27: =IF(INDEX($C27:$G27,1,aux!$AL$1)>0,(G27-INDEX($C27:$G27,1,aux!$AL$1))/INDEX($C27:$G27,1,aux!$AL$1),"n.d.") -> n.d. | AA27: =O27-INDEX($K27:$O27,1,aux!$AL$1) -> -8.758 | AB27: -0.0006586883002 | AC27: -0.0005384133123 | AD27: =+IF(INDEX($K27:$O27,1,aux!$AL$1)>0,(O27/INDEX($K27:$O27,1,aux!$AL$1))^(1/($O$3-INDEX($K$3:$O$3,1,aux!$AL$1)))-1,"n.d.") -> -0.0413423243 | AE27: =IF(INDEX($K27:$O27,1,aux!$AL$1)>0,(O27-INDEX($K27:$O27,1,aux!$AL$1))/INDEX($K27:$O27,1,aux!$AL$1),"n.d.") -> -0.1553938964 | AX27: 04
A28: 0407 | B28: Ovos de aves, com cascas | C28: 0 | D28: 0 | E28: 0 | F28: 0 | G28: 0 | H28: 0 | I28: 0 | J28: 0 | K28: 0 | L28: 0 | M28: 0 | N28: 0 | O28: 0 | P28: 0 | Q28: 0 | R28: 0 | S28: 0 | U28: =G28-INDEX($C28:$G28,1,aux!$AL$1) -> 0 | V28: 0 | W28: 0 | X28: =+IF(INDEX($C28:$G28,1,aux!$AL$1)>0,(G28/INDEX($C28:$G28,1,aux!$AL$1))^(1/($G$3-INDEX($C$3:$G$3,1,aux!$AL$1)))-1,"n.d.") -> n.d. | Y28: =IF(INDEX($C28:$G28,1,aux!$AL$1)>0,(G28-INDEX($C28:$G28,1,aux!$AL$1))/INDEX($C28:$G28,1,aux!$AL$1),"n.d.") -> n.d. | AA28: =O28-INDEX($K28:$O28,1,aux!$AL$1) -> 0 | AB28: 0 | AC28: 0 | AD28: =+IF(INDEX($K28:$O28,1,aux!$AL$1)>0,(O28/INDEX($K28:$O28,1,aux!$AL$1))^(1/($O$3-INDEX($K$3:$O$3,1,aux!$AL$1)))-1,"n.d.") -> n.d. | AE28: =IF(INDEX($K28:$O28,1,aux!$AL$1)>0,(O28-INDEX($K28:$O28,1,aux!$AL$1))/INDEX($K28:$O28,1,aux!$AL$1),"n.d.") -> n.d. | AX28: 04
A29: 0408 | B29: Ovos de aves, sem casca | C29: 0 | D29: 0 | E29: 0 | F29: 0 | G29: 0 | H29: 0 | I29: 0 | J29: 0 | K29: 0 | L29: 0 | M29: 0 | N29: 0 | O29: 0 | P29: 0 | Q29: 0 | R29: 0 | S29: 0 | U29: =G29-INDEX($C29:$G29,1,aux!$AL$1) -> 0 | V29: 0 | W29: 0 | X29: =+IF(INDEX($C29:$G29,1,aux!$AL$1)>0,(G29/INDEX($C29:$G29,1,aux!$AL$1))^(1/($G$3-INDEX($C$3:$G$3,1,aux!$AL$1)))-1,"n.d.") -> n.d. | Y29: =IF(INDEX($C29:$G29,1,aux!$AL$1)>0,(G29-INDEX($C29:$G29,1,aux!$AL$1))/INDEX($C29:$G29,1,aux!$AL$1),"n.d.") -> n.d. | AA29: =O29-INDEX($K29:$O29,1,aux!$AL$1) -> 0 | AB29: 0 | AC29: 0 | AD29: =+IF(INDEX($K29:$O29,1,aux!$AL$1)>0,(O29/INDEX($K29:$O29,1,aux!$AL$1))^(1/($O$3-INDEX($K$3:$O$3,1,aux!$AL$1)))-1,"n.d.") -> n.d. | AE29: =IF(INDEX($K29:$O29,1,aux!$AL$1)>0,(O29-INDEX($K29:$O29,1,aux!$AL$1))/INDEX($K29:$O29,1,aux!$AL$1),"n.d.") -> n.d. | AX29: 04
A30: 0409 | B30: Mel natural | C30: 0 | D30: 0 | E30: 0 | F30: 0 | G30: 0 | H30: 0 | I30: 0 | J30: 0 | K30: 0.029 | L30: 0.787 | M30: 0 | N30: 0.003 | O30: 0 | P30: 0.1638 | Q30: 7.501655654e-06 | R30: 4.408531355e-06 | S30: 0.1638 | U30: =G30-INDEX($C30:$G30,1,aux!$AL$1) -> 0 | V30: 0 | W30: 0 | X30: =+IF(INDEX($C30:$G30,1,aux!$AL$1)>0,(G30/INDEX($C30:$G30,1,aux!$AL$1))^(1/($G$3-INDEX($C$3:$G$3,1,aux!$AL$1)))-1,"n.d.") -> n.d. | Y30: =IF(INDEX($C30:$G30,1,aux!$AL$1)>0,(G30-INDEX($C30:$G30,1,aux!$AL$1))/INDEX($C30:$G30,1,aux!$AL$1),"n.d.") -> n.d. | AA30: =O30-INDEX($K30:$O30,1,aux!$AL$1) -> -0.029 | AB30: -2.181087087e-06 | AC30: -1.782825537e-06 | AD30: =+IF(INDEX($K30:$O30,1,aux!$AL$1)>0,(O30/INDEX($K30:$O30,1,aux!$AL$1))^(1/($O$3-INDEX($K$3:$O$3,1,aux!$AL$1)))-1,"n.d.") -> -1 | AE30: =IF(INDEX($K30:$O30,1,aux!$AL$1)>0,(O30-INDEX($K30:$O30,1,aux!$AL$1))/INDEX($K30:$O30,1,aux!$AL$1),"n.d.") -> -1 | AX30: 04
A31: 0410 | B31: Outros produtos comestíveis de origem animal | C31: 0 | D31: 0 | E31: 0 | F31: 0 | G31: 0 | H31: 0 | I31: 0 | J31: 0 | K31: 0 | L31: 0 | M31: 0 | N31: 0 | O31: 0 | P31: 0 | Q31: 0 | R31: 0 | S31: 0 | U31: =G31-INDEX($C31:$G31,1,aux!$AL$1) -> 0 | V31: 0 | W31: 0 | X31: =+IF(INDEX($C31:$G31,1,aux!$AL$1)>0,(G31/INDEX($C31:$G31,1,aux!$AL$1))^(1/($G$3-INDEX($C$3:$G$3,1,aux!$AL$1)))-1,"n.d.") -> n.d. | Y31: =IF(INDEX($C31:$G31,1,aux!$AL$1)>0,(G31-INDEX($C31:$G31,1,aux!$AL$1))/INDEX($C31:$G31,1,aux!$AL$1),"n.d.") -> n.d. | AA31: =O31-INDEX($K31:$O31,1,aux!$AL$1) -> 0 | AB31: 0 | AC31: 0 | AD31: =+IF(INDEX($K31:$O31,1,aux!$AL$1)>0,(O31/INDEX($K31:$O31,1,aux!$AL$1))^(1/($O$3-INDEX($K$3:$O$3,1,aux!$AL$1)))-1,"n.d.") -> n.d. | AE31: =IF(INDEX($K31:$O31,1,aux!$AL$1)>0,(O31-INDEX($K31:$O31,1,aux!$AL$1))/INDEX($K31:$O31,1,aux!$AL$1),"n.d.") -> n.d. | AX31: 04
A32: 04SS | B32: Leite e lacticínios; ovos de aves; mel natural; etc. | C32: 0 | D32: 0 | E32: 0 | F32: 0 | G32: 0 | H32: 0 | I32: 0 | J32: 0 | K32: 0 | L32: 0 | M32: 0 | N32: 0 | O32: 0 | P32: 0 | Q32: 0 | R32: 0 | S32: 0 | U32: =G32-INDEX($C32:$G32,1,aux!$AL$1) -> 0 | V32: 0 | W32: 0 | X32: =+IF(INDEX($C32:$G32,1,aux!$AL$1)>0,(G32/INDEX($C32:$G32,1,aux!$AL$1))^(1/($G$3-INDEX($C$3:$G$3,1,aux!$AL$1)))-1,"n.d.") -> n.d. | Y32: =IF(INDEX($C32:$G32,1,aux!$AL$1)>0,(G32-INDEX($C32:$G32,1,aux!$AL$1))/INDEX($C32:$G32,1,aux!$AL$1),"n.d.") -> n.d. | AA32: =O32-INDEX($K32:$O32,1,aux!$AL$1) -> 0 | AB32: 0 | AC32: 0 | AD32: =+IF(INDEX($K32:$O32,1,aux!$AL$1)>0,(O32/INDEX($K32:$O32,1,aux!$AL$1))^(1/($O$3-INDEX($K$3:$O$3,1,aux!$AL$1)))-1,"n.d.") -> n.d. | AE32: =IF(INDEX($K32:$O32,1,aux!$AL$1)>0,(O32-INDEX($K32:$O32,1,aux!$AL$1))/INDEX($K32:$O32,1,aux!$AL$1),"n.d.") -> n.d. | AX32: 04
A33: 0501 | B33: Cabelos em bruto | C33: 0.112 | D33: 0 | E33: 0 | F33: 0 | G33: 0.023 | H33: 0.027 | I33: 2.399540576e-07 | J33: 1.857659502e-07 | K33: 0 | L33: 0 | M33: 0 | N33: 0 | O33: 0 | P33: 0 | Q33: 0 | R33: 0 | S33: -0.027 | U33: =G33-INDEX($C33:$G33,1,aux!$AL$1) -> -0.089 | V33: -2.918422037e-06 | W33: -5.145785599e-06 | X33: =+IF(INDEX($C33:$G33,1,aux!$AL$1)>0,(G33/INDEX($C33:$G33,1,aux!$AL$1))^(1/($G$3-INDEX($C$3:$G$3,1,aux!$AL$1)))-1,"n.d.") -> -0.3268258148 | Y33: =IF(INDEX($C33:$G33,1,aux!$AL$1)>0,(G33-INDEX($C33:$G33,1,aux!$AL$1))/INDEX($C33:$G33,1,aux!$AL$1),"n.d.") -> -0.7946428571 | AA33: =O33-INDEX($K33:$O33,1,aux!$AL$1) -> 0 | AB33: 0 | AC33: 0 | AD33: =+IF(INDEX($K33:$O33,1,aux!$AL$1)>0,(O33/INDEX($K33:$O33,1,aux!$AL$1))^(1/($O$3-INDEX($K$3:$O$3,1,aux!$AL$1)))-1,"n.d.") -> n.d. | AE33: =IF(INDEX($K33:$O33,1,aux!$AL$1)>0,(O33-INDEX($K33:$O33,1,aux!$AL$1))/INDEX($K33:$O33,1,aux!$AL$1),"n.d.") -> n.d. | AX33: 05
A34: 0502 | B34: Cerdas de porco ou de javali, etc. | C34: 0 | D34: 0 | E34: 0 | F34: 0 | G34: 0 | H34: 0 | I34: 0 | J34: 0 | K34: 0 | L34: 0 | M34: 0 | N34: 0 | O34: 0 | P34: 0 | Q34: 0 | R34: 0 | S34: 0 | U34: =G34-INDEX($C34:$G34,1,aux!$AL$1) -> 0 | V34: 0 | W34: 0 | X34: =+IF(INDEX($C34:$G34,1,aux!$AL$1)>0,(G34/INDEX($C34:$G34,1,aux!$AL$1))^(1/($G$3-INDEX($C$3:$G$3,1,aux!$AL$1)))-1,"n.d.") -> n.d. | Y34: =IF(INDEX($C34:$G34,1,aux!$AL$1)>0,(G34-INDEX($C34:$G34,1,aux!$AL$1))/INDEX($C34:$G34,1,aux!$AL$1),"n.d.") -> n.d. | AA34: =O34-INDEX($K34:$O34,1,aux!$AL$1) -> 0 | AB34: 0 | AC34: 0 | AD34: =+IF(INDEX($K34:$O34,1,aux!$AL$1)>0,(O34/INDEX($K34:$O34,1,aux!$AL$1))^(1/($O$3-INDEX($K$3:$O$3,1,aux!$AL$1)))-1,"n.d.") -> n.d. | AE34: =IF(INDEX($K34:$O34,1,aux!$AL$1)>0,(O34-INDEX($K34:$O34,1,aux!$AL$1))/INDEX($K34:$O34,1,aux!$AL$1),"n.d.") -> n.d. | AX34: 05
A35: 0504 | B35: Tripas de animais (excepto peixes) | C35: 0 | D35: 0 | E35: 0 | F35: 0 | G35: 0 | H35: 0 | I35: 0 | J35: 0 | K35: 0 | L35: 701.681 | M35: 636.625 | N35: 389.484 | O35: 293.707 | P35: 404.2994 | Q35: 0.01851596386 | R35: 0.01088135886 | S35: 404.2994 | U35: =G35-INDEX($C35:$G35,1,aux!$AL$1) -> 0 | V35: 0 | W35: 0 | X35: =+IF(INDEX($C35:$G35,1,aux!$AL$1)>0,(G35/INDEX($C35:$G35,1,aux!$AL$1))^(1/($G$3-INDEX($C$3:$G$3,1,aux!$AL$1)))-1,"n.d.") -> n.d. | Y35: =IF(INDEX($C35:$G35,1,aux!$AL$1)>0,(G35-INDEX($C35:$G35,1,aux!$AL$1))/INDEX($C35:$G35,1,aux!$AL$1),"n.d.") -> n.d. | AA35: =O35-INDEX($K35:$O35,1,aux!$AL$1) -> 293.707 | AB35: 0.02208967397 | AC35: 0.01805614966 | AD35: =+IF(INDEX($K35:$O35,1,aux!$AL$1)>0,(O35/INDEX($K35:$O35,1,aux!$AL$1))^(1/($O$3-INDEX($K$3:$O$3,1,aux!$AL$1)))-1,"n.d.") -> n.d. | AE35: =IF(INDEX($K35:$O35,1,aux!$AL$1)>0,(O35-INDEX($K35:$O35,1,aux!$AL$1))/INDEX($K35:$O35,1,aux!$AL$1),"n.d.") -> n.d. | AX35: 05
A36: 0505 | B36: Peles e outras partes de aves | C36: 0 | D36: 0 | E36: 0 | F36: 0 | G36: 0 | H36: 0 | I36: 0 | J36: 0 | K36: 0 | L36: 0 | M36: 0 | N36: 0 | O36: 0 | P36: 0 | Q36: 0 | R36: 0 | S36: 0 | U36: =G36-INDEX($C36:$G36,1,aux!$AL$1) -> 0 | V36: 0 | W36: 0 | X36: =+IF(INDEX($C36:$G36,1,aux!$AL$1)>0,(G36/INDEX($C36:$G36,1,aux!$AL$1))^(1/($G$3-INDEX($C$3:$G$3,1,aux!$AL$1)))-1,"n.d.") -> n.d. | Y36: =IF(INDEX($C36:$G36,1,aux!$AL$1)>0,(G36-INDEX($C36:$G36,1,aux!$AL$1))/INDEX($C36:$G36,1,aux!$AL$1),"n.d.") -> n.d. | AA36: =O36-INDEX($K36:$O36,1,aux!$AL$1) -> 0 | AB36: 0 | AC36: 0 | AD36: =+IF(INDEX($K36:$O36,1,aux!$AL$1)>0,(O36/INDEX($K36:$O36,1,aux!$AL$1))^(1/($O$3-INDEX($K$3:$O$3,1,aux!$AL$1)))-1,"n.d.") -> n.d. | AE36: =IF(INDEX($K36:$O36,1,aux!$AL$1)>0,(O36-INDEX($K36:$O36,1,aux!$AL$1))/INDEX($K36:$O36,1,aux!$AL$1),"n.d.") -> n.d. | AX36: 05
A37: 0506 | B37: Ossos e núcleos córneos, em bruto | C37: 0 | D37: 0 | E37: 0 | F37: 0 | G37: 0 | H37: 0 | I37: 0 | J37: 0 | K37: 0 | L37: 0 | M37: 0 | N37: 0 | O37: 0 | P37: 0 | Q37: 0 | R37: 0 | S37: 0 | U37: =G37-INDEX($C37:$G37,1,aux!$AL$1) -> 0 | V37: 0 | W37: 0 | X37: =+IF(INDEX($C37:$G37,1,aux!$AL$1)>0,(G37/INDEX($C37:$G37,1,aux!$AL$1))^(1/($G$3-INDEX($C$3:$G$3,1,aux!$AL$1)))-1,"n.d.") -> n.d. | Y37: =IF(INDEX($C37:$G37,1,aux!$AL$1)>0,(G37-INDEX($C37:$G37,1,aux!$AL$1))/INDEX($C37:$G37,1,aux!$AL$1),"n.d.") -> n.d. | AA37: =O37-INDEX($K37:$O37,1,aux!$AL$1) -> 0 | AB37: 0 | AC37: 0 | AD37: =+IF(INDEX($K37:$O37,1,aux!$AL$1)>0,(O37/INDEX($K37:$O37,1,aux!$AL$1))^(1/($O$3-INDEX($K$3:$O$3,1,aux!$AL$1)))-1,"n.d.") -> n.d. | AE37: =IF(INDEX($K37:$O37,1,aux!$AL$1)>0,(O37-INDEX($K37:$O37,1,aux!$AL$1))/INDEX($K37:$O37,1,aux!$AL$1),"n.d.") -> n.d. | AX37: 05
A38: 0507 | B38: Marfim, carapaças de tartaruga, etc. | C38: 2.868 | D38: 0 | E38: 0 | F38: 0 | G38: 0 | H38: 0.5736 | I38: 5.097690647e-06 | J38: 3.946494409e-06 | K38: 0 | L38: 0 | M38: 0 | N38: 0 | O38: 0 | P38: 0 | Q38: 0 | R38: 0 | S38: -0.5736 | U38: =G38-INDEX($C38:$G38,1,aux!$AL$1) -> -2.868 | V38: -9.404533037e-05 | W38: -0.0001658214955 | X38: =+IF(INDEX($C38:$G38,1,aux!$AL$1)>0,(G38/INDEX($C38:$G38,1,aux!$AL$1))^(1/($G$3-INDEX($C$3:$G$3,1,aux!$AL$1)))-1,"n.d.") -> -1 | Y38: =IF(INDEX($C38:$G38,1,aux!$AL$1)>0,(G38-INDEX($C38:$G38,1,aux!$AL$1))/INDEX($C38:$G38,1,aux!$AL$1),"n.d.") -> -1 | AA38: =O38-INDEX($K38:$O38,1,aux!$AL$1) -> 0 | AB38: 0 | AC38: 0 | AD38: =+IF(INDEX($K38:$O38,1,aux!$AL$1)>0,(O38/INDEX($K38:$O38,1,aux!$AL$1))^(1/($O$3-INDEX($K$3:$O$3,1,aux!$AL$1)))-1,"n.d.") -> n.d. | AE38: =IF(INDEX($K38:$O38,1,aux!$AL$1)>0,(O38-INDEX($K38:$O38,1,aux!$AL$1))/INDEX($K38:$O38,1,aux!$AL$1),"n.d.") -> n.d. | AX38: 05
A39: 0510 | B39: Âmbar-cinzento, castóreo, algália e almíscar, etc. | C39: 0 | D39: 0 | E39: 0 | F39: 0 | G39: 0 | H39: 0 | I39: 0 | J39: 0 | K39: 0 | L39: 0 | M39: 0 | N39: 0 | O39: 0 | P39: 0 | Q39: 0 | R39: 0 | S39: 0 | U39: =G39-INDEX($C39:$G39,1,aux!$AL$1) -> 0 | V39: 0 | W39: 0 | X39: =+IF(INDEX($C39:$G39,1,aux!$AL$1)>0,(G39/INDEX($C39:$G39,1,aux!$AL$1))^(1/($G$3-INDEX($C$3:$G$3,1,aux!$AL$1)))-1,"n.d.") -> n.d. | Y39: =IF(INDEX($C39:$G39,1,aux!$AL$1)>0,(G39-INDEX($C39:$G39,1,aux!$AL$1))/INDEX($C39:$G39,1,aux!$AL$1),"n.d.") -> n.d. | AA39: =O39-INDEX($K39:$O39,1,aux!$AL$1) -> 0 | AB39: 0 | AC39: 0 | AD39: =+IF(INDEX($K39:$O39,1,aux!$AL$1)>0,(O39/INDEX($K39:$O39,1,aux!$AL$1))^(1/($O$3-INDEX($K$3:$O$3,1,aux!$AL$1)))-1,"n.d.") -> n.d. | AE39: =IF(INDEX($K39:$O39,1,aux!$AL$1)>0,(O39-INDEX($K39:$O39,1,aux!$AL$1))/INDEX($K39:$O39,1,aux!$AL$1),"n.d.") -> n.d. | AX39: 05
A40: 0511 | B40: Outros produtos de origem animal (exc. NC 0511 91) (a) | C40: 0 | D40: 0.332 | E40: 0 | F40: 0.034 | G40: 0 | H40: 0.0732 | I40: 6.505421119e-07 | J40: 5.036321316e-07 | K40: 0 | L40: 0 | M40: 0 | N40: 0 | O40: 0 | P40: 0 | Q40: 0 | R40: 0 | S40: -0.0732 | U40: =G40-INDEX($C40:$G40,1,aux!$AL$1) -> 0 | V40: 0 | W40: 0 | X40: =+IF(INDEX($C40:$G40,1,aux!$AL$1)>0,(G40/INDEX($C40:$G40,1,aux!$AL$1))^(1/($G$3-INDEX($C$3:$G$3,1,aux!$AL$1)))-1,"n.d.") -> n.d. | Y40: =IF(INDEX($C40:$G40,1,aux!$AL$1)>0,(G40-INDEX($C40:$G40,1,aux!$AL$1))/INDEX($C40:$G40,1,aux!$AL$1),"n.d.") -> n.d. | AA40: =O40-INDEX($K40:$O40,1,aux!$AL$1) -> 0 | AB40: 0 | AC40: 0 | AD40: =+IF(INDEX($K40:$O40,1,aux!$AL$1)>0,(O40/INDEX($K40:$O40,1,aux!$AL$1))^(1/($O$3-INDEX($K$3:$O$3,1,aux!$AL$1)))-1,"n.d.") -> n.d. | AE40: =IF(INDEX($K40:$O40,1,aux!$AL$1)>0,(O40-INDEX($K40:$O40,1,aux!$AL$1))/INDEX($K40:$O40,1,aux!$AL$1),"n.d.") -> n.d. | AX40: 05
A41: 05SS | B41: Outros produtos de origem animal | C41: 0 | D41: 0 | E41: 0 | F41: 0 | G41: 0 | H41: 0 | I41: 0 | J41: 0 | K41: 0 | L41: 0 | M41: 0 | N41: 0 | O41: 0 | P41: 0 | Q41: 0 | R41: 0 | S41: 0 | U41: =G41-INDEX($C41:$G41,1,aux!$AL$1) -> 0 | V41: 0 | W41: 0 | X41: =+IF(INDEX($C41:$G41,1,aux!$AL$1)>0,(G41/INDEX($C41:$G41,1,aux!$AL$1))^(1/($G$3-INDEX($C$3:$G$3,1,aux!$AL$1)))-1,"n.d.") -> n.d. | Y41: =IF(INDEX($C41:$G41,1,aux!$AL$1)>0,(G41-INDEX($C41:$G41,1,aux!$AL$1))/INDEX($C41:$G41,1,aux!$AL$1),"n.d.") -> n.d. | AA41: =O41-INDEX($K41:$O41,1,aux!$AL$1) -> 0 | AB41: 0 | AC41: 0 | AD41: =+IF(INDEX($K41:$O41,1,aux!$AL$1)>0,(O41/INDEX($K41:$O41,1,aux!$AL$1))^(1/($O$3-INDEX($K$3:$O$3,1,aux!$AL$1)))-1,"n.d.") -> n.d. | AE41: =IF(INDEX($K41:$O41,1,aux!$AL$1)>0,(O41-INDEX($K41:$O41,1,aux!$AL$1))/INDEX($K41:$O41,1,aux!$AL$1),"n.d.") -> n.d. | AX41: 05
A42: 0601 | B42: Bolbos, tubérculos, raízes, etc. | C42: 0 | D42: 0 | E42: 0 | F42: 0 | G42: 0 | H42: 0 | I42: 0 | J42: 0 | K42: 0 | L42: 0 | M42: 0 | N42: 0 | O42: 0 | P42: 0 | Q42: 0 | R42: 0 | S42: 0 | U42: =G42-INDEX($C42:$G42,1,aux!$AL$1) -> 0 | V42: 0 | W42: 0 | X42: =+IF(INDEX($C42:$G42,1,aux!$AL$1)>0,(G42/INDEX($C42:$G42,1,aux!$AL$1))^(1/($G$3-INDEX($C$3:$G$3,1,aux!$AL$1)))-1,"n.d.") -> n.d. | Y42: =IF(INDEX($C42:$G42,1,aux!$AL$1)>0,(G42-INDEX($C42:$G42,1,aux!$AL$1))/INDEX($C42:$G42,1,aux!$AL$1),"n.d.") -> n.d. | AA42: =O42-INDEX($K42:$O42,1,aux!$AL$1) -> 0 | AB42: 0 | AC42: 0 | AD42: =+IF(INDEX($K42:$O42,1,aux!$AL$1)>0,(O42/INDEX($K42:$O42,1,aux!$AL$1))^(1/($O$3-INDEX($K$3:$O$3,1,aux!$AL$1)))-1,"n.d.") -> n.d. | AE42: =IF(INDEX($K42:$O42,1,aux!$AL$1)>0,(O42-INDEX($K42:$O42,1,aux!$AL$1))/INDEX($K42:$O42,1,aux!$AL$1),"n.d.") -> n.d. | AX42: 06
A43: 0602 | B43: Plantas vivas | C43: 5.918 | D43: 2.902 | E43: 6.962 | F43: 59.274 | G43: 162.72 | H43: 47.5552 | I43: 0.0004226319705 | J43: 0.0003271902561 | K43: 0 | L43: 0 | M43: 0 | N43: 2.425 | O43: 6.789 | P43: 1.8428 | Q43: 8.439591599e-05 | R43: 4.959732345e-05 | S43: -45.7124 | U43: =G43-INDEX($C43:$G43,1,aux!$AL$1) -> 156.802 | V43: 0.00514173497 | W43: 0.00906594914 | X43: =+IF(INDEX($C43:$G43,1,aux!$AL$1)>0,(G43/INDEX($C43:$G43,1,aux!$AL$1))^(1/($G$3-INDEX($C$3:$G$3,1,aux!$AL$1)))-1,"n.d.") -> 1.289899877 | Y43: =IF(INDEX($C43:$G43,1,aux!$AL$1)>0,(G43-INDEX($C43:$G43,1,aux!$AL$1))/INDEX($C43:$G43,1,aux!$AL$1),"n.d.") -> 26.4957756 | AA43: =O43-INDEX($K43:$O43,1,aux!$AL$1) -> 6.789 | AB43: 0.000510600008 | AC43: 0.000417365606 | AD43: =+IF(INDEX($K43:$O43,1,aux!$AL$1)>0,(O43/INDEX($K43:$O43,1,aux!$AL$1))^(1/($O$3-INDEX($K$3:$O$3,1,aux!$AL$1)))-1,"n.d.") -> n.d. | AE43: =IF(INDEX($K43:$O43,1,aux!$AL$1)>0,(O43-INDEX($K43:$O43,1,aux!$AL$1))/INDEX($K43:$O43,1,aux!$AL$1),"n.d.") -> n.d. | AX43: 06
A44: 0603 | B44: Flores e seus botões | C44: 0 | D44: 0 | E44: 0 | F44: 0 | G44: 0 | H44: 0 | I44: 0 | J44: 0 | K44: 0 | L44: 0 | M44: 0 | N44: 0 | O44: 0 | P44: 0 | Q44: 0 | R44: 0 | S44: 0 | U44: =G44-INDEX($C44:$G44,1,aux!$AL$1) -> 0 | V44: 0 | W44: 0 | X44: =+IF(INDEX($C44:$G44,1,aux!$AL$1)>0,(G44/INDEX($C44:$G44,1,aux!$AL$1))^(1/($G$3-INDEX($C$3:$G$3,1,aux!$AL$1)))-1,"n.d.") -> n.d. | Y44: =IF(INDEX($C44:$G44,1,aux!$AL$1)>0,(G44-INDEX($C44:$G44,1,aux!$AL$1))/INDEX($C44:$G44,1,aux!$AL$1),"n.d.") -> n.d. | AA44: =O44-INDEX($K44:$O44,1,aux!$AL$1) -> 0 | AB44: 0 | AC44: 0 | AD44: =+IF(INDEX($K44:$O44,1,aux!$AL$1)>0,(O44/INDEX($K44:$O44,1,aux!$AL$1))^(1/($O$3-INDEX($K$3:$O$3,1,aux!$AL$1)))-1,"n.d.") -> n.d. | AE44: =IF(INDEX($K44:$O44,1,aux!$AL$1)>0,(O44-INDEX($K44:$O44,1,aux!$AL$1))/INDEX($K44:$O44,1,aux!$AL$1),"n.d.") -> n.d. | AX44: 06
A45: 0604 | B45: Folhagem, folhas, ramos e outras partes de plantas | C45: 0 | D45: 0 | E45: 0 | F45: 10.95 | G45: 0.152 | H45: 2.2204 | I45: 1.973311073e-05 | J45: 1.527684133e-05 | K45: 0.077 | L45: 0 | M45: 1.177 | N45: 0.103 | O45: 0 | P45: 0.2714 | Q45: 1.242948318e-05 | R45: 7.304489682e-06 | S45: -1.949 | U45: =G45-INDEX($C45:$G45,1,aux!$AL$1) -> 0.152 | V45: 4.984271345e-06 | W45: 8.788307989e-06 | X45: =+IF(INDEX($C45:$G45,1,aux!$AL$1)>0,(G45/INDEX($C45:$G45,1,aux!$AL$1))^(1/($G$3-INDEX($C$3:$G$3,1,aux!$AL$1)))-1,"n.d.") -> n.d. | Y45: =IF(INDEX($C45:$G45,1,aux!$AL$1)>0,(G45-INDEX($C45:$G45,1,aux!$AL$1))/INDEX($C45:$G45,1,aux!$AL$1),"n.d.") -> n.d. | AA45: =O45-INDEX($K45:$O45,1,aux!$AL$1) -> -0.077 | AB45: -5.791162265e-06 | AC45: -4.733709186e-06 | AD45: =+IF(INDEX($K45:$O45,1,aux!$AL$1)>0,(O45/INDEX($K45:$O45,1,aux!$AL$1))^(1/($O$3-INDEX($K$3:$O$3,1,aux!$AL$1)))-1,"n.d.") -> -1 | AE45: =IF(INDEX($K45:$O45,1,aux!$AL$1)>0,(O45-INDEX($K45:$O45,1,aux!$AL$1))/INDEX($K45:$O45,1,aux!$AL$1),"n.d.") -> -1 | AX45: 06
A46: 06SS | B46: Plantas vivas e produtos de floricultura | C46: 0 | D46: 0 | E46: 0 | F46: 0 | G46: 0 | H46: 0 | I46: 0 | J46: 0 | K46: 0 | L46: 0 | M46: 0 | N46: 0 | O46: 0 | P46: 0 | Q46: 0 | R46: 0 | S46: 0 | U46: =G46-INDEX($C46:$G46,1,aux!$AL$1) -> 0 | V46: 0 | W46: 0 | X46: =+IF(INDEX($C46:$G46,1,aux!$AL$1)>0,(G46/INDEX($C46:$G46,1,aux!$AL$1))^(1/($G$3-INDEX($C$3:$G$3,1,aux!$AL$1)))-1,"n.d.") -> n.d. | Y46: =IF(INDEX($C46:$G46,1,aux!$AL$1)>0,(G46-INDEX($C46:$G46,1,aux!$AL$1))/INDEX($C46:$G46,1,aux!$AL$1),"n.d.") -> n.d. | AA46: =O46-INDEX($K46:$O46,1,aux!$AL$1) -> 0 | AB46: 0 | AC46: 0 | AD46: =+IF(INDEX($K46:$O46,1,aux!$AL$1)>0,(O46/INDEX($K46:$O46,1,aux!$AL$1))^(1/($O$3-INDEX($K$3:$O$3,1,aux!$AL$1)))-1,"n.d.") -> n.d. | AE46: =IF(INDEX($K46:$O46,1,aux!$AL$1)>0,(O46-INDEX($K46:$O46,1,aux!$AL$1))/INDEX($K46:$O46,1,aux!$AL$1),"n.d.") -> n.d. | AX46: 06
A47: 0701 | B47: Batatas, frescas ou refrigeradas | C47: 0 | D47: 0 | E47: 0 | F47: 0.051 | G47: 0 | H47: 0.0102 | I47: 9.064931067e-08 | J47: 7.017824785e-08 | K47: 0 | L47: 0 | M47: 0 | N47: 0 | O47: 0 | P47: 0 | Q47: 0 | R47: 0 | S47: -0.0102 | U47: =G47-INDEX($C47:$G47,1,aux!$AL$1) -> 0 | V47: 0 | W47: 0 | X47: =+IF(INDEX($C47:$G47,1,aux!$AL$1)>0,(G47/INDEX($C47:$G47,1,aux!$AL$1))^(1/($G$3-INDEX($C$3:$G$3,1,aux!$AL$1)))-1,"n.d.") -> n.d. | Y47: =IF(INDEX($C47:$G47,1,aux!$AL$1)>0,(G47-INDEX($C47:$G47,1,aux!$AL$1))/INDEX($C47:$G47,1,aux!$AL$1),"n.d.") -> n.d. | AA47: =O47-INDEX($K47:$O47,1,aux!$AL$1) -> 0 | AB47: 0 | AC47: 0 | AD47: =+IF(INDEX($K47:$O47,1,aux!$AL$1)>0,(O47/INDEX($K47:$O47,1,aux!$AL$1))^(1/($O$3-INDEX($K$3:$O$3,1,aux!$AL$1)))-1,"n.d.") -> n.d. | AE47: =IF(INDEX($K47:$O47,1,aux!$AL$1)>0,(O47-INDEX($K47:$O47,1,aux!$AL$1))/INDEX($K47:$O47,1,aux!$AL$1),"n.d.") -> n.d. | AX47: 07
A48: 0702 | B48: Tomates, frescos ou refrigerados | C48: 0 | D48: 0 | E48: 0 | F48: 0 | G48: 0 | H48: 0 | I48: 0 | J48: 0 | K48: 0 | L48: 0 | M48: 0 | N48: 0 | O48: 0 | P48: 0 | Q48: 0 | R48: 0 | S48: 0 | U48: =G48-INDEX($C48:$G48,1,aux!$AL$1) -> 0 | V48: 0 | W48: 0 | X48: =+IF(INDEX($C48:$G48,1,aux!$AL$1)>0,(G48/INDEX($C48:$G48,1,aux!$AL$1))^(1/($G$3-INDEX($C$3:$G$3,1,aux!$AL$1)))-1,"n.d.") -> n.d. | Y48: =IF(INDEX($C48:$G48,1,aux!$AL$1)>0,(G48-INDEX($C48:$G48,1,aux!$AL$1))/INDEX($C48:$G48,1,aux!$AL$1),"n.d.") -> n.d. | AA48: =O48-INDEX($K48:$O48,1,aux!$AL$1) -> 0 | AB48: 0 | AC48: 0 | AD48: =+IF(INDEX($K48:$O48,1,aux!$AL$1)>0,(O48/INDEX($K48:$O48,1,aux!$AL$1))^(1/($O$3-INDEX($K$3:$O$3,1,aux!$AL$1)))-1,"n.d.") -> n.d. | AE48: =IF(INDEX($K48:$O48,1,aux!$AL$1)>0,(O48-INDEX($K48:$O48,1,aux!$AL$1))/INDEX($K48:$O48,1,aux!$AL$1),"n.d.") -> n.d. | AX48: 07
A49: 0703 | B49: Cebolas, alhos, etc., frescos ou refrigerados | C49: 0 | D49: 59.406 | E49: 0 | F49: 0 | G49: 0 | H49: 11.8812 | I49: 0.00010559045 | J49: 8.174527435e-05 | K49: 0 | L49: 0 | M49: 0 | N49: 0 | O49: 0 | P49: 0 | Q49: 0 | R49: 0 | S49: -11.8812 | U49: =G49-INDEX($C49:$G49,1,aux!$AL$1) -> 0 | V49: 0 | W49: 0 | X49: =+IF(INDEX($C49:$G49,1,aux!$AL$1)>0,(G49/INDEX($C49:$G49,1,aux!$AL$1))^(1/($G$3-INDEX($C$3:$G$3,1,aux!$AL$1)))-1,"n.d.") -> n.d. | Y49: =IF(INDEX($C49:$G49,1,aux!$AL$1)>0,(G49-INDEX($C49:$G49,1,aux!$AL$1))/INDEX($C49:$G49,1,aux!$AL$1),"n.d.") -> n.d. | AA49: =O49-INDEX($K49:$O49,1,aux!$AL$1) -> 0 | AB49: 0 | AC49: 0 | AD49: =+IF(INDEX($K49:$O49,1,aux!$AL$1)>0,(O49/INDEX($K49:$O49,1,aux!$AL$1))^(1/($O$3-INDEX($K$3:$O$3,1,aux!$AL$1)))-1,"n.d.") -> n.d. | AE49: =IF(INDEX($K49:$O49,1,aux!$AL$1)>0,(O49-INDEX($K49:$O49,1,aux!$AL$1))/INDEX($K49:$O49,1,aux!$AL$1),"n.d.") -> n.d. | AX49: 07
A50: 0704 | B50: Couves, frescas ou refrigeradas | C50: 0 | D50: 0 | E50: 0 | F50: 0 | G50: 0 | H50: 0 | I50: 0 | J50: 0 | K50: 0 | L50: 0 | M50: 0 | N50: 0 | O50: 0.148 | P50: 0.0296 | Q50: 1.355610546e-06 | R50: 7.966576808e-07 | S50: 0.0296 | U50: =G50-INDEX($C50:$G50,1,aux!$AL$1) -> 0 | V50: 0 | W50: 0 | X50: =+IF(INDEX($C50:$G50,1,aux!$AL$1)>0,(G50/INDEX($C50:$G50,1,aux!$AL$1))^(1/($G$3-INDEX($C$3:$G$3,1,aux!$AL$1)))-1,"n.d.") -> n.d. | Y50: =IF(INDEX($C50:$G50,1,aux!$AL$1)>0,(G50-INDEX($C50:$G50,1,aux!$AL$1))/INDEX($C50:$G50,1,aux!$AL$1),"n.d.") -> n.d. | AA50: =O50-INDEX($K50:$O50,1,aux!$AL$1) -> 0.148 | AB50: 1.113106513e-05 | AC50: 9.098557915e-06 | AD50: =+IF(INDEX($K50:$O50,1,aux!$AL$1)>0,(O50/INDEX($K50:$O50,1,aux!$AL$1))^(1/($O$3-INDEX($K$3:$O$3,1,aux!$AL$1)))-1,"n.d.") -> n.d. | AE50: =IF(INDEX($K50:$O50,1,aux!$AL$1)>0,(O50-INDEX($K50:$O50,1,aux!$AL$1))/INDEX($K50:$O50,1,aux!$AL$1),"n.d.") -> n.d. | AX50: 07
A51: 0705 | B51: Alfaces, frescas ou refrigeradas | C51: 0 | D51: 0 | E51: 0 | F51: 0 | G51: 0 | H51: 0 | I51: 0 | J51: 0 | K51: 0 | L51: 0 | M51: 0 | N51: 0 | O51: 0 | P51: 0 | Q51: 0 | R51: 0 | S51: 0 | U51: =G51-INDEX($C51:$G51,1,aux!$AL$1) -> 0 | V51: 0 | W51: 0 | X51: =+IF(INDEX($C51:$G51,1,aux!$AL$1)>0,(G51/INDEX($C51:$G51,1,aux!$AL$1))^(1/($G$3-INDEX($C$3:$G$3,1,aux!$AL$1)))-1,"n.d.") -> n.d. | Y51: =IF(INDEX($C51:$G51,1,aux!$AL$1)>0,(G51-INDEX($C51:$G51,1,aux!$AL$1))/INDEX($C51:$G51,1,aux!$AL$1),"n.d.") -> n.d. | AA51: =O51-INDEX($K51:$O51,1,aux!$AL$1) -> 0 | AB51: 0 | AC51: 0 | AD51: =+IF(INDEX($K51:$O51,1,aux!$AL$1)>0,(O51/INDEX($K51:$O51,1,aux!$AL$1))^(1/($O$3-INDEX($K$3:$O$3,1,aux!$AL$1)))-1,"n.d.") -> n.d. | AE51: =IF(INDEX($K51:$O51,1,aux!$AL$1)>0,(O51-INDEX($K51:$O51,1,aux!$AL$1))/INDEX($K51:$O51,1,aux!$AL$1),"n.d.") -> n.d. | AX51: 07
A52: 0706 | B52: Cenouras, nabos, beterrabas, etc., frescos ou refrigerados | C52: 0 | D52: 0 | E52: 0 | F52: 0 | G52: 0 | H52: 0 | I52: 0 | J52: 0 | K52: 0 | L52: 0 | M52: 0 | N52: 0 | O52: 0 | P52: 0 | Q52: 0 | R52: 0 | S52: 0 | U52: =G52-INDEX($C52:$G52,1,aux!$AL$1) -> 0 | V52: 0 | W52: 0 | X52: =+IF(INDEX($C52:$G52,1,aux!$AL$1)>0,(G52/INDEX($C52:$G52,1,aux!$AL$1))^(1/($G$3-INDEX($C$3:$G$3,1,aux!$AL$1)))-1,"n.d.") -> n.d. | Y52: =IF(INDEX($C52:$G52,1,aux!$AL$1)>0,(G52-INDEX($C52:$G52,1,aux!$AL$1))/INDEX($C52:$G52,1,aux!$AL$1),"n.d.") -> n.d. | AA52: =O52-INDEX($K52:$O52,1,aux!$AL$1) -> 0 | AB52: 0 | AC52: 0 | AD52: =+IF(INDEX($K52:$O52,1,aux!$AL$1)>0,(O52/INDEX($K52:$O52,1,aux!$AL$1))^(1/($O$3-INDEX($K$3:$O$3,1,aux!$AL$1)))-1,"n.d.") -> n.d. | AE52: =IF(INDEX($K52:$O52,1,aux!$AL$1)>0,(O52-INDEX($K52:$O52,1,aux!$AL$1))/INDEX($K52:$O52,1,aux!$AL$1),"n.d.") -> n.d. | AX52: 07
A53: 0707 | B53: Pepinos e pepininhos, frescos ou refrigerados | C53: 0 | D53: 0 | E53: 0 | F53: 0 | G53: 0 | H53: 0 | I53: 0 | J53: 0 | K53: 0 | L53: 0 | M53: 0 | N53: 0 | O53: 0 | P53: 0 | Q53: 0 | R53: 0 | S53: 0 | U53: =G53-INDEX($C53:$G53,1,aux!$AL$1) -> 0 | V53: 0 | W53: 0 | X53: =+IF(INDEX($C53:$G53,1,aux!$AL$1)>0,(G53/INDEX($C53:$G53,1,aux!$AL$1))^(1/($G$3-INDEX($C$3:$G$3,1,aux!$AL$1)))-1,"n.d.") -> n.d. | Y53: =IF(INDEX($C53:$G53,1,aux!$AL$1)>0,(G53-INDEX($C53:$G53,1,aux!$AL$1))/INDEX($C53:$G53,1,aux!$AL$1),"n.d.") -> n.d. | AA53: =O53-INDEX($K53:$O53,1,aux!$AL$1) -> 0 | AB53: 0 | AC53: 0 | AD53: =+IF(INDEX($K53:$O53,1,aux!$AL$1)>0,(O53/INDEX($K53:$O53,1,aux!$AL$1))^(1/($O$3-INDEX($K$3:$O$3,1,aux!$AL$1)))-1,"n.d.") -> n.d. | AE53: =IF(INDEX($K53:$O53,1,aux!$AL$1)>0,(O53-INDEX($K53:$O53,1,aux!$AL$1))/INDEX($K53:$O53,1,aux!$AL$1),"n.d.") -> n.d. | AX53: 07
A54: 0708 | B54: Tomates preparados ou conservados | C54: 0 | D54: 0 | E54: 0 | F54: 0 | G54: 0 | H54: 0 | I54: 0 | J54: 0 | K54: 0 | L54: 0 | M54: 2.017 | N54: 0.44 | O54: 0 | P54: 0.4914 | Q54: 2.250496696e-05 | R54: 1.322559407e-05 | S54: 0.4914 | U54: =G54-INDEX($C54:$G54,1,aux!$AL$1) -> 0 | V54: 0 | W54: 0 | X54: =+IF(INDEX($C54:$G54,1,aux!$AL$1)>0,(G54/INDEX($C54:$G54,1,aux!$AL$1))^(1/($G$3-INDEX($C$3:$G$3,1,aux!$AL$1)))-1,"n.d.") -> n.d. | Y54: =IF(INDEX($C54:$G54,1,aux!$AL$1)>0,(G54-INDEX($C54:$G54,1,aux!$AL$1))/INDEX($C54:$G54,1,aux!$AL$1),"n.d.") -> n.d. | AA54: =O54-INDEX($K54:$O54,1,aux!$AL$1) -> 0 | AB54: 0 | AC54: 0 | AD54: =+IF(INDEX($K54:$O54,1,aux!$AL$1)>0,(O54/INDEX($K54:$O54,1,aux!$AL$1))^(1/($O$3-INDEX($K$3:$O$3,1,aux!$AL$1)))-1,"n.d.") -> n.d. | AE54: =IF(INDEX($K54:$O54,1,aux!$AL$1)>0,(O54-INDEX($K54:$O54,1,aux!$AL$1))/INDEX($K54:$O54,1,aux!$AL$1),"n.d.") -> n.d. | AX54: 07
A55: 0709 | B55: Outros produtos hortícolas, frescos ou refrigerados | C55: 0 | D55: 114.4 | E55: 224.707 | F55: 160.583 | G55: 168.124 | H55: 133.5628 | I55: 0.001186997623 | J55: 0.0009189414982 | K55: 0 | L55: 0 | M55: 0 | N55: 0 | O55: 0 | P55: 0 | Q55: 0 | R55: 0 | S55: -133.5628 | U55: =G55-INDEX($C55:$G55,1,aux!$AL$1) -> 168.124 | V55: 0.005512997602 | W55: 0.009720562449 | X55: =+IF(INDEX($C55:$G55,1,aux!$AL$1)>0,(G55/INDEX($C55:$G55,1,aux!$AL$1))^(1/($G$3-INDEX($C$3:$G$3,1,aux!$AL$1)))-1,"n.d.") -> n.d. | Y55: =IF(INDEX($C55:$G55,1,aux!$AL$1)>0,(G55-INDEX($C55:$G55,1,aux!$AL$1))/INDEX($C55:$G55,1,aux!$AL$1),"n.d.") -> n.d. | AA55: =O55-INDEX($K55:$O55,1,aux!$AL$1) -> 0 | AB55: 0 | AC55: 0 | AD55: =+IF(INDEX($K55:$O55,1,aux!$AL$1)>0,(O55/INDEX($K55:$O55,1,aux!$AL$1))^(1/($O$3-INDEX($K$3:$O$3,1,aux!$AL$1)))-1,"n.d.") -> n.d. | AE55: =IF(INDEX($K55:$O55,1,aux!$AL$1)>0,(O55-INDEX($K55:$O55,1,aux!$AL$1))/INDEX($K55:$O55,1,aux!$AL$1),"n.d.") -> n.d. | AX55: 07
A56: 0710 | B56: Produtos hortícolas congelados | C56: 0 | D56: 0 | E56: 0 | F56: 0 | G56: 0 | H56: 0 | I56: 0 | J56: 0 | K56: 7.946 | L56: 8 | M56: 9.316 | N56: 8.278 | O56: 3.098 | P56: 7.3276 | Q56: 0.0003355868863 | R56: 0.0001972158386 | S56: 7.3276 | U56: =G56-INDEX($C56:$G56,1,aux!$AL$1) -> 0 | V56: 0 | W56: 0 | X56: =+IF(INDEX($C56:$G56,1,aux!$AL$1)>0,(G56/INDEX($C56:$G56,1,aux!$AL$1))^(1/($G$3-INDEX($C$3:$G$3,1,aux!$AL$1)))-1,"n.d.") -> n.d. | Y56: =IF(INDEX($C56:$G56,1,aux!$AL$1)>0,(G56-INDEX($C56:$G56,1,aux!$AL$1))/INDEX($C56:$G56,1,aux!$AL$1),"n.d.") -> n.d. | AA56: =O56-INDEX($K56:$O56,1,aux!$AL$1) -> -4.848 | AB56: -0.000364617593 | AC56: -0.0002980392485 | AD56: =+IF(INDEX($K56:$O56,1,aux!$AL$1)>0,(O56/INDEX($K56:$O56,1,aux!$AL$1))^(1/($O$3-INDEX($K$3:$O$3,1,aux!$AL$1)))-1,"n.d.") -> -0.2098069362 | AE56: =IF(INDEX($K56:$O56,1,aux!$AL$1)>0,(O56-INDEX($K56:$O56,1,aux!$AL$1))/INDEX($K56:$O56,1,aux!$AL$1),"n.d.") -> -0.6101182985 | AX56: 07
A57: 0711 | B57: Produtos hortícolas conservados transitoriamente | C57: 0 | D57: 0 | E57: 0 | F57: 0 | G57: 0 | H57: 0 | I57: 0 | J57: 0 | K57: 0 | L57: 0 | M57: 0 | N57: 1.084 | O57: 0 | P57: 0.2168 | Q57: 9.928931293e-06 | R57: 5.83497923e-06 | S57: 0.2168 | U57: =G57-INDEX($C57:$G57,1,aux!$AL$1) -> 0 | V57: 0 | W57: 0 | X57: =+IF(INDEX($C57:$G57,1,aux!$AL$1)>0,(G57/INDEX($C57:$G57,1,aux!$AL$1))^(1/($G$3-INDEX($C$3:$G$3,1,aux!$AL$1)))-1,"n.d.") -> n.d. | Y57: =IF(INDEX($C57:$G57,1,aux!$AL$1)>0,(G57-INDEX($C57:$G57,1,aux!$AL$1))/INDEX($C57:$G57,1,aux!$AL$1),"n.d.") -> n.d. | AA57: =O57-INDEX($K57:$O57,1,aux!$AL$1) -> 0 | AB57: 0 | AC57: 0 | AD57: =+IF(INDEX($K57:$O57,1,aux!$AL$1)>0,(O57/INDEX($K57:$O57,1,aux!$AL$1))^(1/($O$3-INDEX($K$3:$O$3,1,aux!$AL$1)))-1,"n.d.") -> n.d. | AE57: =IF(INDEX($K57:$O57,1,aux!$AL$1)>0,(O57-INDEX($K57:$O57,1,aux!$AL$1))/INDEX($K57:$O57,1,aux!$AL$1),"n.d.") -> n.d. | AX57: 07
A58: 0712 | B58: Produtos hortícolas secos | C58: 0 | D58: 0 | E58: 0 | F58: 0 | G58: 0 | H58: 0 | I58: 0 | J58: 0 | K58: 1.325 | L58: 2.15 | M58: 0.295 | N58: 0 | O58: 2.738 | P58: 1.3016 | Q58: 5.961022588e-05 | R58: 3.503140667e-05 | S58: 1.3016 | U58: =G58-INDEX($C58:$G58,1,aux!$AL$1) -> 0 | V58: 0 | W58: 0 | X58: =+IF(INDEX($C58:$G58,1,aux!$AL$1)>0,(G58/INDEX($C58:$G58,1,aux!$AL$1))^(1/($G$3-INDEX($C$3:$G$3,1,aux!$AL$1)))-1,"n.d.") -> n.d. | Y58: =IF(INDEX($C58:$G58,1,aux!$AL$1)>0,(G58-INDEX($C58:$G58,1,aux!$AL$1))/INDEX($C58:$G58,1,aux!$AL$1),"n.d.") -> n.d. | AA58: =O58-INDEX($K58:$O58,1,aux!$AL$1) -> 1.413 | AB58: 0.0001062715881 | AC58: 8.68666374e-05 | AD58: =+IF(INDEX($K58:$O58,1,aux!$AL$1)>0,(O58/INDEX($K58:$O58,1,aux!$AL$1))^(1/($O$3-INDEX($K$3:$O$3,1,aux!$AL$1)))-1,"n.d.") -> 0.1989591637 | AE58: =IF(INDEX($K58:$O58,1,aux!$AL$1)>0,(O58-INDEX($K58:$O58,1,aux!$AL$1))/INDEX($K58:$O58,1,aux!$AL$1),"n.d.") -> 1.066415094 | AX58: 07
A59: 0713 | B59: Legumes de vagem, secos, em grão | C59: 465.797 | D59: 0 | E59: 598.686 | F59: 0 | G59: 116.293 | H59: 236.1552 | I59: 0.002098755499 | J59: 0.001624799819 | K59: 2.753 | L59: 1.386 | M59: 6.424 | N59: 4.036 | O59: 7.738 | P59: 4.4674 | Q59: 0.0002045964375 | R59: 0.0001202360988 | S59: -231.6878 | U59: =G59-INDEX($C59:$G59,1,aux!$AL$1) -> -349.504 | V59: -0.01146067613 | W59: -0.02020755786 | X59: =+IF(INDEX($C59:$G59,1,aux!$AL$1)>0,(G59/INDEX($C59:$G59,1,aux!$AL$1))^(1/($G$3-INDEX($C$3:$G$3,1,aux!$AL$1)))-1,"n.d.") -> -0.2931305348 | Y59: =IF(INDEX($C59:$G59,1,aux!$AL$1)>0,(G59-INDEX($C59:$G59,1,aux!$AL$1))/INDEX($C59:$G59,1,aux!$AL$1),"n.d.") -> -0.7503354466 | AA59: =O59-INDEX($K59:$O59,1,aux!$AL$1) -> 4.985 | AB59: 0.0003749213492 | AC59: 0.0003064615622 | AD59: =+IF(INDEX($K59:$O59,1,aux!$AL$1)>0,(O59/INDEX($K59:$O59,1,aux!$AL$1))^(1/($O$3-INDEX($K$3:$O$3,1,aux!$AL$1)))-1,"n.d.") -> 0.2948087587 | AE59: =IF(INDEX($K59:$O59,1,aux!$AL$1)>0,(O59-INDEX($K59:$O59,1,aux!$AL$1))/INDEX($K59:$O59,1,aux!$AL$1),"n.d.") -> 1.810751907 | AX59: 07
A60: 0714 | B60: Raízes de mandioca, de araruta, batata-doce, etc. | C60: 75.12 | D60: 208.56 | E60: 0 | F60: 72.811 | G60: 0 | H60: 71.2982 | I60: 0.000633640459 | J60: 0.0004905473285 | K60: 0 | L60: 32.283 | M60: 0 | N60: 0 | O60: 0 | P60: 6.4566 | Q60: 0.00029569713 | R60: 0.000173773648 | S60: -64.8416 | U60: =G60-INDEX($C60:$G60,1,aux!$AL$1) -> -75.12 | V60: -0.002463279365 | W60: -0.004343274317 | X60: =+IF(INDEX($C60:$G60,1,aux!$AL$1)>0,(G60/INDEX($C60:$G60,1,aux!$AL$1))^(1/($G$3-INDEX($C$3:$G$3,1,aux!$AL$1)))-1,"n.d.") -> -1 | Y60: =IF(INDEX($C60:$G60,1,aux!$AL$1)>0,(G60-INDEX($C60:$G60,1,aux!$AL$1))/INDEX($C60:$G60,1,aux!$AL$1),"n.d.") -> -1 | AA60: =O60-INDEX($K60:$O60,1,aux!$AL$1) -> 0 | AB60: 0 | AC60: 0 | AD60: =+IF(INDEX($K60:$O60,1,aux!$AL$1)>0,(O60/INDEX($K60:$O60,1,aux!$AL$1))^(1/($O$3-INDEX($K$3:$O$3,1,aux!$AL$1)))-1,"n.d.") -> n.d. | AE60: =IF(INDEX($K60:$O60,1,aux!$AL$1)>0,(O60-INDEX($K60:$O60,1,aux!$AL$1))/INDEX($K60:$O60,1,aux!$AL$1),"n.d.") -> n.d. | AX60: 07
A61: 07SS | B61: Produtos hortícolas, plantas, raízes e tubérculos, comestíveis | C61: 0 | D61: 0 | E61: 0 | F61: 0 | G61: 0 | H61: 0 | I61: 0 | J61: 0 | K61: 0 | L61: 0 | M61: 0 | N61: 0 | O61: 0 | P61: 0 | Q61: 0 | R61: 0 | S61: 0 | U61: =G61-INDEX($C61:$G61,1,aux!$AL$1) -> 0 | V61: 0 | W61: 0 | X61: =+IF(INDEX($C61:$G61,1,aux!$AL$1)>0,(G61/INDEX($C61:$G61,1,aux!$AL$1))^(1/($G$3-INDEX($C$3:$G$3,1,aux!$AL$1)))-1,"n.d.") -> n.d. | Y61: =IF(INDEX($C61:$G61,1,aux!$AL$1)>0,(G61-INDEX($C61:$G61,1,aux!$AL$1))/INDEX($C61:$G61,1,aux!$AL$1),"n.d.") -> n.d. | AA61: =O61-INDEX($K61:$O61,1,aux!$AL$1) -> 0 | AB61: 0 | AC61: 0 | AD61: =+IF(INDEX($K61:$O61,1,aux!$AL$1)>0,(O61/INDEX($K61:$O61,1,aux!$AL$1))^(1/($O$3-INDEX($K$3:$O$3,1,aux!$AL$1)))-1,"n.d.") -> n.d. | AE61: =IF(INDEX($K61:$O61,1,aux!$AL$1)>0,(O61-INDEX($K61:$O61,1,aux!$AL$1))/INDEX($K61:$O61,1,aux!$AL$1),"n.d.") -> n.d. | AX61: 07
A62: 0801 | B62: Cocos, castanhas do brasil e castanha de cajú | C62: 0 | D62: 0 | E62: 0 | F62: 0 | G62: 0 | H62: 0 | I62: 0 | J62: 0 | K62: 0 | L62: 0 | M62: 0 | N62: 0 | O62: 0.482 | P62: 0.0964 | Q62: 4.414893804e-06 | R62: 2.594520285e-06 | S62: 0.0964 | U62: =G62-INDEX($C62:$G62,1,aux!$AL$1) -> 0 | V62: 0 | W62: 0 | X62: =+IF(INDEX($C62:$G62,1,aux!$AL$1)>0,(G62/INDEX($C62:$G62,1,aux!$AL$1))^(1/($G$3-INDEX($C$3:$G$3,1,aux!$AL$1)))-1,"n.d.") -> n.d. | Y62: =IF(INDEX($C62:$G62,1,aux!$AL$1)>0,(G62-INDEX($C62:$G62,1,aux!$AL$1))/INDEX($C62:$G62,1,aux!$AL$1),"n.d.") -> n.d. | AA62: =O62-INDEX($K62:$O62,1,aux!$AL$1) -> 0.482 | AB62: 3.625117158e-05 | AC62: 2.963178997e-05 | AD62: =+IF(INDEX($K62:$O62,1,aux!$AL$1)>0,(O62/INDEX($K62:$O62,1,aux!$AL$1))^(1/($O$3-INDEX($K$3:$O$3,1,aux!$AL$1)))-1,"n.d.") -> n.d. | AE62: =IF(INDEX($K62:$O62,1,aux!$AL$1)>0,(O62-INDEX($K62:$O62,1,aux!$AL$1))/INDEX($K62:$O62,1,aux!$AL$1),"n.d.") -> n.d. | AX62: 08
A63: 0802 | B63: Frutas de casca rija | C63: 0 | D63: 108.947 | E63: 89.992 | F63: 0 | G63: 136.388 | H63: 67.0654 | I63: 0.0005960227725 | J63: 0.0004614247317 | K63: 10.132 | L63: 9.003 | M63: 27.482 | N63: 9.542 | O63: 3.212 | P63: 11.8742 | Q63: 0.000543810498 | R63: 0.0003195835349 | S63: -55.1912 | U63: =G63-INDEX($C63:$G63,1,aux!$AL$1) -> 136.388 | V63: 0.004472334212 | W63: 0.00788565625 | X63: =+IF(INDEX($C63:$G63,1,aux!$AL$1)>0,(G63/INDEX($C63:$G63,1,aux!$AL$1))^(1/($G$3-INDEX($C$3:$G$3,1,aux!$AL$1)))-1,"n.d.") -> n.d. | Y63: =IF(INDEX($C63:$G63,1,aux!$AL$1)>0,(G63-INDEX($C63:$G63,1,aux!$AL$1))/INDEX($C63:$G63,1,aux!$AL$1),"n.d.") -> n.d. | AA63: =O63-INDEX($K63:$O63,1,aux!$AL$1) -> -6.92 | AB63: -0.0005204525049 | AC63: -0.0004254190593 | AD63: =+IF(INDEX($K63:$O63,1,aux!$AL$1)>0,(O63/INDEX($K63:$O63,1,aux!$AL$1))^(1/($O$3-INDEX($K$3:$O$3,1,aux!$AL$1)))-1,"n.d.") -> -0.2496392845 | AE63: =IF(INDEX($K63:$O63,1,aux!$AL$1)>0,(O63-INDEX($K63:$O63,1,aux!$AL$1))/INDEX($K63:$O63,1,aux!$AL$1),"n.d.") -> -0.6829846032 | AX63: 08
A64: 0803 | B64: Bananas, frescas ou secas | C64: 0 | D64: 0 | E64: 0 | F64: 0 | G64: 0 | H64: 0 | I64: 0 | J64: 0 | K64: 0 | L64: 0 | M64: 0 | N64: 0 | O64: 0 | P64: 0 | Q64: 0 | R64: 0 | S64: 0 | U64: =G64-INDEX($C64:$G64,1,aux!$AL$1) -> 0 | V64: 0 | W64: 0 | X64: =+IF(INDEX($C64:$G64,1,aux!$AL$1)>0,(G64/INDEX($C64:$G64,1,aux!$AL$1))^(1/($G$3-INDEX($C$3:$G$3,1,aux!$AL$1)))-1,"n.d.") -> n.d. | Y64: =IF(INDEX($C64:$G64,1,aux!$AL$1)>0,(G64-INDEX($C64:$G64,1,aux!$AL$1))/INDEX($C64:$G64,1,aux!$AL$1),"n.d.") -> n.d. | AA64: =O64-INDEX($K64:$O64,1,aux!$AL$1) -> 0 | AB64: 0 | AC64: 0 | AD64: =+IF(INDEX($K64:$O64,1,aux!$AL$1)>0,(O64/INDEX($K64:$O64,1,aux!$AL$1))^(1/($O$3-INDEX($K$3:$O$3,1,aux!$AL$1)))-1,"n.d.") -> n.d. | AE64: =IF(INDEX($K64:$O64,1,aux!$AL$1)>0,(O64-INDEX($K64:$O64,1,aux!$AL$1))/INDEX($K64:$O64,1,aux!$AL$1),"n.d.") -> n.d. | AX64: 08
A65: 0804 | B65: Tâmaras, figos, ananases, abacates, goiabas, mangas | C65: 2245.157 | D65: 1069.505 | E65: 2418.122 | F65: 1804.539 | G65: 3186.609 | H65: 2144.7864 | I65: 0.0190611185 | J65: 0.01475660309 | K65: 1.78 | L65: 2.457 | M65: 0.305 | N65: 0.594 | O65: 1.546 | P65: 1.3364 | Q65: 6.120398422e-05 | R65: 3.596801773e-05 | S65: -2143.45 | U65: =G65-INDEX($C65:$G65,1,aux!$AL$1) -> 941.452 | V65: 0.03087139622 | W65: 0.05443269824 | X65: =+IF(INDEX($C65:$G65,1,aux!$AL$1)>0,(G65/INDEX($C65:$G65,1,aux!$AL$1))^(1/($G$3-INDEX($C$3:$G$3,1,aux!$AL$1)))-1,"n.d.") -> 0.0914918962 | Y65: =IF(INDEX($C65:$G65,1,aux!$AL$1)>0,(G65-INDEX($C65:$G65,1,aux!$AL$1))/INDEX($C65:$G65,1,aux!$AL$1),"n.d.") -> 0.4193256864 | AA65: =O65-INDEX($K65:$O65,1,aux!$AL$1) -> -0.234 | AB65: -1.759911649e-05 | AC65: -1.438555779e-05 | AD65: =+IF(INDEX($K65:$O65,1,aux!$AL$1)>0,(O65/INDEX($K65:$O65,1,aux!$AL$1))^(1/($O$3-INDEX($K$3:$O$3,1,aux!$AL$1)))-1,"n.d.") -> -0.03462205699 | AE65: =IF(INDEX($K65:$O65,1,aux!$AL$1)>0,(O65-INDEX($K65:$O65,1,aux!$AL$1))/INDEX($K65:$O65,1,aux!$AL$1),"n.d.") -> -0.1314606742 | AX65: 08
A66: 0805 | B66: Citrinos, frescos ou secos | C66: 85491.943 | D66: 69189.162 | E66: 115181.955 | F66: 82951.385 | G66: 99810.78 | H66: 90525.045 | I66: 0.8045130321 | J66: 0.6228322593 | K66: 0 | L66: 0 | M66: 0 | N66: 12.867 | O66: 0 | P66: 2.5734 | Q66: 0.0001178556817 | R66: 6.926077283e-05 | S66: -90522.4716 | U66: =G66-INDEX($C66:$G66,1,aux!$AL$1) -> 14318.837 | V66: 0.4695326905 | W66: 0.8278838789 | X66: =+IF(INDEX($C66:$G66,1,aux!$AL$1)>0,(G66/INDEX($C66:$G66,1,aux!$AL$1))^(1/($G$3-INDEX($C$3:$G$3,1,aux!$AL$1)))-1,"n.d.") -> 0.03947264661 | Y66: =IF(INDEX($C66:$G66,1,aux!$AL$1)>0,(G66-INDEX($C66:$G66,1,aux!$AL$1))/INDEX($C66:$G66,1,aux!$AL$1),"n.d.") -> 0.1674875608 | AA66: =O66-INDEX($K66:$O66,1,aux!$AL$1) -> 0 | AB66: 0 | AC66: 0 | AD66: =+IF(INDEX($K66:$O66,1,aux!$AL$1)>0,(O66/INDEX($K66:$O66,1,aux!$AL$1))^(1/($O$3-INDEX($K$3:$O$3,1,aux!$AL$1)))-1,"n.d.") -> n.d. | AE66: =IF(INDEX($K66:$O66,1,aux!$AL$1)>0,(O66-INDEX($K66:$O66,1,aux!$AL$1))/INDEX($K66:$O66,1,aux!$AL$1),"n.d.") -> n.d. | AX66: 08
A67: 0806 | B67: Uvas, frescas ou secas | C67: 1602.198 | D67: 1429.182 | E67: 2294.911 | F67: 2150.074 | G67: 1693.482 | H67: 1833.9694 | I67: 0.0162988296 | J67: 0.01261811364 | K67: 0 | L67: 0 | M67: 111.669 | N67: 35.54 | O67: 0 | P67: 29.4418 | Q67: 0.001348365357 | R67: 0.0007923998685 | S67: -1804.5276 | U67: =G67-INDEX($C67:$G67,1,aux!$AL$1) -> 91.284 | V67: 0.002993317273 | W67: 0.00527784149 | X67: =+IF(INDEX($C67:$G67,1,aux!$AL$1)>0,(G67/INDEX($C67:$G67,1,aux!$AL$1))^(1/($G$3-INDEX($C$3:$G$3,1,aux!$AL$1)))-1,"n.d.") -> 0.01394897355 | Y67: =IF(INDEX($C67:$G67,1,aux!$AL$1)>0,(G67-INDEX($C67:$G67,1,aux!$AL$1))/INDEX($C67:$G67,1,aux!$AL$1),"n.d.") -> 0.05697423165 | AA67: =O67-INDEX($K67:$O67,1,aux!$AL$1) -> 0 | AB67: 0 | AC67: 0 | AD67: =+IF(INDEX($K67:$O67,1,aux!$AL$1)>0,(O67/INDEX($K67:$O67,1,aux!$AL$1))^(1/($O$3-INDEX($K$3:$O$3,1,aux!$AL$1)))-1,"n.d.") -> n.d. | AE67: =IF(INDEX($K67:$O67,1,aux!$AL$1)>0,(O67-INDEX($K67:$O67,1,aux!$AL$1))/INDEX($K67:$O67,1,aux!$AL$1),"n.d.") -> n.d. | AX67: 08
A68: 0807 | B68: Melões, melancias e papaia, frescos | C68: 0 | D68: 0 | E68: 0 | F68: 0 | G68: 0 | H68: 0 | I68: 0 | J68: 0 | K68: 0 | L68: 0 | M68: 0 | N68: 0 | O68: 0 | P68: 0 | Q68: 0 | R68: 0 | S68: 0 | U68: =G68-INDEX($C68:$G68,1,aux!$AL$1) -> 0 | V68: =IF($U$237<>0,U68/$U$237, "n.d.") -> 0 | W68: =IF($U$322<>0,U68/$U$322, "n.d.") -> 0 | X68: =+IF(INDEX($C68:$G68,1,aux!$AL$1)>0,(G68/INDEX($C68:$G68,1,aux!$AL$1))^(1/($G$3-INDEX($C$3:$G$3,1,aux!$AL$1)))-1,"n.d.") -> n.d. | Y68: =IF(INDEX($C68:$G68,1,aux!$AL$1)>0,(G68-INDEX($C68:$G68,1,aux!$AL$1))/INDEX($C68:$G68,1,aux!$AL$1),"n.d.") -> n.d. | AA68: =O68-INDEX($K68:$O68,1,aux!$AL$1) -> 0 | AB68: =IF($AA$237<>0,AA68/$AA$237, "n.d.") -> 0 | AC68: =IF($AA$322<>0,AA68/$AA$322, "n.d.") -> 0 | AD68: =+IF(INDEX($K68:$O68,1,aux!$AL$1)>0,(O68/INDEX($K68:$O68,1,aux!$AL$1))^(1/($O$3-INDEX($K$3:$O$3,1,aux!$AL$1)))-1,"n.d.") -> n.d. | AE68: =IF(INDEX($K68:$O68,1,aux!$AL$1)>0,(O68-INDEX($K68:$O68,1,aux!$AL$1))/INDEX($K68:$O68,1,aux!$AL$1),"n.d.") -> n.d. | AX68: 08
A69: 0808 | B69: Maçãs, peras e marmelos, frescos | C69: 5076 | D69: 5129.564 | E69: 4862.808 | F69: 5444.643 | G69: 5239.578 | H69: 5150.5186 | I69: 0.0457736236 | J69: 0.03543670303 | K69: 0 | L69: 0 | M69: 0 | N69: 0 | O69: 0 | P69: 0 | Q69: 0 | R69: 0 | S69: -5150.5186 | U69: =G69-INDEX($C69:$G69,1,aux!$AL$1) -> 163.578 | V69: 0.00536392854 | W69: 0.009457722659 | X69: =+IF(INDEX($C69:$G69,1,aux!$AL$1)>0,(G69/INDEX($C69:$G69,1,aux!$AL$1))^(1/($G$3-INDEX($C$3:$G$3,1,aux!$AL$1)))-1,"n.d.") -> 0.007960873296 | Y69: =IF(INDEX($C69:$G69,1,aux!$AL$1)>0,(G69-INDEX($C69:$G69,1,aux!$AL$1))/INDEX($C69:$G69,1,aux!$AL$1),"n.d.") -> 0.03222576832 | AA69: =O69-INDEX($K69:$O69,1,aux!$AL$1) -> 0 | AB69: 0 | AC69: 0 | AD69: =+IF(INDEX($K69:$O69,1,aux!$AL$1)>0,(O69/INDEX($K69:$O69,1,aux!$AL$1))^(1/($O$3-INDEX($K$3:$O$3,1,aux!$AL$1)))-1,"n.d.") -> n.d. | AE69: =IF(INDEX($K69:$O69,1,aux!$AL$1)>0,(O69-INDEX($K69:$O69,1,aux!$AL$1))/INDEX($K69:$O69,1,aux!$AL$1),"n.d.") -> n.d. | AX69: 08
A70: 0809 | B70: Damascos, cerejas, pêssegos, etc., frescos | C70: 83.538 | D70: 0 | E70: 69.702 | F70: 825.071 | G70: 621.988 | H70: 320.0598 | I70: 0.002844431396 | J70: 0.002202081958 | K70: 0 | L70: 0 | M70: 0 | N70: 0 | O70: 16.64 | P70: 3.328 | Q70: 0.0001524145911 | R70: 8.957016087e-05 | S70: -316.7318 | U70: =G70-INDEX($C70:$G70,1,aux!$AL$1) -> 538.45 | V70: 0.01765645333 | W70: 0.03113200287 | X70: =+IF(INDEX($C70:$G70,1,aux!$AL$1)>0,(G70/INDEX($C70:$G70,1,aux!$AL$1))^(1/($G$3-INDEX($C$3:$G$3,1,aux!$AL$1)))-1,"n.d.") -> 0.6518647404 | Y70: =IF(INDEX($C70:$G70,1,aux!$AL$1)>0,(G70-INDEX($C70:$G70,1,aux!$AL$1))/INDEX($C70:$G70,1,aux!$AL$1),"n.d.") -> 6.445569681 | AA70: =O70-INDEX($K70:$O70,1,aux!$AL$1) -> 16.64 | AB70: 0.001251492728 | AC70: 0.001022972998 | AD70: =+IF(INDEX($K70:$O70,1,aux!$AL$1)>0,(O70/INDEX($K70:$O70,1,aux!$AL$1))^(1/($O$3-INDEX($K$3:$O$3,1,aux!$AL$1)))-1,"n.d.") -> n.d. | AE70: =IF(INDEX($K70:$O70,1,aux!$AL$1)>0,(O70-INDEX($K70:$O70,1,aux!$AL$1))/INDEX($K70:$O70,1,aux!$AL$1),"n.d.") -> n.d. | AX70: 08
A71: 0810 | B71: Outras frutas frescas | C71: 0 | D71: 23.328 | E71: 26.464 | F71: 0 | G71: 899.123 | H71: 189.783 | I71: 0.001686637071 | J71: 0.001305748864 | K71: 37.8 | L71: 0 | M71: 0 | N71: 0 | O71: 0 | P71: 7.56 | Q71: 0.0003462302609 | R71: 0.0002034706779 | S71: -182.223 | U71: =G71-INDEX($C71:$G71,1,aux!$AL$1) -> 899.123 | V71: 0.02948337503 | W71: 0.05198532792 | X71: =+IF(INDEX($C71:$G71,1,aux!$AL$1)>0,(G71/INDEX($C71:$G71,1,aux!$AL$1))^(1/($G$3-INDEX($C$3:$G$3,1,aux!$AL$1)))-1,"n.d.") -> n.d. | Y71: =IF(INDEX($C71:$G71,1,aux!$AL$1)>0,(G71-INDEX($C71:$G71,1,aux!$AL$1))/INDEX($C71:$G71,1,aux!$AL$1),"n.d.") -> n.d. | AA71: =O71-INDEX($K71:$O71,1,aux!$AL$1) -> -37.8 | AB71: -0.002842934203 | AC71: -0.002323820873 | AD71: =+IF(INDEX($K71:$O71,1,aux!$AL$1)>0,(O71/INDEX($K71:$O71,1,aux!$AL$1))^(1/($O$3-INDEX($K$3:$O$3,1,aux!$AL$1)))-1,"n.d.") -> -1 | AE71: =IF(INDEX($K71:$O71,1,aux!$AL$1)>0,(O71-INDEX($K71:$O71,1,aux!$AL$1))/INDEX($K71:$O71,1,aux!$AL$1),"n.d.") -> -1 | AX71: 08
A72: 0811 | B72: Frutas não cozidas ou cozidas em água ou vapor, congeladas | C72: 0 | D72: 0 | E72: 0 | F72: 0 | G72: 0 | H72: 0 | I72: 0 | J72: 0 | K72: 0 | L72: 0 | M72: 0 | N72: 1.69 | O72: 0 | P72: 0.338 | Q72: 1.54796069e-05 | R72: 9.096969464e-06 | S72: 0.338 | U72: =G72-INDEX($C72:$G72,1,aux!$AL$1) -> 0 | V72: 0 | W72: 0 | X72: =+IF(INDEX($C72:$G72,1,aux!$AL$1)>0,(G72/INDEX($C72:$G72,1,aux!$AL$1))^(1/($G$3-INDEX($C$3:$G$3,1,aux!$AL$1)))-1,"n.d.") -> n.d. | Y72: =IF(INDEX($C72:$G72,1,aux!$AL$1)>0,(G72-INDEX($C72:$G72,1,aux!$AL$1))/INDEX($C72:$G72,1,aux!$AL$1),"n.d.") -> n.d. | AA72: =O72-INDEX($K72:$O72,1,aux!$AL$1) -> 0 | AB72: 0 | AC72: 0 | AD72: =+IF(INDEX($K72:$O72,1,aux!$AL$1)>0,(O72/INDEX($K72:$O72,1,aux!$AL$1))^(1/($O$3-INDEX($K$3:$O$3,1,aux!$AL$1)))-1,"n.d.") -> n.d. | AE72: =IF(INDEX($K72:$O72,1,aux!$AL$1)>0,(O72-INDEX($K72:$O72,1,aux!$AL$1))/INDEX($K72:$O72,1,aux!$AL$1),"n.d.") -> n.d. | AX72: 08
A73: 0812 | B73: Frutas conservadas transitoriamente | C73: 0 | D73: 0 | E73: 0 | F73: 0 | G73: 0 | H73: 0 | I73: 0 | J73: 0 | K73: 0 | L73: 0 | M73: 0 | N73: 0 | O73: 0 | P73: 0 | Q73: 0 | R73: 0 | S73: 0 | U73: =G73-INDEX($C73:$G73,1,aux!$AL$1) -> 0 | V73: 0 | W73: 0 | X73: =+IF(INDEX($C73:$G73,1,aux!$AL$1)>0,(G73/INDEX($C73:$G73,1,aux!$AL$1))^(1/($G$3-INDEX($C$3:$G$3,1,aux!$AL$1)))-1,"n.d.") -> n.d. | Y73: =IF(INDEX($C73:$G73,1,aux!$AL$1)>0,(G73-INDEX($C73:$G73,1,aux!$AL$1))/INDEX($C73:$G73,1,aux!$AL$1),"n.d.") -> n.d. | AA73: =O73-INDEX($K73:$O73,1,aux!$AL$1) -> 0 | AB73: 0 | AC73: 0 | AD73: =+IF(INDEX($K73:$O73,1,aux!$AL$1)>0,(O73/INDEX($K73:$O73,1,aux!$AL$1))^(1/($O$3-INDEX($K$3:$O$3,1,aux!$AL$1)))-1,"n.d.") -> n.d. | AE73: =IF(INDEX($K73:$O73,1,aux!$AL$1)>0,(O73-INDEX($K73:$O73,1,aux!$AL$1))/INDEX($K73:$O73,1,aux!$AL$1),"n.d.") -> n.d. | AX73: 08
A74: 0813 | B74: Outras frutas secas | C74: 0 | D74: 0 | E74: 0 | F74: 0.815 | G74: 0 | H74: 0.163 | I74: 1.448611533e-06 | J74: 1.121475922e-06 | K74: 36.156 | L74: 0.018 | M74: 75.901 | N74: 1.245 | O74: 0.216 | P74: 22.7072 | Q74: 0.001039936479 | R74: 0.0006111440976 | S74: 22.5442 | U74: =G74-INDEX($C74:$G74,1,aux!$AL$1) -> 0 | V74: 0 | W74: 0 | X74: =+IF(INDEX($C74:$G74,1,aux!$AL$1)>0,(G74/INDEX($C74:$G74,1,aux!$AL$1))^(1/($G$3-INDEX($C$3:$G$3,1,aux!$AL$1)))-1,"n.d.") -> n.d. | Y74: =IF(INDEX($C74:$G74,1,aux!$AL$1)>0,(G74-INDEX($C74:$G74,1,aux!$AL$1))/INDEX($C74:$G74,1,aux!$AL$1),"n.d.") -> n.d. | AA74: =O74-INDEX($K74:$O74,1,aux!$AL$1) -> -35.94 | AB74: -0.00270304379 | AC74: -0.002209474132 | AD74: =+IF(INDEX($K74:$O74,1,aux!$AL$1)>0,(O74/INDEX($K74:$O74,1,aux!$AL$1))^(1/($O$3-INDEX($K$3:$O$3,1,aux!$AL$1)))-1,"n.d.") -> -0.7219849264 | AE74: =IF(INDEX($K74:$O74,1,aux!$AL$1)>0,(O74-INDEX($K74:$O74,1,aux!$AL$1))/INDEX($K74:$O74,1,aux!$AL$1),"n.d.") -> -0.9940258878 | AX74: 08
A75: 0814 | B75: Cascas de citrinos, melões ou melancias | C75: 0 | D75: 0 | E75: 0 | F75: 0 | G75: 0 | H75: 0 | I75: 0 | J75: 0 | K75: 0 | L75: 0 | M75: 0 | N75: 0 | O75: 0 | P75: 0 | Q75: 0 | R75: 0 | S75: 0 | U75: =G75-INDEX($C75:$G75,1,aux!$AL$1) -> 0 | V75: 0 | W75: 0 | X75: =+IF(INDEX($C75:$G75,1,aux!$AL$1)>0,(G75/INDEX($C75:$G75,1,aux!$AL$1))^(1/($G$3-INDEX($C$3:$G$3,1,aux!$AL$1)))-1,"n.d.") -> n.d. | Y75: =IF(INDEX($C75:$G75,1,aux!$AL$1)>0,(G75-INDEX($C75:$G75,1,aux!$AL$1))/INDEX($C75:$G75,1,aux!$AL$1),"n.d.") -> n.d. | AA75: =O75-INDEX($K75:$O75,1,aux!$AL$1) -> 0 | AB75: 0 | AC75: 0 | AD75: =+IF(INDEX($K75:$O75,1,aux!$AL$1)>0,(O75/INDEX($K75:$O75,1,aux!$AL$1))^(1/($O$3-INDEX($K$3:$O$3,1,aux!$AL$1)))-1,"n.d.") -> n.d. | AE75: =IF(INDEX($K75:$O75,1,aux!$AL$1)>0,(O75-INDEX($K75:$O75,1,aux!$AL$1))/INDEX($K75:$O75,1,aux!$AL$1),"n.d.") -> n.d. | AX75: =+LEFT(A75,2) -> 08
A76: 08SS | B76: Frutas; cascas de citrinos e de melões | C76: 0 | D76: 0 | E76: 0 | F76: 0 | G76: 0 | H76: 0 | I76: 0 | J76: 0 | K76: 0 | L76: 0 | M76: 0 | N76: 0 | O76: 0 | P76: 0 | Q76: 0 | R76: 0 | S76: 0 | U76: =G76-INDEX($C76:$G76,1,aux!$AL$1) -> 0 | V76: 0 | W76: 0 | X76: =+IF(INDEX($C76:$G76,1,aux!$AL$1)>0,(G76/INDEX($C76:$G76,1,aux!$AL$1))^(1/($G$3-INDEX($C$3:$G$3,1,aux!$AL$1)))-1,"n.d.") -> n.d. | Y76: =IF(INDEX($C76:$G76,1,aux!$AL$1)>0,(G76-INDEX($C76:$G76,1,aux!$AL$1))/INDEX($C76:$G76,1,aux!$AL$1),"n.d.") -> n.d. | AA76: =O76-INDEX($K76:$O76,1,aux!$AL$1) -> 0 | AB76: 0 | AC76: 0 | AD76: =+IF(INDEX($K76:$O76,1,aux!$AL$1)>0,(O76/INDEX($K76:$O76,1,aux!$AL$1))^(1/($O$3-INDEX($K$3:$O$3,1,aux!$AL$1)))-1,"n.d.") -> n.d. | AE76: =IF(INDEX($K76:$O76,1,aux!$AL$1)>0,(O76-INDEX($K76:$O76,1,aux!$AL$1))/INDEX($K76:$O76,1,aux!$AL$1),"n.d.") -> n.d. | AX76: 08
A77: 0901 | B77: Café | C77: 0 | D77: 0 | E77: 0 | F77: 0 | G77: 0.126 | H77: 0.0252 | I77: 2.239571205e-07 | J77: 1.733815535e-07 | K77: 212.393 | L77: 309.73 | M77: 188.933 | N77: 172.034 | O77: 257.085 | P77: 228.035 | Q77: 0.01044346793 | R77: 0.006137359265 | S77: 228.0098 | U77: =G77-INDEX($C77:$G77,1,aux!$AL$1) -> 0.126 | V77: 4.131698615e-06 | W77: 7.28504478e-06 | X77: =+IF(INDEX($C77:$G77,1,aux!$AL$1)>0,(G77/INDEX($C77:$G77,1,aux!$AL$1))^(1/($G$3-INDEX($C$3:$G$3,1,aux!$AL$1)))-1,"n.d.") -> n.d. | Y77: =IF(INDEX($C77:$G77,1,aux!$AL$1)>0,(G77-INDEX($C77:$G77,1,aux!$AL$1))/INDEX($C77:$G77,1,aux!$AL$1),"n.d.") -> n.d. | AA77: =O77-INDEX($K77:$O77,1,aux!$AL$1) -> 44.692 | AB77: 0.003361280831 | AC77: 0.002747518583 | AD77: =+IF(INDEX($K77:$O77,1,aux!$AL$1)>0,(O77/INDEX($K77:$O77,1,aux!$AL$1))^(1/($O$3-INDEX($K$3:$O$3,1,aux!$AL$1)))-1,"n.d.") -> 0.0489001189 | AE77: =IF(INDEX($K77:$O77,1,aux!$AL$1)>0,(O77-INDEX($K77:$O77,1,aux!$AL$1))/INDEX($K77:$O77,1,aux!$AL$1),"n.d.") -> 0.2104212474 | AX77: 09
A78: 0902 | B78: Chá | C78: 32.444 | D78: 0 | E78: 0 | F78: 0.023 | G78: 0 | H78: 6.4934 | I78: 5.770806215e-05 | J78: 4.4676023e-05 | K78: 0 | L78: 2.586 | M78: 0.119 | N78: 0.766 | O78: 0 | P78: 0.6942 | Q78: 3.17927311e-05 | R78: 1.868377574e-05 | S78: -5.7992 | U78: =G78-INDEX($C78:$G78,1,aux!$AL$1) -> -32.444 | V78: -0.001063879602 | W78: -0.001875841213 | X78: =+IF(INDEX($C78:$G78,1,aux!$AL$1)>0,(G78/INDEX($C78:$G78,1,aux!$AL$1))^(1/($G$3-INDEX($C$3:$G$3,1,aux!$AL$1)))-1,"n.d.") -> -1 | Y78: =IF(INDEX($C78:$G78,1,aux!$AL$1)>0,(G78-INDEX($C78:$G78,1,aux!$AL$1))/INDEX($C78:$G78,1,aux!$AL$1),"n.d.") -> -1 | AA78: =O78-INDEX($K78:$O78,1,aux!$AL$1) -> 0 | AB78: 0 | AC78: 0 | AD78: =+IF(INDEX($K78:$O78,1,aux!$AL$1)>0,(O78/INDEX($K78:$O78,1,aux!$AL$1))^(1/($O$3-INDEX($K$3:$O$3,1,aux!$AL$1)))-1,"n.d.") -> n.d. | AE78: =IF(INDEX($K78:$O78,1,aux!$AL$1)>0,(O78-INDEX($K78:$O78,1,aux!$AL$1))/INDEX($K78:$O78,1,aux!$AL$1),"n.d.") -> n.d. | AX78: 09
A79: 0903 | B79: Mate | C79: 0 | D79: 0 | E79: 0.002 | F79: 0.491 | G79: 0 | H79: 0.0986 | I79: 8.762766698e-07 | J79: 6.783897292e-07 | K79: 0 | L79: 0 | M79: 0 | N79: 0 | O79: 0 | P79: 0 | Q79: 0 | R79: 0 | S79: -0.0986 | U79: =G79-INDEX($C79:$G79,1,aux!$AL$1) -> 0 | V79: 0 | W79: 0 | X79: =+IF(INDEX($C79:$G79,1,aux!$AL$1)>0,(G79/INDEX($C79:$G79,1,aux!$AL$1))^(1/($G$3-INDEX($C$3:$G$3,1,aux!$AL$1)))-1,"n.d.") -> n.d. | Y79: =IF(INDEX($C79:$G79,1,aux!$AL$1)>0,(G79-INDEX($C79:$G79,1,aux!$AL$1))/INDEX($C79:$G79,1,aux!$AL$1),"n.d.") -> n.d. | AA79: =O79-INDEX($K79:$O79,1,aux!$AL$1) -> 0 | AB79: 0 | AC79: 0 | AD79: =+IF(INDEX($K79:$O79,1,aux!$AL$1)>0,(O79/INDEX($K79:$O79,1,aux!$AL$1))^(1/($O$3-INDEX($K$3:$O$3,1,aux!$AL$1)))-1,"n.d.") -> n.d. | AE79: =IF(INDEX($K79:$O79,1,aux!$AL$1)>0,(O79-INDEX($K79:$O79,1,aux!$AL$1))/INDEX($K79:$O79,1,aux!$AL$1),"n.d.") -> n.d. | AX79: 09
A80: 0904 | B80: Pimenta | C80: 5.737 | D80: 11.45 | E80: 5.961 | F80: 7.124 | G80: 3.823 | H80: 6.819 | I80: 6.060173034e-05 | J80: 4.691622275e-05 | K80: 0 | L80: 0 | M80: 1.115 | N80: 0 | O80: 0.535 | P80: 0.33 | Q80: 1.511322568e-05 | R80: 8.881656577e-06 | S80: -6.489 | U80: =G80-INDEX($C80:$G80,1,aux!$AL$1) -> -1.914 | V80: -6.276246943e-05 | W80: -0.0001106632993 | X80: =+IF(INDEX($C80:$G80,1,aux!$AL$1)>0,(G80/INDEX($C80:$G80,1,aux!$AL$1))^(1/($G$3-INDEX($C$3:$G$3,1,aux!$AL$1)))-1,"n.d.") -> -0.09649645265 | Y80: =IF(INDEX($C80:$G80,1,aux!$AL$1)>0,(G80-INDEX($C80:$G80,1,aux!$AL$1))/INDEX($C80:$G80,1,aux!$AL$1),"n.d.") -> -0.3336238452 | AA80: =O80-INDEX($K80:$O80,1,aux!$AL$1) -> 0.535 | AB80: 4.023729626e-05 | AC80: 3.289005733e-05 | AD80: =+IF(INDEX($K80:$O80,1,aux!$AL$1)>0,(O80/INDEX($K80:$O80,1,aux!$AL$1))^(1/($O$3-INDEX($K$3:$O$3,1,aux!$AL$1)))-1,"n.d.") -> n.d. | AE80: =IF(INDEX($K80:$O80,1,aux!$AL$1)>0,(O80-INDEX($K80:$O80,1,aux!$AL$1))/INDEX($K80:$O80,1,aux!$AL$1),"n.d.") -> n.d. | AX80: 09
A81: 0905 | B81: Baunilha | C81: 0 | D81: 0 | E81: 0 | F81: 0 | G81: 0 | H81: 0 | I81: 0 | J81: 0 | K81: 0 | L81: 0 | M81: 0 | N81: 0 | O81: 0 | P81: 0 | Q81: 0 | R81: 0 | S81: 0 | U81: =G81-INDEX($C81:$G81,1,aux!$AL$1) -> 0 | V81: 0 | W81: 0 | X81: =+IF(INDEX($C81:$G81,1,aux!$AL$1)>0,(G81/INDEX($C81:$G81,1,aux!$AL$1))^(1/($G$3-INDEX($C$3:$G$3,1,aux!$AL$1)))-1,"n.d.") -> n.d. | Y81: =IF(INDEX($C81:$G81,1,aux!$AL$1)>0,(G81-INDEX($C81:$G81,1,aux!$AL$1))/INDEX($C81:$G81,1,aux!$AL$1),"n.d.") -> n.d. | AA81: =O81-INDEX($K81:$O81,1,aux!$AL$1) -> 0 | AB81: 0 | AC81: 0 | AD81: =+IF(INDEX($K81:$O81,1,aux!$AL$1)>0,(O81/INDEX($K81:$O81,1,aux!$AL$1))^(1/($O$3-INDEX($K$3:$O$3,1,aux!$AL$1)))-1,"n.d.") -> n.d. | AE81: =IF(INDEX($K81:$O81,1,aux!$AL$1)>0,(O81-INDEX($K81:$O81,1,aux!$AL$1))/INDEX($K81:$O81,1,aux!$AL$1),"n.d.") -> n.d. | AX81: 09
A82: 0906 | B82: Canela | C82: 0 | D82: 0 | E82: 0 | F82: 0 | G82: 0 | H82: 0 | I82: 0 | J82: 0 | K82: 0 | L82: 0 | M82: 0.037 | N82: 0.246 | O82: 0.196 | P82: 0.0958 | Q82: 4.387415211e-06 | R82: 2.578371818e-06 | S82: 0.0958 | U82: =G82-INDEX($C82:$G82,1,aux!$AL$1) -> 0 | V82: 0 | W82: 0 | X82: =+IF(INDEX($C82:$G82,1,aux!$AL$1)>0,(G82/INDEX($C82:$G82,1,aux!$AL$1))^(1/($G$3-INDEX($C$3:$G$3,1,aux!$AL$1)))-1,"n.d.") -> n.d. | Y82: =IF(INDEX($C82:$G82,1,aux!$AL$1)>0,(G82-INDEX($C82:$G82,1,aux!$AL$1))/INDEX($C82:$G82,1,aux!$AL$1),"n.d.") -> n.d. | AA82: =O82-INDEX($K82:$O82,1,aux!$AL$1) -> 0.196 | AB82: 1.474114031e-05 | AC82: 1.204944156e-05 | AD82: =+IF(INDEX($K82:$O82,1,aux!$AL$1)>0,(O82/INDEX($K82:$O82,1,aux!$AL$1))^(1/($O$3-INDEX($K$3:$O$3,1,aux!$AL$1)))-1,"n.d.") -> n.d. | AE82: =IF(INDEX($K82:$O82,1,aux!$AL$1)>0,(O82-INDEX($K82:$O82,1,aux!$AL$1))/INDEX($K82:$O82,1,aux!$AL$1),"n.d.") -> n.d. | AX82: 09
A83: 0907 | B83: Cravo-da-índia | C83: 0 | D83: 0 | E83: 0 | F83: 0 | G83: 0 | H83: 0 | I83: 0 | J83: 0 | K83: 0 | L83: 0 | M83: 0 | N83: 0 | O83: 0.031 | P83: 0.0062 | Q83: 2.839454521e-07 | R83: 1.668674872e-07 | S83: 0.0062 | U83: =G83-INDEX($C83:$G83,1,aux!$AL$1) -> 0 | V83: 0 | W83: 0 | X83: =+IF(INDEX($C83:$G83,1,aux!$AL$1)>0,(G83/INDEX($C83:$G83,1,aux!$AL$1))^(1/($G$3-INDEX($C$3:$G$3,1,aux!$AL$1)))-1,"n.d.") -> n.d. | Y83: =IF(INDEX($C83:$G83,1,aux!$AL$1)>0,(G83-INDEX($C83:$G83,1,aux!$AL$1))/INDEX($C83:$G83,1,aux!$AL$1),"n.d.") -> n.d. | AA83: =O83-INDEX($K83:$O83,1,aux!$AL$1) -> 0.031 | AB83: 2.331506886e-06 | AC83: 1.905779023e-06 | AD83: =+IF(INDEX($K83:$O83,1,aux!$AL$1)>0,(O83/INDEX($K83:$O83,1,aux!$AL$1))^(1/($O$3-INDEX($K$3:$O$3,1,aux!$AL$1)))-1,"n.d.") -> n.d. | AE83: =IF(INDEX($K83:$O83,1,aux!$AL$1)>0,(O83-INDEX($K83:$O83,1,aux!$AL$1))/INDEX($K83:$O83,1,aux!$AL$1),"n.d.") -> n.d. | AX83: 09
A84: 0908 | B84: Noz-moscada, etc. | C84: 0 | D84: 0 | E84: 0 | F84: 0 | G84: 0 | H84: 0 | I84: 0 | J84: 0 | K84: 0 | L84: 0 | M84: 0 | N84: 0 | O84: 0.1 | P84: 0.02 | Q84: 9.159530713e-07 | R84: 5.382822168e-07 | S84: 0.02 | U84: =G84-INDEX($C84:$G84,1,aux!$AL$1) -> 0 | V84: 0 | W84: 0 | X84: =+IF(INDEX($C84:$G84,1,aux!$AL$1)>0,(G84/INDEX($C84:$G84,1,aux!$AL$1))^(1/($G$3-INDEX($C$3:$G$3,1,aux!$AL$1)))-1,"n.d.") -> n.d. | Y84: =IF(INDEX($C84:$G84,1,aux!$AL$1)>0,(G84-INDEX($C84:$G84,1,aux!$AL$1))/INDEX($C84:$G84,1,aux!$AL$1),"n.d.") -> n.d. | AA84: =O84-INDEX($K84:$O84,1,aux!$AL$1) -> 0.1 | AB84: 7.520989955e-06 | AC84: 6.147674267e-06 | AD84: =+IF(INDEX($K84:$O84,1,aux!$AL$1)>0,(O84/INDEX($K84:$O84,1,aux!$AL$1))^(1/($O$3-INDEX($K$3:$O$3,1,aux!$AL$1)))-1,"n.d.") -> n.d. | AE84: =IF(INDEX($K84:$O84,1,aux!$AL$1)>0,(O84-INDEX($K84:$O84,1,aux!$AL$1))/INDEX($K84:$O84,1,aux!$AL$1),"n.d.") -> n.d. | AX84: 09
A85: 0909 | B85: Sementes de anis, funcho, etc. | C85: 0 | D85: 0 | E85: 0 | F85: 0 | G85: 0 | H85: 0 | I85: 0 | J85: 0 | K85: 0 | L85: 0.001 | M85: 0 | N85: 0 | O85: 0.033 | P85: 0.0068 | Q85: 3.114240442e-07 | R85: 1.830159537e-07 | S85: 0.0068 | U85: =G85-INDEX($C85:$G85,1,aux!$AL$1) -> 0 | V85: 0 | W85: 0 | X85: =+IF(INDEX($C85:$G85,1,aux!$AL$1)>0,(G85/INDEX($C85:$G85,1,aux!$AL$1))^(1/($G$3-INDEX($C$3:$G$3,1,aux!$AL$1)))-1,"n.d.") -> n.d. | Y85: =IF(INDEX($C85:$G85,1,aux!$AL$1)>0,(G85-INDEX($C85:$G85,1,aux!$AL$1))/INDEX($C85:$G85,1,aux!$AL$1),"n.d.") -> n.d. | AA85: =O85-INDEX($K85:$O85,1,aux!$AL$1) -> 0.033 | AB85: 2.481926685e-06 | AC85: 2.028732508e-06 | AD85: =+IF(INDEX($K85:$O85,1,aux!$AL$1)>0,(O85/INDEX($K85:$O85,1,aux!$AL$1))^(1/($O$3-INDEX($K$3:$O$3,1,aux!$AL$1)))-1,"n.d.") -> n.d. | AE85: =IF(INDEX($K85:$O85,1,aux!$AL$1)>0,(O85-INDEX($K85:$O85,1,aux!$AL$1))/INDEX($K85:$O85,1,aux!$AL$1),"n.d.") -> n.d. | AX85: 09
A86: 0910 | B86: Gengibre, açafrão, tomilho, louro, etc. | C86: 6.953 | D86: 1.482 | E86: 7.637 | F86: 4.926 | G86: 0.123 | H86: 4.2242 | I86: 3.754125668e-05 | J86: 2.906342692e-05 | K86: 0 | L86: 1.267 | M86: 2.922 | N86: 0.36 | O86: 0.166 | P86: 0.943 | Q86: 4.318718731e-05 | R86: 2.538000652e-05 | S86: -3.2812 | U86: =G86-INDEX($C86:$G86,1,aux!$AL$1) -> -6.83 | V86: -0.0002239642979 | W86: -0.0003948956813 | X86: =+IF(INDEX($C86:$G86,1,aux!$AL$1)>0,(G86/INDEX($C86:$G86,1,aux!$AL$1))^(1/($G$3-INDEX($C$3:$G$3,1,aux!$AL$1)))-1,"n.d.") -> -0.6353021353 | Y86: =IF(INDEX($C86:$G86,1,aux!$AL$1)>0,(G86-INDEX($C86:$G86,1,aux!$AL$1))/INDEX($C86:$G86,1,aux!$AL$1),"n.d.") -> -0.9823097943 | AA86: =O86-INDEX($K86:$O86,1,aux!$AL$1) -> 0.166 | AB86: 1.248484332e-05 | AC86: 1.020513928e-05 | AD86: =+IF(INDEX($K86:$O86,1,aux!$AL$1)>0,(O86/INDEX($K86:$O86,1,aux!$AL$1))^(1/($O$3-INDEX($K$3:$O$3,1,aux!$AL$1)))-1,"n.d.") -> n.d. | AE86: =IF(INDEX($K86:$O86,1,aux!$AL$1)>0,(O86-INDEX($K86:$O86,1,aux!$AL$1))/INDEX($K86:$O86,1,aux!$AL$1),"n.d.") -> n.d. | AX86: 09
A87: 09SS | B87: Café, chá, mate e especiarias | C87: 0 | D87: 0 | E87: 0 | F87: 0 | G87: 0 | H87: 0 | I87: 0 | J87: 0 | K87: 0 | L87: 0 | M87: 0 | N87: 0 | O87: 0 | P87: 0 | Q87: 0 | R87: 0 | S87: 0 | U87: =G87-INDEX($C87:$G87,1,aux!$AL$1) -> 0 | V87: 0 | W87: 0 | X87: =+IF(INDEX($C87:$G87,1,aux!$AL$1)>0,(G87/INDEX($C87:$G87,1,aux!$AL$1))^(1/($G$3-INDEX($C$3:$G$3,1,aux!$AL$1)))-1,"n.d.") -> n.d. | Y87: =IF(INDEX($C87:$G87,1,aux!$AL$1)>0,(G87-INDEX($C87:$G87,1,aux!$AL$1))/INDEX($C87:$G87,1,aux!$AL$1),"n.d.") -> n.d. | AA87: =O87-INDEX($K87:$O87,1,aux!$AL$1) -> 0 | AB87: 0 | AC87: 0 | AD87: =+IF(INDEX($K87:$O87,1,aux!$AL$1)>0,(O87/INDEX($K87:$O87,1,aux!$AL$1))^(1/($O$3-INDEX($K$3:$O$3,1,aux!$AL$1)))-1,"n.d.") -> n.d. | AE87: =IF(INDEX($K87:$O87,1,aux!$AL$1)>0,(O87-INDEX($K87:$O87,1,aux!$AL$1))/INDEX($K87:$O87,1,aux!$AL$1),"n.d.") -> n.d. | AX87: 09
A88: 1001 | B88: Trigo e mistura trigo/centeio | C88: 0 | D88: 0 | E88: 0 | F88: 0 | G88: 0 | H88: 0 | I88: 0 | J88: 0 | K88: 0 | L88: 0 | M88: 0 | N88: 0 | O88: 0 | P88: 0 | Q88: 0 | R88: 0 | S88: 0 | U88: =G88-INDEX($C88:$G88,1,aux!$AL$1) -> 0 | V88: 0 | W88: 0 | X88: =+IF(INDEX($C88:$G88,1,aux!$AL$1)>0,(G88/INDEX($C88:$G88,1,aux!$AL$1))^(1/($G$3-INDEX($C$3:$G$3,1,aux!$AL$1)))-1,"n.d.") -> n.d. | Y88: =IF(INDEX($C88:$G88,1,aux!$AL$1)>0,(G88-INDEX($C88:$G88,1,aux!$AL$1))/INDEX($C88:$G88,1,aux!$AL$1),"n.d.") -> n.d. | AA88: =O88-INDEX($K88:$O88,1,aux!$AL$1) -> 0 | AB88: 0 | AC88: 0 | AD88: =+IF(INDEX($K88:$O88,1,aux!$AL$1)>0,(O88/INDEX($K88:$O88,1,aux!$AL$1))^(1/($O$3-INDEX($K$3:$O$3,1,aux!$AL$1)))-1,"n.d.") -> n.d. | AE88: =IF(INDEX($K88:$O88,1,aux!$AL$1)>0,(O88-INDEX($K88:$O88,1,aux!$AL$1))/INDEX($K88:$O88,1,aux!$AL$1),"n.d.") -> n.d. | AX88: 10
A89: 1002 | B89: Centeio | C89: 0 | D89: 0 | E89: 0 | F89: 0 | G89: 0 | H89: 0 | I89: 0 | J89: 0 | K89: 0 | L89: 0 | M89: 0 | N89: 0 | O89: 0 | P89: 0 | Q89: 0 | R89: 0 | S89: 0 | U89: =G89-INDEX($C89:$G89,1,aux!$AL$1) -> 0 | V89: 0 | W89: 0 | X89: =+IF(INDEX($C89:$G89,1,aux!$AL$1)>0,(G89/INDEX($C89:$G89,1,aux!$AL$1))^(1/($G$3-INDEX($C$3:$G$3,1,aux!$AL$1)))-1,"n.d.") -> n.d. | Y89: =IF(INDEX($C89:$G89,1,aux!$AL$1)>0,(G89-INDEX($C89:$G89,1,aux!$AL$1))/INDEX($C89:$G89,1,aux!$AL$1),"n.d.") -> n.d. | AA89: =O89-INDEX($K89:$O89,1,aux!$AL$1) -> 0 | AB89: 0 | AC89: 0 | AD89: =+IF(INDEX($K89:$O89,1,aux!$AL$1)>0,(O89/INDEX($K89:$O89,1,aux!$AL$1))^(1/($O$3-INDEX($K$3:$O$3,1,aux!$AL$1)))-1,"n.d.") -> n.d. | AE89: =IF(INDEX($K89:$O89,1,aux!$AL$1)>0,(O89-INDEX($K89:$O89,1,aux!$AL$1))/INDEX($K89:$O89,1,aux!$AL$1),"n.d.") -> n.d. | AX89: 10
A90: 1003 | B90: Cevada | C90: 0 | D90: 0 | E90: 0 | F90: 0 | G90: 0 | H90: 0 | I90: 0 | J90: 0 | K90: 0 | L90: 0 | M90: 0 | N90: 0.153 | O90: 0 | P90: 0.0306 | Q90: 1.401408199e-06 | R90: 8.235717917e-07 | S90: 0.0306 | U90: =G90-INDEX($C90:$G90,1,aux!$AL$1) -> 0 | V90: 0 | W90: 0 | X90: =+IF(INDEX($C90:$G90,1,aux!$AL$1)>0,(G90/INDEX($C90:$G90,1,aux!$AL$1))^(1/($G$3-INDEX($C$3:$G$3,1,aux!$AL$1)))-1,"n.d.") -> n.d. | Y90: =IF(INDEX($C90:$G90,1,aux!$AL$1)>0,(G90-INDEX($C90:$G90,1,aux!$AL$1))/INDEX($C90:$G90,1,aux!$AL$1),"n.d.") -> n.d. | AA90: =O90-INDEX($K90:$O90,1,aux!$AL$1) -> 0 | AB90: 0 | AC90: 0 | AD90: =+IF(INDEX($K90:$O90,1,aux!$AL$1)>0,(O90/INDEX($K90:$O90,1,aux!$AL$1))^(1/($O$3-INDEX($K$3:$O$3,1,aux!$AL$1)))-1,"n.d.") -> n.d. | AE90: =IF(INDEX($K90:$O90,1,aux!$AL$1)>0,(O90-INDEX($K90:$O90,1,aux!$AL$1))/INDEX($K90:$O90,1,aux!$AL$1),"n.d.") -> n.d. | AX90: 10
A91: 1004 | B91: Aveia | C91: 0 | D91: 0 | E91: 0 | F91: 0 | G91: 0 | H91: 0 | I91: 0 | J91: 0 | K91: 0 | L91: 0 | M91: 0 | N91: 0 | O91: 0 | P91: 0 | Q91: 0 | R91: 0 | S91: 0 | U91: =G91-INDEX($C91:$G91,1,aux!$AL$1) -> 0 | V91: 0 | W91: 0 | X91: =+IF(INDEX($C91:$G91,1,aux!$AL$1)>0,(G91/INDEX($C91:$G91,1,aux!$AL$1))^(1/($G$3-INDEX($C$3:$G$3,1,aux!$AL$1)))-1,"n.d.") -> n.d. | Y91: =IF(INDEX($C91:$G91,1,aux!$AL$1)>0,(G91-INDEX($C91:$G91,1,aux!$AL$1))/INDEX($C91:$G91,1,aux!$AL$1),"n.d.") -> n.d. | AA91: =O91-INDEX($K91:$O91,1,aux!$AL$1) -> 0 | AB91: 0 | AC91: 0 | AD91: =+IF(INDEX($K91:$O91,1,aux!$AL$1)>0,(O91/INDEX($K91:$O91,1,aux!$AL$1))^(1/($O$3-INDEX($K$3:$O$3,1,aux!$AL$1)))-1,"n.d.") -> n.d. | AE91: =IF(INDEX($K91:$O91,1,aux!$AL$1)>0,(O91-INDEX($K91:$O91,1,aux!$AL$1))/INDEX($K91:$O91,1,aux!$AL$1),"n.d.") -> n.d. | AX91: 10
A92: 1005 | B92: Milho | C92: 11.622 | D92: 0 | E92: 0 | F92: 0 | G92: 17535.056 | H92: 3509.3356 | I92: 0.03118812285 | J92: 0.02414500231 | K92: 0 | L92: 0 | M92: 0 | N92: 0 | O92: 0 | P92: 0 | Q92: 0 | R92: 0 | S92: -3509.3356 | U92: =G92-INDEX($C92:$G92,1,aux!$AL$1) -> 17523.434 | V92: 0.5746154602 | W92: 1.013166678 | X92: =+IF(INDEX($C92:$G92,1,aux!$AL$1)>0,(G92/INDEX($C92:$G92,1,aux!$AL$1))^(1/($G$3-INDEX($C$3:$G$3,1,aux!$AL$1)))-1,"n.d.") -> 5.232417976 | Y92: =IF(INDEX($C92:$G92,1,aux!$AL$1)>0,(G92-INDEX($C92:$G92,1,aux!$AL$1))/INDEX($C92:$G92,1,aux!$AL$1),"n.d.") -> 1507.781277 | AA92: =O92-INDEX($K92:$O92,1,aux!$AL$1) -> 0 | AB92: 0 | AC92: 0 | AD92: =+IF(INDEX($K92:$O92,1,aux!$AL$1)>0,(O92/INDEX($K92:$O92,1,aux!$AL$1))^(1/($O$3-INDEX($K$3:$O$3,1,aux!$AL$1)))-1,"n.d.") -> n.d. | AE92: =IF(INDEX($K92:$O92,1,aux!$AL$1)>0,(O92-INDEX($K92:$O92,1,aux!$AL$1))/INDEX($K92:$O92,1,aux!$AL$1),"n.d.") -> n.d. | AX92: 10
A93: 1006 | B93: Arroz | C93: 0 | D93: 0 | E93: 0 | F93: 0 | G93: 0 | H93: 0 | I93: 0 | J93: 0 | K93: 87.819 | L93: 140.728 | M93: 80.81 | N93: 139.836 | O93: 162.008 | P93: 122.2402 | Q93: 0.005598314331 | R93: 0.003289986292 | S93: 122.2402 | U93: =G93-INDEX($C93:$G93,1,aux!$AL$1) -> 0 | V93: 0 | W93: 0 | X93: =+IF(INDEX($C93:$G93,1,aux!$AL$1)>0,(G93/INDEX($C93:$G93,1,aux!$AL$1))^(1/($G$3-INDEX($C$3:$G$3,1,aux!$AL$1)))-1,"n.d.") -> n.d. | Y93: =IF(INDEX($C93:$G93,1,aux!$AL$1)>0,(G93-INDEX($C93:$G93,1,aux!$AL$1))/INDEX($C93:$G93,1,aux!$AL$1),"n.d.") -> n.d. | AA93: =O93-INDEX($K93:$O93,1,aux!$AL$1) -> 74.189 | AB93: 0.005579747238 | AC93: 0.004560898062 | AD93: =+IF(INDEX($K93:$O93,1,aux!$AL$1)>0,(O93/INDEX($K93:$O93,1,aux!$AL$1))^(1/($O$3-INDEX($K$3:$O$3,1,aux!$AL$1)))-1,"n.d.") -> 0.1654321467 | AE93: =IF(INDEX($K93:$O93,1,aux!$AL$1)>0,(O93-INDEX($K93:$O93,1,aux!$AL$1))/INDEX($K93:$O93,1,aux!$AL$1),"n.d.") -> 0.8447944067 | AX93: 10
A94: 1007 | B94: Sorgo de grão | C94: 0.285 | D94: 0.486 | E94: 0 | F94: 0 | G94: 0 | H94: 0.1542 | I94: 1.370404285e-06 | J94: 1.060929982e-06 | K94: 0 | L94: 0 | M94: 0 | N94: 0 | O94: 0 | P94: 0 | Q94: 0 | R94: 0 | S94: -0.1542 | U94: =G94-INDEX($C94:$G94,1,aux!$AL$1) -> -0.285 | V94: -9.345508771e-06 | W94: -1.647807748e-05 | X94: =+IF(INDEX($C94:$G94,1,aux!$AL$1)>0,(G94/INDEX($C94:$G94,1,aux!$AL$1))^(1/($G$3-INDEX($C$3:$G$3,1,aux!$AL$1)))-1,"n.d.") -> -1 | Y94: =IF(INDEX($C94:$G94,1,aux!$AL$1)>0,(G94-INDEX($C94:$G94,1,aux!$AL$1))/INDEX($C94:$G94,1,aux!$AL$1),"n.d.") -> -1 | AA94: =O94-INDEX($K94:$O94,1,aux!$AL$1) -> 0 | AB94: 0 | AC94: 0 | AD94: =+IF(INDEX($K94:$O94,1,aux!$AL$1)>0,(O94/INDEX($K94:$O94,1,aux!$AL$1))^(1/($O$3-INDEX($K$3:$O$3,1,aux!$AL$1)))-1,"n.d.") -> n.d. | AE94: =IF(INDEX($K94:$O94,1,aux!$AL$1)>0,(O94-INDEX($K94:$O94,1,aux!$AL$1))/INDEX($K94:$O94,1,aux!$AL$1),"n.d.") -> n.d. | AX94: 10
A95: 1008 | B95: Trigo mourisco, painço e outros cereais | C95: 0 | D95: 0 | E95: 0 | F95: 0 | G95: 0 | H95: 0 | I95: 0 | J95: 0 | K95: 0 | L95: 0 | M95: 0 | N95: 0 | O95: 0 | P95: 0 | Q95: 0 | R95: 0 | S95: 0 | U95: =G95-INDEX($C95:$G95,1,aux!$AL$1) -> 0 | V95: 0 | W95: 0 | X95: =+IF(INDEX($C95:$G95,1,aux!$AL$1)>0,(G95/INDEX($C95:$G95,1,aux!$AL$1))^(1/($G$3-INDEX($C$3:$G$3,1,aux!$AL$1)))-1,"n.d.") -> n.d. | Y95: =IF(INDEX($C95:$G95,1,aux!$AL$1)>0,(G95-INDEX($C95:$G95,1,aux!$AL$1))/INDEX($C95:$G95,1,aux!$AL$1),"n.d.") -> n.d. | AA95: =O95-INDEX($K95:$O95,1,aux!$AL$1) -> 0 | AB95: 0 | AC95: 0 | AD95: =+IF(INDEX($K95:$O95,1,aux!$AL$1)>0,(O95/INDEX($K95:$O95,1,aux!$AL$1))^(1/($O$3-INDEX($K$3:$O$3,1,aux!$AL$1)))-1,"n.d.") -> n.d. | AE95: =IF(INDEX($K95:$O95,1,aux!$AL$1)>0,(O95-INDEX($K95:$O95,1,aux!$AL$1))/INDEX($K95:$O95,1,aux!$AL$1),"n.d.") -> n.d. | AX95: 10
A96: 10SS | B96: Cereais | C96: 0 | D96: 0 | E96: 0 | F96: 0 | G96: 0 | H96: 0 | I96: 0 | J96: 0 | K96: 0 | L96: 0 | M96: 0 | N96: 0 | O96: 0 | P96: 0 | Q96: 0 | R96: 0 | S96: 0 | U96: =G96-INDEX($C96:$G96,1,aux!$AL$1) -> 0 | V96: 0 | W96: 0 | X96: =+IF(INDEX($C96:$G96,1,aux!$AL$1)>0,(G96/INDEX($C96:$G96,1,aux!$AL$1))^(1/($G$3-INDEX($C$3:$G$3,1,aux!$AL$1)))-1,"n.d.") -> n.d. | Y96: =IF(INDEX($C96:$G96,1,aux!$AL$1)>0,(G96-INDEX($C96:$G96,1,aux!$AL$1))/INDEX($C96:$G96,1,aux!$AL$1),"n.d.") -> n.d. | AA96: =O96-INDEX($K96:$O96,1,aux!$AL$1) -> 0 | AB96: 0 | AC96: 0 | AD96: =+IF(INDEX($K96:$O96,1,aux!$AL$1)>0,(O96/INDEX($K96:$O96,1,aux!$AL$1))^(1/($O$3-INDEX($K$3:$O$3,1,aux!$AL$1)))-1,"n.d.") -> n.d. | AE96: =IF(INDEX($K96:$O96,1,aux!$AL$1)>0,(O96-INDEX($K96:$O96,1,aux!$AL$1))/INDEX($K96:$O96,1,aux!$AL$1),"n.d.") -> n.d. | AX96: 10
A97: 1101 | B97: Farinhas de trigo ou trigo/centeio | C97: 0 | D97: 0 | E97: 0 | F97: 0 | G97: 0 | H97: 0 | I97: 0 | J97: 0 | K97: 0 | L97: 0.93 | M97: 3.93 | N97: 1.283 | O97: 0.028 | P97: 1.2342 | Q97: 5.652346403e-05 | R97: 3.32173956e-05 | S97: 1.2342 | U97: =G97-INDEX($C97:$G97,1,aux!$AL$1) -> 0 | V97: 0 | W97: 0 | X97: =+IF(INDEX($C97:$G97,1,aux!$AL$1)>0,(G97/INDEX($C97:$G97,1,aux!$AL$1))^(1/($G$3-INDEX($C$3:$G$3,1,aux!$AL$1)))-1,"n.d.") -> n.d. | Y97: =IF(INDEX($C97:$G97,1,aux!$AL$1)>0,(G97-INDEX($C97:$G97,1,aux!$AL$1))/INDEX($C97:$G97,1,aux!$AL$1),"n.d.") -> n.d. | AA97: =O97-INDEX($K97:$O97,1,aux!$AL$1) -> 0.028 | AB97: 2.105877187e-06 | AC97: 1.721348795e-06 | AD97: =+IF(INDEX($K97:$O97,1,aux!$AL$1)>0,(O97/INDEX($K97:$O97,1,aux!$AL$1))^(1/($O$3-INDEX($K$3:$O$3,1,aux!$AL$1)))-1,"n.d.") -> n.d. | AE97: =IF(INDEX($K97:$O97,1,aux!$AL$1)>0,(O97-INDEX($K97:$O97,1,aux!$AL$1))/INDEX($K97:$O97,1,aux!$AL$1),"n.d.") -> n.d. | AX97: 11
A98: 1102 | B98: Outras farinhas de cereais | C98: 1.366 | D98: 2.239 | E98: 0 | F98: 0 | G98: 0 | H98: 0.721 | I98: 6.407662058e-06 | J98: 4.960638892e-06 | K98: 0 | L98: 3.344 | M98: 3.405 | N98: 5.621 | O98: 3.298 | P98: 3.1336 | Q98: 0.0001435115272 | R98: 8.433805773e-05 | S98: 2.4126 | U98: =G98-INDEX($C98:$G98,1,aux!$AL$1) -> -1.366 | V98: -4.479285959e-05 | W98: -7.897913627e-05 | X98: =+IF(INDEX($C98:$G98,1,aux!$AL$1)>0,(G98/INDEX($C98:$G98,1,aux!$AL$1))^(1/($G$3-INDEX($C$3:$G$3,1,aux!$AL$1)))-1,"n.d.") -> -1 | Y98: =IF(INDEX($C98:$G98,1,aux!$AL$1)>0,(G98-INDEX($C98:$G98,1,aux!$AL$1))/INDEX($C98:$G98,1,aux!$AL$1),"n.d.") -> -1 | AA98: =O98-INDEX($K98:$O98,1,aux!$AL$1) -> 3.298 | AB98: 0.0002480422487 | AC98: 0.0002027502973 | AD98: =+IF(INDEX($K98:$O98,1,aux!$AL$1)>0,(O98/INDEX($K98:$O98,1,aux!$AL$1))^(1/($O$3-INDEX($K$3:$O$3,1,aux!$AL$1)))-1,"n.d.") -> n.d. | AE98: =IF(INDEX($K98:$O98,1,aux!$AL$1)>0,(O98-INDEX($K98:$O98,1,aux!$AL$1))/INDEX($K98:$O98,1,aux!$AL$1),"n.d.") -> n.d. | AX98: 11
A99: 1103 | B99: Grumos, sêmolas, etc. de cereais | C99: 0.039 | D99: 0 | E99: 0 | F99: 0 | G99: 0 | H99: 0.0078 | I99: 6.93200611e-08 | J99: 5.366571894e-08 | K99: 0 | L99: 0 | M99: 0 | N99: 0 | O99: 0 | P99: 0 | Q99: 0 | R99: 0 | S99: -0.0078 | U99: =G99-INDEX($C99:$G99,1,aux!$AL$1) -> -0.039 | V99: -1.278859095e-06 | W99: -2.254894813e-06 | X99: =+IF(INDEX($C99:$G99,1,aux!$AL$1)>0,(G99/INDEX($C99:$G99,1,aux!$AL$1))^(1/($G$3-INDEX($C$3:$G$3,1,aux!$AL$1)))-1,"n.d.") -> -1 | Y99: =IF(INDEX($C99:$G99,1,aux!$AL$1)>0,(G99-INDEX($C99:$G99,1,aux!$AL$1))/INDEX($C99:$G99,1,aux!$AL$1),"n.d.") -> -1 | AA99: =O99-INDEX($K99:$O99,1,aux!$AL$1) -> 0 | AB99: 0 | AC99: 0 | AD99: =+IF(INDEX($K99:$O99,1,aux!$AL$1)>0,(O99/INDEX($K99:$O99,1,aux!$AL$1))^(1/($O$3-INDEX($K$3:$O$3,1,aux!$AL$1)))-1,"n.d.") -> n.d. | AE99: =IF(INDEX($K99:$O99,1,aux!$AL$1)>0,(O99-INDEX($K99:$O99,1,aux!$AL$1))/INDEX($K99:$O99,1,aux!$AL$1),"n.d.") -> n.d. | AX99: 11
A100: 1104 | B100: Grãos de cereais processados | C100: 0 | D100: 0 | E100: 0 | F100: 0 | G100: 0 | H100: 0 | I100: 0 | J100: 0 | K100: 0 | L100: 0.001 | M100: 0.01 | N100: 0 | O100: 0 | P100: 0.0022 | Q100: 1.007548378e-07 | R100: 5.921104385e-08 | S100: 0.0022 | U100: =G100-INDEX($C100:$G100,1,aux!$AL$1) -> 0 | V100: 0 | W100: 0 | X100: =+IF(INDEX($C100:$G100,1,aux!$AL$1)>0,(G100/INDEX($C100:$G100,1,aux!$AL$1))^(1/($G$3-INDEX($C$3:$G$3,1,aux!$AL$1)))-1,"n.d.") -> n.d. | Y100: =IF(INDEX($C100:$G100,1,aux!$AL$1)>0,(G100-INDEX($C100:$G100,1,aux!$AL$1))/INDEX($C100:$G100,1,aux!$AL$1),"n.d.") -> n.d. | AA100: =O100-INDEX($K100:$O100,1,aux!$AL$1) -> 0 | AB100: 0 | AC100: 0 | AD100: =+IF(INDEX($K100:$O100,1,aux!$AL$1)>0,(O100/INDEX($K100:$O100,1,aux!$AL$1))^(1/($O$3-INDEX($K$3:$O$3,1,aux!$AL$1)))-1,"n.d.") -> n.d. | AE100: =IF(INDEX($K100:$O100,1,aux!$AL$1)>0,(O100-INDEX($K100:$O100,1,aux!$AL$1))/INDEX($K100:$O100,1,aux!$AL$1),"n.d.") -> n.d. | AX100: 11
A101: 1105 | B101: Farinha, sêmola, etc. de batata | C101: 0 | D101: 0 | E101: 0 | F101: 0 | G101: 0 | H101: 0 | I101: 0 | J101: 0 | K101: 0 | L101: 0 | M101: 0 | N101: 0 | O101: 0 | P101: 0 | Q101: 0 | R101: 0 | S101: 0 | U101: =G101-INDEX($C101:$G101,1,aux!$AL$1) -> 0 | V101: 0 | W101: 0 | X101: =+IF(INDEX($C101:$G101,1,aux!$AL$1)>0,(G101/INDEX($C101:$G101,1,aux!$AL$1))^(1/($G$3-INDEX($C$3:$G$3,1,aux!$AL$1)))-1,"n.d.") -> n.d. | Y101: =IF(INDEX($C101:$G101,1,aux!$AL$1)>0,(G101-INDEX($C101:$G101,1,aux!$AL$1))/INDEX($C101:$G101,1,aux!$AL$1),"n.d.") -> n.d. | AA101: =O101-INDEX($K101:$O101,1,aux!$AL$1) -> 0 | AB101: 0 | AC101: 0 | AD101: =+IF(INDEX($K101:$O101,1,aux!$AL$1)>0,(O101/INDEX($K101:$O101,1,aux!$AL$1))^(1/($O$3-INDEX($K$3:$O$3,1,aux!$AL$1)))-1,"n.d.") -> n.d. | AE101: =IF(INDEX($K101:$O101,1,aux!$AL$1)>0,(O101-INDEX($K101:$O101,1,aux!$AL$1))/INDEX($K101:$O101,1,aux!$AL$1),"n.d.") -> n.d. | AX101: 11
A102: 1106 | B102: Farinhas, etc. de leguminosas e outros tubérculos | C102: 0 | D102: 0 | E102: 0 | F102: 0.001 | G102: 0 | H102: 0.0002 | I102: 1.777437464e-09 | J102: 1.376044076e-09 | K102: 1.476 | L102: 1.655 | M102: 0.519 | N102: 1.17 | O102: 0.837 | P102: 1.1314 | Q102: 5.181546524e-05 | R102: 3.0450625e-05 | S102: 1.1312 | U102: =G102-INDEX($C102:$G102,1,aux!$AL$1) -> 0 | V102: 0 | W102: 0 | X102: =+IF(INDEX($C102:$G102,1,aux!$AL$1)>0,(G102/INDEX($C102:$G102,1,aux!$AL$1))^(1/($G$3-INDEX($C$3:$G$3,1,aux!$AL$1)))-1,"n.d.") -> n.d. | Y102: =IF(INDEX($C102:$G102,1,aux!$AL$1)>0,(G102-INDEX($C102:$G102,1,aux!$AL$1))/INDEX($C102:$G102,1,aux!$AL$1),"n.d.") -> n.d. | AA102: =O102-INDEX($K102:$O102,1,aux!$AL$1) -> -0.639 | AB102: -4.805912581e-05 | AC102: -3.928363857e-05 | AD102: =+IF(INDEX($K102:$O102,1,aux!$AL$1)>0,(O102/INDEX($K102:$O102,1,aux!$AL$1))^(1/($O$3-INDEX($K$3:$O$3,1,aux!$AL$1)))-1,"n.d.") -> -0.1322197232 | AE102: =IF(INDEX($K102:$O102,1,aux!$AL$1)>0,(O102-INDEX($K102:$O102,1,aux!$AL$1))/INDEX($K102:$O102,1,aux!$AL$1),"n.d.") -> -0.4329268293 | AX102: 11
A103: 1107 | B103: Malte, mesmo torrado | C103: 0 | D103: 0 | E103: 0 | F103: 0 | G103: 0 | H103: 0 | I103: 0 | J103: 0 | K103: 0 | L103: 0 | M103: 0 | N103: 755.63 | O103: 3057.09 | P103: 762.544 | Q103: 0.03492272594 | R103: 0.02052319374 | S103: 762.544 | U103: =G103-INDEX($C103:$G103,1,aux!$AL$1) -> 0 | V103: 0 | W103: 0 | X103: =+IF(INDEX($C103:$G103,1,aux!$AL$1)>0,(G103/INDEX($C103:$G103,1,aux!$AL$1))^(1/($G$3-INDEX($C$3:$G$3,1,aux!$AL$1)))-1,"n.d.") -> n.d. | Y103: =IF(INDEX($C103:$G103,1,aux!$AL$1)>0,(G103-INDEX($C103:$G103,1,aux!$AL$1))/INDEX($C103:$G103,1,aux!$AL$1),"n.d.") -> n.d. | AA103: =O103-INDEX($K103:$O103,1,aux!$AL$1) -> 3057.09 | AB103: 0.2299234318 | AC103: 0.1879399353 | AD103: =+IF(INDEX($K103:$O103,1,aux!$AL$1)>0,(O103/INDEX($K103:$O103,1,aux!$AL$1))^(1/($O$3-INDEX($K$3:$O$3,1,aux!$AL$1)))-1,"n.d.") -> n.d. | AE103: =IF(INDEX($K103:$O103,1,aux!$AL$1)>0,(O103-INDEX($K103:$O103,1,aux!$AL$1))/INDEX($K103:$O103,1,aux!$AL$1),"n.d.") -> n.d. | AX103: 11
A104: 1108 | B104: Amidos e féculas; inulina | C104: 0 | D104: 0 | E104: 0 | F104: 0 | G104: 0.031 | H104: 0.0062 | I104: 5.510056139e-08 | J104: 4.265736634e-08 | K104: 0 | L104: 0.156 | M104: 0.32 | N104: 0 | O104: 1.113 | P104: 0.3178 | Q104: 1.45544943e-05 | R104: 8.553304425e-06 | S104: 0.3116 | U104: =G104-INDEX($C104:$G104,1,aux!$AL$1) -> 0.031 | V104: 1.016529024e-06 | W104: 1.792352287e-06 | X104: =+IF(INDEX($C104:$G104,1,aux!$AL$1)>0,(G104/INDEX($C104:$G104,1,aux!$AL$1))^(1/($G$3-INDEX($C$3:$G$3,1,aux!$AL$1)))-1,"n.d.") -> n.d. | Y104: =IF(INDEX($C104:$G104,1,aux!$AL$1)>0,(G104-INDEX($C104:$G104,1,aux!$AL$1))/INDEX($C104:$G104,1,aux!$AL$1),"n.d.") -> n.d. | AA104: =O104-INDEX($K104:$O104,1,aux!$AL$1) -> 1.113 | AB104: 8.37086182e-05 | AC104: 6.842361459e-05 | AD104: =+IF(INDEX($K104:$O104,1,aux!$AL$1)>0,(O104/INDEX($K104:$O104,1,aux!$AL$1))^(1/($O$3-INDEX($K$3:$O$3,1,aux!$AL$1)))-1,"n.d.") -> n.d. | AE104: =IF(INDEX($K104:$O104,1,aux!$AL$1)>0,(O104-INDEX($K104:$O104,1,aux!$AL$1))/INDEX($K104:$O104,1,aux!$AL$1),"n.d.") -> n.d. | AX104: 11
A105: 1109 | B105: Glúten de trigo, mesmo seco | C105: 0 | D105: 0 | E105: 0 | F105: 0 | G105: 0 | H105: 0 | I105: 0 | J105: 0 | K105: 0 | L105: 0 | M105: 0 | N105: 0 | O105: 0 | P105: 0 | Q105: 0 | R105: 0 | S105: 0 | U105: =G105-INDEX($C105:$G105,1,aux!$AL$1) -> 0 | V105: 0 | W105: 0 | X105: =+IF(INDEX($C105:$G105,1,aux!$AL$1)>0,(G105/INDEX($C105:$G105,1,aux!$AL$1))^(1/($G$3-INDEX($C$3:$G$3,1,aux!$AL$1)))-1,"n.d.") -> n.d. | Y105: =IF(INDEX($C105:$G105,1,aux!$AL$1)>0,(G105-INDEX($C105:$G105,1,aux!$AL$1))/INDEX($C105:$G105,1,aux!$AL$1),"n.d.") -> n.d. | AA105: =O105-INDEX($K105:$O105,1,aux!$AL$1) -> 0 | AB105: 0 | AC105: 0 | AD105: =+IF(INDEX($K105:$O105,1,aux!$AL$1)>0,(O105/INDEX($K105:$O105,1,aux!$AL$1))^(1/($O$3-INDEX($K$3:$O$3,1,aux!$AL$1)))-1,"n.d.") -> n.d. | AE105: =IF(INDEX($K105:$O105,1,aux!$AL$1)>0,(O105-INDEX($K105:$O105,1,aux!$AL$1))/INDEX($K105:$O105,1,aux!$AL$1),"n.d.") -> n.d. | AX105: 11
A106: 11SS | B106: Produtos da indústria de moagem e outros | C106: 0 | D106: 0 | E106: 0 | F106: 0 | G106: 0 | H106: 0 | I106: 0 | J106: 0 | K106: 0 | L106: 0 | M106: 0 | N106: 0 | O106: 0 | P106: 0 | Q106: 0 | R106: 0 | S106: 0 | U106: =G106-INDEX($C106:$G106,1,aux!$AL$1) -> 0 | V106: 0 | W106: 0 | X106: =+IF(INDEX($C106:$G106,1,aux!$AL$1)>0,(G106/INDEX($C106:$G106,1,aux!$AL$1))^(1/($G$3-INDEX($C$3:$G$3,1,aux!$AL$1)))-1,"n.d.") -> n.d. | Y106: =IF(INDEX($C106:$G106,1,aux!$AL$1)>0,(G106-INDEX($C106:$G106,1,aux!$AL$1))/INDEX($C106:$G106,1,aux!$AL$1),"n.d.") -> n.d. | AA106: =O106-INDEX($K106:$O106,1,aux!$AL$1) -> 0 | AB106: 0 | AC106: 0 | AD106: =+IF(INDEX($K106:$O106,1,aux!$AL$1)>0,(O106/INDEX($K106:$O106,1,aux!$AL$1))^(1/($O$3-INDEX($K$3:$O$3,1,aux!$AL$1)))-1,"n.d.") -> n.d. | AE106: =IF(INDEX($K106:$O106,1,aux!$AL$1)>0,(O106-INDEX($K106:$O106,1,aux!$AL$1))/INDEX($K106:$O106,1,aux!$AL$1),"n.d.") -> n.d. | AX106: 11
A107: 1201 | B107: Soja, mesmo triturada | C107: 0 | D107: 0 | E107: 0 | F107: 0 | G107: 0 | H107: 0 | I107: 0 | J107: 0 | K107: 0 | L107: 0 | M107: 0 | N107: 0 | O107: 0 | P107: 0 | Q107: 0 | R107: 0 | S107: 0 | U107: =G107-INDEX($C107:$G107,1,aux!$AL$1) -> 0 | V107: 0 | W107: 0 | X107: =+IF(INDEX($C107:$G107,1,aux!$AL$1)>0,(G107/INDEX($C107:$G107,1,aux!$AL$1))^(1/($G$3-INDEX($C$3:$G$3,1,aux!$AL$1)))-1,"n.d.") -> n.d. | Y107: =IF(INDEX($C107:$G107,1,aux!$AL$1)>0,(G107-INDEX($C107:$G107,1,aux!$AL$1))/INDEX($C107:$G107,1,aux!$AL$1),"n.d.") -> n.d. | AA107: =O107-INDEX($K107:$O107,1,aux!$AL$1) -> 0 | AB107: 0 | AC107: 0 | AD107: =+IF(INDEX($K107:$O107,1,aux!$AL$1)>0,(O107/INDEX($K107:$O107,1,aux!$AL$1))^(1/($O$3-INDEX($K$3:$O$3,1,aux!$AL$1)))-1,"n.d.") -> n.d. | AE107: =IF(INDEX($K107:$O107,1,aux!$AL$1)>0,(O107-INDEX($K107:$O107,1,aux!$AL$1))/INDEX($K107:$O107,1,aux!$AL$1),"n.d.") -> n.d. | AX107: 12
A108: 1202 | B108: Amendoins não torrados | C108: 0 | D108: 0 | E108: 0 | F108: 0 | G108: 0 | H108: 0 | I108: 0 | J108: 0 | K108: 0 | L108: 0 | M108: 0 | N108: 0 | O108: 0 | P108: 0 | Q108: 0 | R108: 0 | S108: 0 | U108: =G108-INDEX($C108:$G108,1,aux!$AL$1) -> 0 | V108: 0 | W108: 0 | X108: =+IF(INDEX($C108:$G108,1,aux!$AL$1)>0,(G108/INDEX($C108:$G108,1,aux!$AL$1))^(1/($G$3-INDEX($C$3:$G$3,1,aux!$AL$1)))-1,"n.d.") -> n.d. | Y108: =IF(INDEX($C108:$G108,1,aux!$AL$1)>0,(G108-INDEX($C108:$G108,1,aux!$AL$1))/INDEX($C108:$G108,1,aux!$AL$1),"n.d.") -> n.d. | AA108: =O108-INDEX($K108:$O108,1,aux!$AL$1) -> 0 | AB108: 0 | AC108: 0 | AD108: =+IF(INDEX($K108:$O108,1,aux!$AL$1)>0,(O108/INDEX($K108:$O108,1,aux!$AL$1))^(1/($O$3-INDEX($K$3:$O$3,1,aux!$AL$1)))-1,"n.d.") -> n.d. | AE108: =IF(INDEX($K108:$O108,1,aux!$AL$1)>0,(O108-INDEX($K108:$O108,1,aux!$AL$1))/INDEX($K108:$O108,1,aux!$AL$1),"n.d.") -> n.d. | AX108: 12
A109: 1203 | B109: Copra | C109: 0 | D109: 0 | E109: 0 | F109: 0 | G109: 0 | H109: 0 | I109: 0 | J109: 0 | K109: 0 | L109: 0 | M109: 0 | N109: 0 | O109: 0 | P109: 0 | Q109: 0 | R109: 0 | S109: 0 | U109: =G109-INDEX($C109:$G109,1,aux!$AL$1) -> 0 | V109: 0 | W109: 0 | X109: =+IF(INDEX($C109:$G109,1,aux!$AL$1)>0,(G109/INDEX($C109:$G109,1,aux!$AL$1))^(1/($G$3-INDEX($C$3:$G$3,1,aux!$AL$1)))-1,"n.d.") -> n.d. | Y109: =IF(INDEX($C109:$G109,1,aux!$AL$1)>0,(G109-INDEX($C109:$G109,1,aux!$AL$1))/INDEX($C109:$G109,1,aux!$AL$1),"n.d.") -> n.d. | AA109: =O109-INDEX($K109:$O109,1,aux!$AL$1) -> 0 | AB109: 0 | AC109: 0 | AD109: =+IF(INDEX($K109:$O109,1,aux!$AL$1)>0,(O109/INDEX($K109:$O109,1,aux!$AL$1))^(1/($O$3-INDEX($K$3:$O$3,1,aux!$AL$1)))-1,"n.d.") -> n.d. | AE109: =IF(INDEX($K109:$O109,1,aux!$AL$1)>0,(O109-INDEX($K109:$O109,1,aux!$AL$1))/INDEX($K109:$O109,1,aux!$AL$1),"n.d.") -> n.d. | AX109: 12
A110: 1204 | B110: Sementes de linho (linhaça) | C110: 0 | D110: 0 | E110: 0 | F110: 0 | G110: 0 | H110: 0 | I110: 0 | J110: 0 | K110: 0 | L110: 0 | M110: 0 | N110: 0 | O110: 0 | P110: 0 | Q110: 0 | R110: 0 | S110: 0 | U110: =G110-INDEX($C110:$G110,1,aux!$AL$1) -> 0 | V110: 0 | W110: 0 | X110: =+IF(INDEX($C110:$G110,1,aux!$AL$1)>0,(G110/INDEX($C110:$G110,1,aux!$AL$1))^(1/($G$3-INDEX($C$3:$G$3,1,aux!$AL$1)))-1,"n.d.") -> n.d. | Y110: =IF(INDEX($C110:$G110,1,aux!$AL$1)>0,(G110-INDEX($C110:$G110,1,aux!$AL$1))/INDEX($C110:$G110,1,aux!$AL$1),"n.d.") -> n.d. | AA110: =O110-INDEX($K110:$O110,1,aux!$AL$1) -> 0 | AB110: 0 | AC110: 0 | AD110: =+IF(INDEX($K110:$O110,1,aux!$AL$1)>0,(O110/INDEX($K110:$O110,1,aux!$AL$1))^(1/($O$3-INDEX($K$3:$O$3,1,aux!$AL$1)))-1,"n.d.") -> n.d. | AE110: =IF(INDEX($K110:$O110,1,aux!$AL$1)>0,(O110-INDEX($K110:$O110,1,aux!$AL$1))/INDEX($K110:$O110,1,aux!$AL$1),"n.d.") -> n.d. | AX110: 12
A111: 1205 | B111: Sementes de nabo silvestre ou de colza | C111: 0 | D111: 0 | E111: 0 | F111: 0 | G111: 0 | H111: 0 | I111: 0 | J111: 0 | K111: 0 | L111: 0 | M111: 0 | N111: 0 | O111: 0 | P111: 0 | Q111: 0 | R111: 0 | S111: 0 | U111: =G111-INDEX($C111:$G111,1,aux!$AL$1) -> 0 | V111: 0 | W111: 0 | X111: =+IF(INDEX($C111:$G111,1,aux!$AL$1)>0,(G111/INDEX($C111:$G111,1,aux!$AL$1))^(1/($G$3-INDEX($C$3:$G$3,1,aux!$AL$1)))-1,"n.d.") -> n.d. | Y111: =IF(INDEX($C111:$G111,1,aux!$AL$1)>0,(G111-INDEX($C111:$G111,1,aux!$AL$1))/INDEX($C111:$G111,1,aux!$AL$1),"n.d.") -> n.d. | AA111: =O111-INDEX($K111:$O111,1,aux!$AL$1) -> 0 | AB111: 0 | AC111: 0 | AD111: =+IF(INDEX($K111:$O111,1,aux!$AL$1)>0,(O111/INDEX($K111:$O111,1,aux!$AL$1))^(1/($O$3-INDEX($K$3:$O$3,1,aux!$AL$1)))-1,"n.d.") -> n.d. | AE111: =IF(INDEX($K111:$O111,1,aux!$AL$1)>0,(O111-INDEX($K111:$O111,1,aux!$AL$1))/INDEX($K111:$O111,1,aux!$AL$1),"n.d.") -> n.d. | AX111: 12
A112: 1206 | B112: Sementes de girassol | C112: 0 | D112: 0 | E112: 0 | F112: 0 | G112: 0 | H112: 0 | I112: 0 | J112: 0 | K112: 0 | L112: 0 | M112: 0 | N112: 0 | O112: 0 | P112: 0 | Q112: 0 | R112: 0 | S112: 0 | U112: =G112-INDEX($C112:$G112,1,aux!$AL$1) -> 0 | V112: 0 | W112: 0 | X112: =+IF(INDEX($C112:$G112,1,aux!$AL$1)>0,(G112/INDEX($C112:$G112,1,aux!$AL$1))^(1/($G$3-INDEX($C$3:$G$3,1,aux!$AL$1)))-1,"n.d.") -> n.d. | Y112: =IF(INDEX($C112:$G112,1,aux!$AL$1)>0,(G112-INDEX($C112:$G112,1,aux!$AL$1))/INDEX($C112:$G112,1,aux!$AL$1),"n.d.") -> n.d. | AA112: =O112-INDEX($K112:$O112,1,aux!$AL$1) -> 0 | AB112: 0 | AC112: 0 | AD112: =+IF(INDEX($K112:$O112,1,aux!$AL$1)>0,(O112/INDEX($K112:$O112,1,aux!$AL$1))^(1/($O$3-INDEX($K$3:$O$3,1,aux!$AL$1)))-1,"n.d.") -> n.d. | AE112: =IF(INDEX($K112:$O112,1,aux!$AL$1)>0,(O112-INDEX($K112:$O112,1,aux!$AL$1))/INDEX($K112:$O112,1,aux!$AL$1),"n.d.") -> n.d. | AX112: 12
A113: 1207 | B113: Sementes e frutos oleaginosos | C113: 1.632 | D113: 0 | E113: 0 | F113: 0 | G113: 0 | H113: 0.3264 | I113: 2.900777941e-06 | J113: 2.245703931e-06 | K113: 0 | L113: 0 | M113: 0 | N113: 34.85 | O113: 0.01 | P113: 6.972 | Q113: 0.0003193012407 | R113: 0.0001876451808 | S113: 6.6456 | U113: =G113-INDEX($C113:$G113,1,aux!$AL$1) -> -1.632 | V113: -5.351533444e-05 | W113: -9.435867525e-05 | X113: =+IF(INDEX($C113:$G113,1,aux!$AL$1)>0,(G113/INDEX($C113:$G113,1,aux!$AL$1))^(1/($G$3-INDEX($C$3:$G$3,1,aux!$AL$1)))-1,"n.d.") -> -1 | Y113: =IF(INDEX($C113:$G113,1,aux!$AL$1)>0,(G113-INDEX($C113:$G113,1,aux!$AL$1))/INDEX($C113:$G113,1,aux!$AL$1),"n.d.") -> -1 | AA113: =O113-INDEX($K113:$O113,1,aux!$AL$1) -> 0.01 | AB113: 7.520989955e-07 | AC113: 6.147674267e-07 | AD113: =+IF(INDEX($K113:$O113,1,aux!$AL$1)>0,(O113/INDEX($K113:$O113,1,aux!$AL$1))^(1/($O$3-INDEX($K$3:$O$3,1,aux!$AL$1)))-1,"n.d.") -> n.d. | AE113: =IF(INDEX($K113:$O113,1,aux!$AL$1)>0,(O113-INDEX($K113:$O113,1,aux!$AL$1))/INDEX($K113:$O113,1,aux!$AL$1),"n.d.") -> n.d. | AX113: 12
A114: 1208 | B114: Farinhas de sementes oleaginosas | C114: 0 | D114: 0 | E114: 0 | F114: 0 | G114: 0 | H114: 0 | I114: 0 | J114: 0 | K114: 0 | L114: 0 | M114: 0 | N114: 0 | O114: 0 | P114: 0 | Q114: 0 | R114: 0 | S114: 0 | U114: =G114-INDEX($C114:$G114,1,aux!$AL$1) -> 0 | V114: 0 | W114: 0 | X114: =+IF(INDEX($C114:$G114,1,aux!$AL$1)>0,(G114/INDEX($C114:$G114,1,aux!$AL$1))^(1/($G$3-INDEX($C$3:$G$3,1,aux!$AL$1)))-1,"n.d.") -> n.d. | Y114: =IF(INDEX($C114:$G114,1,aux!$AL$1)>0,(G114-INDEX($C114:$G114,1,aux!$AL$1))/INDEX($C114:$G114,1,aux!$AL$1),"n.d.") -> n.d. | AA114: =O114-INDEX($K114:$O114,1,aux!$AL$1) -> 0 | AB114: 0 | AC114: 0 | AD114: =+IF(INDEX($K114:$O114,1,aux!$AL$1)>0,(O114/INDEX($K114:$O114,1,aux!$AL$1))^(1/($O$3-INDEX($K$3:$O$3,1,aux!$AL$1)))-1,"n.d.") -> n.d. | AE114: =IF(INDEX($K114:$O114,1,aux!$AL$1)>0,(O114-INDEX($K114:$O114,1,aux!$AL$1))/INDEX($K114:$O114,1,aux!$AL$1),"n.d.") -> n.d. | AX114: 12
A115: 1209 | B115: Sementes, frutos e esporos para sementeira | C115: 63.184 | D115: 111.716 | E115: 69.561 | F115: 55.32 | G115: 39.627 | H115: 67.8816 | I115: 0.0006032764948 | J115: 0.0004670403676 | K115: 0 | L115: 0 | M115: 0 | N115: 0.7 | O115: 0.002 | P115: 0.1404 | Q115: 6.42999056e-06 | R115: 3.778741162e-06 | S115: -67.7412 | U115: =G115-INDEX($C115:$G115,1,aux!$AL$1) -> -23.557 | V115: -0.0007724636847 | W115: -0.001362014285 | X115: =+IF(INDEX($C115:$G115,1,aux!$AL$1)>0,(G115/INDEX($C115:$G115,1,aux!$AL$1))^(1/($G$3-INDEX($C$3:$G$3,1,aux!$AL$1)))-1,"n.d.") -> -0.1100901381 | Y115: =IF(INDEX($C115:$G115,1,aux!$AL$1)>0,(G115-INDEX($C115:$G115,1,aux!$AL$1))/INDEX($C115:$G115,1,aux!$AL$1),"n.d.") -> -0.3728317296 | AA115: =O115-INDEX($K115:$O115,1,aux!$AL$1) -> 0.002 | AB115: 1.504197991e-07 | AC115: 1.229534853e-07 | AD115: =+IF(INDEX($K115:$O115,1,aux!$AL$1)>0,(O115/INDEX($K115:$O115,1,aux!$AL$1))^(1/($O$3-INDEX($K$3:$O$3,1,aux!$AL$1)))-1,"n.d.") -> n.d. | AE115: =IF(INDEX($K115:$O115,1,aux!$AL$1)>0,(O115-INDEX($K115:$O115,1,aux!$AL$1))/INDEX($K115:$O115,1,aux!$AL$1),"n.d.") -> n.d. | AX115: 12
A116: 1210 | B116: Cones de lúpulo, frescos ou secos | C116: 0 | D116: 0 | E116: 0 | F116: 0 | G116: 0 | H116: 0 | I116: 0 | J116: 0 | K116: 0 | L116: 0 | M116: 0 | N116: 0 | O116: 0 | P116: 0 | Q116: 0 | R116: 0 | S116: 0 | U116: =G116-INDEX($C116:$G116,1,aux!$AL$1) -> 0 | V116: 0 | W116: 0 | X116: =+IF(INDEX($C116:$G116,1,aux!$AL$1)>0,(G116/INDEX($C116:$G116,1,aux!$AL$1))^(1/($G$3-INDEX($C$3:$G$3,1,aux!$AL$1)))-1,"n.d.") -> n.d. | Y116: =IF(INDEX($C116:$G116,1,aux!$AL$1)>0,(G116-INDEX($C116:$G116,1,aux!$AL$1))/INDEX($C116:$G116,1,aux!$AL$1),"n.d.") -> n.d. | AA116: =O116-INDEX($K116:$O116,1,aux!$AL$1) -> 0 | AB116: 0 | AC116: 0 | AD116: =+IF(INDEX($K116:$O116,1,aux!$AL$1)>0,(O116/INDEX($K116:$O116,1,aux!$AL$1))^(1/($O$3-INDEX($K$3:$O$3,1,aux!$AL$1)))-1,"n.d.") -> n.d. | AE116: =IF(INDEX($K116:$O116,1,aux!$AL$1)>0,(O116-INDEX($K116:$O116,1,aux!$AL$1))/INDEX($K116:$O116,1,aux!$AL$1),"n.d.") -> n.d. | AX116: 12
A117: 1211 | B117: Plantas, partes de plantas para usos não alimentares | C117: 0 | D117: 0 | E117: 0 | F117: 0 | G117: 1089.27 | H117: 217.854 | I117: 0.001936109306 | J117: 0.00149888353 | K117: 0 | L117: 0 | M117: 0 | N117: 0 | O117: 0.139 | P117: 0.0278 | Q117: 1.273174769e-06 | R117: 7.482122813e-07 | S117: -217.8262 | U117: =G117-INDEX($C117:$G117,1,aux!$AL$1) -> 1089.27 | V117: 0.03571853452 | W117: 0.06297921212 | X117: =+IF(INDEX($C117:$G117,1,aux!$AL$1)>0,(G117/INDEX($C117:$G117,1,aux!$AL$1))^(1/($G$3-INDEX($C$3:$G$3,1,aux!$AL$1)))-1,"n.d.") -> n.d. | Y117: =IF(INDEX($C117:$G117,1,aux!$AL$1)>0,(G117-INDEX($C117:$G117,1,aux!$AL$1))/INDEX($C117:$G117,1,aux!$AL$1),"n.d.") -> n.d. | AA117: =O117-INDEX($K117:$O117,1,aux!$AL$1) -> 0.139 | AB117: 1.045417604e-05 | AC117: 8.545267231e-06 | AD117: =+IF(INDEX($K117:$O117,1,aux!$AL$1)>0,(O117/INDEX($K117:$O117,1,aux!$AL$1))^(1/($O$3-INDEX($K$3:$O$3,1,aux!$AL$1)))-1,"n.d.") -> n.d. | AE117: =IF(INDEX($K117:$O117,1,aux!$AL$1)>0,(O117-INDEX($K117:$O117,1,aux!$AL$1))/INDEX($K117:$O117,1,aux!$AL$1),"n.d.") -> n.d. | AX117: 12
A118: 1212 | B118: Alfarroba, algas, beterraba sacarina, etc. | C118: 0 | D118: 0 | E118: 0.567 | F118: 0 | G118: 0 | H118: 0.1134 | I118: 1.007807042e-06 | J118: 7.802169908e-07 | K118: 0 | L118: 0 | M118: 0 | N118: 0 | O118: 0 | P118: 0 | Q118: 0 | R118: 0 | S118: -0.1134 | U118: =G118-INDEX($C118:$G118,1,aux!$AL$1) -> 0 | V118: 0 | W118: 0 | X118: =+IF(INDEX($C118:$G118,1,aux!$AL$1)>0,(G118/INDEX($C118:$G118,1,aux!$AL$1))^(1/($G$3-INDEX($C$3:$G$3,1,aux!$AL$1)))-1,"n.d.") -> n.d. | Y118: =IF(INDEX($C118:$G118,1,aux!$AL$1)>0,(G118-INDEX($C118:$G118,1,aux!$AL$1))/INDEX($C118:$G118,1,aux!$AL$1),"n.d.") -> n.d. | AA118: =O118-INDEX($K118:$O118,1,aux!$AL$1) -> 0 | AB118: 0 | AC118: 0 | AD118: =+IF(INDEX($K118:$O118,1,aux!$AL$1)>0,(O118/INDEX($K118:$O118,1,aux!$AL$1))^(1/($O$3-INDEX($K$3:$O$3,1,aux!$AL$1)))-1,"n.d.") -> n.d. | AE118: =IF(INDEX($K118:$O118,1,aux!$AL$1)>0,(O118-INDEX($K118:$O118,1,aux!$AL$1))/INDEX($K118:$O118,1,aux!$AL$1),"n.d.") -> n.d. | AX118: 12
A119: 1213 | B119: Palhas e cascas de cereais | C119: 0 | D119: 0 | E119: 0 | F119: 0 | G119: 0 | H119: 0 | I119: 0 | J119: 0 | K119: 0 | L119: 0 | M119: 0 | N119: 0 | O119: 0 | P119: 0 | Q119: 0 | R119: 0 | S119: 0 | U119: =G119-INDEX($C119:$G119,1,aux!$AL$1) -> 0 | V119: 0 | W119: 0 | X119: =+IF(INDEX($C119:$G119,1,aux!$AL$1)>0,(G119/INDEX($C119:$G119,1,aux!$AL$1))^(1/($G$3-INDEX($C$3:$G$3,1,aux!$AL$1)))-1,"n.d.") -> n.d. | Y119: =IF(INDEX($C119:$G119,1,aux!$AL$1)>0,(G119-INDEX($C119:$G119,1,aux!$AL$1))/INDEX($C119:$G119,1,aux!$AL$1),"n.d.") -> n.d. | AA119: =O119-INDEX($K119:$O119,1,aux!$AL$1) -> 0 | AB119: 0 | AC119: 0 | AD119: =+IF(INDEX($K119:$O119,1,aux!$AL$1)>0,(O119/INDEX($K119:$O119,1,aux!$AL$1))^(1/($O$3-INDEX($K$3:$O$3,1,aux!$AL$1)))-1,"n.d.") -> n.d. | AE119: =IF(INDEX($K119:$O119,1,aux!$AL$1)>0,(O119-INDEX($K119:$O119,1,aux!$AL$1))/INDEX($K119:$O119,1,aux!$AL$1),"n.d.") -> n.d. | AX119: 12
